Workbook

Sheet NOMBRE (hidden)
A1: DATOS DEL ESTABLECIMIENTO | C1: CÓDIGOS
A2: NOMBRE DE COMUNA | I2: =IF(OR([1]NOMBRE!C2="",[1]NOMBRE!D2="",[1]NOMBRE!E2="",[1]NOMBRE!F2="",[1]NOMBRE!G2=""),"Falta Cód. Com.","") -> Falta Cód. Com. | AF2: =IF(I2>"",1,0) -> 1
A3: NOMBRE ESTABLECIMIENTO/ESTRATEGIA | I3: =IF(OR([1]NOMBRE!C3="",[1]NOMBRE!D3="",[1]NOMBRE!E3="",[1]NOMBRE!F3="",[1]NOMBRE!G3="",[1]NOMBRE!H3=""),"Falta Cód. Est.","") -> Falta Cód. Est. | AF3: =IF(I3>"",1,0) -> 1
A4: TIPO DE ESTABLECIMIENTO/ESTRATEGIA | I4: =IF(OR([1]NOMBRE!B4=""),"Falta Tipo. Est.","") -> Falta Tipo. Est. | AF4: =IF(I4>"",1,0) -> 1
A5: DEPENDENCIA | I5: =IF(OR([1]NOMBRE!B5=""),"Falta Dependencia. Est.","") -> Falta Dependencia. Est. | AF5: =IF(I5>"",1,0) -> 1
A6: MES: | I6: =IF(OR([1]NOMBRE!C6="",[1]NOMBRE!D6=""),"Falta Cód. Mes.","") -> Falta Cód. Mes. | AF6: =IF(I6>"",1,0) -> 1
A7: AÑO: | B7: 2023 | AF7: =SUM(AF2:AF6) -> 5
A9: Versión 1.4: Abril 2023
A11: Director Servicio de Salud o Director Establecimiento | Z11: ENERO | AA11: Establecimiento de Mayor Complejidad (EMAYC) | AB11: SERVICIO DE SALUD
A12: Jefe de Estadisticas | Z12: FEBRERO | AA12: Establecimiento de Mediana Complejidad (EMEDC) | AB12: MUNICIPAL
Z13: MARZO | AA13: Establecimiento de Menor Complejidad (EMENC) | AB13: OTRA INSTITUCIÓN (Delegado)
A14: MINSAL - DEIS | Z14: ABRIL | AA14: Centros de Diagnóstico Terapéutico (CDT)
Z15: MAYO | AA15: Centro de Referencia de Salud (CRS)
Z16: JUNIO | AA16: Consultorio General Urbano (CGU)
B17: SERIE BS | Z17: JULIO | AA17: Consultorio General Urbano (CGU) - CESFAM
Z18: AGOSTO | AA18: Consultorio General Urbano(CGU) con SAPU/SUR/SAR
Z19: SEPTIEMBRE | AA19: Consultorio General Urbano (CGU) - CESFAM con SAPU/SAR
Z20: OCTUBRE | AA20: Consultorio General Rural (CGR)
Z21: NOVIEMBRE | AA21: Consultorio General Rural (CGR) - CESFAM
Z22: DICIEMBRE | AA22: Consultorio General Rural (CGR) con SAPU/SUR/SAR
AA23: Consultorio General Rural (CGR) - CESFAM con SAPU/SUR/SAR
AA24: Posta de Salud Rural (PSR)
AA25: Centro Comunitario de Salud Familiar (CECOF)
AA26: Consultorio de Salud Mental (COSAM)
AA27: Programa de Reparación y Atención Integral de Salud (PRAIS)
AA28: Centro de Atención Funcionarios (CAF)
AA29: Clínica Dental Móvil (CDM)
AA30: Dirección Servicio de Salud (DSS)
AA31: Servicio de Atención Primaria de Urgencia (SAPU)
AA32: Servicio de Atención Primaria de Urgencia Alta Resolución (SAR)
AA33: Laboratorio Clínico o Dental
AA34: Servicio de Atención Primaria de Urgencia Dental (SAPUDENT)
AA35: Centro de Rehabilitación (CR)
AA36: Hospital de Campaña
AA37: Centro Oncologico

Sheet Filtro
A1: Comuna | B1: (Todas)
A2: Establecimiento | B2: (Todas)
A3: Mes | B3: (Todas)
A5: Etiquetas de fila | B5: Suma de Col01 | C5: Suma de Col02 | D5: Suma de Col03 | E5: Suma de Col04 | F5: Suma de Col05 | G5: Suma de Col06 | H5: Suma de Col07 | I5: Suma de Col08 | J5: Suma de Col09 | K5: Suma de Col10 | L5: Suma de Col11 | M5: Suma de Col12 | N5: Suma de Col13 | O5: Suma de Col14 | P5: Suma de Col15 | Q5: Suma de Col16 | R5: Suma de Col17 | S5: Suma de Col18 | T5: Suma de Col19 | U5: Suma de Col20 | V5: Suma de Col21 | W5: Suma de Col22 | X5: Suma de Col23 | Y5: Suma de Col24 | Z5: Suma de Col25 | AA5: Suma de Col26 | AB5: Suma de Col27 | AC5: Suma de Col28 | AD5: Suma de Col29 | AE5: Suma de Col30 | AF5: Suma de Col31 | AG5: Suma de Col32 | AH5: Suma de Col33 | AI5: Suma de Col34 | AJ5: Suma de Col35 | AK5: Suma de Col36
A6: 01010014 | B6: 54538 | C6: 54538 | D6: 54538 | Z6: 0 | AA6: 54505 | AB6: 33 | AJ6: 845880 | AK6: 346861680
A7: 01010020 | B7: 1807 | C7: 1807 | D7: 1807 | E7: 0 | F7: 0 | Z7: 0 | AA7: 1807 | AB7: 0 | AJ7: 320530 | AK7: 4354870
A8: 01010021 | B8: 21425 | C8: 21425 | D8: 21425 | E8: 0 | F8: 0 | Z8: 0 | AA8: 2365 | AB8: 19063 | AJ8: 103740 | AK8: 16711500
A9: 01010022 | B9: 17622 | C9: 17599 | D9: 17599 | E9: 0 | F9: 23 | Z9: 8096 | AA9: 9149 | AB9: 377 | AJ9: 255360 | AK9: 33790080
A10: 01010025 | B10: 20436 | C10: 20317 | D10: 20317 | E10: 0 | F10: 119 | Z10: 0 | AA10: 20182 | AB10: 254 | AC10: 570
A11: 01010029 | B11: 556 | C11: 556 | D11: 556 | F11: 0 | Z11: 0 | AA11: 556 | AB11: 0 | AJ11: 626400 | AK11: 2579840
A12: 01010031 | B12: 218 | C12: 218 | D12: 218 | F12: 0 | Z12: 0 | AA12: 218 | AB12: 0 | AJ12: 344250 | AK12: 555900
A13: 01010032 | B13: 0 | C13: 0 | D13: 0 | F13: 0 | Z13: 0 | AA13: 0 | AB13: 0 | AJ13: 105300 | AK13: 0
A14: 01010033 | B14: 1382 | C14: 1382 | D14: 1382 | E14: 0 | F14: 0 | Z14: 338 | AA14: 1032 | AB14: 0
A15: 01010035 | B15: 2004 | C15: 2003 | D15: 2003 | E15: 0 | F15: 1 | Z15: 2 | AA15: 1988 | AB15: 0 | AJ15: 296140 | AK15: 4426630
A16: 01010036 | B16: 9124 | C16: 9124 | D16: 9124 | E16: 0 | F16: 0 | Z16: 8446 | AA16: 678 | AB16: 0 | AJ16: 170180 | AK16: 11587480
A17: 01010037 | B17: 16750 | C17: 16749 | D17: 16749 | E17: 0 | F17: 1 | Z17: 12024 | AA17: 4692 | AB17: 0
A18: 01010038 | B18: 6870 | C18: 6870 | D18: 6870 | E18: 0 | F18: 0 | Z18: 5946 | AA18: 833 | AB18: 58
A19: 01010042 | B19: 30197 | C19: 30185 | D19: 30183 | E19: 2 | F19: 12 | Z19: 3315 | AA19: 23816 | AB19: 3092 | AJ19: 113050 | AK19: 25655550
A20: 01010047 | B20: 2080 | C20: 2080 | D20: 2080 | Z20: 100 | AA20: 1963 | AB20: 0 | AH20: 75
A21: 01010048 | B21: 574099 | C21: 574099 | D21: 574099 | E21: 0 | F21: 0 | Z21: 63700 | AA21: 483106 | AB21: 27293
A22: 01010049 | B22: 1561 | C22: 1561 | D22: 1561 | E22: 0 | F22: 0 | Z22: 0 | AA22: 1561 | AB22: 0
A23: 01010050 | B23: 1976 | C23: 1976 | D23: 1976 | E23: 0 | F23: 0 | Z23: 864 | AA23: 1112 | AB23: 0
A24: 01010051 | B24: 527 | C24: 527 | D24: 527 | E24: 0 | F24: 0 | Z24: 115 | AA24: 412 | AB24: 0
A25: 01010053 | B25: 241 | C25: 241 | D25: 241 | Z25: 162 | AA25: 79 | AB25: 0
A26: 01010054 | B26: 1699 | C26: 1699 | D26: 1699 | Z26: 1485 | AA26: 214 | AB26: 0
A27: 01010055 | B27: 14364 | C27: 14364 | D27: 14364 | E27: 0 | F27: 0 | Z27: 1942 | AA27: 12048 | AB27: 266
A28: 01010056 | B28: 239 | C28: 239 | D28: 239 | Z28: 130 | AA28: 109
A29: 01010057 | B29: 203 | C29: 203 | D29: 203 | Z29: 111 | AA29: 92
A30: 01010058 | B30: 257 | C30: 257 | D30: 257 | Z30: 141 | AA30: 116
A31: 01010060 | B31: 4 | C31: 4 | D31: 4 | Z31: 2 | AA31: 2
A32: 01010061 | B32: 369 | C32: 369 | D32: 369 | Z32: 18 | AA32: 351 | AB32: 0
A33: 01010062 | B33: 189 | C33: 189 | D33: 189 | Z33: 155 | AA33: 34 | AB33: 0
A34: 01010063 | B34: 773 | C34: 773 | D34: 773 | Z34: 444 | AA34: 329 | AB34: 0
A35: 01010065 | B35: 157 | C35: 157 | D35: 157 | AA35: 157
A36: 01010066 | B36: 26942 | C36: 26942 | D36: 26942 | Z36: 0 | AA36: 25704 | AB36: 1238 | AE36: 692
A37: 01010068 | B37: 18067 | C37: 18067 | D37: 18067 | Z37: 2984 | AA37: 15083 | AB37: 0
A38: 01010069 | B38: 658 | C38: 658 | D38: 658 | Z38: 0 | AA38: 658 | AB38: 0
A39: 01010071 | B39: 1 | C39: 1 | D39: 1 | Z39: 1
A40: 01010080 | B40: 6 | C40: 6 | D40: 6 | E40: 0 | F40: 0 | Z40: 5 | AA40: 1 | AB40: 0
A41: 01010082 | B41: 4 | C41: 4 | D41: 4 | E41: 0 | F41: 0 | Z41: 4 | AA41: 0 | AB41: 0
A42: 01010108 | B42: 1442 | C42: 1438 | D42: 1435 | E42: 3 | F42: 4 | Z42: 213 | AA42: 1203 | AB42: 28 | AG42: 122 | AH42: 52 | AI42: 3 | AJ42: 597750 | AK42: 6414450
A43: 01010109 | B43: 23 | C43: 23 | D43: 23 | E43: 0 | F43: 0 | Z43: 0 | AA43: 23 | AB43: 0 | AG43: 0 | AH43: 0 | AI43: 0 | AJ43: 733440 | AK43: 127650
A44: 01010112 | B44: 0 | C44: 0 | D44: 0 | E44: 0 | F44: 0 | Z44: 0 | AA44: 0 | AB44: 0 | AG44: 0 | AH44: 0 | AI44: 0 | AJ44: 529340 | AK44: 0
A45: 01010113 | B45: 181 | C45: 159 | D45: 159 | E45: 0 | F45: 22 | Z45: 11 | AA45: 170 | AB45: 0 | AG45: 26 | AH45: 10 | AI45: 0 | AJ45: 529340 | AK45: 632820
A46: 01010114 | B46: 18 | C46: 18 | D46: 18 | E46: 0 | F46: 0 | Z46: 6 | AA46: 12 | AB46: 0 | AG46: 10 | AH46: 11 | AI46: 0 | AJ46: 521540 | AK46: 71640
A47: 01010117 | B47: 19 | C47: 19 | D47: 19 | E47: 0 | F47: 0 | Z47: 0 | AA47: 15 | AB47: 4 | AG47: 0 | AH47: 0 | AI47: 0 | AJ47: 180960 | AK47: 26220
A48: 01010119 | B48: 33 | C48: 33 | D48: 33 | E48: 0 | F48: 0 | Z48: 4 | AA48: 27 | AB48: 2 | AG48: 0 | AH48: 0 | AI48: 4 | AJ48: 70870 | AK48: 35970
A49: 01010120 | B49: 5075 | C49: 5069 | D49: 5069 | E49: 0 | F49: 6 | Z49: 3547 | AA49: 1042 | AB49: 486 | AG49: 0 | AH49: 0 | AI49: 38 | AJ49: 154240 | AK49: 5525210
A50: 01010123 | B50: 0 | C50: 0 | D50: 0 | E50: 0 | F50: 0 | Z50: 0 | AA50: 0 | AB50: 0 | AG50: 0 | AH50: 0 | AI50: 0 | AJ50: 547540 | AK50: 0
A51: 01010126 | B51: 0 | C51: 0 | D51: 0 | E51: 0 | F51: 0 | Z51: 0 | AA51: 0 | AB51: 0 | AG51: 0 | AH51: 0 | AI51: 0 | AJ51: 185340 | AK51: 0
A52: 01010127 | B52: 1815 | C52: 1809 | D52: 1808 | E52: 1 | F52: 6 | Z52: 562 | AA52: 1171 | AB52: 82 | AG52: 0 | AH52: 0 | AI52: 0 | AJ52: 269340 | AK52: 3579840
A53: 01010128 | B53: 0 | C53: 0 | D53: 0 | E53: 0 | F53: 0 | Z53: 0 | AA53: 0 | AB53: 0 | AG53: 0 | AH53: 13 | AI53: 0 | AJ53: 523340 | AK53: 0
A54: 01010130 | B54: 13 | C54: 13 | D54: 13 | E54: 0 | F54: 0 | Z54: 3 | AA54: 10 | AB54: 0 | AG54: 9 | AH54: 7 | AI54: 0 | AJ54: 269940 | AK54: 25740
A55: 01010131 | B55: 4 | C55: 4 | D55: 4 | E55: 0 | F55: 0 | Z55: 3 | AA55: 1 | AB55: 0 | AG55: 6 | AH55: 19 | AI55: 0 | AJ55: 558640 | AK55: 16720
A56: 01010132 | B56: 4368 | C56: 4302 | D56: 4299 | E56: 3 | F56: 66 | Z56: 583 | AA56: 3729 | AB56: 56 | AG56: 82 | AH56: 3 | AI56: 37 | AJ56: 672940 | AK56: 21838920
A57: 01010133 | B57: 1218 | C57: 1218 | D57: 1218 | E57: 0 | F57: 0 | Z57: 354 | AA57: 20 | AB57: 844 | AG57: 0 | AH57: 0 | AI57: 0 | AJ57: 549340 | AK57: 5091240
A58: 01010134 | B58: 774 | C58: 764 | D58: 764 | E58: 0 | F58: 10 | Z58: 197 | AA58: 570 | AB58: 7 | AG58: 303 | AH58: 95 | AI58: 2 | AJ58: 269940 | AK58: 1517120
A59: 01010135 | B59: 354 | C59: 353 | D59: 353 | E59: 0 | F59: 1 | Z59: 126 | AA59: 227 | AB59: 1 | AG59: 391 | AH59: 91 | AI59: 1 | AJ59: 558640 | AK59: 1475540
A60: 01010136 | B60: 5199 | C60: 5096 | D60: 5093 | E60: 3 | F60: 103 | Z60: 342 | AA60: 4778 | AB60: 79 | AG60: 79 | AH60: 0 | AI60: 39 | AJ60: 667180 | AK60: 25666580
A61: 01010140 | B61: 54334 | C61: 54137 | D61: 54137 | E61: 0 | F61: 197 | Z61: 26760 | AA61: 15209 | AB61: 12365 | AG61: 0 | AH61: 0 | AI61: 47 | AJ61: 305080 | AK61: 122349620
A62: 01010141 | B62: 109 | C62: 109 | D62: 109 | E62: 0 | F62: 0 | Z62: 3 | AA62: 105 | AB62: 1 | AG62: 4 | AH62: 0 | AI62: 60 | AJ62: 490660 | AK62: 80140
A63: 01010142 | B63: 39040 | C63: 38906 | D63: 38906 | E63: 0 | F63: 134 | Z63: 14729 | AA63: 14576 | AB63: 9735 | AG63: 0 | AH63: 0 | AI63: 342 | AJ63: 82460 | AK63: 24121720
A64: 01010144 | B64: 41627 | C64: 41195 | D64: 41195 | E64: 0 | F64: 432 | Z64: 14060 | AA64: 17864 | AB64: 9703 | AG64: 0 | AH64: 0 | AI64: 237 | AJ64: 93140 | AK64: 25540900
A65: 01010146 | B65: 2065 | C65: 2065 | D65: 2065 | E65: 0 | F65: 0 | Z65: 6 | AA65: 2048 | AB65: 11 | AG65: 0 | AH65: 0 | AI65: 199 | AJ65: 556420 | AK65: 8754420
A66: 01010147 | B66: 27428 | C66: 25032 | D66: 25027 | E66: 5 | F66: 2396 | Z66: 1656 | AA66: 25636 | AB66: 137 | AG66: 0 | AH66: 0 | AI66: 3454 | AJ66: 566750 | AK66: 108617180
A67: 01010148 | B67: 0 | C67: 0 | D67: 0 | E67: 0 | F67: 0 | Z67: 0 | AA67: 0 | AB67: 0 | AG67: 0 | AH67: 0 | AI67: 0 | AJ67: 123910 | AK67: 0
A68: 01010150 | B68: 2335 | C68: 2335 | D68: 2335 | E68: 0 | F68: 0 | Z68: 142 | AA68: 1705 | AB68: 488 | AG68: 0 | AH68: 1 | AI68: 446 | AJ68: 589680 | AK68: 6686150
A69: 01010151 | B69: 187627 | C69: 183464 | D69: 183153 | E69: 311 | F69: 4163 | Z69: 45751 | AA69: 100466 | AB69: 41412 | AG69: 0 | AH69: 0 | AI69: 6428 | AJ69: 374350 | AK69: 523817580
A70: 01010154 | B70: 0 | C70: 0 | D70: 0 | E70: 0 | F70: 0 | Z70: 0 | AA70: 0 | AB70: 0 | AG70: 0 | AH70: 0 | AI70: 0 | AJ70: 123040 | AK70: 0
A71: 01010155 | B71: 0 | C71: 0 | D71: 0 | E71: 0 | F71: 0 | Z71: 0 | AA71: 0 | AB71: 0 | AG71: 0 | AH71: 0 | AI71: 0 | AJ71: 555940 | AK71: 0
A72: 01010157 | B72: 219 | C72: 219 | D72: 219 | E72: 0 | F72: 0 | Z72: 107 | AA72: 62 | AB72: 50 | AG72: 0 | AH72: 0 | AI72: 0 | AJ72: 546670 | AK72: 915420
A73: 01010160 | B73: 15647 | C73: 15593 | D73: 15593 | E73: 0 | F73: 54 | Z73: 6916 | AA73: 5908 | AB73: 2823 | AG73: 0 | AH73: 0 | AI73: 97 | AJ73: 145840 | AK73: 17193860
A74: 01010165 | B74: 123026 | C74: 122484 | D74: 122322 | E74: 162 | F74: 542 | Z74: 31007 | AA74: 59504 | AB74: 32528 | AG74: 0 | AH74: 0 | AI74: 799 | AJ74: 181950 | AK74: 168804360
A75: 01010166 | B75: 49500 | C75: 45906 | D75: 45611 | E75: 295 | F75: 3594 | Z75: 14035 | AA75: 22054 | AB75: 13411 | AG75: 0 | AH75: 0 | AI75: 3594 | AJ75: 113050 | AK75: 38769350
A76: 01010167 | B76: 49502 | C76: 45908 | D76: 45613 | E76: 295 | F76: 3594 | Z76: 14035 | AA76: 22055 | AB76: 13412 | AG76: 0 | AH76: 0 | AI76: 3594 | AJ76: 112360 | AK76: 38771050
A77: 01010168 | B77: 27799 | C77: 27678 | D77: 27678 | E77: 0 | F77: 121 | Z77: 7990 | AA77: 10366 | AB77: 9443 | AG77: 0 | AH77: 0 | AI77: 0 | AJ77: 82460 | AK77: 17160360
A78: 01010169 | B78: 36937 | C78: 36816 | D78: 36816 | E78: 0 | F78: 121 | Z78: 12917 | AA78: 13160 | AB78: 10860 | AG78: 0 | AH78: 0 | AI78: 0 | AJ78: 83870 | AK78: 22825920
A79: 01010170 | B79: 49427 | C79: 45832 | D79: 45537 | E79: 295 | F79: 3595 | Z79: 13962 | AA79: 22054 | AB79: 13411 | AG79: 0 | AH79: 0 | AI79: 3594 | AJ79: 144970 | AK79: 49635330
A80: 01010171 | B80: 87304 | C80: 83589 | D80: 83293 | E80: 296 | F80: 3715 | Z80: 27898 | AA80: 35147 | AB80: 24259 | AG80: 0 | AH80: 0 | AI80: 3594 | AJ80: 144250 | AK80: 90789370
A81: 01010172 | B81: 197 | C81: 197 | D81: 197 | E81: 0 | F81: 0 | Z81: 121 | AA81: 72 | AB81: 4 | AG81: 0 | AH81: 0 | AI81: 0 | AJ81: 115630 | AK81: 167450
A82: 01010173 | B82: 2908 | C82: 2907 | D82: 2907 | E82: 0 | F82: 1 | Z82: 1460 | AA82: 14 | AB82: 1434 | AG82: 0 | AH82: 0 | AI82: 0 | AJ82: 230700 | AK82: 4970970
A83: 01010174 | B83: 0 | C83: 0 | D83: 0 | E83: 0 | F83: 0 | Z83: 0 | AA83: 0 | AB83: 0 | AG83: 0 | AH83: 0 | AI83: 0 | AJ83: 368140 | AK83: 0
A84: 01010176 | B84: 86 | C84: 86 | D84: 86 | E84: 0 | F84: 0 | Z84: 25 | AA84: 51 | AB84: 10 | AG84: 0 | AH84: 0 | AI84: 0 | AJ84: 194220 | AK84: 118680
A85: 01010185 | B85: 782 | C85: 778 | D85: 778 | E85: 0 | F85: 4 | Z85: 184 | AA85: 594 | AB85: 4 | AG85: 303 | AH85: 0 | AI85: 0 | AJ85: 647330 | AK85: 3843320
A86: 01010186 | B86: 316 | C86: 316 | D86: 316 | E86: 0 | F86: 0 | Z86: 50 | AA86: 153 | AB86: 113 | AG86: 0 | AH86: 0 | AI86: 18 | AJ86: 228840 | AK86: 688880
A87: 01010188 | B87: 97149 | C87: 96652 | D87: 96481 | E87: 171 | F87: 497 | Z87: 30368 | AA87: 35165 | AB87: 31629 | AG87: 0 | AH87: 0 | AI87: 172 | AJ87: 284930 | AK87: 210183290
A88: 01010189 | B88: 36966 | C88: 33669 | D88: 33549 | E88: 120 | F88: 3297 | Z88: 5948 | AA88: 28141 | AB88: 2913 | AG88: 0 | AH88: 0 | AI88: 3363 | AJ88: 90330 | AK88: 17109990
A89: 01010192 | B89: 3 | C89: 3 | D89: 3 | E89: 0 | F89: 0 | Z89: 2 | AA89: 1 | AB89: 0 | AG89: 2 | AH89: 3 | AI89: 0 | AJ89: 1065330 | AK89: 24030
A90: 01010193 | B90: 0 | C90: 0 | D90: 0 | E90: 0 | F90: 0 | Z90: 0 | AA90: 0 | AB90: 0 | AG90: 0 | AH90: 2 | AI90: 0 | AJ90: 1123740 | AK90: 0
A91: 01010194 | B91: 21 | C91: 21 | D91: 21 | E91: 0 | F91: 0 | Z91: 9 | AA91: 12 | AB91: 0 | AG91: 14 | AH91: 47 | AI91: 0 | AJ91: 3662190 | AK91: 577080
A92: 01010195 | B92: 21 | C92: 21 | D92: 21 | E92: 0 | F92: 0 | Z92: 9 | AA92: 12 | AB92: 0 | AG92: 12 | AH92: 42 | AI92: 0 | AJ92: 3949790 | AK92: 628530
A93: 01010196 | B93: 0 | C93: 0 | D93: 0 | E93: 0 | F93: 0 | Z93: 0 | AA93: 0 | AB93: 0 | AG93: 0 | AH93: 0 | AI93: 0 | AJ93: 2679040 | AK93: 0
A94: 01010197 | B94: 41 | C94: 41 | D94: 41 | E94: 0 | F94: 0 | Z94: 12 | AA94: 1 | AB94: 28 | AG94: 0 | AH94: 3 | AI94: 0 | AJ94: 5537330 | AK94: 381710
A95: 01010198 | B95: 8777 | C95: 8728 | D95: 8722 | E95: 6 | F95: 49 | Z95: 1589 | AA95: 2541 | AB95: 4647 | AG95: 0 | AH95: 0 | AI95: 0 | AJ95: 1274350 | AK95: 81201820
A96: 01010199 | B96: 1397 | C96: 1393 | D96: 1393 | E96: 0 | F96: 4 | Z96: 127 | AA96: 879 | AB96: 391 | AG96: 0 | AH96: 0 | AI96: 0 | AJ96: 106610 | AK96: 1072610
A97: 01010200 | B97: 0 | C97: 0 | D97: 0 | E97: 0 | F97: 0 | Z97: 0 | AA97: 0 | AB97: 0 | AG97: 0 | AH97: 0 | AI97: 0 | AJ97: 292720 | AK97: 0
A98: 01010201 | B98: 31299 | C98: 31238 | D98: 31157 | E98: 81 | F98: 61 | Z98: 15390 | AA98: 6943 | AB98: 8966 | AG98: 0 | AH98: 0 | AI98: 304 | AJ98: 464700 | AK98: 109012620
A99: 01010202 | B99: 30612 | C99: 29824 | D99: 29793 | E99: 31 | F99: 788 | Z99: 3328 | AA99: 26560 | AB99: 724 | AG99: 0 | AH99: 0 | AI99: 2393 | AJ99: 201630 | AK99: 44792450
A100: 01010204 | B100: 16092 | C100: 15959 | D100: 15937 | E100: 22 | F100: 133 | Z100: 2321 | AA100: 4812 | AB100: 8959 | AG100: 0 | AH100: 0 | AI100: 64 | AJ100: 303020 | AK100: 35220770
A101: 01010205 | B101: 0 | C101: 0 | D101: 0 | E101: 0 | F101: 0 | Z101: 0 | AA101: 0 | AB101: 0 | AG101: 0 | AH101: 0 | AI101: 0 | AJ101: 687140 | AK101: 0
A102: 01010206 | B102: 1255 | C102: 1251 | D102: 1251 | E102: 0 | F102: 4 | Z102: 262 | AA102: 813 | AB102: 180 | AG102: 0 | AH102: 0 | AI102: 0 | AJ102: 275760 | AK102: 2476980
A103: 01010207 | B103: 216 | C103: 216 | D103: 216 | E103: 0 | F103: 0 | Z103: 0 | AA103: 216 | AB103: 0 | AG103: 0 | AH103: 0 | AI103: 0 | AJ103: 797460 | AK103: 1321920
A104: 01010208 | B104: 1510 | C104: 1510 | D104: 1510 | E104: 0 | F104: 0 | Z104: 3 | AA104: 1507 | AB104: 0 | AG104: 0 | AH104: 0 | AI104: 3 | AJ104: 84320 | AK104: 938060
A105: 01010209 | B105: 3829 | C105: 3824 | D105: 3822 | E105: 2 | F105: 5 | Z105: 766 | AA105: 2217 | AB105: 846 | AG105: 0 | AH105: 0 | AI105: 31 | AJ105: 165340 | AK105: 4823280
A106: 01010210 | B106: 10654 | C106: 10644 | D106: 10644 | E106: 0 | F106: 10 | Z106: 2861 | AA106: 6491 | AB106: 1302 | AG106: 0 | AH106: 0 | AI106: 31 | AJ106: 182670 | AK106: 14642900
A107: 01010212 | B107: 48715 | C107: 48272 | D107: 48208 | E107: 64 | F107: 443 | Z107: 21259 | AA107: 21903 | AB107: 5553 | AG107: 0 | AH107: 0 | AI107: 52 | AJ107: 147640 | AK107: 52546720
A108: 01010214 | B108: 0 | C108: 0 | D108: 0 | E108: 0 | F108: 0 | Z108: 0 | AA108: 0 | AB108: 0 | AG108: 0 | AH108: 0 | AI108: 0 | AJ108: 270810 | AK108: 0
A109: 01010215 | B109: 0 | C109: 0 | D109: 0 | E109: 0 | F109: 0 | Z109: 0 | AA109: 0 | AB109: 0 | AG109: 0 | AH109: 0 | AI109: 0 | AJ109: 590250 | AK109: 0
A110: 01010216 | B110: 9 | C110: 9 | D110: 9 | E110: 0 | F110: 0 | Z110: 4 | AA110: 5 | AB110: 0 | AG110: 14 | AH110: 2 | AI110: 0 | AJ110: 400850 | AK110: 27450
A111: 01010217 | B111: 988 | C111: 988 | D111: 988 | E111: 0 | F111: 0 | Z111: 14 | AA111: 938 | AB111: 36 | AG111: 0 | AH111: 2 | AI111: 1 | AJ111: 192370 | AK111: 1275000
A112: 01010218 | B112: 13832 | C112: 13498 | D112: 13498 | E112: 0 | F112: 334 | Z112: 700 | AA112: 12724 | AB112: 408 | AG112: 0 | AH112: 0 | AI112: 249 | AJ112: 173460 | AK112: 17908860
A113: 01010219 | B113: 15873 | C113: 15866 | D113: 15866 | E113: 0 | F113: 7 | Z113: 1100 | AA113: 13703 | AB113: 1100 | AG113: 0 | AH113: 0 | AI113: 39 | AJ113: 257970 | AK113: 30462720
A114: 01010220 | B114: 2083 | C114: 2083 | D114: 2083 | E114: 0 | F114: 0 | Z114: 113 | AA114: 1542 | AB114: 428 | AG114: 0 | AH114: 0 | AI114: 516 | AJ114: 366480 | AK114: 2624580
A115: 01010222 | B115: 190088 | C115: 186017 | D115: 185813 | E115: 204 | F115: 4071 | Z115: 47891 | AA115: 98707 | AB115: 43492 | AG115: 0 | AH115: 0 | AI115: 6307 | AJ115: 172170 | AK115: 234147330
A116: 01010223 | B116: 2042 | C116: 2035 | D116: 2035 | E116: 0 | F116: 7 | Z116: 265 | AA116: 1663 | AB116: 114 | AG116: 0 | AH116: 0 | AI116: 9 | AJ116: 376110 | AK116: 5879250
A117: 01010224 | B117: 14312 | C117: 14219 | D117: 14213 | E117: 6 | F117: 93 | Z117: 3424 | AA117: 3480 | AB117: 7408 | AG117: 0 | AH117: 0 | AI117: 5 | AJ117: 591330 | AK117: 63393250
A118: 01010225 | B118: 18591 | C118: 18485 | D118: 18479 | E118: 6 | F118: 106 | Z118: 4241 | AA118: 6155 | AB118: 8193 | AG118: 0 | AH118: 0 | AI118: 4 | AJ118: 471230 | AK118: 63497190
A119: 01010226 | B119: 16861 | C119: 16799 | D119: 16795 | E119: 4 | F119: 62 | Z119: 4004 | AA119: 2254 | AB119: 10605 | AG119: 5 | AH119: 0 | AI119: 2 | AJ119: 1216420 | AK119: 155867090
A120: 01010229 | B120: 18751 | C120: 18698 | D120: 18664 | E120: 34 | F120: 53 | Z120: 4570 | AA120: 8585 | AB120: 5596 | AG120: 75 | AH120: 0 | AI120: 39 | AJ120: 281850 | AK120: 38074560
A121: 01010230 | B121: 1721 | C121: 1721 | D121: 1721 | E121: 0 | F121: 0 | Z121: 115 | AA121: 1217 | AB121: 389 | AG121: 0 | AH121: 0 | AI121: 324 | AJ121: 725010 | AK121: 2013570
A122: 01010231 | B122: 450202 | C122: 443923 | D122: 443277 | E122: 646 | F122: 6279 | Z122: 180592 | AA122: 149943 | AB122: 119676 | AG122: 0 | AH122: 0 | AI122: 6684 | AJ122: 168750 | AK122: 518634090
A123: 01010232 | B123: 1090 | C123: 1090 | D123: 1090 | E123: 0 | F123: 0 | Z123: 13 | AA123: 1024 | AB123: 53 | AG123: 0 | AH123: 0 | AI123: 538 | AJ123: 739230 | AK123: 6441900
A124: 01010233 | B124: 68263 | C124: 64056 | D124: 64036 | E124: 20 | F124: 4207 | Z124: 6761 | AA124: 50023 | AB124: 1479 | AG124: 0 | AH124: 0 | AI124: 7329 | AJ124: 784230 | AK124: 378452760
A125: 01010234 | B125: 3515 | C125: 3005 | D125: 3005 | E125: 0 | F125: 510 | Z125: 430 | AA125: 3077 | AB125: 8 | AG125: 8 | AH125: 60 | AI125: 506 | AJ125: 696240 | AK125: 15956550
A126: 01010235 | B126: 0 | C126: 0 | D126: 0 | E126: 0 | F126: 0 | Z126: 0 | AA126: 0 | AB126: 0 | AG126: 0 | AH126: 0 | AI126: 0 | AJ126: 273600 | AK126: 0
A127: 01010238 | B127: 606 | C127: 606 | D127: 606 | E127: 0 | F127: 0 | Z127: 31 | AA127: 487 | AB127: 88 | AG127: 0 | AH127: 0 | AI127: 3 | AJ127: 705810 | AK127: 769620
A128: 01010239 | B128: 6343 | C128: 6238 | D128: 6237 | E128: 1 | F128: 105 | Z128: 624 | AA128: 4564 | AB128: 1155 | AG128: 0 | AH128: 0 | AI128: 36 | AJ128: 170020 | AK128: 7957620
A129: 01010241 | B129: 39184 | C129: 38777 | D129: 38727 | E129: 50 | F129: 407 | Z129: 19042 | AA129: 16883 | AB129: 3259 | AG129: 0 | AH129: 0 | AI129: 30 | AJ129: 215060 | AK129: 63512280
A130: 01010242 | B130: 95 | C130: 95 | D130: 95 | E130: 0 | F130: 0 | Z130: 18 | AA130: 29 | AB130: 48 | AG130: 8 | AH130: 0 | AI130: 3 | AJ130: 86930 | AK130: 200450
A131: 01010244 | B131: 14872 | C131: 14798 | D131: 14798 | E131: 0 | F131: 74 | Z131: 1410 | AA131: 9287 | AB131: 4175 | AG131: 41 | AH131: 0 | AI131: 91 | AJ131: 284860 | AK131: 31309790
A132: 01010245 | B132: 71738 | C132: 71395 | D132: 71318 | E132: 77 | F132: 343 | Z132: 36585 | AA132: 15214 | AB132: 19876 | AG132: 0 | AH132: 0 | AI132: 567 | AJ132: 461380 | AK132: 245330600
A133: 01010246 | B133: 117352 | C133: 112562 | D133: 112465 | E133: 97 | F133: 4790 | Z133: 15272 | AA133: 80911 | AB133: 20817 | AG133: 0 | AH133: 0 | AI133: 7681 | AJ133: 180810 | AK133: 142340940
A134: 01010247 | B134: 3654 | C134: 3370 | D134: 3369 | E134: 1 | F134: 284 | Z134: 120 | AA134: 3526 | AB134: 8 | AG134: 0 | AH134: 0 | AI134: 412 | AJ134: 749640 | AK134: 19102230
A135: 01010248 | B135: 701 | C135: 699 | D135: 699 | E135: 0 | F135: 2 | Z135: 155 | AA135: 453 | AB135: 93 | AG135: 0 | AH135: 0 | AI135: 0 | AJ135: 549340 | AK135: 2921820
A136: 01010250 | B136: 0 | C136: 0 | D136: 0 | E136: 0 | F136: 0 | Z136: 0 | AA136: 0 | AB136: 0 | AG136: 0 | AH136: 0 | AI136: 0 | AJ136: 263910 | AK136: 0
A137: 01010251 | B137: 18438 | C137: 18352 | D137: 18331 | E137: 21 | F137: 86 | Z137: 2197 | AA137: 6524 | AB137: 9717 | AG137: 12 | AH137: 0 | AI137: 18 | AJ137: 290470 | AK137: 39778270
A138: 01010254 | B138: 831 | C138: 828 | D138: 828 | E138: 0 | F138: 3 | Z138: 98 | AA138: 694 | AB138: 39 | AG138: 3 | AH138: 7 | AI138: 3 | AJ138: 371070 | AK138: 2310120
A139: 01010255 | B139: 8325 | C139: 8246 | D139: 8231 | E139: 15 | F139: 79 | Z139: 1825 | AA139: 5879 | AB139: 621 | AG139: 11 | AH139: 0 | AI139: 443 | AJ139: 366480 | AK139: 19801980
A140: 01010256 | B140: 201423 | C140: 198686 | D140: 198301 | E140: 385 | F140: 2737 | Z140: 64012 | AA140: 73625 | AB140: 54768 | AG140: 0 | AH140: 0 | AI140: 3842 | AJ140: 168600 | AK140: 249859260
A141: 01010257 | B141: 16095 | C141: 16089 | D141: 16015 | E141: 74 | F141: 6 | Z141: 7857 | AA141: 2067 | AB141: 6171 | AG141: 0 | AH141: 1 | AI141: 8 | AJ141: 232030 | AK141: 25822710
A142: 01010258 | B142: 29881 | C142: 29303 | D142: 29300 | E142: 3 | F142: 578 | Z142: 3824 | AA142: 18475 | AB142: 7596 | AG142: 0 | AH142: 0 | AI142: 618 | AJ142: 1045410 | AK142: 234148520
A143: 01010261 | B143: 592 | C143: 592 | D143: 592 | E143: 0 | F143: 0 | Z143: 48 | AA143: 366 | AB143: 178 | AG143: 45 | AH143: 30 | AI143: 137 | AJ143: 784180 | AK143: 5785120
A144: 01010262 | B144: 92936 | C144: 90526 | D144: 90395 | E144: 131 | F144: 2410 | Z144: 21388 | AA144: 47996 | AB144: 23553 | AG144: 0 | AH144: 0 | AI144: 3146 | AJ144: 1313260 | AK144: 897038420
A145: 01010263 | B145: 22581 | C145: 22373 | D145: 22373 | E145: 0 | F145: 208 | Z145: 1778 | AA145: 18220 | AB145: 2583 | AG145: 0 | AH145: 0 | AI145: 1600 | AJ145: 241550 | AK145: 40556000
A146: 01010264 | B146: 19054 | C146: 18865 | D146: 18864 | E146: 1 | F146: 189 | Z146: 1734 | AA146: 15722 | AB146: 1598 | AG146: 0 | AH146: 0 | AI146: 91 | AJ146: 223350 | AK146: 31125600
A147: 01010266 | B147: 581 | C147: 581 | D147: 581 | E147: 0 | F147: 0 | Z147: 93 | AA147: 484 | AB147: 4 | AG147: 1 | AH147: 0 | AI147: 0 | AJ147: 403750 | AK147: 1877350
A148: 01010267 | B148: 6334 | C148: 6228 | D148: 6223 | E148: 5 | F148: 106 | Z148: 841 | AA148: 5424 | AB148: 69 | AG148: 854 | AH148: 2 | AI148: 95 | AJ148: 917880 | AK148: 42011960
A149: 01010268 | B149: 8466 | C149: 8318 | D149: 8316 | E149: 2 | F149: 148 | Z149: 709 | AA149: 7705 | AB149: 52 | AG149: 1075 | AH149: 441 | AI149: 139 | AJ149: 1877480 | AK149: 111933360
A150: 01010270 | B150: 3 | C150: 3 | D150: 3 | E150: 0 | F150: 0 | Z150: 3 | AA150: 0 | AB150: 0 | AG150: 0 | AH150: 3 | AI150: 0 | AJ150: 5538590 | AK150: 127680
A151: 01010271 | B151: 50317 | C151: 50174 | D151: 49979 | E151: 195 | F151: 143 | Z151: 21197 | AA151: 12683 | AB151: 16437 | AG151: 0 | AH151: 0 | AI151: 0 | AJ151: 273670 | AK151: 96459470
A152: 01010272 | B152: 0 | C152: 0 | D152: 0 | E152: 0 | F152: 0 | Z152: 0 | AA152: 0 | AB152: 0 | AG152: 0 | AH152: 0 | AI152: 0 | AJ152: 1042410 | AK152: 0
A153: 01010273 | B153: 574 | C153: 574 | D153: 574 | E153: 0 | F153: 0 | Z153: 8 | AA153: 566 | AB153: 0 | AG153: 11 | AH153: 6 | AI153: 0 | AJ153: 1019590 | AK153: 4414060
A154: 01010274 | B154: 3 | C154: 3 | D154: 3 | E154: 0 | F154: 0 | Z154: 1 | AA154: 2 | AB154: 0 | AG154: 10 | AH154: 26 | AI154: 0 | AJ154: 876810 | AK154: 19890
A155: 01010275 | B155: 9 | C155: 9 | D155: 9 | E155: 0 | F155: 0 | Z155: 0 | AA155: 9 | AB155: 0 | AG155: 14 | AH155: 26 | AI155: 0 | AJ155: 664190 | AK155: 44730
A156: 01010276 | B156: 0 | C156: 0 | D156: 0 | E156: 0 | F156: 0 | Z156: 0 | AA156: 0 | AB156: 0 | AG156: 0 | AH156: 0 | AI156: 0 | AJ156: 798810 | AK156: 0
A157: 01010278 | B157: 867 | C157: 860 | D157: 860 | E157: 0 | F157: 7 | Z157: 44 | AA157: 823 | AB157: 0 | AG157: 59 | AH157: 32 | AI157: 7 | AJ157: 665990 | AK157: 4274200
A158: 01010279 | B158: 3 | C158: 3 | D158: 3 | E158: 0 | F158: 0 | Z158: 0 | AA158: 3 | AB158: 0 | AG158: 8 | AH158: 3 | AI158: 0 | AJ158: 881790 | AK158: 19890
A159: 01010280 | B159: 708 | C159: 708 | D159: 708 | E159: 0 | F159: 0 | Z159: 9 | AA159: 699 | AB159: 0 | AG159: 18 | AH159: 8 | AI159: 0 | AJ159: 876030 | AK159: 4694040
A160: 01010281 | B160: 0 | C160: 0 | D160: 0 | E160: 0 | F160: 0 | Z160: 0 | AA160: 0 | AB160: 0 | AG160: 1 | AH160: 10 | AI160: 0 | AJ160: 632190 | AK160: 0
A161: 01010284 | B161: 2 | C161: 2 | D161: 2 | E161: 0 | F161: 0 | Z161: 0 | AA161: 2 | AB161: 0 | AG161: 1 | AH161: 0 | AI161: 1 | AJ161: 876690 | AK161: 11560
A162: 01010286 | B162: 3800 | C162: 3780 | D162: 3779 | E162: 1 | F162: 20 | Z162: 1180 | AA162: 1977 | AB162: 643 | AG162: 78 | AH162: 0 | AI162: 23 | AJ162: 655690 | AK162: 18630470
A163: 01010287 | B163: 4272 | C163: 4269 | D163: 4269 | E163: 0 | F163: 3 | Z163: 141 | AA163: 4114 | AB163: 17 | AG163: 474 | AH163: 0 | AI163: 68 | AJ163: 655690 | AK163: 21046170
A164: 01010288 | B164: 3537 | C164: 3535 | D164: 3535 | E164: 0 | F164: 2 | Z164: 115 | AA164: 3411 | AB164: 11 | AG164: 417 | AH164: 0 | AI164: 57 | AJ164: 675400 | AK164: 17427550
A165: 01010289 | B165: 97 | C165: 97 | D165: 97 | E165: 0 | F165: 0 | Z165: 3 | AA165: 94 | AB165: 0 | AG165: 46 | AH165: 10 | AI165: 0 | AJ165: 1529500 | AK165: 1115500
A166: 01010290 | B166: 66 | C166: 66 | D166: 66 | E166: 0 | F166: 0 | Z166: 0 | AA166: 65 | AB166: 1 | AG166: 61 | AH166: 31 | AI166: 13 | AJ166: 1509790 | AK166: 410790
A167: 01010291 | B167: 5176 | C167: 5173 | D167: 5173 | E167: 0 | F167: 3 | Z167: 326 | AA167: 4807 | AB167: 43 | AG167: 286 | AH167: 0 | AI167: 76 | AJ167: 680770 | AK167: 25661730
A168: 01010292 | B168: 2325 | C168: 2325 | D168: 2324 | E168: 1 | F168: 0 | Z168: 82 | AA168: 2239 | AB168: 4 | AG168: 143 | AH168: 0 | AI168: 18 | AJ168: 1750320 | AK168: 30874460
A169: 01010293 | B169: 1386 | C169: 1385 | D169: 1383 | E169: 2 | F169: 1 | Z169: 73 | AA169: 1313 | AB169: 0 | AG169: 304 | AH169: 52 | AI169: 1 | AJ169: 994990 | AK169: 10425210
A170: 01010294 | B170: 605 | C170: 605 | D170: 605 | E170: 0 | F170: 0 | Z170: 4 | AA170: 601 | AB170: 0 | AG170: 57 | AH170: 24 | AI170: 5 | AJ170: 655690 | AK170: 2982650
A171: 01010295 | B171: 2801 | C171: 2798 | D171: 2797 | E171: 1 | F171: 3 | Z171: 121 | AA171: 2672 | AB171: 8 | AG171: 446 | AH171: 21 | AI171: 44 | AJ171: 660790 | AK171: 13789210
A172: 01010296 | B172: 2 | C172: 2 | D172: 2 | E172: 0 | F172: 0 | Z172: 2 | AA172: 0 | AB172: 0 | AG172: 10 | AH172: 19 | AI172: 0 | AJ172: 896400 | AK172: 13260
A173: 01010297 | B173: 643 | C173: 643 | D173: 643 | E173: 0 | F173: 0 | Z173: 3 | AA173: 640 | AB173: 0 | AG173: 19 | AH173: 3 | AI173: 1 | AJ173: 1509910 | AK173: 7381440
A174: 01010298 | B174: 1151 | C174: 1148 | D174: 1148 | E174: 0 | F174: 3 | Z174: 45 | AA174: 1103 | AB174: 3 | AG174: 73 | AH174: 59 | AI174: 4 | AJ174: 664190 | AK174: 5705560
A175: 01010299 | B175: 9 | C175: 9 | D175: 9 | E175: 0 | F175: 0 | Z175: 0 | AA175: 9 | AB175: 0 | AG175: 15 | AH175: 36 | AI175: 0 | AJ175: 820740 | AK175: 54270
A176: 01010300 | B176: 1260 | C176: 1260 | D176: 1260 | E176: 0 | F176: 0 | Z176: 22 | AA176: 1221 | AB176: 17 | AG176: 803 | AH176: 0 | AI176: 400 | AJ176: 1609330 | AK176: 5908800
A177: 01010301 | B177: 69230 | C177: 66363 | D177: 66360 | E177: 3 | F177: 2867 | Z177: 4223 | AA177: 64483 | AB177: 524 | AG177: 4791 | AH177: 0 | AI177: 4829 | AJ177: 580190 | AK177: 286011600
A178: 01010302 | B178: 1480 | C178: 1477 | D178: 1477 | E178: 0 | F178: 3 | Z178: 16 | AA178: 1456 | AB178: 8 | AG178: 526 | AH178: 29 | AI178: 207 | AJ178: 876690 | AK178: 8677310
A179: 01010303 | B179: 29243 | C179: 27504 | D179: 27503 | E179: 1 | F179: 1739 | Z179: 1072 | AA179: 27885 | AB179: 286 | AG179: 3311 | AH179: 230 | AI179: 2796 | AJ179: 653830 | AK179: 135579870
A180: 01010304 | B180: 13878 | C180: 13672 | D180: 13670 | E180: 2 | F180: 206 | Z180: 1640 | AA180: 12121 | AB180: 117 | AG180: 81 | AH180: 0 | AI180: 185 | AJ180: 573230 | AK180: 58917700
A181: 01010305 | B181: 14143 | C181: 14075 | D181: 14073 | E181: 2 | F181: 68 | Z181: 1586 | AA181: 12404 | AB181: 153 | AG181: 76 | AH181: 0 | AI181: 48 | AJ181: 580190 | AK181: 60654630
A182: 01010306 | B182: 37 | C182: 37 | D182: 37 | E182: 0 | F182: 0 | Z182: 1 | AA182: 36 | AB182: 0 | AG182: 47 | AH182: 53 | AI182: 11 | AJ182: 876690 | AK182: 201110
A183: 01010307 | B183: 2913 | C183: 2913 | D183: 2913 | E183: 0 | F183: 0 | Z183: 61 | AA183: 2846 | AB183: 6 | AG183: 377 | AH183: 27 | AI183: 47 | AJ183: 728200 | AK183: 14361090
A184: 01010309 | B184: 0 | C184: 0 | D184: 0 | E184: 0 | F184: 0 | Z184: 0 | AA184: 0 | AB184: 0 | AG184: 0 | AH184: 0 | AI184: 0 | AJ184: 800160 | AK184: 0
A185: 01010311 | B185: 221 | C185: 221 | D185: 221 | E185: 0 | F185: 0 | Z185: 5 | AA185: 214 | AB185: 2 | AG185: 4 | AH185: 1 | AI185: 0 | AJ185: 719510 | AK185: 1194670
A186: 01010313 | B186: 749 | C186: 749 | D186: 749 | E186: 0 | F186: 0 | Z186: 101 | AA186: 246 | AB186: 402 | AG186: 0 | AH186: 0 | AI186: 0 | AJ186: 744860 | AK186: 3722530
A187: 01010319 | B187: 0 | C187: 0 | D187: 0 | E187: 0 | F187: 0 | Z187: 0 | AA187: 0 | AB187: 0 | AG187: 3 | AH187: 5 | AI187: 0 | AJ187: 3907830 | AK187: 0
A188: 01010320 | B188: 2 | C188: 2 | D188: 2 | E188: 0 | F188: 0 | Z188: 1 | AA188: 1 | AB188: 0 | AG188: 6 | AH188: 2 | AI188: 0 | AJ188: 4366900 | AK188: 65840
A189: 01010321 | B189: 3 | C189: 3 | D189: 3 | E189: 0 | F189: 0 | Z189: 2 | AA189: 1 | AB189: 0 | AG189: 4 | AH189: 3 | AI189: 0 | AJ189: 3955410 | AK189: 87300
A190: 01010322 | B190: 0 | C190: 0 | D190: 0 | E190: 0 | F190: 0 | Z190: 0 | AA190: 0 | AB190: 0 | AG190: 0 | AH190: 10 | AI190: 0 | AJ190: 5798550 | AK190: 0
A191: 01010323 | B191: 0 | C191: 0 | D191: 0 | E191: 0 | F191: 0 | Z191: 0 | AA191: 0 | AB191: 0 | AG191: 0 | AH191: 0 | AI191: 0 | AJ191: 6191150 | AK191: 0
A192: 01010324 | B192: 0 | C192: 0 | D192: 0 | E192: 0 | F192: 0 | Z192: 0 | AA192: 0 | AB192: 0 | AG192: 0 | AH192: 0 | AI192: 0 | AJ192: 6236990 | AK192: 0
A193: 01010327 | B193: 0 | C193: 0 | D193: 0 | E193: 0 | F193: 0 | Z193: 0 | AA193: 0 | AB193: 0 | AG193: 0 | AH193: 0 | AI193: 0 | AJ193: 8143800 | AK193: 0
A194: 01010328 | B194: 3 | C194: 3 | D194: 3 | E194: 0 | F194: 0 | Z194: 4 | AA194: 11 | AB194: 3 | AG194: 6 | AH194: 4 | AI194: 7 | AJ194: 660560 | AK194: 14910
A195: 01010329 | B195: 0 | C195: 0 | D195: 0 | E195: 0 | F195: 0 | Z195: 0 | AA195: 0 | AB195: 0 | AG195: 0 | AH195: 0 | AI195: 0 | AJ195: 641390 | AK195: 0
A196: 01010330 | B196: 1531 | C196: 1531 | D196: 1528 | E196: 3 | F196: 0 | Z196: 155 | AA196: 1355 | AB196: 10 | AG196: 189 | AH196: 46 | AI196: 0 | AJ196: 670510 | AK196: 7572560
A197: 01010331 | B197: 403 | C197: 403 | D197: 391 | E197: 12 | F197: 0 | Z197: 140 | AA197: 231 | AB197: 2 | AG197: 481 | AH197: 509 | AI197: 2 | AJ197: 1303410 | AK197: 3803370
A198: 01010332 | B198: 676 | C198: 676 | D198: 637 | E198: 39 | F198: 0 | Z198: 168 | AA198: 462 | AB198: 6 | AG198: 619 | AH198: 844 | AI198: 9 | AJ198: 896510 | AK198: 4311190
A199: 01010334 | B199: 2617 | C199: 2610 | D199: 2600 | E199: 10 | F199: 7 | Z199: 104 | AA199: 2503 | AB199: 0 | AG199: 392 | AH199: 1305 | AI199: 9 | AJ199: 724120 | AK199: 14222000
A200: 01010335 | B200: 494 | C200: 493 | D200: 493 | E200: 0 | F200: 1 | Z200: 42 | AA200: 440 | AB200: 12 | AG200: 0 | AH200: 0 | AI200: 0 | AJ200: 584120 | AK200: 2139620
A201: 01010336 | B201: 1613 | C201: 1610 | D201: 1606 | E201: 4 | F201: 3 | Z201: 112 | AA201: 1267 | AB201: 11 | AG201: 137 | AH201: 33 | AI201: 0 | AJ201: 889570 | AK201: 11250790
... 2735 more rows

Sheet B
D1: TOTAL | E1: ACTIVIDADES | I1: INTERVENCIONES QUIRÚRGICAS | P1: INTERVENCIONES QUIRÚRGICAS MAYORES NO AMBULATORIAS ELECTIVAS | S1: INTERVENCIONES QUIRÚRGICAS MAYORES AMBULATORIAS ELECTIVA | V1: INTERVENCIONES QUIRÚRGICAS MAYORES AMBULATORIAS URGENCIA | Y1: INTERVENCIONES QUIRÚRGICAS MAYORES NO AMBULATORIAS URGENCIA | AB1: PROCEDENCIA | AE1: PRODUCCION INTRA HOSPITAL | AH1: OPERATIVO | AI1: COMPRAS REALIZADAS | AK1: VENTAS DE SERVICIOS | AL1: TRANSFERENCIA 2022 | AM1: TOTAL FACTURADO
B2: CODIGO | C2: GLOSA | E2: TOTAL BENEFI-CIARIOS | F2: BENEFICIARIOS | H2: NO BENEFI-CIARIOS | I2: TOTAL BENEFI- CIARIOS | J2: PRINCIPAL | M2: SECUNDARIA | S2: < 15 AÑOS | V2: < 15 AÑOS | Y2: < 15 AÑOS
F3: MAI | G3: MLE | J3: MAI | K3: MLE | L3: NO BENEFI-CIARIO | M3: MAI | N3: MLE | O3: NO BENEFI-CIARIO | P3: TOTAL | Q3: < 15 AÑOS | R3: 15 AÑOS Y MÁS | S3: TOTAL | T3: < 15 AÑOS | U3: 15 AÑOS Y MÁS | V3: TOTAL | W3: < 15 AÑOS | X3: 15 AÑOS Y MÁS | Y3: TOTAL | Z3: < 15 AÑOS | AA3: 15 AÑOS Y MÁS | AB3: ATENCION CERRADA | AC3: ATENCION ABIERTA | AD3: EMERGENCIA | AE3: POR HONO- RARIOS | AF3: POR CONVENIOS | AG3: POR CONSULTO- RES DE LLAMADA | AI3: AL SISTEMA | AJ3: EXTRA-SISTEMA
C4: CONSULTAS Y ATENCION MEDICA
C5: CONSULTAS DE ESPECIALIDADES MEDICAS
A6: 01014275 | B6: 0101201 | C6: Consulta Médica de Especialidad en Dermatología | D6: =IFERROR(VLOOKUP($A6,Filtro!$A$5:$AK$2936,2,FALSE),0) -> 3634 | E6: =IFERROR(VLOOKUP($A6,Filtro!$A$5:$AK$2936,3,FALSE),0) -> 3628 | F6: =IFERROR(VLOOKUP($A6,Filtro!$A$5:$AK$2936,4,FALSE),0) -> 3628 | G6: =IFERROR(VLOOKUP($A6,Filtro!$A$5:$AK$2936,5,FALSE),0) -> 0 | H6: =IFERROR(VLOOKUP($A6,Filtro!$A$5:$AK$2936,6,FALSE),0) -> 6 | I6: =IFERROR(VLOOKUP($A6,Filtro!$A$5:$AK$2936,7,FALSE),0) -> 0 | J6: =IFERROR(VLOOKUP($A6,Filtro!$A$5:$AK$2936,8,FALSE),0) -> 0 | K6: =IFERROR(VLOOKUP($A6,Filtro!$A$5:$AK$2936,9,FALSE),0) -> 0 | L6: =IFERROR(VLOOKUP($A6,Filtro!$A$5:$AK$2936,10,FALSE),0) -> 0 | M6: =IFERROR(VLOOKUP($A6,Filtro!$A$5:$AK$2936,11,FALSE),0) -> 0 | N6: =IFERROR(VLOOKUP($A6,Filtro!$A$5:$AK$2936,12,FALSE),0) -> 0 | O6: =IFERROR(VLOOKUP($A6,Filtro!$A$5:$AK$2936,13,FALSE),0) -> 0 | P6: =IFERROR(VLOOKUP($A6,Filtro!$A$5:$AK$2936,14,FALSE),0) -> 0 | Q6: =IFERROR(VLOOKUP($A6,Filtro!$A$5:$AK$2936,15,FALSE),0) -> 0 | R6: =IFERROR(VLOOKUP($A6,Filtro!$A$5:$AK$2936,16,FALSE),0) -> 0 | S6: =IFERROR(VLOOKUP($A6,Filtro!$A$5:$AK$2936,17,FALSE),0) -> 0 | T6: =IFERROR(VLOOKUP($A6,Filtro!$A$5:$AK$2936,18,FALSE),0) -> 0 | U6: =IFERROR(VLOOKUP($A6,Filtro!$A$5:$AK$2936,19,FALSE),0) -> 0 | V6: =IFERROR(VLOOKUP($A6,Filtro!$A$5:$AK$2936,20,FALSE),0) -> 0 | W6: =IFERROR(VLOOKUP($A6,Filtro!$A$5:$AK$2936,21,FALSE),0) -> 0 | X6: =IFERROR(VLOOKUP($A6,Filtro!$A$5:$AK$2936,22,FALSE),0) -> 0 | Y6: =IFERROR(VLOOKUP($A6,Filtro!$A$5:$AK$2936,23,FALSE),0) -> 0 | Z6: =IFERROR(VLOOKUP($A6,Filtro!$A$5:$AK$2936,24,FALSE),0) -> 0 | AA6: =IFERROR(VLOOKUP($A6,Filtro!$A$5:$AK$2936,25,FALSE),0) -> 0 | AB6: =IFERROR(VLOOKUP($A6,Filtro!$A$5:$AK$2936,26,FALSE),0) -> 0 | AC6: =IFERROR(VLOOKUP($A6,Filtro!$A$5:$AK$2936,27,FALSE),0) -> 3634 | AD6: =IFERROR(VLOOKUP($A6,Filtro!$A$5:$AK$2936,28,FALSE),0) -> 0 | AE6: =IFERROR(VLOOKUP($A6,Filtro!$A$5:$AK$2936,29,FALSE),0) -> 0 | AF6: =IFERROR(VLOOKUP($A6,Filtro!$A$5:$AK$2936,30,FALSE),0) -> 0 | AG6: =IFERROR(VLOOKUP($A6,Filtro!$A$5:$AK$2936,31,FALSE),0) -> 0 | AH6: =IFERROR(VLOOKUP($A6,Filtro!$A$5:$AK$2936,32,FALSE),0) -> 0 | AI6: =IFERROR(VLOOKUP($A6,Filtro!$A$5:$AK$2936,33,FALSE),0) -> 0 | AJ6: =IFERROR(VLOOKUP($A6,Filtro!$A$5:$AK$2936,34,FALSE),0) -> 0 | AK6: =IFERROR(VLOOKUP($A6,Filtro!$A$5:$AK$2936,35,FALSE),0) -> 0 | AL6: =IFERROR(VLOOKUP($A6,Filtro!$A$5:$AK$2936,36,FALSE),0) -> 1203650 | AM6: =IFERROR(VLOOKUP($A6,Filtro!$A$5:$AK$2936,37,FALSE),0) -> 32833400
A7: 01014276 | B7: 0101202 | C7: Consulta Médica de Especialidad en Geriatría | D7: =IFERROR(VLOOKUP($A7,Filtro!$A$5:$AK$2936,2,FALSE),0) -> 1082 | E7: =IFERROR(VLOOKUP($A7,Filtro!$A$5:$AK$2936,3,FALSE),0) -> 1082 | F7: =IFERROR(VLOOKUP($A7,Filtro!$A$5:$AK$2936,4,FALSE),0) -> 1082 | G7: =IFERROR(VLOOKUP($A7,Filtro!$A$5:$AK$2936,5,FALSE),0) -> 0 | H7: =IFERROR(VLOOKUP($A7,Filtro!$A$5:$AK$2936,6,FALSE),0) -> 0 | I7: =IFERROR(VLOOKUP($A7,Filtro!$A$5:$AK$2936,7,FALSE),0) -> 0 | J7: =IFERROR(VLOOKUP($A7,Filtro!$A$5:$AK$2936,8,FALSE),0) -> 0 | K7: =IFERROR(VLOOKUP($A7,Filtro!$A$5:$AK$2936,9,FALSE),0) -> 0 | L7: =IFERROR(VLOOKUP($A7,Filtro!$A$5:$AK$2936,10,FALSE),0) -> 0 | M7: =IFERROR(VLOOKUP($A7,Filtro!$A$5:$AK$2936,11,FALSE),0) -> 0 | N7: =IFERROR(VLOOKUP($A7,Filtro!$A$5:$AK$2936,12,FALSE),0) -> 0 | O7: =IFERROR(VLOOKUP($A7,Filtro!$A$5:$AK$2936,13,FALSE),0) -> 0 | P7: =IFERROR(VLOOKUP($A7,Filtro!$A$5:$AK$2936,14,FALSE),0) -> 0 | Q7: =IFERROR(VLOOKUP($A7,Filtro!$A$5:$AK$2936,15,FALSE),0) -> 0 | R7: =IFERROR(VLOOKUP($A7,Filtro!$A$5:$AK$2936,16,FALSE),0) -> 0 | S7: =IFERROR(VLOOKUP($A7,Filtro!$A$5:$AK$2936,17,FALSE),0) -> 0 | T7: =IFERROR(VLOOKUP($A7,Filtro!$A$5:$AK$2936,18,FALSE),0) -> 0 | U7: =IFERROR(VLOOKUP($A7,Filtro!$A$5:$AK$2936,19,FALSE),0) -> 0 | V7: =IFERROR(VLOOKUP($A7,Filtro!$A$5:$AK$2936,20,FALSE),0) -> 0 | W7: =IFERROR(VLOOKUP($A7,Filtro!$A$5:$AK$2936,21,FALSE),0) -> 0 | X7: =IFERROR(VLOOKUP($A7,Filtro!$A$5:$AK$2936,22,FALSE),0) -> 0 | Y7: =IFERROR(VLOOKUP($A7,Filtro!$A$5:$AK$2936,23,FALSE),0) -> 0 | Z7: =IFERROR(VLOOKUP($A7,Filtro!$A$5:$AK$2936,24,FALSE),0) -> 0 | AA7: =IFERROR(VLOOKUP($A7,Filtro!$A$5:$AK$2936,25,FALSE),0) -> 0 | AB7: =IFERROR(VLOOKUP($A7,Filtro!$A$5:$AK$2936,26,FALSE),0) -> 0 | AC7: =IFERROR(VLOOKUP($A7,Filtro!$A$5:$AK$2936,27,FALSE),0) -> 1082 | AD7: =IFERROR(VLOOKUP($A7,Filtro!$A$5:$AK$2936,28,FALSE),0) -> 0 | AE7: =IFERROR(VLOOKUP($A7,Filtro!$A$5:$AK$2936,29,FALSE),0) -> 0 | AF7: =IFERROR(VLOOKUP($A7,Filtro!$A$5:$AK$2936,30,FALSE),0) -> 0 | AG7: =IFERROR(VLOOKUP($A7,Filtro!$A$5:$AK$2936,31,FALSE),0) -> 0 | AH7: =IFERROR(VLOOKUP($A7,Filtro!$A$5:$AK$2936,32,FALSE),0) -> 0 | AI7: =IFERROR(VLOOKUP($A7,Filtro!$A$5:$AK$2936,33,FALSE),0) -> 0 | AJ7: =IFERROR(VLOOKUP($A7,Filtro!$A$5:$AK$2936,34,FALSE),0) -> 0 | AK7: =IFERROR(VLOOKUP($A7,Filtro!$A$5:$AK$2936,35,FALSE),0) -> 0 | AL7: =IFERROR(VLOOKUP($A7,Filtro!$A$5:$AK$2936,36,FALSE),0) -> 1203650 | AM7: =IFERROR(VLOOKUP($A7,Filtro!$A$5:$AK$2936,37,FALSE),0) -> 9792100
A8: 01014277 | B8: 0101203 | C8: Consulta Médica de Especialidad en Neurocirugía | D8: =IFERROR(VLOOKUP($A8,Filtro!$A$5:$AK$2936,2,FALSE),0) -> 4944 | E8: =IFERROR(VLOOKUP($A8,Filtro!$A$5:$AK$2936,3,FALSE),0) -> 4944 | F8: =IFERROR(VLOOKUP($A8,Filtro!$A$5:$AK$2936,4,FALSE),0) -> 4944 | G8: =IFERROR(VLOOKUP($A8,Filtro!$A$5:$AK$2936,5,FALSE),0) -> 0 | H8: =IFERROR(VLOOKUP($A8,Filtro!$A$5:$AK$2936,6,FALSE),0) -> 0 | I8: =IFERROR(VLOOKUP($A8,Filtro!$A$5:$AK$2936,7,FALSE),0) -> 0 | J8: =IFERROR(VLOOKUP($A8,Filtro!$A$5:$AK$2936,8,FALSE),0) -> 0 | K8: =IFERROR(VLOOKUP($A8,Filtro!$A$5:$AK$2936,9,FALSE),0) -> 0 | L8: =IFERROR(VLOOKUP($A8,Filtro!$A$5:$AK$2936,10,FALSE),0) -> 0 | M8: =IFERROR(VLOOKUP($A8,Filtro!$A$5:$AK$2936,11,FALSE),0) -> 0 | N8: =IFERROR(VLOOKUP($A8,Filtro!$A$5:$AK$2936,12,FALSE),0) -> 0 | O8: =IFERROR(VLOOKUP($A8,Filtro!$A$5:$AK$2936,13,FALSE),0) -> 0 | P8: =IFERROR(VLOOKUP($A8,Filtro!$A$5:$AK$2936,14,FALSE),0) -> 0 | Q8: =IFERROR(VLOOKUP($A8,Filtro!$A$5:$AK$2936,15,FALSE),0) -> 0 | R8: =IFERROR(VLOOKUP($A8,Filtro!$A$5:$AK$2936,16,FALSE),0) -> 0 | S8: =IFERROR(VLOOKUP($A8,Filtro!$A$5:$AK$2936,17,FALSE),0) -> 0 | T8: =IFERROR(VLOOKUP($A8,Filtro!$A$5:$AK$2936,18,FALSE),0) -> 0 | U8: =IFERROR(VLOOKUP($A8,Filtro!$A$5:$AK$2936,19,FALSE),0) -> 0 | V8: =IFERROR(VLOOKUP($A8,Filtro!$A$5:$AK$2936,20,FALSE),0) -> 0 | W8: =IFERROR(VLOOKUP($A8,Filtro!$A$5:$AK$2936,21,FALSE),0) -> 0 | X8: =IFERROR(VLOOKUP($A8,Filtro!$A$5:$AK$2936,22,FALSE),0) -> 0 | Y8: =IFERROR(VLOOKUP($A8,Filtro!$A$5:$AK$2936,23,FALSE),0) -> 0 | Z8: =IFERROR(VLOOKUP($A8,Filtro!$A$5:$AK$2936,24,FALSE),0) -> 0 | AA8: =IFERROR(VLOOKUP($A8,Filtro!$A$5:$AK$2936,25,FALSE),0) -> 0 | AB8: =IFERROR(VLOOKUP($A8,Filtro!$A$5:$AK$2936,26,FALSE),0) -> 0 | AC8: =IFERROR(VLOOKUP($A8,Filtro!$A$5:$AK$2936,27,FALSE),0) -> 4944 | AD8: =IFERROR(VLOOKUP($A8,Filtro!$A$5:$AK$2936,28,FALSE),0) -> 0 | AE8: =IFERROR(VLOOKUP($A8,Filtro!$A$5:$AK$2936,29,FALSE),0) -> 0 | AF8: =IFERROR(VLOOKUP($A8,Filtro!$A$5:$AK$2936,30,FALSE),0) -> 0 | AG8: =IFERROR(VLOOKUP($A8,Filtro!$A$5:$AK$2936,31,FALSE),0) -> 0 | AH8: =IFERROR(VLOOKUP($A8,Filtro!$A$5:$AK$2936,32,FALSE),0) -> 0 | AI8: =IFERROR(VLOOKUP($A8,Filtro!$A$5:$AK$2936,33,FALSE),0) -> 0 | AJ8: =IFERROR(VLOOKUP($A8,Filtro!$A$5:$AK$2936,34,FALSE),0) -> 0 | AK8: =IFERROR(VLOOKUP($A8,Filtro!$A$5:$AK$2936,35,FALSE),0) -> 0 | AL8: =IFERROR(VLOOKUP($A8,Filtro!$A$5:$AK$2936,36,FALSE),0) -> 1203650 | AM8: =IFERROR(VLOOKUP($A8,Filtro!$A$5:$AK$2936,37,FALSE),0) -> 44743200
A9: 01014278 | B9: 0101204 | C9: Consulta Médica de Especialidad en Oftalmología | D9: =IFERROR(VLOOKUP($A9,Filtro!$A$5:$AK$2936,2,FALSE),0) -> 18077 | E9: =IFERROR(VLOOKUP($A9,Filtro!$A$5:$AK$2936,3,FALSE),0) -> 18035 | F9: =IFERROR(VLOOKUP($A9,Filtro!$A$5:$AK$2936,4,FALSE),0) -> 18035 | G9: =IFERROR(VLOOKUP($A9,Filtro!$A$5:$AK$2936,5,FALSE),0) -> 0 | H9: =IFERROR(VLOOKUP($A9,Filtro!$A$5:$AK$2936,6,FALSE),0) -> 42 | I9: =IFERROR(VLOOKUP($A9,Filtro!$A$5:$AK$2936,7,FALSE),0) -> 0 | J9: =IFERROR(VLOOKUP($A9,Filtro!$A$5:$AK$2936,8,FALSE),0) -> 0 | K9: =IFERROR(VLOOKUP($A9,Filtro!$A$5:$AK$2936,9,FALSE),0) -> 0 | L9: =IFERROR(VLOOKUP($A9,Filtro!$A$5:$AK$2936,10,FALSE),0) -> 0 | M9: =IFERROR(VLOOKUP($A9,Filtro!$A$5:$AK$2936,11,FALSE),0) -> 0 | N9: =IFERROR(VLOOKUP($A9,Filtro!$A$5:$AK$2936,12,FALSE),0) -> 0 | O9: =IFERROR(VLOOKUP($A9,Filtro!$A$5:$AK$2936,13,FALSE),0) -> 0 | P9: =IFERROR(VLOOKUP($A9,Filtro!$A$5:$AK$2936,14,FALSE),0) -> 0 | Q9: =IFERROR(VLOOKUP($A9,Filtro!$A$5:$AK$2936,15,FALSE),0) -> 0 | R9: =IFERROR(VLOOKUP($A9,Filtro!$A$5:$AK$2936,16,FALSE),0) -> 0 | S9: =IFERROR(VLOOKUP($A9,Filtro!$A$5:$AK$2936,17,FALSE),0) -> 0 | T9: =IFERROR(VLOOKUP($A9,Filtro!$A$5:$AK$2936,18,FALSE),0) -> 0 | U9: =IFERROR(VLOOKUP($A9,Filtro!$A$5:$AK$2936,19,FALSE),0) -> 0 | V9: =IFERROR(VLOOKUP($A9,Filtro!$A$5:$AK$2936,20,FALSE),0) -> 0 | W9: =IFERROR(VLOOKUP($A9,Filtro!$A$5:$AK$2936,21,FALSE),0) -> 0 | X9: =IFERROR(VLOOKUP($A9,Filtro!$A$5:$AK$2936,22,FALSE),0) -> 0 | Y9: =IFERROR(VLOOKUP($A9,Filtro!$A$5:$AK$2936,23,FALSE),0) -> 0 | Z9: =IFERROR(VLOOKUP($A9,Filtro!$A$5:$AK$2936,24,FALSE),0) -> 0 | AA9: =IFERROR(VLOOKUP($A9,Filtro!$A$5:$AK$2936,25,FALSE),0) -> 0 | AB9: =IFERROR(VLOOKUP($A9,Filtro!$A$5:$AK$2936,26,FALSE),0) -> 0 | AC9: =IFERROR(VLOOKUP($A9,Filtro!$A$5:$AK$2936,27,FALSE),0) -> 18077 | AD9: =IFERROR(VLOOKUP($A9,Filtro!$A$5:$AK$2936,28,FALSE),0) -> 0 | AE9: =IFERROR(VLOOKUP($A9,Filtro!$A$5:$AK$2936,29,FALSE),0) -> 344 | AF9: =IFERROR(VLOOKUP($A9,Filtro!$A$5:$AK$2936,30,FALSE),0) -> 0 | AG9: =IFERROR(VLOOKUP($A9,Filtro!$A$5:$AK$2936,31,FALSE),0) -> 0 | AH9: =IFERROR(VLOOKUP($A9,Filtro!$A$5:$AK$2936,32,FALSE),0) -> 0 | AI9: =IFERROR(VLOOKUP($A9,Filtro!$A$5:$AK$2936,33,FALSE),0) -> 0 | AJ9: =IFERROR(VLOOKUP($A9,Filtro!$A$5:$AK$2936,34,FALSE),0) -> 0 | AK9: =IFERROR(VLOOKUP($A9,Filtro!$A$5:$AK$2936,35,FALSE),0) -> 0 | AL9: =IFERROR(VLOOKUP($A9,Filtro!$A$5:$AK$2936,36,FALSE),0) -> 1203650 | AM9: =IFERROR(VLOOKUP($A9,Filtro!$A$5:$AK$2936,37,FALSE),0) -> 163216750
A10: 01014279 | B10: 0101205 | C10: Consulta Médica de Especialidad en Otorrinolaringología | D10: =IFERROR(VLOOKUP($A10,Filtro!$A$5:$AK$2936,2,FALSE),0) -> 16410 | E10: =IFERROR(VLOOKUP($A10,Filtro!$A$5:$AK$2936,3,FALSE),0) -> 16379 | F10: =IFERROR(VLOOKUP($A10,Filtro!$A$5:$AK$2936,4,FALSE),0) -> 16379 | G10: =IFERROR(VLOOKUP($A10,Filtro!$A$5:$AK$2936,5,FALSE),0) -> 0 | H10: =IFERROR(VLOOKUP($A10,Filtro!$A$5:$AK$2936,6,FALSE),0) -> 31 | I10: =IFERROR(VLOOKUP($A10,Filtro!$A$5:$AK$2936,7,FALSE),0) -> 0 | J10: =IFERROR(VLOOKUP($A10,Filtro!$A$5:$AK$2936,8,FALSE),0) -> 0 | K10: =IFERROR(VLOOKUP($A10,Filtro!$A$5:$AK$2936,9,FALSE),0) -> 0 | L10: =IFERROR(VLOOKUP($A10,Filtro!$A$5:$AK$2936,10,FALSE),0) -> 0 | M10: =IFERROR(VLOOKUP($A10,Filtro!$A$5:$AK$2936,11,FALSE),0) -> 0 | N10: =IFERROR(VLOOKUP($A10,Filtro!$A$5:$AK$2936,12,FALSE),0) -> 0 | O10: =IFERROR(VLOOKUP($A10,Filtro!$A$5:$AK$2936,13,FALSE),0) -> 0 | P10: =IFERROR(VLOOKUP($A10,Filtro!$A$5:$AK$2936,14,FALSE),0) -> 0 | Q10: =IFERROR(VLOOKUP($A10,Filtro!$A$5:$AK$2936,15,FALSE),0) -> 0 | R10: =IFERROR(VLOOKUP($A10,Filtro!$A$5:$AK$2936,16,FALSE),0) -> 0 | S10: =IFERROR(VLOOKUP($A10,Filtro!$A$5:$AK$2936,17,FALSE),0) -> 0 | T10: =IFERROR(VLOOKUP($A10,Filtro!$A$5:$AK$2936,18,FALSE),0) -> 0 | U10: =IFERROR(VLOOKUP($A10,Filtro!$A$5:$AK$2936,19,FALSE),0) -> 0 | V10: =IFERROR(VLOOKUP($A10,Filtro!$A$5:$AK$2936,20,FALSE),0) -> 0 | W10: =IFERROR(VLOOKUP($A10,Filtro!$A$5:$AK$2936,21,FALSE),0) -> 0 | X10: =IFERROR(VLOOKUP($A10,Filtro!$A$5:$AK$2936,22,FALSE),0) -> 0 | Y10: =IFERROR(VLOOKUP($A10,Filtro!$A$5:$AK$2936,23,FALSE),0) -> 0 | Z10: =IFERROR(VLOOKUP($A10,Filtro!$A$5:$AK$2936,24,FALSE),0) -> 0 | AA10: =IFERROR(VLOOKUP($A10,Filtro!$A$5:$AK$2936,25,FALSE),0) -> 0 | AB10: =IFERROR(VLOOKUP($A10,Filtro!$A$5:$AK$2936,26,FALSE),0) -> 0 | AC10: =IFERROR(VLOOKUP($A10,Filtro!$A$5:$AK$2936,27,FALSE),0) -> 16410 | AD10: =IFERROR(VLOOKUP($A10,Filtro!$A$5:$AK$2936,28,FALSE),0) -> 0 | AE10: =IFERROR(VLOOKUP($A10,Filtro!$A$5:$AK$2936,29,FALSE),0) -> 2095 | AF10: =IFERROR(VLOOKUP($A10,Filtro!$A$5:$AK$2936,30,FALSE),0) -> 0 | AG10: =IFERROR(VLOOKUP($A10,Filtro!$A$5:$AK$2936,31,FALSE),0) -> 0 | AH10: =IFERROR(VLOOKUP($A10,Filtro!$A$5:$AK$2936,32,FALSE),0) -> 0 | AI10: =IFERROR(VLOOKUP($A10,Filtro!$A$5:$AK$2936,33,FALSE),0) -> 0 | AJ10: =IFERROR(VLOOKUP($A10,Filtro!$A$5:$AK$2936,34,FALSE),0) -> 0 | AK10: =IFERROR(VLOOKUP($A10,Filtro!$A$5:$AK$2936,35,FALSE),0) -> 0 | AL10: =IFERROR(VLOOKUP($A10,Filtro!$A$5:$AK$2936,36,FALSE),0) -> 1203650 | AM10: =IFERROR(VLOOKUP($A10,Filtro!$A$5:$AK$2936,37,FALSE),0) -> 148229950
A11: 01014280 | B11: 0101206 | C11: Consulta Médica de Especialidad en Reumatología | D11: =IFERROR(VLOOKUP($A11,Filtro!$A$5:$AK$2936,2,FALSE),0) -> 3932 | E11: =IFERROR(VLOOKUP($A11,Filtro!$A$5:$AK$2936,3,FALSE),0) -> 3924 | F11: =IFERROR(VLOOKUP($A11,Filtro!$A$5:$AK$2936,4,FALSE),0) -> 3924 | G11: =IFERROR(VLOOKUP($A11,Filtro!$A$5:$AK$2936,5,FALSE),0) -> 0 | H11: =IFERROR(VLOOKUP($A11,Filtro!$A$5:$AK$2936,6,FALSE),0) -> 8 | I11: =IFERROR(VLOOKUP($A11,Filtro!$A$5:$AK$2936,7,FALSE),0) -> 0 | J11: =IFERROR(VLOOKUP($A11,Filtro!$A$5:$AK$2936,8,FALSE),0) -> 0 | K11: =IFERROR(VLOOKUP($A11,Filtro!$A$5:$AK$2936,9,FALSE),0) -> 0 | L11: =IFERROR(VLOOKUP($A11,Filtro!$A$5:$AK$2936,10,FALSE),0) -> 0 | M11: =IFERROR(VLOOKUP($A11,Filtro!$A$5:$AK$2936,11,FALSE),0) -> 0 | N11: =IFERROR(VLOOKUP($A11,Filtro!$A$5:$AK$2936,12,FALSE),0) -> 0 | O11: =IFERROR(VLOOKUP($A11,Filtro!$A$5:$AK$2936,13,FALSE),0) -> 0 | P11: =IFERROR(VLOOKUP($A11,Filtro!$A$5:$AK$2936,14,FALSE),0) -> 0 | Q11: =IFERROR(VLOOKUP($A11,Filtro!$A$5:$AK$2936,15,FALSE),0) -> 0 | R11: =IFERROR(VLOOKUP($A11,Filtro!$A$5:$AK$2936,16,FALSE),0) -> 0 | S11: =IFERROR(VLOOKUP($A11,Filtro!$A$5:$AK$2936,17,FALSE),0) -> 0 | T11: =IFERROR(VLOOKUP($A11,Filtro!$A$5:$AK$2936,18,FALSE),0) -> 0 | U11: =IFERROR(VLOOKUP($A11,Filtro!$A$5:$AK$2936,19,FALSE),0) -> 0 | V11: =IFERROR(VLOOKUP($A11,Filtro!$A$5:$AK$2936,20,FALSE),0) -> 0 | W11: =IFERROR(VLOOKUP($A11,Filtro!$A$5:$AK$2936,21,FALSE),0) -> 0 | X11: =IFERROR(VLOOKUP($A11,Filtro!$A$5:$AK$2936,22,FALSE),0) -> 0 | Y11: =IFERROR(VLOOKUP($A11,Filtro!$A$5:$AK$2936,23,FALSE),0) -> 0 | Z11: =IFERROR(VLOOKUP($A11,Filtro!$A$5:$AK$2936,24,FALSE),0) -> 0 | AA11: =IFERROR(VLOOKUP($A11,Filtro!$A$5:$AK$2936,25,FALSE),0) -> 0 | AB11: =IFERROR(VLOOKUP($A11,Filtro!$A$5:$AK$2936,26,FALSE),0) -> 0 | AC11: =IFERROR(VLOOKUP($A11,Filtro!$A$5:$AK$2936,27,FALSE),0) -> 3932 | AD11: =IFERROR(VLOOKUP($A11,Filtro!$A$5:$AK$2936,28,FALSE),0) -> 0 | AE11: =IFERROR(VLOOKUP($A11,Filtro!$A$5:$AK$2936,29,FALSE),0) -> 0 | AF11: =IFERROR(VLOOKUP($A11,Filtro!$A$5:$AK$2936,30,FALSE),0) -> 0 | AG11: =IFERROR(VLOOKUP($A11,Filtro!$A$5:$AK$2936,31,FALSE),0) -> 0 | AH11: =IFERROR(VLOOKUP($A11,Filtro!$A$5:$AK$2936,32,FALSE),0) -> 0 | AI11: =IFERROR(VLOOKUP($A11,Filtro!$A$5:$AK$2936,33,FALSE),0) -> 0 | AJ11: =IFERROR(VLOOKUP($A11,Filtro!$A$5:$AK$2936,34,FALSE),0) -> 0 | AK11: =IFERROR(VLOOKUP($A11,Filtro!$A$5:$AK$2936,35,FALSE),0) -> 0 | AL11: =IFERROR(VLOOKUP($A11,Filtro!$A$5:$AK$2936,36,FALSE),0) -> 1203650 | AM11: =IFERROR(VLOOKUP($A11,Filtro!$A$5:$AK$2936,37,FALSE),0) -> 35512200
A12: 01014281 | B12: 0101207 | C12: Consulta Médica de Especialidad en Endocrinología Adulto | D12: =IFERROR(VLOOKUP($A12,Filtro!$A$5:$AK$2936,2,FALSE),0) -> 4451 | E12: =IFERROR(VLOOKUP($A12,Filtro!$A$5:$AK$2936,3,FALSE),0) -> 4450 | F12: =IFERROR(VLOOKUP($A12,Filtro!$A$5:$AK$2936,4,FALSE),0) -> 4447 | G12: =IFERROR(VLOOKUP($A12,Filtro!$A$5:$AK$2936,5,FALSE),0) -> 3 | H12: =IFERROR(VLOOKUP($A12,Filtro!$A$5:$AK$2936,6,FALSE),0) -> 1 | I12: =IFERROR(VLOOKUP($A12,Filtro!$A$5:$AK$2936,7,FALSE),0) -> 0 | J12: =IFERROR(VLOOKUP($A12,Filtro!$A$5:$AK$2936,8,FALSE),0) -> 0 | K12: =IFERROR(VLOOKUP($A12,Filtro!$A$5:$AK$2936,9,FALSE),0) -> 0 | L12: =IFERROR(VLOOKUP($A12,Filtro!$A$5:$AK$2936,10,FALSE),0) -> 0 | M12: =IFERROR(VLOOKUP($A12,Filtro!$A$5:$AK$2936,11,FALSE),0) -> 0 | N12: =IFERROR(VLOOKUP($A12,Filtro!$A$5:$AK$2936,12,FALSE),0) -> 0 | O12: =IFERROR(VLOOKUP($A12,Filtro!$A$5:$AK$2936,13,FALSE),0) -> 0 | P12: =IFERROR(VLOOKUP($A12,Filtro!$A$5:$AK$2936,14,FALSE),0) -> 0 | Q12: =IFERROR(VLOOKUP($A12,Filtro!$A$5:$AK$2936,15,FALSE),0) -> 0 | R12: =IFERROR(VLOOKUP($A12,Filtro!$A$5:$AK$2936,16,FALSE),0) -> 0 | S12: =IFERROR(VLOOKUP($A12,Filtro!$A$5:$AK$2936,17,FALSE),0) -> 0 | T12: =IFERROR(VLOOKUP($A12,Filtro!$A$5:$AK$2936,18,FALSE),0) -> 0 | U12: =IFERROR(VLOOKUP($A12,Filtro!$A$5:$AK$2936,19,FALSE),0) -> 0 | V12: =IFERROR(VLOOKUP($A12,Filtro!$A$5:$AK$2936,20,FALSE),0) -> 0 | W12: =IFERROR(VLOOKUP($A12,Filtro!$A$5:$AK$2936,21,FALSE),0) -> 0 | X12: =IFERROR(VLOOKUP($A12,Filtro!$A$5:$AK$2936,22,FALSE),0) -> 0 | Y12: =IFERROR(VLOOKUP($A12,Filtro!$A$5:$AK$2936,23,FALSE),0) -> 0 | Z12: =IFERROR(VLOOKUP($A12,Filtro!$A$5:$AK$2936,24,FALSE),0) -> 0 | AA12: =IFERROR(VLOOKUP($A12,Filtro!$A$5:$AK$2936,25,FALSE),0) -> 0 | AB12: =IFERROR(VLOOKUP($A12,Filtro!$A$5:$AK$2936,26,FALSE),0) -> 0 | AC12: =IFERROR(VLOOKUP($A12,Filtro!$A$5:$AK$2936,27,FALSE),0) -> 4451 | AD12: =IFERROR(VLOOKUP($A12,Filtro!$A$5:$AK$2936,28,FALSE),0) -> 0 | AE12: =IFERROR(VLOOKUP($A12,Filtro!$A$5:$AK$2936,29,FALSE),0) -> 0 | AF12: =IFERROR(VLOOKUP($A12,Filtro!$A$5:$AK$2936,30,FALSE),0) -> 0 | AG12: =IFERROR(VLOOKUP($A12,Filtro!$A$5:$AK$2936,31,FALSE),0) -> 0 | AH12: =IFERROR(VLOOKUP($A12,Filtro!$A$5:$AK$2936,32,FALSE),0) -> 0 | AI12: =IFERROR(VLOOKUP($A12,Filtro!$A$5:$AK$2936,33,FALSE),0) -> 0 | AJ12: =IFERROR(VLOOKUP($A12,Filtro!$A$5:$AK$2936,34,FALSE),0) -> 0 | AK12: =IFERROR(VLOOKUP($A12,Filtro!$A$5:$AK$2936,35,FALSE),0) -> 0 | AL12: =IFERROR(VLOOKUP($A12,Filtro!$A$5:$AK$2936,36,FALSE),0) -> 1203650 | AM12: =IFERROR(VLOOKUP($A12,Filtro!$A$5:$AK$2936,37,FALSE),0) -> 40245350
A13: 01014282 | B13: 0101208 | C13: Consulta Médica de Especialidad en Endocrinología Pediátrica | D13: =IFERROR(VLOOKUP($A13,Filtro!$A$5:$AK$2936,2,FALSE),0) -> 3609 | E13: =IFERROR(VLOOKUP($A13,Filtro!$A$5:$AK$2936,3,FALSE),0) -> 3608 | F13: =IFERROR(VLOOKUP($A13,Filtro!$A$5:$AK$2936,4,FALSE),0) -> 3608 | G13: =IFERROR(VLOOKUP($A13,Filtro!$A$5:$AK$2936,5,FALSE),0) -> 0 | H13: =IFERROR(VLOOKUP($A13,Filtro!$A$5:$AK$2936,6,FALSE),0) -> 1 | I13: =IFERROR(VLOOKUP($A13,Filtro!$A$5:$AK$2936,7,FALSE),0) -> 0 | J13: =IFERROR(VLOOKUP($A13,Filtro!$A$5:$AK$2936,8,FALSE),0) -> 0 | K13: =IFERROR(VLOOKUP($A13,Filtro!$A$5:$AK$2936,9,FALSE),0) -> 0 | L13: =IFERROR(VLOOKUP($A13,Filtro!$A$5:$AK$2936,10,FALSE),0) -> 0 | M13: =IFERROR(VLOOKUP($A13,Filtro!$A$5:$AK$2936,11,FALSE),0) -> 0 | N13: =IFERROR(VLOOKUP($A13,Filtro!$A$5:$AK$2936,12,FALSE),0) -> 0 | O13: =IFERROR(VLOOKUP($A13,Filtro!$A$5:$AK$2936,13,FALSE),0) -> 0 | P13: =IFERROR(VLOOKUP($A13,Filtro!$A$5:$AK$2936,14,FALSE),0) -> 0 | Q13: =IFERROR(VLOOKUP($A13,Filtro!$A$5:$AK$2936,15,FALSE),0) -> 0 | R13: =IFERROR(VLOOKUP($A13,Filtro!$A$5:$AK$2936,16,FALSE),0) -> 0 | S13: =IFERROR(VLOOKUP($A13,Filtro!$A$5:$AK$2936,17,FALSE),0) -> 0 | T13: =IFERROR(VLOOKUP($A13,Filtro!$A$5:$AK$2936,18,FALSE),0) -> 0 | U13: =IFERROR(VLOOKUP($A13,Filtro!$A$5:$AK$2936,19,FALSE),0) -> 0 | V13: =IFERROR(VLOOKUP($A13,Filtro!$A$5:$AK$2936,20,FALSE),0) -> 0 | W13: =IFERROR(VLOOKUP($A13,Filtro!$A$5:$AK$2936,21,FALSE),0) -> 0 | X13: =IFERROR(VLOOKUP($A13,Filtro!$A$5:$AK$2936,22,FALSE),0) -> 0 | Y13: =IFERROR(VLOOKUP($A13,Filtro!$A$5:$AK$2936,23,FALSE),0) -> 0 | Z13: =IFERROR(VLOOKUP($A13,Filtro!$A$5:$AK$2936,24,FALSE),0) -> 0 | AA13: =IFERROR(VLOOKUP($A13,Filtro!$A$5:$AK$2936,25,FALSE),0) -> 0 | AB13: =IFERROR(VLOOKUP($A13,Filtro!$A$5:$AK$2936,26,FALSE),0) -> 0 | AC13: =IFERROR(VLOOKUP($A13,Filtro!$A$5:$AK$2936,27,FALSE),0) -> 3609 | AD13: =IFERROR(VLOOKUP($A13,Filtro!$A$5:$AK$2936,28,FALSE),0) -> 0 | AE13: =IFERROR(VLOOKUP($A13,Filtro!$A$5:$AK$2936,29,FALSE),0) -> 0 | AF13: =IFERROR(VLOOKUP($A13,Filtro!$A$5:$AK$2936,30,FALSE),0) -> 0 | AG13: =IFERROR(VLOOKUP($A13,Filtro!$A$5:$AK$2936,31,FALSE),0) -> 0 | AH13: =IFERROR(VLOOKUP($A13,Filtro!$A$5:$AK$2936,32,FALSE),0) -> 0 | AI13: =IFERROR(VLOOKUP($A13,Filtro!$A$5:$AK$2936,33,FALSE),0) -> 0 | AJ13: =IFERROR(VLOOKUP($A13,Filtro!$A$5:$AK$2936,34,FALSE),0) -> 0 | AK13: =IFERROR(VLOOKUP($A13,Filtro!$A$5:$AK$2936,35,FALSE),0) -> 0 | AL13: =IFERROR(VLOOKUP($A13,Filtro!$A$5:$AK$2936,36,FALSE),0) -> 1203650 | AM13: =IFERROR(VLOOKUP($A13,Filtro!$A$5:$AK$2936,37,FALSE),0) -> 32652400
A14: 01014283 | B14: 0101209 | C14: Consulta Médica de Especialidad en Neurología Adultos | D14: =IFERROR(VLOOKUP($A14,Filtro!$A$5:$AK$2936,2,FALSE),0) -> 8342 | E14: =IFERROR(VLOOKUP($A14,Filtro!$A$5:$AK$2936,3,FALSE),0) -> 8337 | F14: =IFERROR(VLOOKUP($A14,Filtro!$A$5:$AK$2936,4,FALSE),0) -> 8337 | G14: =IFERROR(VLOOKUP($A14,Filtro!$A$5:$AK$2936,5,FALSE),0) -> 0 | H14: =IFERROR(VLOOKUP($A14,Filtro!$A$5:$AK$2936,6,FALSE),0) -> 5 | I14: =IFERROR(VLOOKUP($A14,Filtro!$A$5:$AK$2936,7,FALSE),0) -> 0 | J14: =IFERROR(VLOOKUP($A14,Filtro!$A$5:$AK$2936,8,FALSE),0) -> 0 | K14: =IFERROR(VLOOKUP($A14,Filtro!$A$5:$AK$2936,9,FALSE),0) -> 0 | L14: =IFERROR(VLOOKUP($A14,Filtro!$A$5:$AK$2936,10,FALSE),0) -> 0 | M14: =IFERROR(VLOOKUP($A14,Filtro!$A$5:$AK$2936,11,FALSE),0) -> 0 | N14: =IFERROR(VLOOKUP($A14,Filtro!$A$5:$AK$2936,12,FALSE),0) -> 0 | O14: =IFERROR(VLOOKUP($A14,Filtro!$A$5:$AK$2936,13,FALSE),0) -> 0 | P14: =IFERROR(VLOOKUP($A14,Filtro!$A$5:$AK$2936,14,FALSE),0) -> 0 | Q14: =IFERROR(VLOOKUP($A14,Filtro!$A$5:$AK$2936,15,FALSE),0) -> 0 | R14: =IFERROR(VLOOKUP($A14,Filtro!$A$5:$AK$2936,16,FALSE),0) -> 0 | S14: =IFERROR(VLOOKUP($A14,Filtro!$A$5:$AK$2936,17,FALSE),0) -> 0 | T14: =IFERROR(VLOOKUP($A14,Filtro!$A$5:$AK$2936,18,FALSE),0) -> 0 | U14: =IFERROR(VLOOKUP($A14,Filtro!$A$5:$AK$2936,19,FALSE),0) -> 0 | V14: =IFERROR(VLOOKUP($A14,Filtro!$A$5:$AK$2936,20,FALSE),0) -> 0 | W14: =IFERROR(VLOOKUP($A14,Filtro!$A$5:$AK$2936,21,FALSE),0) -> 0 | X14: =IFERROR(VLOOKUP($A14,Filtro!$A$5:$AK$2936,22,FALSE),0) -> 0 | Y14: =IFERROR(VLOOKUP($A14,Filtro!$A$5:$AK$2936,23,FALSE),0) -> 0 | Z14: =IFERROR(VLOOKUP($A14,Filtro!$A$5:$AK$2936,24,FALSE),0) -> 0 | AA14: =IFERROR(VLOOKUP($A14,Filtro!$A$5:$AK$2936,25,FALSE),0) -> 0 | AB14: =IFERROR(VLOOKUP($A14,Filtro!$A$5:$AK$2936,26,FALSE),0) -> 0 | AC14: =IFERROR(VLOOKUP($A14,Filtro!$A$5:$AK$2936,27,FALSE),0) -> 8342 | AD14: =IFERROR(VLOOKUP($A14,Filtro!$A$5:$AK$2936,28,FALSE),0) -> 0 | AE14: =IFERROR(VLOOKUP($A14,Filtro!$A$5:$AK$2936,29,FALSE),0) -> 363 | AF14: =IFERROR(VLOOKUP($A14,Filtro!$A$5:$AK$2936,30,FALSE),0) -> 0 | AG14: =IFERROR(VLOOKUP($A14,Filtro!$A$5:$AK$2936,31,FALSE),0) -> 0 | AH14: =IFERROR(VLOOKUP($A14,Filtro!$A$5:$AK$2936,32,FALSE),0) -> 0 | AI14: =IFERROR(VLOOKUP($A14,Filtro!$A$5:$AK$2936,33,FALSE),0) -> 0 | AJ14: =IFERROR(VLOOKUP($A14,Filtro!$A$5:$AK$2936,34,FALSE),0) -> 0 | AK14: =IFERROR(VLOOKUP($A14,Filtro!$A$5:$AK$2936,35,FALSE),0) -> 0 | AL14: =IFERROR(VLOOKUP($A14,Filtro!$A$5:$AK$2936,36,FALSE),0) -> 1203650 | AM14: =IFERROR(VLOOKUP($A14,Filtro!$A$5:$AK$2936,37,FALSE),0) -> 75449850
A15: 01014284 | B15: 0101210 | C15: Consulta Médica de Especialidad en Neurología Pediátrica | D15: =IFERROR(VLOOKUP($A15,Filtro!$A$5:$AK$2936,2,FALSE),0) -> 5720 | E15: =IFERROR(VLOOKUP($A15,Filtro!$A$5:$AK$2936,3,FALSE),0) -> 5711 | F15: =IFERROR(VLOOKUP($A15,Filtro!$A$5:$AK$2936,4,FALSE),0) -> 5711 | G15: =IFERROR(VLOOKUP($A15,Filtro!$A$5:$AK$2936,5,FALSE),0) -> 0 | H15: =IFERROR(VLOOKUP($A15,Filtro!$A$5:$AK$2936,6,FALSE),0) -> 9 | I15: =IFERROR(VLOOKUP($A15,Filtro!$A$5:$AK$2936,7,FALSE),0) -> 0 | J15: =IFERROR(VLOOKUP($A15,Filtro!$A$5:$AK$2936,8,FALSE),0) -> 0 | K15: =IFERROR(VLOOKUP($A15,Filtro!$A$5:$AK$2936,9,FALSE),0) -> 0 | L15: =IFERROR(VLOOKUP($A15,Filtro!$A$5:$AK$2936,10,FALSE),0) -> 0 | M15: =IFERROR(VLOOKUP($A15,Filtro!$A$5:$AK$2936,11,FALSE),0) -> 0 | N15: =IFERROR(VLOOKUP($A15,Filtro!$A$5:$AK$2936,12,FALSE),0) -> 0 | O15: =IFERROR(VLOOKUP($A15,Filtro!$A$5:$AK$2936,13,FALSE),0) -> 0 | P15: =IFERROR(VLOOKUP($A15,Filtro!$A$5:$AK$2936,14,FALSE),0) -> 0 | Q15: =IFERROR(VLOOKUP($A15,Filtro!$A$5:$AK$2936,15,FALSE),0) -> 0 | R15: =IFERROR(VLOOKUP($A15,Filtro!$A$5:$AK$2936,16,FALSE),0) -> 0 | S15: =IFERROR(VLOOKUP($A15,Filtro!$A$5:$AK$2936,17,FALSE),0) -> 0 | T15: =IFERROR(VLOOKUP($A15,Filtro!$A$5:$AK$2936,18,FALSE),0) -> 0 | U15: =IFERROR(VLOOKUP($A15,Filtro!$A$5:$AK$2936,19,FALSE),0) -> 0 | V15: =IFERROR(VLOOKUP($A15,Filtro!$A$5:$AK$2936,20,FALSE),0) -> 0 | W15: =IFERROR(VLOOKUP($A15,Filtro!$A$5:$AK$2936,21,FALSE),0) -> 0 | X15: =IFERROR(VLOOKUP($A15,Filtro!$A$5:$AK$2936,22,FALSE),0) -> 0 | Y15: =IFERROR(VLOOKUP($A15,Filtro!$A$5:$AK$2936,23,FALSE),0) -> 0 | Z15: =IFERROR(VLOOKUP($A15,Filtro!$A$5:$AK$2936,24,FALSE),0) -> 0 | AA15: =IFERROR(VLOOKUP($A15,Filtro!$A$5:$AK$2936,25,FALSE),0) -> 0 | AB15: =IFERROR(VLOOKUP($A15,Filtro!$A$5:$AK$2936,26,FALSE),0) -> 0 | AC15: =IFERROR(VLOOKUP($A15,Filtro!$A$5:$AK$2936,27,FALSE),0) -> 5720 | AD15: =IFERROR(VLOOKUP($A15,Filtro!$A$5:$AK$2936,28,FALSE),0) -> 0 | AE15: =IFERROR(VLOOKUP($A15,Filtro!$A$5:$AK$2936,29,FALSE),0) -> 0 | AF15: =IFERROR(VLOOKUP($A15,Filtro!$A$5:$AK$2936,30,FALSE),0) -> 0 | AG15: =IFERROR(VLOOKUP($A15,Filtro!$A$5:$AK$2936,31,FALSE),0) -> 0 | AH15: =IFERROR(VLOOKUP($A15,Filtro!$A$5:$AK$2936,32,FALSE),0) -> 0 | AI15: =IFERROR(VLOOKUP($A15,Filtro!$A$5:$AK$2936,33,FALSE),0) -> 0 | AJ15: =IFERROR(VLOOKUP($A15,Filtro!$A$5:$AK$2936,34,FALSE),0) -> 0 | AK15: =IFERROR(VLOOKUP($A15,Filtro!$A$5:$AK$2936,35,FALSE),0) -> 0 | AL15: =IFERROR(VLOOKUP($A15,Filtro!$A$5:$AK$2936,36,FALSE),0) -> 1203650 | AM15: =IFERROR(VLOOKUP($A15,Filtro!$A$5:$AK$2936,37,FALSE),0) -> 51684550
A16: 01014285 | B16: 0101211 | C16: Consulta Médica de Especialidad en Oncología Médica | D16: =IFERROR(VLOOKUP($A16,Filtro!$A$5:$AK$2936,2,FALSE),0) -> 6875 | E16: =IFERROR(VLOOKUP($A16,Filtro!$A$5:$AK$2936,3,FALSE),0) -> 6859 | F16: =IFERROR(VLOOKUP($A16,Filtro!$A$5:$AK$2936,4,FALSE),0) -> 6859 | G16: =IFERROR(VLOOKUP($A16,Filtro!$A$5:$AK$2936,5,FALSE),0) -> 0 | H16: =IFERROR(VLOOKUP($A16,Filtro!$A$5:$AK$2936,6,FALSE),0) -> 16 | I16: =IFERROR(VLOOKUP($A16,Filtro!$A$5:$AK$2936,7,FALSE),0) -> 0 | J16: =IFERROR(VLOOKUP($A16,Filtro!$A$5:$AK$2936,8,FALSE),0) -> 0 | K16: =IFERROR(VLOOKUP($A16,Filtro!$A$5:$AK$2936,9,FALSE),0) -> 0 | L16: =IFERROR(VLOOKUP($A16,Filtro!$A$5:$AK$2936,10,FALSE),0) -> 0 | M16: =IFERROR(VLOOKUP($A16,Filtro!$A$5:$AK$2936,11,FALSE),0) -> 0 | N16: =IFERROR(VLOOKUP($A16,Filtro!$A$5:$AK$2936,12,FALSE),0) -> 0 | O16: =IFERROR(VLOOKUP($A16,Filtro!$A$5:$AK$2936,13,FALSE),0) -> 0 | P16: =IFERROR(VLOOKUP($A16,Filtro!$A$5:$AK$2936,14,FALSE),0) -> 0 | Q16: =IFERROR(VLOOKUP($A16,Filtro!$A$5:$AK$2936,15,FALSE),0) -> 0 | R16: =IFERROR(VLOOKUP($A16,Filtro!$A$5:$AK$2936,16,FALSE),0) -> 0 | S16: =IFERROR(VLOOKUP($A16,Filtro!$A$5:$AK$2936,17,FALSE),0) -> 0 | T16: =IFERROR(VLOOKUP($A16,Filtro!$A$5:$AK$2936,18,FALSE),0) -> 0 | U16: =IFERROR(VLOOKUP($A16,Filtro!$A$5:$AK$2936,19,FALSE),0) -> 0 | V16: =IFERROR(VLOOKUP($A16,Filtro!$A$5:$AK$2936,20,FALSE),0) -> 0 | W16: =IFERROR(VLOOKUP($A16,Filtro!$A$5:$AK$2936,21,FALSE),0) -> 0 | X16: =IFERROR(VLOOKUP($A16,Filtro!$A$5:$AK$2936,22,FALSE),0) -> 0 | Y16: =IFERROR(VLOOKUP($A16,Filtro!$A$5:$AK$2936,23,FALSE),0) -> 0 | Z16: =IFERROR(VLOOKUP($A16,Filtro!$A$5:$AK$2936,24,FALSE),0) -> 0 | AA16: =IFERROR(VLOOKUP($A16,Filtro!$A$5:$AK$2936,25,FALSE),0) -> 0 | AB16: =IFERROR(VLOOKUP($A16,Filtro!$A$5:$AK$2936,26,FALSE),0) -> 0 | AC16: =IFERROR(VLOOKUP($A16,Filtro!$A$5:$AK$2936,27,FALSE),0) -> 6875 | AD16: =IFERROR(VLOOKUP($A16,Filtro!$A$5:$AK$2936,28,FALSE),0) -> 0 | AE16: =IFERROR(VLOOKUP($A16,Filtro!$A$5:$AK$2936,29,FALSE),0) -> 0 | AF16: =IFERROR(VLOOKUP($A16,Filtro!$A$5:$AK$2936,30,FALSE),0) -> 0 | AG16: =IFERROR(VLOOKUP($A16,Filtro!$A$5:$AK$2936,31,FALSE),0) -> 0 | AH16: =IFERROR(VLOOKUP($A16,Filtro!$A$5:$AK$2936,32,FALSE),0) -> 0 | AI16: =IFERROR(VLOOKUP($A16,Filtro!$A$5:$AK$2936,33,FALSE),0) -> 0 | AJ16: =IFERROR(VLOOKUP($A16,Filtro!$A$5:$AK$2936,34,FALSE),0) -> 0 | AK16: =IFERROR(VLOOKUP($A16,Filtro!$A$5:$AK$2936,35,FALSE),0) -> 0 | AL16: =IFERROR(VLOOKUP($A16,Filtro!$A$5:$AK$2936,36,FALSE),0) -> 1203650 | AM16: =IFERROR(VLOOKUP($A16,Filtro!$A$5:$AK$2936,37,FALSE),0) -> 62073950
A17: 01014286 | B17: 0101212 | C17: Consulta Médica de Especialidad en Psiquiatría adultos | D17: =IFERROR(VLOOKUP($A17,Filtro!$A$5:$AK$2936,2,FALSE),0) -> 14004 | E17: =IFERROR(VLOOKUP($A17,Filtro!$A$5:$AK$2936,3,FALSE),0) -> 13966 | F17: =IFERROR(VLOOKUP($A17,Filtro!$A$5:$AK$2936,4,FALSE),0) -> 13966 | G17: =IFERROR(VLOOKUP($A17,Filtro!$A$5:$AK$2936,5,FALSE),0) -> 0 | H17: =IFERROR(VLOOKUP($A17,Filtro!$A$5:$AK$2936,6,FALSE),0) -> 38 | I17: =IFERROR(VLOOKUP($A17,Filtro!$A$5:$AK$2936,7,FALSE),0) -> 0 | J17: =IFERROR(VLOOKUP($A17,Filtro!$A$5:$AK$2936,8,FALSE),0) -> 0 | K17: =IFERROR(VLOOKUP($A17,Filtro!$A$5:$AK$2936,9,FALSE),0) -> 0 | L17: =IFERROR(VLOOKUP($A17,Filtro!$A$5:$AK$2936,10,FALSE),0) -> 0 | M17: =IFERROR(VLOOKUP($A17,Filtro!$A$5:$AK$2936,11,FALSE),0) -> 0 | N17: =IFERROR(VLOOKUP($A17,Filtro!$A$5:$AK$2936,12,FALSE),0) -> 0 | O17: =IFERROR(VLOOKUP($A17,Filtro!$A$5:$AK$2936,13,FALSE),0) -> 0 | P17: =IFERROR(VLOOKUP($A17,Filtro!$A$5:$AK$2936,14,FALSE),0) -> 0 | Q17: =IFERROR(VLOOKUP($A17,Filtro!$A$5:$AK$2936,15,FALSE),0) -> 0 | R17: =IFERROR(VLOOKUP($A17,Filtro!$A$5:$AK$2936,16,FALSE),0) -> 0 | S17: =IFERROR(VLOOKUP($A17,Filtro!$A$5:$AK$2936,17,FALSE),0) -> 0 | T17: =IFERROR(VLOOKUP($A17,Filtro!$A$5:$AK$2936,18,FALSE),0) -> 0 | U17: =IFERROR(VLOOKUP($A17,Filtro!$A$5:$AK$2936,19,FALSE),0) -> 0 | V17: =IFERROR(VLOOKUP($A17,Filtro!$A$5:$AK$2936,20,FALSE),0) -> 0 | W17: =IFERROR(VLOOKUP($A17,Filtro!$A$5:$AK$2936,21,FALSE),0) -> 0 | X17: =IFERROR(VLOOKUP($A17,Filtro!$A$5:$AK$2936,22,FALSE),0) -> 0 | Y17: =IFERROR(VLOOKUP($A17,Filtro!$A$5:$AK$2936,23,FALSE),0) -> 0 | Z17: =IFERROR(VLOOKUP($A17,Filtro!$A$5:$AK$2936,24,FALSE),0) -> 0 | AA17: =IFERROR(VLOOKUP($A17,Filtro!$A$5:$AK$2936,25,FALSE),0) -> 0 | AB17: =IFERROR(VLOOKUP($A17,Filtro!$A$5:$AK$2936,26,FALSE),0) -> 0 | AC17: =IFERROR(VLOOKUP($A17,Filtro!$A$5:$AK$2936,27,FALSE),0) -> 14004 | AD17: =IFERROR(VLOOKUP($A17,Filtro!$A$5:$AK$2936,28,FALSE),0) -> 0 | AE17: =IFERROR(VLOOKUP($A17,Filtro!$A$5:$AK$2936,29,FALSE),0) -> 0 | AF17: =IFERROR(VLOOKUP($A17,Filtro!$A$5:$AK$2936,30,FALSE),0) -> 0 | AG17: =IFERROR(VLOOKUP($A17,Filtro!$A$5:$AK$2936,31,FALSE),0) -> 0 | AH17: =IFERROR(VLOOKUP($A17,Filtro!$A$5:$AK$2936,32,FALSE),0) -> 0 | AI17: =IFERROR(VLOOKUP($A17,Filtro!$A$5:$AK$2936,33,FALSE),0) -> 0 | AJ17: =IFERROR(VLOOKUP($A17,Filtro!$A$5:$AK$2936,34,FALSE),0) -> 0 | AK17: =IFERROR(VLOOKUP($A17,Filtro!$A$5:$AK$2936,35,FALSE),0) -> 0 | AL17: =IFERROR(VLOOKUP($A17,Filtro!$A$5:$AK$2936,36,FALSE),0) -> 1203650 | AM17: =IFERROR(VLOOKUP($A17,Filtro!$A$5:$AK$2936,37,FALSE),0) -> 126392300
A18: 01014287 | B18: 0101213 | C18: Consulta Médica de Especialidad en Psiquiatría pediátrica y de la adolescencia | D18: =IFERROR(VLOOKUP($A18,Filtro!$A$5:$AK$2936,2,FALSE),0) -> 4324 | E18: =IFERROR(VLOOKUP($A18,Filtro!$A$5:$AK$2936,3,FALSE),0) -> 4319 | F18: =IFERROR(VLOOKUP($A18,Filtro!$A$5:$AK$2936,4,FALSE),0) -> 4319 | G18: =IFERROR(VLOOKUP($A18,Filtro!$A$5:$AK$2936,5,FALSE),0) -> 0 | H18: =IFERROR(VLOOKUP($A18,Filtro!$A$5:$AK$2936,6,FALSE),0) -> 5 | I18: =IFERROR(VLOOKUP($A18,Filtro!$A$5:$AK$2936,7,FALSE),0) -> 0 | J18: =IFERROR(VLOOKUP($A18,Filtro!$A$5:$AK$2936,8,FALSE),0) -> 0 | K18: =IFERROR(VLOOKUP($A18,Filtro!$A$5:$AK$2936,9,FALSE),0) -> 0 | L18: =IFERROR(VLOOKUP($A18,Filtro!$A$5:$AK$2936,10,FALSE),0) -> 0 | M18: =IFERROR(VLOOKUP($A18,Filtro!$A$5:$AK$2936,11,FALSE),0) -> 0 | N18: =IFERROR(VLOOKUP($A18,Filtro!$A$5:$AK$2936,12,FALSE),0) -> 0 | O18: =IFERROR(VLOOKUP($A18,Filtro!$A$5:$AK$2936,13,FALSE),0) -> 0 | P18: =IFERROR(VLOOKUP($A18,Filtro!$A$5:$AK$2936,14,FALSE),0) -> 0 | Q18: =IFERROR(VLOOKUP($A18,Filtro!$A$5:$AK$2936,15,FALSE),0) -> 0 | R18: =IFERROR(VLOOKUP($A18,Filtro!$A$5:$AK$2936,16,FALSE),0) -> 0 | S18: =IFERROR(VLOOKUP($A18,Filtro!$A$5:$AK$2936,17,FALSE),0) -> 0 | T18: =IFERROR(VLOOKUP($A18,Filtro!$A$5:$AK$2936,18,FALSE),0) -> 0 | U18: =IFERROR(VLOOKUP($A18,Filtro!$A$5:$AK$2936,19,FALSE),0) -> 0 | V18: =IFERROR(VLOOKUP($A18,Filtro!$A$5:$AK$2936,20,FALSE),0) -> 0 | W18: =IFERROR(VLOOKUP($A18,Filtro!$A$5:$AK$2936,21,FALSE),0) -> 0 | X18: =IFERROR(VLOOKUP($A18,Filtro!$A$5:$AK$2936,22,FALSE),0) -> 0 | Y18: =IFERROR(VLOOKUP($A18,Filtro!$A$5:$AK$2936,23,FALSE),0) -> 0 | Z18: =IFERROR(VLOOKUP($A18,Filtro!$A$5:$AK$2936,24,FALSE),0) -> 0 | AA18: =IFERROR(VLOOKUP($A18,Filtro!$A$5:$AK$2936,25,FALSE),0) -> 0 | AB18: =IFERROR(VLOOKUP($A18,Filtro!$A$5:$AK$2936,26,FALSE),0) -> 0 | AC18: =IFERROR(VLOOKUP($A18,Filtro!$A$5:$AK$2936,27,FALSE),0) -> 4324 | AD18: =IFERROR(VLOOKUP($A18,Filtro!$A$5:$AK$2936,28,FALSE),0) -> 0 | AE18: =IFERROR(VLOOKUP($A18,Filtro!$A$5:$AK$2936,29,FALSE),0) -> 0 | AF18: =IFERROR(VLOOKUP($A18,Filtro!$A$5:$AK$2936,30,FALSE),0) -> 0 | AG18: =IFERROR(VLOOKUP($A18,Filtro!$A$5:$AK$2936,31,FALSE),0) -> 0 | AH18: =IFERROR(VLOOKUP($A18,Filtro!$A$5:$AK$2936,32,FALSE),0) -> 0 | AI18: =IFERROR(VLOOKUP($A18,Filtro!$A$5:$AK$2936,33,FALSE),0) -> 0 | AJ18: =IFERROR(VLOOKUP($A18,Filtro!$A$5:$AK$2936,34,FALSE),0) -> 0 | AK18: =IFERROR(VLOOKUP($A18,Filtro!$A$5:$AK$2936,35,FALSE),0) -> 0 | AL18: =IFERROR(VLOOKUP($A18,Filtro!$A$5:$AK$2936,36,FALSE),0) -> 1203650 | AM18: =IFERROR(VLOOKUP($A18,Filtro!$A$5:$AK$2936,37,FALSE),0) -> 39086950
A19: 01014288 | B19: 0101300 | C19: Consulta Médica otras Especialidades | D19: =IFERROR(VLOOKUP($A19,Filtro!$A$5:$AK$2936,2,FALSE),0) -> 7998 | E19: =IFERROR(VLOOKUP($A19,Filtro!$A$5:$AK$2936,3,FALSE),0) -> 7998 | F19: =IFERROR(VLOOKUP($A19,Filtro!$A$5:$AK$2936,4,FALSE),0) -> 7998 | G19: =IFERROR(VLOOKUP($A19,Filtro!$A$5:$AK$2936,5,FALSE),0) -> 0 | H19: =IFERROR(VLOOKUP($A19,Filtro!$A$5:$AK$2936,6,FALSE),0) -> 0 | I19: =IFERROR(VLOOKUP($A19,Filtro!$A$5:$AK$2936,7,FALSE),0) -> 0 | J19: =IFERROR(VLOOKUP($A19,Filtro!$A$5:$AK$2936,8,FALSE),0) -> 0 | K19: =IFERROR(VLOOKUP($A19,Filtro!$A$5:$AK$2936,9,FALSE),0) -> 0 | L19: =IFERROR(VLOOKUP($A19,Filtro!$A$5:$AK$2936,10,FALSE),0) -> 0 | M19: =IFERROR(VLOOKUP($A19,Filtro!$A$5:$AK$2936,11,FALSE),0) -> 0 | N19: =IFERROR(VLOOKUP($A19,Filtro!$A$5:$AK$2936,12,FALSE),0) -> 0 | O19: =IFERROR(VLOOKUP($A19,Filtro!$A$5:$AK$2936,13,FALSE),0) -> 0 | P19: =IFERROR(VLOOKUP($A19,Filtro!$A$5:$AK$2936,14,FALSE),0) -> 0 | Q19: =IFERROR(VLOOKUP($A19,Filtro!$A$5:$AK$2936,15,FALSE),0) -> 0 | R19: =IFERROR(VLOOKUP($A19,Filtro!$A$5:$AK$2936,16,FALSE),0) -> 0 | S19: =IFERROR(VLOOKUP($A19,Filtro!$A$5:$AK$2936,17,FALSE),0) -> 0 | T19: =IFERROR(VLOOKUP($A19,Filtro!$A$5:$AK$2936,18,FALSE),0) -> 0 | U19: =IFERROR(VLOOKUP($A19,Filtro!$A$5:$AK$2936,19,FALSE),0) -> 0 | V19: =IFERROR(VLOOKUP($A19,Filtro!$A$5:$AK$2936,20,FALSE),0) -> 0 | W19: =IFERROR(VLOOKUP($A19,Filtro!$A$5:$AK$2936,21,FALSE),0) -> 0 | X19: =IFERROR(VLOOKUP($A19,Filtro!$A$5:$AK$2936,22,FALSE),0) -> 0 | Y19: =IFERROR(VLOOKUP($A19,Filtro!$A$5:$AK$2936,23,FALSE),0) -> 0 | Z19: =IFERROR(VLOOKUP($A19,Filtro!$A$5:$AK$2936,24,FALSE),0) -> 0 | AA19: =IFERROR(VLOOKUP($A19,Filtro!$A$5:$AK$2936,25,FALSE),0) -> 0 | AB19: =IFERROR(VLOOKUP($A19,Filtro!$A$5:$AK$2936,26,FALSE),0) -> 0 | AC19: =IFERROR(VLOOKUP($A19,Filtro!$A$5:$AK$2936,27,FALSE),0) -> 7998 | AD19: =IFERROR(VLOOKUP($A19,Filtro!$A$5:$AK$2936,28,FALSE),0) -> 0 | AE19: =IFERROR(VLOOKUP($A19,Filtro!$A$5:$AK$2936,29,FALSE),0) -> 0 | AF19: =IFERROR(VLOOKUP($A19,Filtro!$A$5:$AK$2936,30,FALSE),0) -> 0 | AG19: =IFERROR(VLOOKUP($A19,Filtro!$A$5:$AK$2936,31,FALSE),0) -> 0 | AH19: =IFERROR(VLOOKUP($A19,Filtro!$A$5:$AK$2936,32,FALSE),0) -> 0 | AI19: =IFERROR(VLOOKUP($A19,Filtro!$A$5:$AK$2936,33,FALSE),0) -> 0 | AJ19: =IFERROR(VLOOKUP($A19,Filtro!$A$5:$AK$2936,34,FALSE),0) -> 0 | AK19: =IFERROR(VLOOKUP($A19,Filtro!$A$5:$AK$2936,35,FALSE),0) -> 0 | AL19: =IFERROR(VLOOKUP($A19,Filtro!$A$5:$AK$2936,36,FALSE),0) -> 1203650 | AM19: =IFERROR(VLOOKUP($A19,Filtro!$A$5:$AK$2936,37,FALSE),0) -> 72381900
A20: 01014289 | B20: 0101301 | C20: Consulta Médica de Especialidad en Cardiología | D20: =IFERROR(VLOOKUP($A20,Filtro!$A$5:$AK$2936,2,FALSE),0) -> 10640 | E20: =IFERROR(VLOOKUP($A20,Filtro!$A$5:$AK$2936,3,FALSE),0) -> 10626 | F20: =IFERROR(VLOOKUP($A20,Filtro!$A$5:$AK$2936,4,FALSE),0) -> 10626 | G20: =IFERROR(VLOOKUP($A20,Filtro!$A$5:$AK$2936,5,FALSE),0) -> 0 | H20: =IFERROR(VLOOKUP($A20,Filtro!$A$5:$AK$2936,6,FALSE),0) -> 14 | I20: =IFERROR(VLOOKUP($A20,Filtro!$A$5:$AK$2936,7,FALSE),0) -> 0 | J20: =IFERROR(VLOOKUP($A20,Filtro!$A$5:$AK$2936,8,FALSE),0) -> 0 | K20: =IFERROR(VLOOKUP($A20,Filtro!$A$5:$AK$2936,9,FALSE),0) -> 0 | L20: =IFERROR(VLOOKUP($A20,Filtro!$A$5:$AK$2936,10,FALSE),0) -> 0 | M20: =IFERROR(VLOOKUP($A20,Filtro!$A$5:$AK$2936,11,FALSE),0) -> 0 | N20: =IFERROR(VLOOKUP($A20,Filtro!$A$5:$AK$2936,12,FALSE),0) -> 0 | O20: =IFERROR(VLOOKUP($A20,Filtro!$A$5:$AK$2936,13,FALSE),0) -> 0 | P20: =IFERROR(VLOOKUP($A20,Filtro!$A$5:$AK$2936,14,FALSE),0) -> 0 | Q20: =IFERROR(VLOOKUP($A20,Filtro!$A$5:$AK$2936,15,FALSE),0) -> 0 | R20: =IFERROR(VLOOKUP($A20,Filtro!$A$5:$AK$2936,16,FALSE),0) -> 0 | S20: =IFERROR(VLOOKUP($A20,Filtro!$A$5:$AK$2936,17,FALSE),0) -> 0 | T20: =IFERROR(VLOOKUP($A20,Filtro!$A$5:$AK$2936,18,FALSE),0) -> 0 | U20: =IFERROR(VLOOKUP($A20,Filtro!$A$5:$AK$2936,19,FALSE),0) -> 0 | V20: =IFERROR(VLOOKUP($A20,Filtro!$A$5:$AK$2936,20,FALSE),0) -> 0 | W20: =IFERROR(VLOOKUP($A20,Filtro!$A$5:$AK$2936,21,FALSE),0) -> 0 | X20: =IFERROR(VLOOKUP($A20,Filtro!$A$5:$AK$2936,22,FALSE),0) -> 0 | Y20: =IFERROR(VLOOKUP($A20,Filtro!$A$5:$AK$2936,23,FALSE),0) -> 0 | Z20: =IFERROR(VLOOKUP($A20,Filtro!$A$5:$AK$2936,24,FALSE),0) -> 0 | AA20: =IFERROR(VLOOKUP($A20,Filtro!$A$5:$AK$2936,25,FALSE),0) -> 0 | AB20: =IFERROR(VLOOKUP($A20,Filtro!$A$5:$AK$2936,26,FALSE),0) -> 0 | AC20: =IFERROR(VLOOKUP($A20,Filtro!$A$5:$AK$2936,27,FALSE),0) -> 10640 | AD20: =IFERROR(VLOOKUP($A20,Filtro!$A$5:$AK$2936,28,FALSE),0) -> 0 | AE20: =IFERROR(VLOOKUP($A20,Filtro!$A$5:$AK$2936,29,FALSE),0) -> 8 | AF20: =IFERROR(VLOOKUP($A20,Filtro!$A$5:$AK$2936,30,FALSE),0) -> 0 | AG20: =IFERROR(VLOOKUP($A20,Filtro!$A$5:$AK$2936,31,FALSE),0) -> 0 | AH20: =IFERROR(VLOOKUP($A20,Filtro!$A$5:$AK$2936,32,FALSE),0) -> 0 | AI20: =IFERROR(VLOOKUP($A20,Filtro!$A$5:$AK$2936,33,FALSE),0) -> 0 | AJ20: =IFERROR(VLOOKUP($A20,Filtro!$A$5:$AK$2936,34,FALSE),0) -> 0 | AK20: =IFERROR(VLOOKUP($A20,Filtro!$A$5:$AK$2936,35,FALSE),0) -> 0 | AL20: =IFERROR(VLOOKUP($A20,Filtro!$A$5:$AK$2936,36,FALSE),0) -> 1203650 | AM20: =IFERROR(VLOOKUP($A20,Filtro!$A$5:$AK$2936,37,FALSE),0) -> 96165300
A21: 01014290 | B21: 0101302 | C21: Consulta Médica de Especialidad en Hematología | D21: =IFERROR(VLOOKUP($A21,Filtro!$A$5:$AK$2936,2,FALSE),0) -> 5991 | E21: =IFERROR(VLOOKUP($A21,Filtro!$A$5:$AK$2936,3,FALSE),0) -> 5983 | F21: =IFERROR(VLOOKUP($A21,Filtro!$A$5:$AK$2936,4,FALSE),0) -> 5983 | G21: =IFERROR(VLOOKUP($A21,Filtro!$A$5:$AK$2936,5,FALSE),0) -> 0 | H21: =IFERROR(VLOOKUP($A21,Filtro!$A$5:$AK$2936,6,FALSE),0) -> 8 | I21: =IFERROR(VLOOKUP($A21,Filtro!$A$5:$AK$2936,7,FALSE),0) -> 0 | J21: =IFERROR(VLOOKUP($A21,Filtro!$A$5:$AK$2936,8,FALSE),0) -> 0 | K21: =IFERROR(VLOOKUP($A21,Filtro!$A$5:$AK$2936,9,FALSE),0) -> 0 | L21: =IFERROR(VLOOKUP($A21,Filtro!$A$5:$AK$2936,10,FALSE),0) -> 0 | M21: =IFERROR(VLOOKUP($A21,Filtro!$A$5:$AK$2936,11,FALSE),0) -> 0 | N21: =IFERROR(VLOOKUP($A21,Filtro!$A$5:$AK$2936,12,FALSE),0) -> 0 | O21: =IFERROR(VLOOKUP($A21,Filtro!$A$5:$AK$2936,13,FALSE),0) -> 0 | P21: =IFERROR(VLOOKUP($A21,Filtro!$A$5:$AK$2936,14,FALSE),0) -> 0 | Q21: =IFERROR(VLOOKUP($A21,Filtro!$A$5:$AK$2936,15,FALSE),0) -> 0 | R21: =IFERROR(VLOOKUP($A21,Filtro!$A$5:$AK$2936,16,FALSE),0) -> 0 | S21: =IFERROR(VLOOKUP($A21,Filtro!$A$5:$AK$2936,17,FALSE),0) -> 0 | T21: =IFERROR(VLOOKUP($A21,Filtro!$A$5:$AK$2936,18,FALSE),0) -> 0 | U21: =IFERROR(VLOOKUP($A21,Filtro!$A$5:$AK$2936,19,FALSE),0) -> 0 | V21: =IFERROR(VLOOKUP($A21,Filtro!$A$5:$AK$2936,20,FALSE),0) -> 0 | W21: =IFERROR(VLOOKUP($A21,Filtro!$A$5:$AK$2936,21,FALSE),0) -> 0 | X21: =IFERROR(VLOOKUP($A21,Filtro!$A$5:$AK$2936,22,FALSE),0) -> 0 | Y21: =IFERROR(VLOOKUP($A21,Filtro!$A$5:$AK$2936,23,FALSE),0) -> 0 | Z21: =IFERROR(VLOOKUP($A21,Filtro!$A$5:$AK$2936,24,FALSE),0) -> 0 | AA21: =IFERROR(VLOOKUP($A21,Filtro!$A$5:$AK$2936,25,FALSE),0) -> 0 | AB21: =IFERROR(VLOOKUP($A21,Filtro!$A$5:$AK$2936,26,FALSE),0) -> 0 | AC21: =IFERROR(VLOOKUP($A21,Filtro!$A$5:$AK$2936,27,FALSE),0) -> 5991 | AD21: =IFERROR(VLOOKUP($A21,Filtro!$A$5:$AK$2936,28,FALSE),0) -> 0 | AE21: =IFERROR(VLOOKUP($A21,Filtro!$A$5:$AK$2936,29,FALSE),0) -> 0 | AF21: =IFERROR(VLOOKUP($A21,Filtro!$A$5:$AK$2936,30,FALSE),0) -> 0 | AG21: =IFERROR(VLOOKUP($A21,Filtro!$A$5:$AK$2936,31,FALSE),0) -> 0 | AH21: =IFERROR(VLOOKUP($A21,Filtro!$A$5:$AK$2936,32,FALSE),0) -> 0 | AI21: =IFERROR(VLOOKUP($A21,Filtro!$A$5:$AK$2936,33,FALSE),0) -> 0 | AJ21: =IFERROR(VLOOKUP($A21,Filtro!$A$5:$AK$2936,34,FALSE),0) -> 0 | AK21: =IFERROR(VLOOKUP($A21,Filtro!$A$5:$AK$2936,35,FALSE),0) -> 0 | AL21: =IFERROR(VLOOKUP($A21,Filtro!$A$5:$AK$2936,36,FALSE),0) -> 1203650 | AM21: =IFERROR(VLOOKUP($A21,Filtro!$A$5:$AK$2936,37,FALSE),0) -> 54146150
A22: 01014291 | B22: 0101303 | C22: Consulta Médica de Especialidad en Infectología | D22: =IFERROR(VLOOKUP($A22,Filtro!$A$5:$AK$2936,2,FALSE),0) -> 3954 | E22: =IFERROR(VLOOKUP($A22,Filtro!$A$5:$AK$2936,3,FALSE),0) -> 3948 | F22: =IFERROR(VLOOKUP($A22,Filtro!$A$5:$AK$2936,4,FALSE),0) -> 3948 | G22: =IFERROR(VLOOKUP($A22,Filtro!$A$5:$AK$2936,5,FALSE),0) -> 0 | H22: =IFERROR(VLOOKUP($A22,Filtro!$A$5:$AK$2936,6,FALSE),0) -> 6 | I22: =IFERROR(VLOOKUP($A22,Filtro!$A$5:$AK$2936,7,FALSE),0) -> 0 | J22: =IFERROR(VLOOKUP($A22,Filtro!$A$5:$AK$2936,8,FALSE),0) -> 0 | K22: =IFERROR(VLOOKUP($A22,Filtro!$A$5:$AK$2936,9,FALSE),0) -> 0 | L22: =IFERROR(VLOOKUP($A22,Filtro!$A$5:$AK$2936,10,FALSE),0) -> 0 | M22: =IFERROR(VLOOKUP($A22,Filtro!$A$5:$AK$2936,11,FALSE),0) -> 0 | N22: =IFERROR(VLOOKUP($A22,Filtro!$A$5:$AK$2936,12,FALSE),0) -> 0 | O22: =IFERROR(VLOOKUP($A22,Filtro!$A$5:$AK$2936,13,FALSE),0) -> 0 | P22: =IFERROR(VLOOKUP($A22,Filtro!$A$5:$AK$2936,14,FALSE),0) -> 0 | Q22: =IFERROR(VLOOKUP($A22,Filtro!$A$5:$AK$2936,15,FALSE),0) -> 0 | R22: =IFERROR(VLOOKUP($A22,Filtro!$A$5:$AK$2936,16,FALSE),0) -> 0 | S22: =IFERROR(VLOOKUP($A22,Filtro!$A$5:$AK$2936,17,FALSE),0) -> 0 | T22: =IFERROR(VLOOKUP($A22,Filtro!$A$5:$AK$2936,18,FALSE),0) -> 0 | U22: =IFERROR(VLOOKUP($A22,Filtro!$A$5:$AK$2936,19,FALSE),0) -> 0 | V22: =IFERROR(VLOOKUP($A22,Filtro!$A$5:$AK$2936,20,FALSE),0) -> 0 | W22: =IFERROR(VLOOKUP($A22,Filtro!$A$5:$AK$2936,21,FALSE),0) -> 0 | X22: =IFERROR(VLOOKUP($A22,Filtro!$A$5:$AK$2936,22,FALSE),0) -> 0 | Y22: =IFERROR(VLOOKUP($A22,Filtro!$A$5:$AK$2936,23,FALSE),0) -> 0 | Z22: =IFERROR(VLOOKUP($A22,Filtro!$A$5:$AK$2936,24,FALSE),0) -> 0 | AA22: =IFERROR(VLOOKUP($A22,Filtro!$A$5:$AK$2936,25,FALSE),0) -> 0 | AB22: =IFERROR(VLOOKUP($A22,Filtro!$A$5:$AK$2936,26,FALSE),0) -> 0 | AC22: =IFERROR(VLOOKUP($A22,Filtro!$A$5:$AK$2936,27,FALSE),0) -> 3954 | AD22: =IFERROR(VLOOKUP($A22,Filtro!$A$5:$AK$2936,28,FALSE),0) -> 0 | AE22: =IFERROR(VLOOKUP($A22,Filtro!$A$5:$AK$2936,29,FALSE),0) -> 0 | AF22: =IFERROR(VLOOKUP($A22,Filtro!$A$5:$AK$2936,30,FALSE),0) -> 0 | AG22: =IFERROR(VLOOKUP($A22,Filtro!$A$5:$AK$2936,31,FALSE),0) -> 0 | AH22: =IFERROR(VLOOKUP($A22,Filtro!$A$5:$AK$2936,32,FALSE),0) -> 0 | AI22: =IFERROR(VLOOKUP($A22,Filtro!$A$5:$AK$2936,33,FALSE),0) -> 0 | AJ22: =IFERROR(VLOOKUP($A22,Filtro!$A$5:$AK$2936,34,FALSE),0) -> 0 | AK22: =IFERROR(VLOOKUP($A22,Filtro!$A$5:$AK$2936,35,FALSE),0) -> 0 | AL22: =IFERROR(VLOOKUP($A22,Filtro!$A$5:$AK$2936,36,FALSE),0) -> 1203650 | AM22: =IFERROR(VLOOKUP($A22,Filtro!$A$5:$AK$2936,37,FALSE),0) -> 35729400
A23: 01014292 | B23: 0101304 | C23: Consulta Médica de Especialidad en Inmunología | D23: =IFERROR(VLOOKUP($A23,Filtro!$A$5:$AK$2936,2,FALSE),0) -> 1385 | E23: =IFERROR(VLOOKUP($A23,Filtro!$A$5:$AK$2936,3,FALSE),0) -> 1385 | F23: =IFERROR(VLOOKUP($A23,Filtro!$A$5:$AK$2936,4,FALSE),0) -> 1385 | G23: =IFERROR(VLOOKUP($A23,Filtro!$A$5:$AK$2936,5,FALSE),0) -> 0 | H23: =IFERROR(VLOOKUP($A23,Filtro!$A$5:$AK$2936,6,FALSE),0) -> 0 | I23: =IFERROR(VLOOKUP($A23,Filtro!$A$5:$AK$2936,7,FALSE),0) -> 0 | J23: =IFERROR(VLOOKUP($A23,Filtro!$A$5:$AK$2936,8,FALSE),0) -> 0 | K23: =IFERROR(VLOOKUP($A23,Filtro!$A$5:$AK$2936,9,FALSE),0) -> 0 | L23: =IFERROR(VLOOKUP($A23,Filtro!$A$5:$AK$2936,10,FALSE),0) -> 0 | M23: =IFERROR(VLOOKUP($A23,Filtro!$A$5:$AK$2936,11,FALSE),0) -> 0 | N23: =IFERROR(VLOOKUP($A23,Filtro!$A$5:$AK$2936,12,FALSE),0) -> 0 | O23: =IFERROR(VLOOKUP($A23,Filtro!$A$5:$AK$2936,13,FALSE),0) -> 0 | P23: =IFERROR(VLOOKUP($A23,Filtro!$A$5:$AK$2936,14,FALSE),0) -> 0 | Q23: =IFERROR(VLOOKUP($A23,Filtro!$A$5:$AK$2936,15,FALSE),0) -> 0 | R23: =IFERROR(VLOOKUP($A23,Filtro!$A$5:$AK$2936,16,FALSE),0) -> 0 | S23: =IFERROR(VLOOKUP($A23,Filtro!$A$5:$AK$2936,17,FALSE),0) -> 0 | T23: =IFERROR(VLOOKUP($A23,Filtro!$A$5:$AK$2936,18,FALSE),0) -> 0 | U23: =IFERROR(VLOOKUP($A23,Filtro!$A$5:$AK$2936,19,FALSE),0) -> 0 | V23: =IFERROR(VLOOKUP($A23,Filtro!$A$5:$AK$2936,20,FALSE),0) -> 0 | W23: =IFERROR(VLOOKUP($A23,Filtro!$A$5:$AK$2936,21,FALSE),0) -> 0 | X23: =IFERROR(VLOOKUP($A23,Filtro!$A$5:$AK$2936,22,FALSE),0) -> 0 | Y23: =IFERROR(VLOOKUP($A23,Filtro!$A$5:$AK$2936,23,FALSE),0) -> 0 | Z23: =IFERROR(VLOOKUP($A23,Filtro!$A$5:$AK$2936,24,FALSE),0) -> 0 | AA23: =IFERROR(VLOOKUP($A23,Filtro!$A$5:$AK$2936,25,FALSE),0) -> 0 | AB23: =IFERROR(VLOOKUP($A23,Filtro!$A$5:$AK$2936,26,FALSE),0) -> 0 | AC23: =IFERROR(VLOOKUP($A23,Filtro!$A$5:$AK$2936,27,FALSE),0) -> 1385 | AD23: =IFERROR(VLOOKUP($A23,Filtro!$A$5:$AK$2936,28,FALSE),0) -> 0 | AE23: =IFERROR(VLOOKUP($A23,Filtro!$A$5:$AK$2936,29,FALSE),0) -> 0 | AF23: =IFERROR(VLOOKUP($A23,Filtro!$A$5:$AK$2936,30,FALSE),0) -> 0 | AG23: =IFERROR(VLOOKUP($A23,Filtro!$A$5:$AK$2936,31,FALSE),0) -> 0 | AH23: =IFERROR(VLOOKUP($A23,Filtro!$A$5:$AK$2936,32,FALSE),0) -> 0 | AI23: =IFERROR(VLOOKUP($A23,Filtro!$A$5:$AK$2936,33,FALSE),0) -> 0 | AJ23: =IFERROR(VLOOKUP($A23,Filtro!$A$5:$AK$2936,34,FALSE),0) -> 0 | AK23: =IFERROR(VLOOKUP($A23,Filtro!$A$5:$AK$2936,35,FALSE),0) -> 0 | AL23: =IFERROR(VLOOKUP($A23,Filtro!$A$5:$AK$2936,36,FALSE),0) -> 1203650 | AM23: =IFERROR(VLOOKUP($A23,Filtro!$A$5:$AK$2936,37,FALSE),0) -> 12534250
A24: 01014293 | B24: 0101305 | C24: Consulta Médica de Especialidad en Medicina Familiar | D24: =IFERROR(VLOOKUP($A24,Filtro!$A$5:$AK$2936,2,FALSE),0) -> 1 | E24: =IFERROR(VLOOKUP($A24,Filtro!$A$5:$AK$2936,3,FALSE),0) -> 1 | F24: =IFERROR(VLOOKUP($A24,Filtro!$A$5:$AK$2936,4,FALSE),0) -> 1 | G24: =IFERROR(VLOOKUP($A24,Filtro!$A$5:$AK$2936,5,FALSE),0) -> 0 | H24: =IFERROR(VLOOKUP($A24,Filtro!$A$5:$AK$2936,6,FALSE),0) -> 0 | I24: =IFERROR(VLOOKUP($A24,Filtro!$A$5:$AK$2936,7,FALSE),0) -> 0 | J24: =IFERROR(VLOOKUP($A24,Filtro!$A$5:$AK$2936,8,FALSE),0) -> 0 | K24: =IFERROR(VLOOKUP($A24,Filtro!$A$5:$AK$2936,9,FALSE),0) -> 0 | L24: =IFERROR(VLOOKUP($A24,Filtro!$A$5:$AK$2936,10,FALSE),0) -> 0 | M24: =IFERROR(VLOOKUP($A24,Filtro!$A$5:$AK$2936,11,FALSE),0) -> 0 | N24: =IFERROR(VLOOKUP($A24,Filtro!$A$5:$AK$2936,12,FALSE),0) -> 0 | O24: =IFERROR(VLOOKUP($A24,Filtro!$A$5:$AK$2936,13,FALSE),0) -> 0 | P24: =IFERROR(VLOOKUP($A24,Filtro!$A$5:$AK$2936,14,FALSE),0) -> 0 | Q24: =IFERROR(VLOOKUP($A24,Filtro!$A$5:$AK$2936,15,FALSE),0) -> 0 | R24: =IFERROR(VLOOKUP($A24,Filtro!$A$5:$AK$2936,16,FALSE),0) -> 0 | S24: =IFERROR(VLOOKUP($A24,Filtro!$A$5:$AK$2936,17,FALSE),0) -> 0 | T24: =IFERROR(VLOOKUP($A24,Filtro!$A$5:$AK$2936,18,FALSE),0) -> 0 | U24: =IFERROR(VLOOKUP($A24,Filtro!$A$5:$AK$2936,19,FALSE),0) -> 0 | V24: =IFERROR(VLOOKUP($A24,Filtro!$A$5:$AK$2936,20,FALSE),0) -> 0 | W24: =IFERROR(VLOOKUP($A24,Filtro!$A$5:$AK$2936,21,FALSE),0) -> 0 | X24: =IFERROR(VLOOKUP($A24,Filtro!$A$5:$AK$2936,22,FALSE),0) -> 0 | Y24: =IFERROR(VLOOKUP($A24,Filtro!$A$5:$AK$2936,23,FALSE),0) -> 0 | Z24: =IFERROR(VLOOKUP($A24,Filtro!$A$5:$AK$2936,24,FALSE),0) -> 0 | AA24: =IFERROR(VLOOKUP($A24,Filtro!$A$5:$AK$2936,25,FALSE),0) -> 0 | AB24: =IFERROR(VLOOKUP($A24,Filtro!$A$5:$AK$2936,26,FALSE),0) -> 0 | AC24: =IFERROR(VLOOKUP($A24,Filtro!$A$5:$AK$2936,27,FALSE),0) -> 1 | AD24: =IFERROR(VLOOKUP($A24,Filtro!$A$5:$AK$2936,28,FALSE),0) -> 0 | AE24: =IFERROR(VLOOKUP($A24,Filtro!$A$5:$AK$2936,29,FALSE),0) -> 0 | AF24: =IFERROR(VLOOKUP($A24,Filtro!$A$5:$AK$2936,30,FALSE),0) -> 0 | AG24: =IFERROR(VLOOKUP($A24,Filtro!$A$5:$AK$2936,31,FALSE),0) -> 0 | AH24: =IFERROR(VLOOKUP($A24,Filtro!$A$5:$AK$2936,32,FALSE),0) -> 0 | AI24: =IFERROR(VLOOKUP($A24,Filtro!$A$5:$AK$2936,33,FALSE),0) -> 0 | AJ24: =IFERROR(VLOOKUP($A24,Filtro!$A$5:$AK$2936,34,FALSE),0) -> 0 | AK24: =IFERROR(VLOOKUP($A24,Filtro!$A$5:$AK$2936,35,FALSE),0) -> 0 | AL24: =IFERROR(VLOOKUP($A24,Filtro!$A$5:$AK$2936,36,FALSE),0) -> 1203650 | AM24: =IFERROR(VLOOKUP($A24,Filtro!$A$5:$AK$2936,37,FALSE),0) -> 9050
A25: 01014294 | B25: 0101306 | C25: Consulta Médica de Especialidad en Medicina Física y Rehabilitación | D25: =IFERROR(VLOOKUP($A25,Filtro!$A$5:$AK$2936,2,FALSE),0) -> 4823 | E25: =IFERROR(VLOOKUP($A25,Filtro!$A$5:$AK$2936,3,FALSE),0) -> 4819 | F25: =IFERROR(VLOOKUP($A25,Filtro!$A$5:$AK$2936,4,FALSE),0) -> 4819 | G25: =IFERROR(VLOOKUP($A25,Filtro!$A$5:$AK$2936,5,FALSE),0) -> 0 | H25: =IFERROR(VLOOKUP($A25,Filtro!$A$5:$AK$2936,6,FALSE),0) -> 4 | I25: =IFERROR(VLOOKUP($A25,Filtro!$A$5:$AK$2936,7,FALSE),0) -> 0 | J25: =IFERROR(VLOOKUP($A25,Filtro!$A$5:$AK$2936,8,FALSE),0) -> 0 | K25: =IFERROR(VLOOKUP($A25,Filtro!$A$5:$AK$2936,9,FALSE),0) -> 0 | L25: =IFERROR(VLOOKUP($A25,Filtro!$A$5:$AK$2936,10,FALSE),0) -> 0 | M25: =IFERROR(VLOOKUP($A25,Filtro!$A$5:$AK$2936,11,FALSE),0) -> 0 | N25: =IFERROR(VLOOKUP($A25,Filtro!$A$5:$AK$2936,12,FALSE),0) -> 0 | O25: =IFERROR(VLOOKUP($A25,Filtro!$A$5:$AK$2936,13,FALSE),0) -> 0 | P25: =IFERROR(VLOOKUP($A25,Filtro!$A$5:$AK$2936,14,FALSE),0) -> 0 | Q25: =IFERROR(VLOOKUP($A25,Filtro!$A$5:$AK$2936,15,FALSE),0) -> 0 | R25: =IFERROR(VLOOKUP($A25,Filtro!$A$5:$AK$2936,16,FALSE),0) -> 0 | S25: =IFERROR(VLOOKUP($A25,Filtro!$A$5:$AK$2936,17,FALSE),0) -> 0 | T25: =IFERROR(VLOOKUP($A25,Filtro!$A$5:$AK$2936,18,FALSE),0) -> 0 | U25: =IFERROR(VLOOKUP($A25,Filtro!$A$5:$AK$2936,19,FALSE),0) -> 0 | V25: =IFERROR(VLOOKUP($A25,Filtro!$A$5:$AK$2936,20,FALSE),0) -> 0 | W25: =IFERROR(VLOOKUP($A25,Filtro!$A$5:$AK$2936,21,FALSE),0) -> 0 | X25: =IFERROR(VLOOKUP($A25,Filtro!$A$5:$AK$2936,22,FALSE),0) -> 0 | Y25: =IFERROR(VLOOKUP($A25,Filtro!$A$5:$AK$2936,23,FALSE),0) -> 0 | Z25: =IFERROR(VLOOKUP($A25,Filtro!$A$5:$AK$2936,24,FALSE),0) -> 0 | AA25: =IFERROR(VLOOKUP($A25,Filtro!$A$5:$AK$2936,25,FALSE),0) -> 0 | AB25: =IFERROR(VLOOKUP($A25,Filtro!$A$5:$AK$2936,26,FALSE),0) -> 0 | AC25: =IFERROR(VLOOKUP($A25,Filtro!$A$5:$AK$2936,27,FALSE),0) -> 4953 | AD25: =IFERROR(VLOOKUP($A25,Filtro!$A$5:$AK$2936,28,FALSE),0) -> 0 | AE25: =IFERROR(VLOOKUP($A25,Filtro!$A$5:$AK$2936,29,FALSE),0) -> 0 | AF25: =IFERROR(VLOOKUP($A25,Filtro!$A$5:$AK$2936,30,FALSE),0) -> 0 | AG25: =IFERROR(VLOOKUP($A25,Filtro!$A$5:$AK$2936,31,FALSE),0) -> 0 | AH25: =IFERROR(VLOOKUP($A25,Filtro!$A$5:$AK$2936,32,FALSE),0) -> 0 | AI25: =IFERROR(VLOOKUP($A25,Filtro!$A$5:$AK$2936,33,FALSE),0) -> 0 | AJ25: =IFERROR(VLOOKUP($A25,Filtro!$A$5:$AK$2936,34,FALSE),0) -> 0 | AK25: =IFERROR(VLOOKUP($A25,Filtro!$A$5:$AK$2936,35,FALSE),0) -> 0 | AL25: =IFERROR(VLOOKUP($A25,Filtro!$A$5:$AK$2936,36,FALSE),0) -> 1203650 | AM25: =IFERROR(VLOOKUP($A25,Filtro!$A$5:$AK$2936,37,FALSE),0) -> 43611950
A26: 01014295 | B26: 0101307 | C26: Consulta Médica de Especialidad en Medicina Interna | D26: =IFERROR(VLOOKUP($A26,Filtro!$A$5:$AK$2936,2,FALSE),0) -> 29988 | E26: =IFERROR(VLOOKUP($A26,Filtro!$A$5:$AK$2936,3,FALSE),0) -> 29926 | F26: =IFERROR(VLOOKUP($A26,Filtro!$A$5:$AK$2936,4,FALSE),0) -> 29926 | G26: =IFERROR(VLOOKUP($A26,Filtro!$A$5:$AK$2936,5,FALSE),0) -> 0 | H26: =IFERROR(VLOOKUP($A26,Filtro!$A$5:$AK$2936,6,FALSE),0) -> 62 | I26: =IFERROR(VLOOKUP($A26,Filtro!$A$5:$AK$2936,7,FALSE),0) -> 0 | J26: =IFERROR(VLOOKUP($A26,Filtro!$A$5:$AK$2936,8,FALSE),0) -> 0 | K26: =IFERROR(VLOOKUP($A26,Filtro!$A$5:$AK$2936,9,FALSE),0) -> 0 | L26: =IFERROR(VLOOKUP($A26,Filtro!$A$5:$AK$2936,10,FALSE),0) -> 0 | M26: =IFERROR(VLOOKUP($A26,Filtro!$A$5:$AK$2936,11,FALSE),0) -> 0 | N26: =IFERROR(VLOOKUP($A26,Filtro!$A$5:$AK$2936,12,FALSE),0) -> 0 | O26: =IFERROR(VLOOKUP($A26,Filtro!$A$5:$AK$2936,13,FALSE),0) -> 0 | P26: =IFERROR(VLOOKUP($A26,Filtro!$A$5:$AK$2936,14,FALSE),0) -> 0 | Q26: =IFERROR(VLOOKUP($A26,Filtro!$A$5:$AK$2936,15,FALSE),0) -> 0 | R26: =IFERROR(VLOOKUP($A26,Filtro!$A$5:$AK$2936,16,FALSE),0) -> 0 | S26: =IFERROR(VLOOKUP($A26,Filtro!$A$5:$AK$2936,17,FALSE),0) -> 0 | T26: =IFERROR(VLOOKUP($A26,Filtro!$A$5:$AK$2936,18,FALSE),0) -> 0 | U26: =IFERROR(VLOOKUP($A26,Filtro!$A$5:$AK$2936,19,FALSE),0) -> 0 | V26: =IFERROR(VLOOKUP($A26,Filtro!$A$5:$AK$2936,20,FALSE),0) -> 0 | W26: =IFERROR(VLOOKUP($A26,Filtro!$A$5:$AK$2936,21,FALSE),0) -> 0 | X26: =IFERROR(VLOOKUP($A26,Filtro!$A$5:$AK$2936,22,FALSE),0) -> 0 | Y26: =IFERROR(VLOOKUP($A26,Filtro!$A$5:$AK$2936,23,FALSE),0) -> 0 | Z26: =IFERROR(VLOOKUP($A26,Filtro!$A$5:$AK$2936,24,FALSE),0) -> 0 | AA26: =IFERROR(VLOOKUP($A26,Filtro!$A$5:$AK$2936,25,FALSE),0) -> 0 | AB26: =IFERROR(VLOOKUP($A26,Filtro!$A$5:$AK$2936,26,FALSE),0) -> 0 | AC26: =IFERROR(VLOOKUP($A26,Filtro!$A$5:$AK$2936,27,FALSE),0) -> 30105 | AD26: =IFERROR(VLOOKUP($A26,Filtro!$A$5:$AK$2936,28,FALSE),0) -> 3 | AE26: =IFERROR(VLOOKUP($A26,Filtro!$A$5:$AK$2936,29,FALSE),0) -> 293 | AF26: =IFERROR(VLOOKUP($A26,Filtro!$A$5:$AK$2936,30,FALSE),0) -> 0 | AG26: =IFERROR(VLOOKUP($A26,Filtro!$A$5:$AK$2936,31,FALSE),0) -> 0 | AH26: =IFERROR(VLOOKUP($A26,Filtro!$A$5:$AK$2936,32,FALSE),0) -> 0 | AI26: =IFERROR(VLOOKUP($A26,Filtro!$A$5:$AK$2936,33,FALSE),0) -> 0 | AJ26: =IFERROR(VLOOKUP($A26,Filtro!$A$5:$AK$2936,34,FALSE),0) -> 0 | AK26: =IFERROR(VLOOKUP($A26,Filtro!$A$5:$AK$2936,35,FALSE),0) -> 0 | AL26: =IFERROR(VLOOKUP($A26,Filtro!$A$5:$AK$2936,36,FALSE),0) -> 1203650 | AM26: =IFERROR(VLOOKUP($A26,Filtro!$A$5:$AK$2936,37,FALSE),0) -> 270830300
A27: 01012816 | B27: 0101308 | C27: Consulta Médica de Especialidad en Obstetricia y Ginecología | D27: =IFERROR(VLOOKUP($A27,Filtro!$A$5:$AK$2936,2,FALSE),0) -> 34305 | E27: =IFERROR(VLOOKUP($A27,Filtro!$A$5:$AK$2936,3,FALSE),0) -> 34277 | F27: =IFERROR(VLOOKUP($A27,Filtro!$A$5:$AK$2936,4,FALSE),0) -> 34277 | G27: =IFERROR(VLOOKUP($A27,Filtro!$A$5:$AK$2936,5,FALSE),0) -> 0 | H27: =IFERROR(VLOOKUP($A27,Filtro!$A$5:$AK$2936,6,FALSE),0) -> 28 | I27: =IFERROR(VLOOKUP($A27,Filtro!$A$5:$AK$2936,7,FALSE),0) -> 0 | J27: =IFERROR(VLOOKUP($A27,Filtro!$A$5:$AK$2936,8,FALSE),0) -> 0 | K27: =IFERROR(VLOOKUP($A27,Filtro!$A$5:$AK$2936,9,FALSE),0) -> 0 | L27: =IFERROR(VLOOKUP($A27,Filtro!$A$5:$AK$2936,10,FALSE),0) -> 0 | M27: =IFERROR(VLOOKUP($A27,Filtro!$A$5:$AK$2936,11,FALSE),0) -> 0 | N27: =IFERROR(VLOOKUP($A27,Filtro!$A$5:$AK$2936,12,FALSE),0) -> 0 | O27: =IFERROR(VLOOKUP($A27,Filtro!$A$5:$AK$2936,13,FALSE),0) -> 0 | P27: =IFERROR(VLOOKUP($A27,Filtro!$A$5:$AK$2936,14,FALSE),0) -> 0 | Q27: =IFERROR(VLOOKUP($A27,Filtro!$A$5:$AK$2936,15,FALSE),0) -> 0 | R27: =IFERROR(VLOOKUP($A27,Filtro!$A$5:$AK$2936,16,FALSE),0) -> 0 | S27: =IFERROR(VLOOKUP($A27,Filtro!$A$5:$AK$2936,17,FALSE),0) -> 0 | T27: =IFERROR(VLOOKUP($A27,Filtro!$A$5:$AK$2936,18,FALSE),0) -> 0 | U27: =IFERROR(VLOOKUP($A27,Filtro!$A$5:$AK$2936,19,FALSE),0) -> 0 | V27: =IFERROR(VLOOKUP($A27,Filtro!$A$5:$AK$2936,20,FALSE),0) -> 0 | W27: =IFERROR(VLOOKUP($A27,Filtro!$A$5:$AK$2936,21,FALSE),0) -> 0 | X27: =IFERROR(VLOOKUP($A27,Filtro!$A$5:$AK$2936,22,FALSE),0) -> 0 | Y27: =IFERROR(VLOOKUP($A27,Filtro!$A$5:$AK$2936,23,FALSE),0) -> 0 | Z27: =IFERROR(VLOOKUP($A27,Filtro!$A$5:$AK$2936,24,FALSE),0) -> 0 | AA27: =IFERROR(VLOOKUP($A27,Filtro!$A$5:$AK$2936,25,FALSE),0) -> 0 | AB27: =IFERROR(VLOOKUP($A27,Filtro!$A$5:$AK$2936,26,FALSE),0) -> 208 | AC27: =IFERROR(VLOOKUP($A27,Filtro!$A$5:$AK$2936,27,FALSE),0) -> 32621 | AD27: =IFERROR(VLOOKUP($A27,Filtro!$A$5:$AK$2936,28,FALSE),0) -> 1357 | AE27: =IFERROR(VLOOKUP($A27,Filtro!$A$5:$AK$2936,29,FALSE),0) -> 254 | AF27: =IFERROR(VLOOKUP($A27,Filtro!$A$5:$AK$2936,30,FALSE),0) -> 0 | AG27: =IFERROR(VLOOKUP($A27,Filtro!$A$5:$AK$2936,31,FALSE),0) -> 0 | AH27: =IFERROR(VLOOKUP($A27,Filtro!$A$5:$AK$2936,32,FALSE),0) -> 0 | AI27: =IFERROR(VLOOKUP($A27,Filtro!$A$5:$AK$2936,33,FALSE),0) -> 0 | AJ27: =IFERROR(VLOOKUP($A27,Filtro!$A$5:$AK$2936,34,FALSE),0) -> 0 | AK27: =IFERROR(VLOOKUP($A27,Filtro!$A$5:$AK$2936,35,FALSE),0) -> 0 | AL27: =IFERROR(VLOOKUP($A27,Filtro!$A$5:$AK$2936,36,FALSE),0) -> 1203650 | AM27: =IFERROR(VLOOKUP($A27,Filtro!$A$5:$AK$2936,37,FALSE),0) -> 310206850
A28: 01014296 | B28: 0101309 | C28: Consulta Médica de Especialidad en Pediatría | D28: =IFERROR(VLOOKUP($A28,Filtro!$A$5:$AK$2936,2,FALSE),0) -> 9681 | E28: =IFERROR(VLOOKUP($A28,Filtro!$A$5:$AK$2936,3,FALSE),0) -> 9674 | F28: =IFERROR(VLOOKUP($A28,Filtro!$A$5:$AK$2936,4,FALSE),0) -> 9674 | G28: =IFERROR(VLOOKUP($A28,Filtro!$A$5:$AK$2936,5,FALSE),0) -> 0 | H28: =IFERROR(VLOOKUP($A28,Filtro!$A$5:$AK$2936,6,FALSE),0) -> 7 | I28: =IFERROR(VLOOKUP($A28,Filtro!$A$5:$AK$2936,7,FALSE),0) -> 0 | J28: =IFERROR(VLOOKUP($A28,Filtro!$A$5:$AK$2936,8,FALSE),0) -> 0 | K28: =IFERROR(VLOOKUP($A28,Filtro!$A$5:$AK$2936,9,FALSE),0) -> 0 | L28: =IFERROR(VLOOKUP($A28,Filtro!$A$5:$AK$2936,10,FALSE),0) -> 0 | M28: =IFERROR(VLOOKUP($A28,Filtro!$A$5:$AK$2936,11,FALSE),0) -> 0 | N28: =IFERROR(VLOOKUP($A28,Filtro!$A$5:$AK$2936,12,FALSE),0) -> 0 | O28: =IFERROR(VLOOKUP($A28,Filtro!$A$5:$AK$2936,13,FALSE),0) -> 0 | P28: =IFERROR(VLOOKUP($A28,Filtro!$A$5:$AK$2936,14,FALSE),0) -> 0 | Q28: =IFERROR(VLOOKUP($A28,Filtro!$A$5:$AK$2936,15,FALSE),0) -> 0 | R28: =IFERROR(VLOOKUP($A28,Filtro!$A$5:$AK$2936,16,FALSE),0) -> 0 | S28: =IFERROR(VLOOKUP($A28,Filtro!$A$5:$AK$2936,17,FALSE),0) -> 0 | T28: =IFERROR(VLOOKUP($A28,Filtro!$A$5:$AK$2936,18,FALSE),0) -> 0 | U28: =IFERROR(VLOOKUP($A28,Filtro!$A$5:$AK$2936,19,FALSE),0) -> 0 | V28: =IFERROR(VLOOKUP($A28,Filtro!$A$5:$AK$2936,20,FALSE),0) -> 0 | W28: =IFERROR(VLOOKUP($A28,Filtro!$A$5:$AK$2936,21,FALSE),0) -> 0 | X28: =IFERROR(VLOOKUP($A28,Filtro!$A$5:$AK$2936,22,FALSE),0) -> 0 | Y28: =IFERROR(VLOOKUP($A28,Filtro!$A$5:$AK$2936,23,FALSE),0) -> 0 | Z28: =IFERROR(VLOOKUP($A28,Filtro!$A$5:$AK$2936,24,FALSE),0) -> 0 | AA28: =IFERROR(VLOOKUP($A28,Filtro!$A$5:$AK$2936,25,FALSE),0) -> 0 | AB28: =IFERROR(VLOOKUP($A28,Filtro!$A$5:$AK$2936,26,FALSE),0) -> 0 | AC28: =IFERROR(VLOOKUP($A28,Filtro!$A$5:$AK$2936,27,FALSE),0) -> 9550 | AD28: =IFERROR(VLOOKUP($A28,Filtro!$A$5:$AK$2936,28,FALSE),0) -> 0 | AE28: =IFERROR(VLOOKUP($A28,Filtro!$A$5:$AK$2936,29,FALSE),0) -> 0 | AF28: =IFERROR(VLOOKUP($A28,Filtro!$A$5:$AK$2936,30,FALSE),0) -> 0 | AG28: =IFERROR(VLOOKUP($A28,Filtro!$A$5:$AK$2936,31,FALSE),0) -> 0 | AH28: =IFERROR(VLOOKUP($A28,Filtro!$A$5:$AK$2936,32,FALSE),0) -> 0 | AI28: =IFERROR(VLOOKUP($A28,Filtro!$A$5:$AK$2936,33,FALSE),0) -> 0 | AJ28: =IFERROR(VLOOKUP($A28,Filtro!$A$5:$AK$2936,34,FALSE),0) -> 0 | AK28: =IFERROR(VLOOKUP($A28,Filtro!$A$5:$AK$2936,35,FALSE),0) -> 0 | AL28: =IFERROR(VLOOKUP($A28,Filtro!$A$5:$AK$2936,36,FALSE),0) -> 1203650 | AM28: =IFERROR(VLOOKUP($A28,Filtro!$A$5:$AK$2936,37,FALSE),0) -> 87549700
A29: 01014297 | B29: 0101310 | C29: Consulta Médica de Especialidad en Traumatología y Ortopedia | D29: =IFERROR(VLOOKUP($A29,Filtro!$A$5:$AK$2936,2,FALSE),0) -> 26836 | E29: =IFERROR(VLOOKUP($A29,Filtro!$A$5:$AK$2936,3,FALSE),0) -> 26498 | F29: =IFERROR(VLOOKUP($A29,Filtro!$A$5:$AK$2936,4,FALSE),0) -> 26498 | G29: =IFERROR(VLOOKUP($A29,Filtro!$A$5:$AK$2936,5,FALSE),0) -> 0 | H29: =IFERROR(VLOOKUP($A29,Filtro!$A$5:$AK$2936,6,FALSE),0) -> 338 | I29: =IFERROR(VLOOKUP($A29,Filtro!$A$5:$AK$2936,7,FALSE),0) -> 0 | J29: =IFERROR(VLOOKUP($A29,Filtro!$A$5:$AK$2936,8,FALSE),0) -> 0 | K29: =IFERROR(VLOOKUP($A29,Filtro!$A$5:$AK$2936,9,FALSE),0) -> 0 | L29: =IFERROR(VLOOKUP($A29,Filtro!$A$5:$AK$2936,10,FALSE),0) -> 0 | M29: =IFERROR(VLOOKUP($A29,Filtro!$A$5:$AK$2936,11,FALSE),0) -> 0 | N29: =IFERROR(VLOOKUP($A29,Filtro!$A$5:$AK$2936,12,FALSE),0) -> 0 | O29: =IFERROR(VLOOKUP($A29,Filtro!$A$5:$AK$2936,13,FALSE),0) -> 0 | P29: =IFERROR(VLOOKUP($A29,Filtro!$A$5:$AK$2936,14,FALSE),0) -> 0 | Q29: =IFERROR(VLOOKUP($A29,Filtro!$A$5:$AK$2936,15,FALSE),0) -> 0 | R29: =IFERROR(VLOOKUP($A29,Filtro!$A$5:$AK$2936,16,FALSE),0) -> 0 | S29: =IFERROR(VLOOKUP($A29,Filtro!$A$5:$AK$2936,17,FALSE),0) -> 0 | T29: =IFERROR(VLOOKUP($A29,Filtro!$A$5:$AK$2936,18,FALSE),0) -> 0 | U29: =IFERROR(VLOOKUP($A29,Filtro!$A$5:$AK$2936,19,FALSE),0) -> 0 | V29: =IFERROR(VLOOKUP($A29,Filtro!$A$5:$AK$2936,20,FALSE),0) -> 0 | W29: =IFERROR(VLOOKUP($A29,Filtro!$A$5:$AK$2936,21,FALSE),0) -> 0 | X29: =IFERROR(VLOOKUP($A29,Filtro!$A$5:$AK$2936,22,FALSE),0) -> 0 | Y29: =IFERROR(VLOOKUP($A29,Filtro!$A$5:$AK$2936,23,FALSE),0) -> 0 | Z29: =IFERROR(VLOOKUP($A29,Filtro!$A$5:$AK$2936,24,FALSE),0) -> 0 | AA29: =IFERROR(VLOOKUP($A29,Filtro!$A$5:$AK$2936,25,FALSE),0) -> 0 | AB29: =IFERROR(VLOOKUP($A29,Filtro!$A$5:$AK$2936,26,FALSE),0) -> 0 | AC29: =IFERROR(VLOOKUP($A29,Filtro!$A$5:$AK$2936,27,FALSE),0) -> 26836 | AD29: =IFERROR(VLOOKUP($A29,Filtro!$A$5:$AK$2936,28,FALSE),0) -> 0 | AE29: =IFERROR(VLOOKUP($A29,Filtro!$A$5:$AK$2936,29,FALSE),0) -> 769 | AF29: =IFERROR(VLOOKUP($A29,Filtro!$A$5:$AK$2936,30,FALSE),0) -> 0 | AG29: =IFERROR(VLOOKUP($A29,Filtro!$A$5:$AK$2936,31,FALSE),0) -> 0 | AH29: =IFERROR(VLOOKUP($A29,Filtro!$A$5:$AK$2936,32,FALSE),0) -> 0 | AI29: =IFERROR(VLOOKUP($A29,Filtro!$A$5:$AK$2936,33,FALSE),0) -> 0 | AJ29: =IFERROR(VLOOKUP($A29,Filtro!$A$5:$AK$2936,34,FALSE),0) -> 0 | AK29: =IFERROR(VLOOKUP($A29,Filtro!$A$5:$AK$2936,35,FALSE),0) -> 0 | AL29: =IFERROR(VLOOKUP($A29,Filtro!$A$5:$AK$2936,36,FALSE),0) -> 1203650 | AM29: =IFERROR(VLOOKUP($A29,Filtro!$A$5:$AK$2936,37,FALSE),0) -> 239806900
A30: 01014298 | B30: 0101311 | C30: Consulta Médica de Especialidad en Urología | D30: =IFERROR(VLOOKUP($A30,Filtro!$A$5:$AK$2936,2,FALSE),0) -> 13673 | E30: =IFERROR(VLOOKUP($A30,Filtro!$A$5:$AK$2936,3,FALSE),0) -> 13667 | F30: =IFERROR(VLOOKUP($A30,Filtro!$A$5:$AK$2936,4,FALSE),0) -> 13667 | G30: =IFERROR(VLOOKUP($A30,Filtro!$A$5:$AK$2936,5,FALSE),0) -> 0 | H30: =IFERROR(VLOOKUP($A30,Filtro!$A$5:$AK$2936,6,FALSE),0) -> 6 | I30: =IFERROR(VLOOKUP($A30,Filtro!$A$5:$AK$2936,7,FALSE),0) -> 0 | J30: =IFERROR(VLOOKUP($A30,Filtro!$A$5:$AK$2936,8,FALSE),0) -> 0 | K30: =IFERROR(VLOOKUP($A30,Filtro!$A$5:$AK$2936,9,FALSE),0) -> 0 | L30: =IFERROR(VLOOKUP($A30,Filtro!$A$5:$AK$2936,10,FALSE),0) -> 0 | M30: =IFERROR(VLOOKUP($A30,Filtro!$A$5:$AK$2936,11,FALSE),0) -> 0 | N30: =IFERROR(VLOOKUP($A30,Filtro!$A$5:$AK$2936,12,FALSE),0) -> 0 | O30: =IFERROR(VLOOKUP($A30,Filtro!$A$5:$AK$2936,13,FALSE),0) -> 0 | P30: =IFERROR(VLOOKUP($A30,Filtro!$A$5:$AK$2936,14,FALSE),0) -> 0 | Q30: =IFERROR(VLOOKUP($A30,Filtro!$A$5:$AK$2936,15,FALSE),0) -> 0 | R30: =IFERROR(VLOOKUP($A30,Filtro!$A$5:$AK$2936,16,FALSE),0) -> 0 | S30: =IFERROR(VLOOKUP($A30,Filtro!$A$5:$AK$2936,17,FALSE),0) -> 0 | T30: =IFERROR(VLOOKUP($A30,Filtro!$A$5:$AK$2936,18,FALSE),0) -> 0 | U30: =IFERROR(VLOOKUP($A30,Filtro!$A$5:$AK$2936,19,FALSE),0) -> 0 | V30: =IFERROR(VLOOKUP($A30,Filtro!$A$5:$AK$2936,20,FALSE),0) -> 0 | W30: =IFERROR(VLOOKUP($A30,Filtro!$A$5:$AK$2936,21,FALSE),0) -> 0 | X30: =IFERROR(VLOOKUP($A30,Filtro!$A$5:$AK$2936,22,FALSE),0) -> 0 | Y30: =IFERROR(VLOOKUP($A30,Filtro!$A$5:$AK$2936,23,FALSE),0) -> 0 | Z30: =IFERROR(VLOOKUP($A30,Filtro!$A$5:$AK$2936,24,FALSE),0) -> 0 | AA30: =IFERROR(VLOOKUP($A30,Filtro!$A$5:$AK$2936,25,FALSE),0) -> 0 | AB30: =IFERROR(VLOOKUP($A30,Filtro!$A$5:$AK$2936,26,FALSE),0) -> 0 | AC30: =IFERROR(VLOOKUP($A30,Filtro!$A$5:$AK$2936,27,FALSE),0) -> 13673 | AD30: =IFERROR(VLOOKUP($A30,Filtro!$A$5:$AK$2936,28,FALSE),0) -> 0 | AE30: =IFERROR(VLOOKUP($A30,Filtro!$A$5:$AK$2936,29,FALSE),0) -> 1904 | AF30: =IFERROR(VLOOKUP($A30,Filtro!$A$5:$AK$2936,30,FALSE),0) -> 0 | AG30: =IFERROR(VLOOKUP($A30,Filtro!$A$5:$AK$2936,31,FALSE),0) -> 0 | AH30: =IFERROR(VLOOKUP($A30,Filtro!$A$5:$AK$2936,32,FALSE),0) -> 0 | AI30: =IFERROR(VLOOKUP($A30,Filtro!$A$5:$AK$2936,33,FALSE),0) -> 0 | AJ30: =IFERROR(VLOOKUP($A30,Filtro!$A$5:$AK$2936,34,FALSE),0) -> 0 | AK30: =IFERROR(VLOOKUP($A30,Filtro!$A$5:$AK$2936,35,FALSE),0) -> 0 | AL30: =IFERROR(VLOOKUP($A30,Filtro!$A$5:$AK$2936,36,FALSE),0) -> 1203650 | AM30: =IFERROR(VLOOKUP($A30,Filtro!$A$5:$AK$2936,37,FALSE),0) -> 123686350
A31: 01014299 | B31: 0101312 | C31: Consulta Médica de Especialidad en Cirugía General | D31: =IFERROR(VLOOKUP($A31,Filtro!$A$5:$AK$2936,2,FALSE),0) -> 19818 | E31: =IFERROR(VLOOKUP($A31,Filtro!$A$5:$AK$2936,3,FALSE),0) -> 19816 | F31: =IFERROR(VLOOKUP($A31,Filtro!$A$5:$AK$2936,4,FALSE),0) -> 19816 | G31: =IFERROR(VLOOKUP($A31,Filtro!$A$5:$AK$2936,5,FALSE),0) -> 0 | H31: =IFERROR(VLOOKUP($A31,Filtro!$A$5:$AK$2936,6,FALSE),0) -> 2 | I31: =IFERROR(VLOOKUP($A31,Filtro!$A$5:$AK$2936,7,FALSE),0) -> 0 | J31: =IFERROR(VLOOKUP($A31,Filtro!$A$5:$AK$2936,8,FALSE),0) -> 0 | K31: =IFERROR(VLOOKUP($A31,Filtro!$A$5:$AK$2936,9,FALSE),0) -> 0 | L31: =IFERROR(VLOOKUP($A31,Filtro!$A$5:$AK$2936,10,FALSE),0) -> 0 | M31: =IFERROR(VLOOKUP($A31,Filtro!$A$5:$AK$2936,11,FALSE),0) -> 0 | N31: =IFERROR(VLOOKUP($A31,Filtro!$A$5:$AK$2936,12,FALSE),0) -> 0 | O31: =IFERROR(VLOOKUP($A31,Filtro!$A$5:$AK$2936,13,FALSE),0) -> 0 | P31: =IFERROR(VLOOKUP($A31,Filtro!$A$5:$AK$2936,14,FALSE),0) -> 0 | Q31: =IFERROR(VLOOKUP($A31,Filtro!$A$5:$AK$2936,15,FALSE),0) -> 0 | R31: =IFERROR(VLOOKUP($A31,Filtro!$A$5:$AK$2936,16,FALSE),0) -> 0 | S31: =IFERROR(VLOOKUP($A31,Filtro!$A$5:$AK$2936,17,FALSE),0) -> 0 | T31: =IFERROR(VLOOKUP($A31,Filtro!$A$5:$AK$2936,18,FALSE),0) -> 0 | U31: =IFERROR(VLOOKUP($A31,Filtro!$A$5:$AK$2936,19,FALSE),0) -> 0 | V31: =IFERROR(VLOOKUP($A31,Filtro!$A$5:$AK$2936,20,FALSE),0) -> 0 | W31: =IFERROR(VLOOKUP($A31,Filtro!$A$5:$AK$2936,21,FALSE),0) -> 0 | X31: =IFERROR(VLOOKUP($A31,Filtro!$A$5:$AK$2936,22,FALSE),0) -> 0 | Y31: =IFERROR(VLOOKUP($A31,Filtro!$A$5:$AK$2936,23,FALSE),0) -> 0 | Z31: =IFERROR(VLOOKUP($A31,Filtro!$A$5:$AK$2936,24,FALSE),0) -> 0 | AA31: =IFERROR(VLOOKUP($A31,Filtro!$A$5:$AK$2936,25,FALSE),0) -> 0 | AB31: =IFERROR(VLOOKUP($A31,Filtro!$A$5:$AK$2936,26,FALSE),0) -> 0 | AC31: =IFERROR(VLOOKUP($A31,Filtro!$A$5:$AK$2936,27,FALSE),0) -> 19818 | AD31: =IFERROR(VLOOKUP($A31,Filtro!$A$5:$AK$2936,28,FALSE),0) -> 0 | AE31: =IFERROR(VLOOKUP($A31,Filtro!$A$5:$AK$2936,29,FALSE),0) -> 2407 | AF31: =IFERROR(VLOOKUP($A31,Filtro!$A$5:$AK$2936,30,FALSE),0) -> 0 | AG31: =IFERROR(VLOOKUP($A31,Filtro!$A$5:$AK$2936,31,FALSE),0) -> 0 | AH31: =IFERROR(VLOOKUP($A31,Filtro!$A$5:$AK$2936,32,FALSE),0) -> 0 | AI31: =IFERROR(VLOOKUP($A31,Filtro!$A$5:$AK$2936,33,FALSE),0) -> 0 | AJ31: =IFERROR(VLOOKUP($A31,Filtro!$A$5:$AK$2936,34,FALSE),0) -> 0 | AK31: =IFERROR(VLOOKUP($A31,Filtro!$A$5:$AK$2936,35,FALSE),0) -> 0 | AL31: =IFERROR(VLOOKUP($A31,Filtro!$A$5:$AK$2936,36,FALSE),0) -> 1203650 | AM31: =IFERROR(VLOOKUP($A31,Filtro!$A$5:$AK$2936,37,FALSE),0) -> 179334800
A32: 01014300 | B32: 0101313 | C32: Consulta Médica de Especialidad en Cirugía de Cabeza, Cuello y Maxilofacial | D32: =IFERROR(VLOOKUP($A32,Filtro!$A$5:$AK$2936,2,FALSE),0) -> 833 | E32: =IFERROR(VLOOKUP($A32,Filtro!$A$5:$AK$2936,3,FALSE),0) -> 831 | F32: =IFERROR(VLOOKUP($A32,Filtro!$A$5:$AK$2936,4,FALSE),0) -> 831 | G32: =IFERROR(VLOOKUP($A32,Filtro!$A$5:$AK$2936,5,FALSE),0) -> 0 | H32: =IFERROR(VLOOKUP($A32,Filtro!$A$5:$AK$2936,6,FALSE),0) -> 2 | I32: =IFERROR(VLOOKUP($A32,Filtro!$A$5:$AK$2936,7,FALSE),0) -> 0 | J32: =IFERROR(VLOOKUP($A32,Filtro!$A$5:$AK$2936,8,FALSE),0) -> 0 | K32: =IFERROR(VLOOKUP($A32,Filtro!$A$5:$AK$2936,9,FALSE),0) -> 0 | L32: =IFERROR(VLOOKUP($A32,Filtro!$A$5:$AK$2936,10,FALSE),0) -> 0 | M32: =IFERROR(VLOOKUP($A32,Filtro!$A$5:$AK$2936,11,FALSE),0) -> 0 | N32: =IFERROR(VLOOKUP($A32,Filtro!$A$5:$AK$2936,12,FALSE),0) -> 0 | O32: =IFERROR(VLOOKUP($A32,Filtro!$A$5:$AK$2936,13,FALSE),0) -> 0 | P32: =IFERROR(VLOOKUP($A32,Filtro!$A$5:$AK$2936,14,FALSE),0) -> 0 | Q32: =IFERROR(VLOOKUP($A32,Filtro!$A$5:$AK$2936,15,FALSE),0) -> 0 | R32: =IFERROR(VLOOKUP($A32,Filtro!$A$5:$AK$2936,16,FALSE),0) -> 0 | S32: =IFERROR(VLOOKUP($A32,Filtro!$A$5:$AK$2936,17,FALSE),0) -> 0 | T32: =IFERROR(VLOOKUP($A32,Filtro!$A$5:$AK$2936,18,FALSE),0) -> 0 | U32: =IFERROR(VLOOKUP($A32,Filtro!$A$5:$AK$2936,19,FALSE),0) -> 0 | V32: =IFERROR(VLOOKUP($A32,Filtro!$A$5:$AK$2936,20,FALSE),0) -> 0 | W32: =IFERROR(VLOOKUP($A32,Filtro!$A$5:$AK$2936,21,FALSE),0) -> 0 | X32: =IFERROR(VLOOKUP($A32,Filtro!$A$5:$AK$2936,22,FALSE),0) -> 0 | Y32: =IFERROR(VLOOKUP($A32,Filtro!$A$5:$AK$2936,23,FALSE),0) -> 0 | Z32: =IFERROR(VLOOKUP($A32,Filtro!$A$5:$AK$2936,24,FALSE),0) -> 0 | AA32: =IFERROR(VLOOKUP($A32,Filtro!$A$5:$AK$2936,25,FALSE),0) -> 0 | AB32: =IFERROR(VLOOKUP($A32,Filtro!$A$5:$AK$2936,26,FALSE),0) -> 0 | AC32: =IFERROR(VLOOKUP($A32,Filtro!$A$5:$AK$2936,27,FALSE),0) -> 833 | AD32: =IFERROR(VLOOKUP($A32,Filtro!$A$5:$AK$2936,28,FALSE),0) -> 0 | AE32: =IFERROR(VLOOKUP($A32,Filtro!$A$5:$AK$2936,29,FALSE),0) -> 0 | AF32: =IFERROR(VLOOKUP($A32,Filtro!$A$5:$AK$2936,30,FALSE),0) -> 0 | AG32: =IFERROR(VLOOKUP($A32,Filtro!$A$5:$AK$2936,31,FALSE),0) -> 0 | AH32: =IFERROR(VLOOKUP($A32,Filtro!$A$5:$AK$2936,32,FALSE),0) -> 0 | AI32: =IFERROR(VLOOKUP($A32,Filtro!$A$5:$AK$2936,33,FALSE),0) -> 0 | AJ32: =IFERROR(VLOOKUP($A32,Filtro!$A$5:$AK$2936,34,FALSE),0) -> 0 | AK32: =IFERROR(VLOOKUP($A32,Filtro!$A$5:$AK$2936,35,FALSE),0) -> 0 | AL32: =IFERROR(VLOOKUP($A32,Filtro!$A$5:$AK$2936,36,FALSE),0) -> 1203650 | AM32: =IFERROR(VLOOKUP($A32,Filtro!$A$5:$AK$2936,37,FALSE),0) -> 7520550
A33: 01014301 | B33: 0101314 | C33: Consulta Médica de Especialidad en Cirugía Cardiovascular | D33: =IFERROR(VLOOKUP($A33,Filtro!$A$5:$AK$2936,2,FALSE),0) -> 0 | E33: =IFERROR(VLOOKUP($A33,Filtro!$A$5:$AK$2936,3,FALSE),0) -> 0 | F33: =IFERROR(VLOOKUP($A33,Filtro!$A$5:$AK$2936,4,FALSE),0) -> 0 | G33: =IFERROR(VLOOKUP($A33,Filtro!$A$5:$AK$2936,5,FALSE),0) -> 0 | H33: =IFERROR(VLOOKUP($A33,Filtro!$A$5:$AK$2936,6,FALSE),0) -> 0 | I33: =IFERROR(VLOOKUP($A33,Filtro!$A$5:$AK$2936,7,FALSE),0) -> 0 | J33: =IFERROR(VLOOKUP($A33,Filtro!$A$5:$AK$2936,8,FALSE),0) -> 0 | K33: =IFERROR(VLOOKUP($A33,Filtro!$A$5:$AK$2936,9,FALSE),0) -> 0 | L33: =IFERROR(VLOOKUP($A33,Filtro!$A$5:$AK$2936,10,FALSE),0) -> 0 | M33: =IFERROR(VLOOKUP($A33,Filtro!$A$5:$AK$2936,11,FALSE),0) -> 0 | N33: =IFERROR(VLOOKUP($A33,Filtro!$A$5:$AK$2936,12,FALSE),0) -> 0 | O33: =IFERROR(VLOOKUP($A33,Filtro!$A$5:$AK$2936,13,FALSE),0) -> 0 | P33: =IFERROR(VLOOKUP($A33,Filtro!$A$5:$AK$2936,14,FALSE),0) -> 0 | Q33: =IFERROR(VLOOKUP($A33,Filtro!$A$5:$AK$2936,15,FALSE),0) -> 0 | R33: =IFERROR(VLOOKUP($A33,Filtro!$A$5:$AK$2936,16,FALSE),0) -> 0 | S33: =IFERROR(VLOOKUP($A33,Filtro!$A$5:$AK$2936,17,FALSE),0) -> 0 | T33: =IFERROR(VLOOKUP($A33,Filtro!$A$5:$AK$2936,18,FALSE),0) -> 0 | U33: =IFERROR(VLOOKUP($A33,Filtro!$A$5:$AK$2936,19,FALSE),0) -> 0 | V33: =IFERROR(VLOOKUP($A33,Filtro!$A$5:$AK$2936,20,FALSE),0) -> 0 | W33: =IFERROR(VLOOKUP($A33,Filtro!$A$5:$AK$2936,21,FALSE),0) -> 0 | X33: =IFERROR(VLOOKUP($A33,Filtro!$A$5:$AK$2936,22,FALSE),0) -> 0 | Y33: =IFERROR(VLOOKUP($A33,Filtro!$A$5:$AK$2936,23,FALSE),0) -> 0 | Z33: =IFERROR(VLOOKUP($A33,Filtro!$A$5:$AK$2936,24,FALSE),0) -> 0 | AA33: =IFERROR(VLOOKUP($A33,Filtro!$A$5:$AK$2936,25,FALSE),0) -> 0 | AB33: =IFERROR(VLOOKUP($A33,Filtro!$A$5:$AK$2936,26,FALSE),0) -> 0 | AC33: =IFERROR(VLOOKUP($A33,Filtro!$A$5:$AK$2936,27,FALSE),0) -> 0 | AD33: =IFERROR(VLOOKUP($A33,Filtro!$A$5:$AK$2936,28,FALSE),0) -> 0 | AE33: =IFERROR(VLOOKUP($A33,Filtro!$A$5:$AK$2936,29,FALSE),0) -> 0 | AF33: =IFERROR(VLOOKUP($A33,Filtro!$A$5:$AK$2936,30,FALSE),0) -> 0 | AG33: =IFERROR(VLOOKUP($A33,Filtro!$A$5:$AK$2936,31,FALSE),0) -> 0 | AH33: =IFERROR(VLOOKUP($A33,Filtro!$A$5:$AK$2936,32,FALSE),0) -> 0 | AI33: =IFERROR(VLOOKUP($A33,Filtro!$A$5:$AK$2936,33,FALSE),0) -> 0 | AJ33: =IFERROR(VLOOKUP($A33,Filtro!$A$5:$AK$2936,34,FALSE),0) -> 0 | AK33: =IFERROR(VLOOKUP($A33,Filtro!$A$5:$AK$2936,35,FALSE),0) -> 0 | AL33: =IFERROR(VLOOKUP($A33,Filtro!$A$5:$AK$2936,36,FALSE),0) -> 1203650 | AM33: =IFERROR(VLOOKUP($A33,Filtro!$A$5:$AK$2936,37,FALSE),0) -> 0
A34: 01014302 | B34: 0101315 | C34: Consulta Médica de Especialidad en Cirugía de Tórax | D34: =IFERROR(VLOOKUP($A34,Filtro!$A$5:$AK$2936,2,FALSE),0) -> 829 | E34: =IFERROR(VLOOKUP($A34,Filtro!$A$5:$AK$2936,3,FALSE),0) -> 829 | F34: =IFERROR(VLOOKUP($A34,Filtro!$A$5:$AK$2936,4,FALSE),0) -> 829 | G34: =IFERROR(VLOOKUP($A34,Filtro!$A$5:$AK$2936,5,FALSE),0) -> 0 | H34: =IFERROR(VLOOKUP($A34,Filtro!$A$5:$AK$2936,6,FALSE),0) -> 0 | I34: =IFERROR(VLOOKUP($A34,Filtro!$A$5:$AK$2936,7,FALSE),0) -> 0 | J34: =IFERROR(VLOOKUP($A34,Filtro!$A$5:$AK$2936,8,FALSE),0) -> 0 | K34: =IFERROR(VLOOKUP($A34,Filtro!$A$5:$AK$2936,9,FALSE),0) -> 0 | L34: =IFERROR(VLOOKUP($A34,Filtro!$A$5:$AK$2936,10,FALSE),0) -> 0 | M34: =IFERROR(VLOOKUP($A34,Filtro!$A$5:$AK$2936,11,FALSE),0) -> 0 | N34: =IFERROR(VLOOKUP($A34,Filtro!$A$5:$AK$2936,12,FALSE),0) -> 0 | O34: =IFERROR(VLOOKUP($A34,Filtro!$A$5:$AK$2936,13,FALSE),0) -> 0 | P34: =IFERROR(VLOOKUP($A34,Filtro!$A$5:$AK$2936,14,FALSE),0) -> 0 | Q34: =IFERROR(VLOOKUP($A34,Filtro!$A$5:$AK$2936,15,FALSE),0) -> 0 | R34: =IFERROR(VLOOKUP($A34,Filtro!$A$5:$AK$2936,16,FALSE),0) -> 0 | S34: =IFERROR(VLOOKUP($A34,Filtro!$A$5:$AK$2936,17,FALSE),0) -> 0 | T34: =IFERROR(VLOOKUP($A34,Filtro!$A$5:$AK$2936,18,FALSE),0) -> 0 | U34: =IFERROR(VLOOKUP($A34,Filtro!$A$5:$AK$2936,19,FALSE),0) -> 0 | V34: =IFERROR(VLOOKUP($A34,Filtro!$A$5:$AK$2936,20,FALSE),0) -> 0 | W34: =IFERROR(VLOOKUP($A34,Filtro!$A$5:$AK$2936,21,FALSE),0) -> 0 | X34: =IFERROR(VLOOKUP($A34,Filtro!$A$5:$AK$2936,22,FALSE),0) -> 0 | Y34: =IFERROR(VLOOKUP($A34,Filtro!$A$5:$AK$2936,23,FALSE),0) -> 0 | Z34: =IFERROR(VLOOKUP($A34,Filtro!$A$5:$AK$2936,24,FALSE),0) -> 0 | AA34: =IFERROR(VLOOKUP($A34,Filtro!$A$5:$AK$2936,25,FALSE),0) -> 0 | AB34: =IFERROR(VLOOKUP($A34,Filtro!$A$5:$AK$2936,26,FALSE),0) -> 0 | AC34: =IFERROR(VLOOKUP($A34,Filtro!$A$5:$AK$2936,27,FALSE),0) -> 829 | AD34: =IFERROR(VLOOKUP($A34,Filtro!$A$5:$AK$2936,28,FALSE),0) -> 0 | AE34: =IFERROR(VLOOKUP($A34,Filtro!$A$5:$AK$2936,29,FALSE),0) -> 0 | AF34: =IFERROR(VLOOKUP($A34,Filtro!$A$5:$AK$2936,30,FALSE),0) -> 0 | AG34: =IFERROR(VLOOKUP($A34,Filtro!$A$5:$AK$2936,31,FALSE),0) -> 0 | AH34: =IFERROR(VLOOKUP($A34,Filtro!$A$5:$AK$2936,32,FALSE),0) -> 0 | AI34: =IFERROR(VLOOKUP($A34,Filtro!$A$5:$AK$2936,33,FALSE),0) -> 0 | AJ34: =IFERROR(VLOOKUP($A34,Filtro!$A$5:$AK$2936,34,FALSE),0) -> 0 | AK34: =IFERROR(VLOOKUP($A34,Filtro!$A$5:$AK$2936,35,FALSE),0) -> 0 | AL34: =IFERROR(VLOOKUP($A34,Filtro!$A$5:$AK$2936,36,FALSE),0) -> 1203650 | AM34: =IFERROR(VLOOKUP($A34,Filtro!$A$5:$AK$2936,37,FALSE),0) -> 7502450
A35: 01014303 | B35: 0101316 | C35: Consulta Médica de Especialidad en Cirugía Plástica y Reparadora | D35: =IFERROR(VLOOKUP($A35,Filtro!$A$5:$AK$2936,2,FALSE),0) -> 284 | E35: =IFERROR(VLOOKUP($A35,Filtro!$A$5:$AK$2936,3,FALSE),0) -> 282 | F35: =IFERROR(VLOOKUP($A35,Filtro!$A$5:$AK$2936,4,FALSE),0) -> 282 | G35: =IFERROR(VLOOKUP($A35,Filtro!$A$5:$AK$2936,5,FALSE),0) -> 0 | H35: =IFERROR(VLOOKUP($A35,Filtro!$A$5:$AK$2936,6,FALSE),0) -> 2 | I35: =IFERROR(VLOOKUP($A35,Filtro!$A$5:$AK$2936,7,FALSE),0) -> 0 | J35: =IFERROR(VLOOKUP($A35,Filtro!$A$5:$AK$2936,8,FALSE),0) -> 0 | K35: =IFERROR(VLOOKUP($A35,Filtro!$A$5:$AK$2936,9,FALSE),0) -> 0 | L35: =IFERROR(VLOOKUP($A35,Filtro!$A$5:$AK$2936,10,FALSE),0) -> 0 | M35: =IFERROR(VLOOKUP($A35,Filtro!$A$5:$AK$2936,11,FALSE),0) -> 0 | N35: =IFERROR(VLOOKUP($A35,Filtro!$A$5:$AK$2936,12,FALSE),0) -> 0 | O35: =IFERROR(VLOOKUP($A35,Filtro!$A$5:$AK$2936,13,FALSE),0) -> 0 | P35: =IFERROR(VLOOKUP($A35,Filtro!$A$5:$AK$2936,14,FALSE),0) -> 0 | Q35: =IFERROR(VLOOKUP($A35,Filtro!$A$5:$AK$2936,15,FALSE),0) -> 0 | R35: =IFERROR(VLOOKUP($A35,Filtro!$A$5:$AK$2936,16,FALSE),0) -> 0 | S35: =IFERROR(VLOOKUP($A35,Filtro!$A$5:$AK$2936,17,FALSE),0) -> 0 | T35: =IFERROR(VLOOKUP($A35,Filtro!$A$5:$AK$2936,18,FALSE),0) -> 0 | U35: =IFERROR(VLOOKUP($A35,Filtro!$A$5:$AK$2936,19,FALSE),0) -> 0 | V35: =IFERROR(VLOOKUP($A35,Filtro!$A$5:$AK$2936,20,FALSE),0) -> 0 | W35: =IFERROR(VLOOKUP($A35,Filtro!$A$5:$AK$2936,21,FALSE),0) -> 0 | X35: =IFERROR(VLOOKUP($A35,Filtro!$A$5:$AK$2936,22,FALSE),0) -> 0 | Y35: =IFERROR(VLOOKUP($A35,Filtro!$A$5:$AK$2936,23,FALSE),0) -> 0 | Z35: =IFERROR(VLOOKUP($A35,Filtro!$A$5:$AK$2936,24,FALSE),0) -> 0 | AA35: =IFERROR(VLOOKUP($A35,Filtro!$A$5:$AK$2936,25,FALSE),0) -> 0 | AB35: =IFERROR(VLOOKUP($A35,Filtro!$A$5:$AK$2936,26,FALSE),0) -> 0 | AC35: =IFERROR(VLOOKUP($A35,Filtro!$A$5:$AK$2936,27,FALSE),0) -> 284 | AD35: =IFERROR(VLOOKUP($A35,Filtro!$A$5:$AK$2936,28,FALSE),0) -> 0 | AE35: =IFERROR(VLOOKUP($A35,Filtro!$A$5:$AK$2936,29,FALSE),0) -> 0 | AF35: =IFERROR(VLOOKUP($A35,Filtro!$A$5:$AK$2936,30,FALSE),0) -> 0 | AG35: =IFERROR(VLOOKUP($A35,Filtro!$A$5:$AK$2936,31,FALSE),0) -> 0 | AH35: =IFERROR(VLOOKUP($A35,Filtro!$A$5:$AK$2936,32,FALSE),0) -> 0 | AI35: =IFERROR(VLOOKUP($A35,Filtro!$A$5:$AK$2936,33,FALSE),0) -> 0 | AJ35: =IFERROR(VLOOKUP($A35,Filtro!$A$5:$AK$2936,34,FALSE),0) -> 0 | AK35: =IFERROR(VLOOKUP($A35,Filtro!$A$5:$AK$2936,35,FALSE),0) -> 0 | AL35: =IFERROR(VLOOKUP($A35,Filtro!$A$5:$AK$2936,36,FALSE),0) -> 1203650 | AM35: =IFERROR(VLOOKUP($A35,Filtro!$A$5:$AK$2936,37,FALSE),0) -> 2552100
A36: 01014304 | B36: 0101317 | C36: Consulta Médica de Especialidad en Cirugía Pediátrica | D36: =IFERROR(VLOOKUP($A36,Filtro!$A$5:$AK$2936,2,FALSE),0) -> 7771 | E36: =IFERROR(VLOOKUP($A36,Filtro!$A$5:$AK$2936,3,FALSE),0) -> 7752 | F36: =IFERROR(VLOOKUP($A36,Filtro!$A$5:$AK$2936,4,FALSE),0) -> 7752 | G36: =IFERROR(VLOOKUP($A36,Filtro!$A$5:$AK$2936,5,FALSE),0) -> 0 | H36: =IFERROR(VLOOKUP($A36,Filtro!$A$5:$AK$2936,6,FALSE),0) -> 19 | I36: =IFERROR(VLOOKUP($A36,Filtro!$A$5:$AK$2936,7,FALSE),0) -> 0 | J36: =IFERROR(VLOOKUP($A36,Filtro!$A$5:$AK$2936,8,FALSE),0) -> 0 | K36: =IFERROR(VLOOKUP($A36,Filtro!$A$5:$AK$2936,9,FALSE),0) -> 0 | L36: =IFERROR(VLOOKUP($A36,Filtro!$A$5:$AK$2936,10,FALSE),0) -> 0 | M36: =IFERROR(VLOOKUP($A36,Filtro!$A$5:$AK$2936,11,FALSE),0) -> 0 | N36: =IFERROR(VLOOKUP($A36,Filtro!$A$5:$AK$2936,12,FALSE),0) -> 0 | O36: =IFERROR(VLOOKUP($A36,Filtro!$A$5:$AK$2936,13,FALSE),0) -> 0 | P36: =IFERROR(VLOOKUP($A36,Filtro!$A$5:$AK$2936,14,FALSE),0) -> 0 | Q36: =IFERROR(VLOOKUP($A36,Filtro!$A$5:$AK$2936,15,FALSE),0) -> 0 | R36: =IFERROR(VLOOKUP($A36,Filtro!$A$5:$AK$2936,16,FALSE),0) -> 0 | S36: =IFERROR(VLOOKUP($A36,Filtro!$A$5:$AK$2936,17,FALSE),0) -> 0 | T36: =IFERROR(VLOOKUP($A36,Filtro!$A$5:$AK$2936,18,FALSE),0) -> 0 | U36: =IFERROR(VLOOKUP($A36,Filtro!$A$5:$AK$2936,19,FALSE),0) -> 0 | V36: =IFERROR(VLOOKUP($A36,Filtro!$A$5:$AK$2936,20,FALSE),0) -> 0 | W36: =IFERROR(VLOOKUP($A36,Filtro!$A$5:$AK$2936,21,FALSE),0) -> 0 | X36: =IFERROR(VLOOKUP($A36,Filtro!$A$5:$AK$2936,22,FALSE),0) -> 0 | Y36: =IFERROR(VLOOKUP($A36,Filtro!$A$5:$AK$2936,23,FALSE),0) -> 0 | Z36: =IFERROR(VLOOKUP($A36,Filtro!$A$5:$AK$2936,24,FALSE),0) -> 0 | AA36: =IFERROR(VLOOKUP($A36,Filtro!$A$5:$AK$2936,25,FALSE),0) -> 0 | AB36: =IFERROR(VLOOKUP($A36,Filtro!$A$5:$AK$2936,26,FALSE),0) -> 0 | AC36: =IFERROR(VLOOKUP($A36,Filtro!$A$5:$AK$2936,27,FALSE),0) -> 7771 | AD36: =IFERROR(VLOOKUP($A36,Filtro!$A$5:$AK$2936,28,FALSE),0) -> 0 | AE36: =IFERROR(VLOOKUP($A36,Filtro!$A$5:$AK$2936,29,FALSE),0) -> 0 | AF36: =IFERROR(VLOOKUP($A36,Filtro!$A$5:$AK$2936,30,FALSE),0) -> 0 | AG36: =IFERROR(VLOOKUP($A36,Filtro!$A$5:$AK$2936,31,FALSE),0) -> 0 | AH36: =IFERROR(VLOOKUP($A36,Filtro!$A$5:$AK$2936,32,FALSE),0) -> 0 | AI36: =IFERROR(VLOOKUP($A36,Filtro!$A$5:$AK$2936,33,FALSE),0) -> 0 | AJ36: =IFERROR(VLOOKUP($A36,Filtro!$A$5:$AK$2936,34,FALSE),0) -> 0 | AK36: =IFERROR(VLOOKUP($A36,Filtro!$A$5:$AK$2936,35,FALSE),0) -> 0 | AL36: =IFERROR(VLOOKUP($A36,Filtro!$A$5:$AK$2936,36,FALSE),0) -> 1203650 | AM36: =IFERROR(VLOOKUP($A36,Filtro!$A$5:$AK$2936,37,FALSE),0) -> 70155600
A37: 01014305 | B37: 0101318 | C37: Consulta Médica de Especialidad en Cirugía Vascular Periférica | D37: =IFERROR(VLOOKUP($A37,Filtro!$A$5:$AK$2936,2,FALSE),0) -> 2175 | E37: =IFERROR(VLOOKUP($A37,Filtro!$A$5:$AK$2936,3,FALSE),0) -> 2175 | F37: =IFERROR(VLOOKUP($A37,Filtro!$A$5:$AK$2936,4,FALSE),0) -> 2175 | G37: =IFERROR(VLOOKUP($A37,Filtro!$A$5:$AK$2936,5,FALSE),0) -> 0 | H37: =IFERROR(VLOOKUP($A37,Filtro!$A$5:$AK$2936,6,FALSE),0) -> 0 | I37: =IFERROR(VLOOKUP($A37,Filtro!$A$5:$AK$2936,7,FALSE),0) -> 0 | J37: =IFERROR(VLOOKUP($A37,Filtro!$A$5:$AK$2936,8,FALSE),0) -> 0 | K37: =IFERROR(VLOOKUP($A37,Filtro!$A$5:$AK$2936,9,FALSE),0) -> 0 | L37: =IFERROR(VLOOKUP($A37,Filtro!$A$5:$AK$2936,10,FALSE),0) -> 0 | M37: =IFERROR(VLOOKUP($A37,Filtro!$A$5:$AK$2936,11,FALSE),0) -> 0 | N37: =IFERROR(VLOOKUP($A37,Filtro!$A$5:$AK$2936,12,FALSE),0) -> 0 | O37: =IFERROR(VLOOKUP($A37,Filtro!$A$5:$AK$2936,13,FALSE),0) -> 0 | P37: =IFERROR(VLOOKUP($A37,Filtro!$A$5:$AK$2936,14,FALSE),0) -> 0 | Q37: =IFERROR(VLOOKUP($A37,Filtro!$A$5:$AK$2936,15,FALSE),0) -> 0 | R37: =IFERROR(VLOOKUP($A37,Filtro!$A$5:$AK$2936,16,FALSE),0) -> 0 | S37: =IFERROR(VLOOKUP($A37,Filtro!$A$5:$AK$2936,17,FALSE),0) -> 0 | T37: =IFERROR(VLOOKUP($A37,Filtro!$A$5:$AK$2936,18,FALSE),0) -> 0 | U37: =IFERROR(VLOOKUP($A37,Filtro!$A$5:$AK$2936,19,FALSE),0) -> 0 | V37: =IFERROR(VLOOKUP($A37,Filtro!$A$5:$AK$2936,20,FALSE),0) -> 0 | W37: =IFERROR(VLOOKUP($A37,Filtro!$A$5:$AK$2936,21,FALSE),0) -> 0 | X37: =IFERROR(VLOOKUP($A37,Filtro!$A$5:$AK$2936,22,FALSE),0) -> 0 | Y37: =IFERROR(VLOOKUP($A37,Filtro!$A$5:$AK$2936,23,FALSE),0) -> 0 | Z37: =IFERROR(VLOOKUP($A37,Filtro!$A$5:$AK$2936,24,FALSE),0) -> 0 | AA37: =IFERROR(VLOOKUP($A37,Filtro!$A$5:$AK$2936,25,FALSE),0) -> 0 | AB37: =IFERROR(VLOOKUP($A37,Filtro!$A$5:$AK$2936,26,FALSE),0) -> 0 | AC37: =IFERROR(VLOOKUP($A37,Filtro!$A$5:$AK$2936,27,FALSE),0) -> 2175 | AD37: =IFERROR(VLOOKUP($A37,Filtro!$A$5:$AK$2936,28,FALSE),0) -> 0 | AE37: =IFERROR(VLOOKUP($A37,Filtro!$A$5:$AK$2936,29,FALSE),0) -> 0 | AF37: =IFERROR(VLOOKUP($A37,Filtro!$A$5:$AK$2936,30,FALSE),0) -> 0 | AG37: =IFERROR(VLOOKUP($A37,Filtro!$A$5:$AK$2936,31,FALSE),0) -> 0 | AH37: =IFERROR(VLOOKUP($A37,Filtro!$A$5:$AK$2936,32,FALSE),0) -> 0 | AI37: =IFERROR(VLOOKUP($A37,Filtro!$A$5:$AK$2936,33,FALSE),0) -> 0 | AJ37: =IFERROR(VLOOKUP($A37,Filtro!$A$5:$AK$2936,34,FALSE),0) -> 0 | AK37: =IFERROR(VLOOKUP($A37,Filtro!$A$5:$AK$2936,35,FALSE),0) -> 0 | AL37: =IFERROR(VLOOKUP($A37,Filtro!$A$5:$AK$2936,36,FALSE),0) -> 1203650 | AM37: =IFERROR(VLOOKUP($A37,Filtro!$A$5:$AK$2936,37,FALSE),0) -> 19683750
A38: 01014306 | B38: 0101319 | C38: Consulta Médica de Especialidad en Coloproctología | D38: =IFERROR(VLOOKUP($A38,Filtro!$A$5:$AK$2936,2,FALSE),0) -> 2317 | E38: =IFERROR(VLOOKUP($A38,Filtro!$A$5:$AK$2936,3,FALSE),0) -> 2316 | F38: =IFERROR(VLOOKUP($A38,Filtro!$A$5:$AK$2936,4,FALSE),0) -> 2316 | G38: =IFERROR(VLOOKUP($A38,Filtro!$A$5:$AK$2936,5,FALSE),0) -> 0 | H38: =IFERROR(VLOOKUP($A38,Filtro!$A$5:$AK$2936,6,FALSE),0) -> 1 | I38: =IFERROR(VLOOKUP($A38,Filtro!$A$5:$AK$2936,7,FALSE),0) -> 0 | J38: =IFERROR(VLOOKUP($A38,Filtro!$A$5:$AK$2936,8,FALSE),0) -> 0 | K38: =IFERROR(VLOOKUP($A38,Filtro!$A$5:$AK$2936,9,FALSE),0) -> 0 | L38: =IFERROR(VLOOKUP($A38,Filtro!$A$5:$AK$2936,10,FALSE),0) -> 0 | M38: =IFERROR(VLOOKUP($A38,Filtro!$A$5:$AK$2936,11,FALSE),0) -> 0 | N38: =IFERROR(VLOOKUP($A38,Filtro!$A$5:$AK$2936,12,FALSE),0) -> 0 | O38: =IFERROR(VLOOKUP($A38,Filtro!$A$5:$AK$2936,13,FALSE),0) -> 0 | P38: =IFERROR(VLOOKUP($A38,Filtro!$A$5:$AK$2936,14,FALSE),0) -> 0 | Q38: =IFERROR(VLOOKUP($A38,Filtro!$A$5:$AK$2936,15,FALSE),0) -> 0 | R38: =IFERROR(VLOOKUP($A38,Filtro!$A$5:$AK$2936,16,FALSE),0) -> 0 | S38: =IFERROR(VLOOKUP($A38,Filtro!$A$5:$AK$2936,17,FALSE),0) -> 0 | T38: =IFERROR(VLOOKUP($A38,Filtro!$A$5:$AK$2936,18,FALSE),0) -> 0 | U38: =IFERROR(VLOOKUP($A38,Filtro!$A$5:$AK$2936,19,FALSE),0) -> 0 | V38: =IFERROR(VLOOKUP($A38,Filtro!$A$5:$AK$2936,20,FALSE),0) -> 0 | W38: =IFERROR(VLOOKUP($A38,Filtro!$A$5:$AK$2936,21,FALSE),0) -> 0 | X38: =IFERROR(VLOOKUP($A38,Filtro!$A$5:$AK$2936,22,FALSE),0) -> 0 | Y38: =IFERROR(VLOOKUP($A38,Filtro!$A$5:$AK$2936,23,FALSE),0) -> 0 | Z38: =IFERROR(VLOOKUP($A38,Filtro!$A$5:$AK$2936,24,FALSE),0) -> 0 | AA38: =IFERROR(VLOOKUP($A38,Filtro!$A$5:$AK$2936,25,FALSE),0) -> 0 | AB38: =IFERROR(VLOOKUP($A38,Filtro!$A$5:$AK$2936,26,FALSE),0) -> 0 | AC38: =IFERROR(VLOOKUP($A38,Filtro!$A$5:$AK$2936,27,FALSE),0) -> 2317 | AD38: =IFERROR(VLOOKUP($A38,Filtro!$A$5:$AK$2936,28,FALSE),0) -> 0 | AE38: =IFERROR(VLOOKUP($A38,Filtro!$A$5:$AK$2936,29,FALSE),0) -> 0 | AF38: =IFERROR(VLOOKUP($A38,Filtro!$A$5:$AK$2936,30,FALSE),0) -> 0 | AG38: =IFERROR(VLOOKUP($A38,Filtro!$A$5:$AK$2936,31,FALSE),0) -> 0 | AH38: =IFERROR(VLOOKUP($A38,Filtro!$A$5:$AK$2936,32,FALSE),0) -> 0 | AI38: =IFERROR(VLOOKUP($A38,Filtro!$A$5:$AK$2936,33,FALSE),0) -> 0 | AJ38: =IFERROR(VLOOKUP($A38,Filtro!$A$5:$AK$2936,34,FALSE),0) -> 0 | AK38: =IFERROR(VLOOKUP($A38,Filtro!$A$5:$AK$2936,35,FALSE),0) -> 0 | AL38: =IFERROR(VLOOKUP($A38,Filtro!$A$5:$AK$2936,36,FALSE),0) -> 1203650 | AM38: =IFERROR(VLOOKUP($A38,Filtro!$A$5:$AK$2936,37,FALSE),0) -> 20959800
A39: 01014307 | B39: 0101320 | C39: Consulta Médica de Especialidad en Diabetología | D39: =IFERROR(VLOOKUP($A39,Filtro!$A$5:$AK$2936,2,FALSE),0) -> 495 | E39: =IFERROR(VLOOKUP($A39,Filtro!$A$5:$AK$2936,3,FALSE),0) -> 495 | F39: =IFERROR(VLOOKUP($A39,Filtro!$A$5:$AK$2936,4,FALSE),0) -> 495 | G39: =IFERROR(VLOOKUP($A39,Filtro!$A$5:$AK$2936,5,FALSE),0) -> 0 | H39: =IFERROR(VLOOKUP($A39,Filtro!$A$5:$AK$2936,6,FALSE),0) -> 0 | I39: =IFERROR(VLOOKUP($A39,Filtro!$A$5:$AK$2936,7,FALSE),0) -> 0 | J39: =IFERROR(VLOOKUP($A39,Filtro!$A$5:$AK$2936,8,FALSE),0) -> 0 | K39: =IFERROR(VLOOKUP($A39,Filtro!$A$5:$AK$2936,9,FALSE),0) -> 0 | L39: =IFERROR(VLOOKUP($A39,Filtro!$A$5:$AK$2936,10,FALSE),0) -> 0 | M39: =IFERROR(VLOOKUP($A39,Filtro!$A$5:$AK$2936,11,FALSE),0) -> 0 | N39: =IFERROR(VLOOKUP($A39,Filtro!$A$5:$AK$2936,12,FALSE),0) -> 0 | O39: =IFERROR(VLOOKUP($A39,Filtro!$A$5:$AK$2936,13,FALSE),0) -> 0 | P39: =IFERROR(VLOOKUP($A39,Filtro!$A$5:$AK$2936,14,FALSE),0) -> 0 | Q39: =IFERROR(VLOOKUP($A39,Filtro!$A$5:$AK$2936,15,FALSE),0) -> 0 | R39: =IFERROR(VLOOKUP($A39,Filtro!$A$5:$AK$2936,16,FALSE),0) -> 0 | S39: =IFERROR(VLOOKUP($A39,Filtro!$A$5:$AK$2936,17,FALSE),0) -> 0 | T39: =IFERROR(VLOOKUP($A39,Filtro!$A$5:$AK$2936,18,FALSE),0) -> 0 | U39: =IFERROR(VLOOKUP($A39,Filtro!$A$5:$AK$2936,19,FALSE),0) -> 0 | V39: =IFERROR(VLOOKUP($A39,Filtro!$A$5:$AK$2936,20,FALSE),0) -> 0 | W39: =IFERROR(VLOOKUP($A39,Filtro!$A$5:$AK$2936,21,FALSE),0) -> 0 | X39: =IFERROR(VLOOKUP($A39,Filtro!$A$5:$AK$2936,22,FALSE),0) -> 0 | Y39: =IFERROR(VLOOKUP($A39,Filtro!$A$5:$AK$2936,23,FALSE),0) -> 0 | Z39: =IFERROR(VLOOKUP($A39,Filtro!$A$5:$AK$2936,24,FALSE),0) -> 0 | AA39: =IFERROR(VLOOKUP($A39,Filtro!$A$5:$AK$2936,25,FALSE),0) -> 0 | AB39: =IFERROR(VLOOKUP($A39,Filtro!$A$5:$AK$2936,26,FALSE),0) -> 0 | AC39: =IFERROR(VLOOKUP($A39,Filtro!$A$5:$AK$2936,27,FALSE),0) -> 495 | AD39: =IFERROR(VLOOKUP($A39,Filtro!$A$5:$AK$2936,28,FALSE),0) -> 0 | AE39: =IFERROR(VLOOKUP($A39,Filtro!$A$5:$AK$2936,29,FALSE),0) -> 0 | AF39: =IFERROR(VLOOKUP($A39,Filtro!$A$5:$AK$2936,30,FALSE),0) -> 0 | AG39: =IFERROR(VLOOKUP($A39,Filtro!$A$5:$AK$2936,31,FALSE),0) -> 0 | AH39: =IFERROR(VLOOKUP($A39,Filtro!$A$5:$AK$2936,32,FALSE),0) -> 0 | AI39: =IFERROR(VLOOKUP($A39,Filtro!$A$5:$AK$2936,33,FALSE),0) -> 0 | AJ39: =IFERROR(VLOOKUP($A39,Filtro!$A$5:$AK$2936,34,FALSE),0) -> 0 | AK39: =IFERROR(VLOOKUP($A39,Filtro!$A$5:$AK$2936,35,FALSE),0) -> 0 | AL39: =IFERROR(VLOOKUP($A39,Filtro!$A$5:$AK$2936,36,FALSE),0) -> 1203650 | AM39: =IFERROR(VLOOKUP($A39,Filtro!$A$5:$AK$2936,37,FALSE),0) -> 4479750
A40: 01014308 | B40: 0101321 | C40: Consulta Médica de Especialidad en Enfermedades Respiratorias Adulto | D40: =IFERROR(VLOOKUP($A40,Filtro!$A$5:$AK$2936,2,FALSE),0) -> 3771 | E40: =IFERROR(VLOOKUP($A40,Filtro!$A$5:$AK$2936,3,FALSE),0) -> 3770 | F40: =IFERROR(VLOOKUP($A40,Filtro!$A$5:$AK$2936,4,FALSE),0) -> 3770 | G40: =IFERROR(VLOOKUP($A40,Filtro!$A$5:$AK$2936,5,FALSE),0) -> 0 | H40: =IFERROR(VLOOKUP($A40,Filtro!$A$5:$AK$2936,6,FALSE),0) -> 1 | I40: =IFERROR(VLOOKUP($A40,Filtro!$A$5:$AK$2936,7,FALSE),0) -> 0 | J40: =IFERROR(VLOOKUP($A40,Filtro!$A$5:$AK$2936,8,FALSE),0) -> 0 | K40: =IFERROR(VLOOKUP($A40,Filtro!$A$5:$AK$2936,9,FALSE),0) -> 0 | L40: =IFERROR(VLOOKUP($A40,Filtro!$A$5:$AK$2936,10,FALSE),0) -> 0 | M40: =IFERROR(VLOOKUP($A40,Filtro!$A$5:$AK$2936,11,FALSE),0) -> 0 | N40: =IFERROR(VLOOKUP($A40,Filtro!$A$5:$AK$2936,12,FALSE),0) -> 0 | O40: =IFERROR(VLOOKUP($A40,Filtro!$A$5:$AK$2936,13,FALSE),0) -> 0 | P40: =IFERROR(VLOOKUP($A40,Filtro!$A$5:$AK$2936,14,FALSE),0) -> 0 | Q40: =IFERROR(VLOOKUP($A40,Filtro!$A$5:$AK$2936,15,FALSE),0) -> 0 | R40: =IFERROR(VLOOKUP($A40,Filtro!$A$5:$AK$2936,16,FALSE),0) -> 0 | S40: =IFERROR(VLOOKUP($A40,Filtro!$A$5:$AK$2936,17,FALSE),0) -> 0 | T40: =IFERROR(VLOOKUP($A40,Filtro!$A$5:$AK$2936,18,FALSE),0) -> 0 | U40: =IFERROR(VLOOKUP($A40,Filtro!$A$5:$AK$2936,19,FALSE),0) -> 0 | V40: =IFERROR(VLOOKUP($A40,Filtro!$A$5:$AK$2936,20,FALSE),0) -> 0 | W40: =IFERROR(VLOOKUP($A40,Filtro!$A$5:$AK$2936,21,FALSE),0) -> 0 | X40: =IFERROR(VLOOKUP($A40,Filtro!$A$5:$AK$2936,22,FALSE),0) -> 0 | Y40: =IFERROR(VLOOKUP($A40,Filtro!$A$5:$AK$2936,23,FALSE),0) -> 0 | Z40: =IFERROR(VLOOKUP($A40,Filtro!$A$5:$AK$2936,24,FALSE),0) -> 0 | AA40: =IFERROR(VLOOKUP($A40,Filtro!$A$5:$AK$2936,25,FALSE),0) -> 0 | AB40: =IFERROR(VLOOKUP($A40,Filtro!$A$5:$AK$2936,26,FALSE),0) -> 0 | AC40: =IFERROR(VLOOKUP($A40,Filtro!$A$5:$AK$2936,27,FALSE),0) -> 3771 | AD40: =IFERROR(VLOOKUP($A40,Filtro!$A$5:$AK$2936,28,FALSE),0) -> 0 | AE40: =IFERROR(VLOOKUP($A40,Filtro!$A$5:$AK$2936,29,FALSE),0) -> 46 | AF40: =IFERROR(VLOOKUP($A40,Filtro!$A$5:$AK$2936,30,FALSE),0) -> 0 | AG40: =IFERROR(VLOOKUP($A40,Filtro!$A$5:$AK$2936,31,FALSE),0) -> 0 | AH40: =IFERROR(VLOOKUP($A40,Filtro!$A$5:$AK$2936,32,FALSE),0) -> 0 | AI40: =IFERROR(VLOOKUP($A40,Filtro!$A$5:$AK$2936,33,FALSE),0) -> 0 | AJ40: =IFERROR(VLOOKUP($A40,Filtro!$A$5:$AK$2936,34,FALSE),0) -> 0 | AK40: =IFERROR(VLOOKUP($A40,Filtro!$A$5:$AK$2936,35,FALSE),0) -> 0 | AL40: =IFERROR(VLOOKUP($A40,Filtro!$A$5:$AK$2936,36,FALSE),0) -> 1203650 | AM40: =IFERROR(VLOOKUP($A40,Filtro!$A$5:$AK$2936,37,FALSE),0) -> 34118500
A41: 01014309 | B41: 0101322 | C41: Consulta Médica de Especialidad en Enfermedades Respiratorias Pediátricas | D41: =IFERROR(VLOOKUP($A41,Filtro!$A$5:$AK$2936,2,FALSE),0) -> 2941 | E41: =IFERROR(VLOOKUP($A41,Filtro!$A$5:$AK$2936,3,FALSE),0) -> 2937 | F41: =IFERROR(VLOOKUP($A41,Filtro!$A$5:$AK$2936,4,FALSE),0) -> 2937 | G41: =IFERROR(VLOOKUP($A41,Filtro!$A$5:$AK$2936,5,FALSE),0) -> 0 | H41: =IFERROR(VLOOKUP($A41,Filtro!$A$5:$AK$2936,6,FALSE),0) -> 4 | I41: =IFERROR(VLOOKUP($A41,Filtro!$A$5:$AK$2936,7,FALSE),0) -> 0 | J41: =IFERROR(VLOOKUP($A41,Filtro!$A$5:$AK$2936,8,FALSE),0) -> 0 | K41: =IFERROR(VLOOKUP($A41,Filtro!$A$5:$AK$2936,9,FALSE),0) -> 0 | L41: =IFERROR(VLOOKUP($A41,Filtro!$A$5:$AK$2936,10,FALSE),0) -> 0 | M41: =IFERROR(VLOOKUP($A41,Filtro!$A$5:$AK$2936,11,FALSE),0) -> 0 | N41: =IFERROR(VLOOKUP($A41,Filtro!$A$5:$AK$2936,12,FALSE),0) -> 0 | O41: =IFERROR(VLOOKUP($A41,Filtro!$A$5:$AK$2936,13,FALSE),0) -> 0 | P41: =IFERROR(VLOOKUP($A41,Filtro!$A$5:$AK$2936,14,FALSE),0) -> 0 | Q41: =IFERROR(VLOOKUP($A41,Filtro!$A$5:$AK$2936,15,FALSE),0) -> 0 | R41: =IFERROR(VLOOKUP($A41,Filtro!$A$5:$AK$2936,16,FALSE),0) -> 0 | S41: =IFERROR(VLOOKUP($A41,Filtro!$A$5:$AK$2936,17,FALSE),0) -> 0 | T41: =IFERROR(VLOOKUP($A41,Filtro!$A$5:$AK$2936,18,FALSE),0) -> 0 | U41: =IFERROR(VLOOKUP($A41,Filtro!$A$5:$AK$2936,19,FALSE),0) -> 0 | V41: =IFERROR(VLOOKUP($A41,Filtro!$A$5:$AK$2936,20,FALSE),0) -> 0 | W41: =IFERROR(VLOOKUP($A41,Filtro!$A$5:$AK$2936,21,FALSE),0) -> 0 | X41: =IFERROR(VLOOKUP($A41,Filtro!$A$5:$AK$2936,22,FALSE),0) -> 0 | Y41: =IFERROR(VLOOKUP($A41,Filtro!$A$5:$AK$2936,23,FALSE),0) -> 0 | Z41: =IFERROR(VLOOKUP($A41,Filtro!$A$5:$AK$2936,24,FALSE),0) -> 0 | AA41: =IFERROR(VLOOKUP($A41,Filtro!$A$5:$AK$2936,25,FALSE),0) -> 0 | AB41: =IFERROR(VLOOKUP($A41,Filtro!$A$5:$AK$2936,26,FALSE),0) -> 0 | AC41: =IFERROR(VLOOKUP($A41,Filtro!$A$5:$AK$2936,27,FALSE),0) -> 2941 | AD41: =IFERROR(VLOOKUP($A41,Filtro!$A$5:$AK$2936,28,FALSE),0) -> 0 | AE41: =IFERROR(VLOOKUP($A41,Filtro!$A$5:$AK$2936,29,FALSE),0) -> 0 | AF41: =IFERROR(VLOOKUP($A41,Filtro!$A$5:$AK$2936,30,FALSE),0) -> 0 | AG41: =IFERROR(VLOOKUP($A41,Filtro!$A$5:$AK$2936,31,FALSE),0) -> 0 | AH41: =IFERROR(VLOOKUP($A41,Filtro!$A$5:$AK$2936,32,FALSE),0) -> 0 | AI41: =IFERROR(VLOOKUP($A41,Filtro!$A$5:$AK$2936,33,FALSE),0) -> 0 | AJ41: =IFERROR(VLOOKUP($A41,Filtro!$A$5:$AK$2936,34,FALSE),0) -> 0 | AK41: =IFERROR(VLOOKUP($A41,Filtro!$A$5:$AK$2936,35,FALSE),0) -> 0 | AL41: =IFERROR(VLOOKUP($A41,Filtro!$A$5:$AK$2936,36,FALSE),0) -> 1203650 | AM41: =IFERROR(VLOOKUP($A41,Filtro!$A$5:$AK$2936,37,FALSE),0) -> 26579850
A42: 01014310 | B42: 0101323 | C42: Consulta Médica de Especialidad en Gastroenterología Adulto | D42: =IFERROR(VLOOKUP($A42,Filtro!$A$5:$AK$2936,2,FALSE),0) -> 3865 | E42: =IFERROR(VLOOKUP($A42,Filtro!$A$5:$AK$2936,3,FALSE),0) -> 3865 | F42: =IFERROR(VLOOKUP($A42,Filtro!$A$5:$AK$2936,4,FALSE),0) -> 3865 | G42: =IFERROR(VLOOKUP($A42,Filtro!$A$5:$AK$2936,5,FALSE),0) -> 0 | H42: =IFERROR(VLOOKUP($A42,Filtro!$A$5:$AK$2936,6,FALSE),0) -> 0 | I42: =IFERROR(VLOOKUP($A42,Filtro!$A$5:$AK$2936,7,FALSE),0) -> 0 | J42: =IFERROR(VLOOKUP($A42,Filtro!$A$5:$AK$2936,8,FALSE),0) -> 0 | K42: =IFERROR(VLOOKUP($A42,Filtro!$A$5:$AK$2936,9,FALSE),0) -> 0 | L42: =IFERROR(VLOOKUP($A42,Filtro!$A$5:$AK$2936,10,FALSE),0) -> 0 | M42: =IFERROR(VLOOKUP($A42,Filtro!$A$5:$AK$2936,11,FALSE),0) -> 0 | N42: =IFERROR(VLOOKUP($A42,Filtro!$A$5:$AK$2936,12,FALSE),0) -> 0 | O42: =IFERROR(VLOOKUP($A42,Filtro!$A$5:$AK$2936,13,FALSE),0) -> 0 | P42: =IFERROR(VLOOKUP($A42,Filtro!$A$5:$AK$2936,14,FALSE),0) -> 0 | Q42: =IFERROR(VLOOKUP($A42,Filtro!$A$5:$AK$2936,15,FALSE),0) -> 0 | R42: =IFERROR(VLOOKUP($A42,Filtro!$A$5:$AK$2936,16,FALSE),0) -> 0 | S42: =IFERROR(VLOOKUP($A42,Filtro!$A$5:$AK$2936,17,FALSE),0) -> 0 | T42: =IFERROR(VLOOKUP($A42,Filtro!$A$5:$AK$2936,18,FALSE),0) -> 0 | U42: =IFERROR(VLOOKUP($A42,Filtro!$A$5:$AK$2936,19,FALSE),0) -> 0 | V42: =IFERROR(VLOOKUP($A42,Filtro!$A$5:$AK$2936,20,FALSE),0) -> 0 | W42: =IFERROR(VLOOKUP($A42,Filtro!$A$5:$AK$2936,21,FALSE),0) -> 0 | X42: =IFERROR(VLOOKUP($A42,Filtro!$A$5:$AK$2936,22,FALSE),0) -> 0 | Y42: =IFERROR(VLOOKUP($A42,Filtro!$A$5:$AK$2936,23,FALSE),0) -> 0 | Z42: =IFERROR(VLOOKUP($A42,Filtro!$A$5:$AK$2936,24,FALSE),0) -> 0 | AA42: =IFERROR(VLOOKUP($A42,Filtro!$A$5:$AK$2936,25,FALSE),0) -> 0 | AB42: =IFERROR(VLOOKUP($A42,Filtro!$A$5:$AK$2936,26,FALSE),0) -> 0 | AC42: =IFERROR(VLOOKUP($A42,Filtro!$A$5:$AK$2936,27,FALSE),0) -> 3865 | AD42: =IFERROR(VLOOKUP($A42,Filtro!$A$5:$AK$2936,28,FALSE),0) -> 0 | AE42: =IFERROR(VLOOKUP($A42,Filtro!$A$5:$AK$2936,29,FALSE),0) -> 0 | AF42: =IFERROR(VLOOKUP($A42,Filtro!$A$5:$AK$2936,30,FALSE),0) -> 0 | AG42: =IFERROR(VLOOKUP($A42,Filtro!$A$5:$AK$2936,31,FALSE),0) -> 0 | AH42: =IFERROR(VLOOKUP($A42,Filtro!$A$5:$AK$2936,32,FALSE),0) -> 0 | AI42: =IFERROR(VLOOKUP($A42,Filtro!$A$5:$AK$2936,33,FALSE),0) -> 0 | AJ42: =IFERROR(VLOOKUP($A42,Filtro!$A$5:$AK$2936,34,FALSE),0) -> 0 | AK42: =IFERROR(VLOOKUP($A42,Filtro!$A$5:$AK$2936,35,FALSE),0) -> 0 | AL42: =IFERROR(VLOOKUP($A42,Filtro!$A$5:$AK$2936,36,FALSE),0) -> 1203650 | AM42: =IFERROR(VLOOKUP($A42,Filtro!$A$5:$AK$2936,37,FALSE),0) -> 34978250
A43: 01014311 | B43: 0101324 | C43: Consulta Médica de Especialidad en Gastroenterología Pediátrico | D43: =IFERROR(VLOOKUP($A43,Filtro!$A$5:$AK$2936,2,FALSE),0) -> 2630 | E43: =IFERROR(VLOOKUP($A43,Filtro!$A$5:$AK$2936,3,FALSE),0) -> 2628 | F43: =IFERROR(VLOOKUP($A43,Filtro!$A$5:$AK$2936,4,FALSE),0) -> 2628 | G43: =IFERROR(VLOOKUP($A43,Filtro!$A$5:$AK$2936,5,FALSE),0) -> 0 | H43: =IFERROR(VLOOKUP($A43,Filtro!$A$5:$AK$2936,6,FALSE),0) -> 2 | I43: =IFERROR(VLOOKUP($A43,Filtro!$A$5:$AK$2936,7,FALSE),0) -> 0 | J43: =IFERROR(VLOOKUP($A43,Filtro!$A$5:$AK$2936,8,FALSE),0) -> 0 | K43: =IFERROR(VLOOKUP($A43,Filtro!$A$5:$AK$2936,9,FALSE),0) -> 0 | L43: =IFERROR(VLOOKUP($A43,Filtro!$A$5:$AK$2936,10,FALSE),0) -> 0 | M43: =IFERROR(VLOOKUP($A43,Filtro!$A$5:$AK$2936,11,FALSE),0) -> 0 | N43: =IFERROR(VLOOKUP($A43,Filtro!$A$5:$AK$2936,12,FALSE),0) -> 0 | O43: =IFERROR(VLOOKUP($A43,Filtro!$A$5:$AK$2936,13,FALSE),0) -> 0 | P43: =IFERROR(VLOOKUP($A43,Filtro!$A$5:$AK$2936,14,FALSE),0) -> 0 | Q43: =IFERROR(VLOOKUP($A43,Filtro!$A$5:$AK$2936,15,FALSE),0) -> 0 | R43: =IFERROR(VLOOKUP($A43,Filtro!$A$5:$AK$2936,16,FALSE),0) -> 0 | S43: =IFERROR(VLOOKUP($A43,Filtro!$A$5:$AK$2936,17,FALSE),0) -> 0 | T43: =IFERROR(VLOOKUP($A43,Filtro!$A$5:$AK$2936,18,FALSE),0) -> 0 | U43: =IFERROR(VLOOKUP($A43,Filtro!$A$5:$AK$2936,19,FALSE),0) -> 0 | V43: =IFERROR(VLOOKUP($A43,Filtro!$A$5:$AK$2936,20,FALSE),0) -> 0 | W43: =IFERROR(VLOOKUP($A43,Filtro!$A$5:$AK$2936,21,FALSE),0) -> 0 | X43: =IFERROR(VLOOKUP($A43,Filtro!$A$5:$AK$2936,22,FALSE),0) -> 0 | Y43: =IFERROR(VLOOKUP($A43,Filtro!$A$5:$AK$2936,23,FALSE),0) -> 0 | Z43: =IFERROR(VLOOKUP($A43,Filtro!$A$5:$AK$2936,24,FALSE),0) -> 0 | AA43: =IFERROR(VLOOKUP($A43,Filtro!$A$5:$AK$2936,25,FALSE),0) -> 0 | AB43: =IFERROR(VLOOKUP($A43,Filtro!$A$5:$AK$2936,26,FALSE),0) -> 0 | AC43: =IFERROR(VLOOKUP($A43,Filtro!$A$5:$AK$2936,27,FALSE),0) -> 2630 | AD43: =IFERROR(VLOOKUP($A43,Filtro!$A$5:$AK$2936,28,FALSE),0) -> 0 | AE43: =IFERROR(VLOOKUP($A43,Filtro!$A$5:$AK$2936,29,FALSE),0) -> 0 | AF43: =IFERROR(VLOOKUP($A43,Filtro!$A$5:$AK$2936,30,FALSE),0) -> 0 | AG43: =IFERROR(VLOOKUP($A43,Filtro!$A$5:$AK$2936,31,FALSE),0) -> 0 | AH43: =IFERROR(VLOOKUP($A43,Filtro!$A$5:$AK$2936,32,FALSE),0) -> 0 | AI43: =IFERROR(VLOOKUP($A43,Filtro!$A$5:$AK$2936,33,FALSE),0) -> 0 | AJ43: =IFERROR(VLOOKUP($A43,Filtro!$A$5:$AK$2936,34,FALSE),0) -> 0 | AK43: =IFERROR(VLOOKUP($A43,Filtro!$A$5:$AK$2936,35,FALSE),0) -> 0 | AL43: =IFERROR(VLOOKUP($A43,Filtro!$A$5:$AK$2936,36,FALSE),0) -> 1203650 | AM43: =IFERROR(VLOOKUP($A43,Filtro!$A$5:$AK$2936,37,FALSE),0) -> 23783400
A44: 01014312 | B44: 0101325 | C44: Consulta Médica de Especialidad en Genética Clínica | D44: =IFERROR(VLOOKUP($A44,Filtro!$A$5:$AK$2936,2,FALSE),0) -> 0 | E44: =IFERROR(VLOOKUP($A44,Filtro!$A$5:$AK$2936,3,FALSE),0) -> 0 | F44: =IFERROR(VLOOKUP($A44,Filtro!$A$5:$AK$2936,4,FALSE),0) -> 0 | G44: =IFERROR(VLOOKUP($A44,Filtro!$A$5:$AK$2936,5,FALSE),0) -> 0 | H44: =IFERROR(VLOOKUP($A44,Filtro!$A$5:$AK$2936,6,FALSE),0) -> 0 | I44: =IFERROR(VLOOKUP($A44,Filtro!$A$5:$AK$2936,7,FALSE),0) -> 0 | J44: =IFERROR(VLOOKUP($A44,Filtro!$A$5:$AK$2936,8,FALSE),0) -> 0 | K44: =IFERROR(VLOOKUP($A44,Filtro!$A$5:$AK$2936,9,FALSE),0) -> 0 | L44: =IFERROR(VLOOKUP($A44,Filtro!$A$5:$AK$2936,10,FALSE),0) -> 0 | M44: =IFERROR(VLOOKUP($A44,Filtro!$A$5:$AK$2936,11,FALSE),0) -> 0 | N44: =IFERROR(VLOOKUP($A44,Filtro!$A$5:$AK$2936,12,FALSE),0) -> 0 | O44: =IFERROR(VLOOKUP($A44,Filtro!$A$5:$AK$2936,13,FALSE),0) -> 0 | P44: =IFERROR(VLOOKUP($A44,Filtro!$A$5:$AK$2936,14,FALSE),0) -> 0 | Q44: =IFERROR(VLOOKUP($A44,Filtro!$A$5:$AK$2936,15,FALSE),0) -> 0 | R44: =IFERROR(VLOOKUP($A44,Filtro!$A$5:$AK$2936,16,FALSE),0) -> 0 | S44: =IFERROR(VLOOKUP($A44,Filtro!$A$5:$AK$2936,17,FALSE),0) -> 0 | T44: =IFERROR(VLOOKUP($A44,Filtro!$A$5:$AK$2936,18,FALSE),0) -> 0 | U44: =IFERROR(VLOOKUP($A44,Filtro!$A$5:$AK$2936,19,FALSE),0) -> 0 | V44: =IFERROR(VLOOKUP($A44,Filtro!$A$5:$AK$2936,20,FALSE),0) -> 0 | W44: =IFERROR(VLOOKUP($A44,Filtro!$A$5:$AK$2936,21,FALSE),0) -> 0 | X44: =IFERROR(VLOOKUP($A44,Filtro!$A$5:$AK$2936,22,FALSE),0) -> 0 | Y44: =IFERROR(VLOOKUP($A44,Filtro!$A$5:$AK$2936,23,FALSE),0) -> 0 | Z44: =IFERROR(VLOOKUP($A44,Filtro!$A$5:$AK$2936,24,FALSE),0) -> 0 | AA44: =IFERROR(VLOOKUP($A44,Filtro!$A$5:$AK$2936,25,FALSE),0) -> 0 | AB44: =IFERROR(VLOOKUP($A44,Filtro!$A$5:$AK$2936,26,FALSE),0) -> 0 | AC44: =IFERROR(VLOOKUP($A44,Filtro!$A$5:$AK$2936,27,FALSE),0) -> 0 | AD44: =IFERROR(VLOOKUP($A44,Filtro!$A$5:$AK$2936,28,FALSE),0) -> 0 | AE44: =IFERROR(VLOOKUP($A44,Filtro!$A$5:$AK$2936,29,FALSE),0) -> 0 | AF44: =IFERROR(VLOOKUP($A44,Filtro!$A$5:$AK$2936,30,FALSE),0) -> 0 | AG44: =IFERROR(VLOOKUP($A44,Filtro!$A$5:$AK$2936,31,FALSE),0) -> 0 | AH44: =IFERROR(VLOOKUP($A44,Filtro!$A$5:$AK$2936,32,FALSE),0) -> 0 | AI44: =IFERROR(VLOOKUP($A44,Filtro!$A$5:$AK$2936,33,FALSE),0) -> 0 | AJ44: =IFERROR(VLOOKUP($A44,Filtro!$A$5:$AK$2936,34,FALSE),0) -> 0 | AK44: =IFERROR(VLOOKUP($A44,Filtro!$A$5:$AK$2936,35,FALSE),0) -> 0 | AL44: =IFERROR(VLOOKUP($A44,Filtro!$A$5:$AK$2936,36,FALSE),0) -> 1203650 | AM44: =IFERROR(VLOOKUP($A44,Filtro!$A$5:$AK$2936,37,FALSE),0) -> 0
A45: 01014313 | B45: 0101326 | C45: Consulta Médica de Especialidad en Nefrología Adulto | D45: =IFERROR(VLOOKUP($A45,Filtro!$A$5:$AK$2936,2,FALSE),0) -> 7672 | E45: =IFERROR(VLOOKUP($A45,Filtro!$A$5:$AK$2936,3,FALSE),0) -> 7670 | F45: =IFERROR(VLOOKUP($A45,Filtro!$A$5:$AK$2936,4,FALSE),0) -> 7670 | G45: =IFERROR(VLOOKUP($A45,Filtro!$A$5:$AK$2936,5,FALSE),0) -> 0 | H45: =IFERROR(VLOOKUP($A45,Filtro!$A$5:$AK$2936,6,FALSE),0) -> 2 | I45: =IFERROR(VLOOKUP($A45,Filtro!$A$5:$AK$2936,7,FALSE),0) -> 0 | J45: =IFERROR(VLOOKUP($A45,Filtro!$A$5:$AK$2936,8,FALSE),0) -> 0 | K45: =IFERROR(VLOOKUP($A45,Filtro!$A$5:$AK$2936,9,FALSE),0) -> 0 | L45: =IFERROR(VLOOKUP($A45,Filtro!$A$5:$AK$2936,10,FALSE),0) -> 0 | M45: =IFERROR(VLOOKUP($A45,Filtro!$A$5:$AK$2936,11,FALSE),0) -> 0 | N45: =IFERROR(VLOOKUP($A45,Filtro!$A$5:$AK$2936,12,FALSE),0) -> 0 | O45: =IFERROR(VLOOKUP($A45,Filtro!$A$5:$AK$2936,13,FALSE),0) -> 0 | P45: =IFERROR(VLOOKUP($A45,Filtro!$A$5:$AK$2936,14,FALSE),0) -> 0 | Q45: =IFERROR(VLOOKUP($A45,Filtro!$A$5:$AK$2936,15,FALSE),0) -> 0 | R45: =IFERROR(VLOOKUP($A45,Filtro!$A$5:$AK$2936,16,FALSE),0) -> 0 | S45: =IFERROR(VLOOKUP($A45,Filtro!$A$5:$AK$2936,17,FALSE),0) -> 0 | T45: =IFERROR(VLOOKUP($A45,Filtro!$A$5:$AK$2936,18,FALSE),0) -> 0 | U45: =IFERROR(VLOOKUP($A45,Filtro!$A$5:$AK$2936,19,FALSE),0) -> 0 | V45: =IFERROR(VLOOKUP($A45,Filtro!$A$5:$AK$2936,20,FALSE),0) -> 0 | W45: =IFERROR(VLOOKUP($A45,Filtro!$A$5:$AK$2936,21,FALSE),0) -> 0 | X45: =IFERROR(VLOOKUP($A45,Filtro!$A$5:$AK$2936,22,FALSE),0) -> 0 | Y45: =IFERROR(VLOOKUP($A45,Filtro!$A$5:$AK$2936,23,FALSE),0) -> 0 | Z45: =IFERROR(VLOOKUP($A45,Filtro!$A$5:$AK$2936,24,FALSE),0) -> 0 | AA45: =IFERROR(VLOOKUP($A45,Filtro!$A$5:$AK$2936,25,FALSE),0) -> 0 | AB45: =IFERROR(VLOOKUP($A45,Filtro!$A$5:$AK$2936,26,FALSE),0) -> 0 | AC45: =IFERROR(VLOOKUP($A45,Filtro!$A$5:$AK$2936,27,FALSE),0) -> 7672 | AD45: =IFERROR(VLOOKUP($A45,Filtro!$A$5:$AK$2936,28,FALSE),0) -> 0 | AE45: =IFERROR(VLOOKUP($A45,Filtro!$A$5:$AK$2936,29,FALSE),0) -> 0 | AF45: =IFERROR(VLOOKUP($A45,Filtro!$A$5:$AK$2936,30,FALSE),0) -> 0 | AG45: =IFERROR(VLOOKUP($A45,Filtro!$A$5:$AK$2936,31,FALSE),0) -> 0 | AH45: =IFERROR(VLOOKUP($A45,Filtro!$A$5:$AK$2936,32,FALSE),0) -> 0 | AI45: =IFERROR(VLOOKUP($A45,Filtro!$A$5:$AK$2936,33,FALSE),0) -> 0 | AJ45: =IFERROR(VLOOKUP($A45,Filtro!$A$5:$AK$2936,34,FALSE),0) -> 0 | AK45: =IFERROR(VLOOKUP($A45,Filtro!$A$5:$AK$2936,35,FALSE),0) -> 0 | AL45: =IFERROR(VLOOKUP($A45,Filtro!$A$5:$AK$2936,36,FALSE),0) -> 1203650 | AM45: =IFERROR(VLOOKUP($A45,Filtro!$A$5:$AK$2936,37,FALSE),0) -> 69413500
A46: 01014314 | B46: 0101327 | C46: Consulta Médica de Especialidad en Nefrología Pediátrico | D46: =IFERROR(VLOOKUP($A46,Filtro!$A$5:$AK$2936,2,FALSE),0) -> 1332 | E46: =IFERROR(VLOOKUP($A46,Filtro!$A$5:$AK$2936,3,FALSE),0) -> 1324 | F46: =IFERROR(VLOOKUP($A46,Filtro!$A$5:$AK$2936,4,FALSE),0) -> 1324 | G46: =IFERROR(VLOOKUP($A46,Filtro!$A$5:$AK$2936,5,FALSE),0) -> 0 | H46: =IFERROR(VLOOKUP($A46,Filtro!$A$5:$AK$2936,6,FALSE),0) -> 8 | I46: =IFERROR(VLOOKUP($A46,Filtro!$A$5:$AK$2936,7,FALSE),0) -> 0 | J46: =IFERROR(VLOOKUP($A46,Filtro!$A$5:$AK$2936,8,FALSE),0) -> 0 | K46: =IFERROR(VLOOKUP($A46,Filtro!$A$5:$AK$2936,9,FALSE),0) -> 0 | L46: =IFERROR(VLOOKUP($A46,Filtro!$A$5:$AK$2936,10,FALSE),0) -> 0 | M46: =IFERROR(VLOOKUP($A46,Filtro!$A$5:$AK$2936,11,FALSE),0) -> 0 | N46: =IFERROR(VLOOKUP($A46,Filtro!$A$5:$AK$2936,12,FALSE),0) -> 0 | O46: =IFERROR(VLOOKUP($A46,Filtro!$A$5:$AK$2936,13,FALSE),0) -> 0 | P46: =IFERROR(VLOOKUP($A46,Filtro!$A$5:$AK$2936,14,FALSE),0) -> 0 | Q46: =IFERROR(VLOOKUP($A46,Filtro!$A$5:$AK$2936,15,FALSE),0) -> 0 | R46: =IFERROR(VLOOKUP($A46,Filtro!$A$5:$AK$2936,16,FALSE),0) -> 0 | S46: =IFERROR(VLOOKUP($A46,Filtro!$A$5:$AK$2936,17,FALSE),0) -> 0 | T46: =IFERROR(VLOOKUP($A46,Filtro!$A$5:$AK$2936,18,FALSE),0) -> 0 | U46: =IFERROR(VLOOKUP($A46,Filtro!$A$5:$AK$2936,19,FALSE),0) -> 0 | V46: =IFERROR(VLOOKUP($A46,Filtro!$A$5:$AK$2936,20,FALSE),0) -> 0 | W46: =IFERROR(VLOOKUP($A46,Filtro!$A$5:$AK$2936,21,FALSE),0) -> 0 | X46: =IFERROR(VLOOKUP($A46,Filtro!$A$5:$AK$2936,22,FALSE),0) -> 0 | Y46: =IFERROR(VLOOKUP($A46,Filtro!$A$5:$AK$2936,23,FALSE),0) -> 0 | Z46: =IFERROR(VLOOKUP($A46,Filtro!$A$5:$AK$2936,24,FALSE),0) -> 0 | AA46: =IFERROR(VLOOKUP($A46,Filtro!$A$5:$AK$2936,25,FALSE),0) -> 0 | AB46: =IFERROR(VLOOKUP($A46,Filtro!$A$5:$AK$2936,26,FALSE),0) -> 0 | AC46: =IFERROR(VLOOKUP($A46,Filtro!$A$5:$AK$2936,27,FALSE),0) -> 1332 | AD46: =IFERROR(VLOOKUP($A46,Filtro!$A$5:$AK$2936,28,FALSE),0) -> 0 | AE46: =IFERROR(VLOOKUP($A46,Filtro!$A$5:$AK$2936,29,FALSE),0) -> 0 | AF46: =IFERROR(VLOOKUP($A46,Filtro!$A$5:$AK$2936,30,FALSE),0) -> 0 | AG46: =IFERROR(VLOOKUP($A46,Filtro!$A$5:$AK$2936,31,FALSE),0) -> 0 | AH46: =IFERROR(VLOOKUP($A46,Filtro!$A$5:$AK$2936,32,FALSE),0) -> 0 | AI46: =IFERROR(VLOOKUP($A46,Filtro!$A$5:$AK$2936,33,FALSE),0) -> 0 | AJ46: =IFERROR(VLOOKUP($A46,Filtro!$A$5:$AK$2936,34,FALSE),0) -> 0 | AK46: =IFERROR(VLOOKUP($A46,Filtro!$A$5:$AK$2936,35,FALSE),0) -> 0 | AL46: =IFERROR(VLOOKUP($A46,Filtro!$A$5:$AK$2936,36,FALSE),0) -> 1203650 | AM46: =IFERROR(VLOOKUP($A46,Filtro!$A$5:$AK$2936,37,FALSE),0) -> 11982200
A47: 01014315 | B47: 0101328 | C47: Consulta Médica de Especialidad en Neonatología | D47: =IFERROR(VLOOKUP($A47,Filtro!$A$5:$AK$2936,2,FALSE),0) -> 1524 | E47: =IFERROR(VLOOKUP($A47,Filtro!$A$5:$AK$2936,3,FALSE),0) -> 1517 | F47: =IFERROR(VLOOKUP($A47,Filtro!$A$5:$AK$2936,4,FALSE),0) -> 1517 | G47: =IFERROR(VLOOKUP($A47,Filtro!$A$5:$AK$2936,5,FALSE),0) -> 0 | H47: =IFERROR(VLOOKUP($A47,Filtro!$A$5:$AK$2936,6,FALSE),0) -> 7 | I47: =IFERROR(VLOOKUP($A47,Filtro!$A$5:$AK$2936,7,FALSE),0) -> 0 | J47: =IFERROR(VLOOKUP($A47,Filtro!$A$5:$AK$2936,8,FALSE),0) -> 0 | K47: =IFERROR(VLOOKUP($A47,Filtro!$A$5:$AK$2936,9,FALSE),0) -> 0 | L47: =IFERROR(VLOOKUP($A47,Filtro!$A$5:$AK$2936,10,FALSE),0) -> 0 | M47: =IFERROR(VLOOKUP($A47,Filtro!$A$5:$AK$2936,11,FALSE),0) -> 0 | N47: =IFERROR(VLOOKUP($A47,Filtro!$A$5:$AK$2936,12,FALSE),0) -> 0 | O47: =IFERROR(VLOOKUP($A47,Filtro!$A$5:$AK$2936,13,FALSE),0) -> 0 | P47: =IFERROR(VLOOKUP($A47,Filtro!$A$5:$AK$2936,14,FALSE),0) -> 0 | Q47: =IFERROR(VLOOKUP($A47,Filtro!$A$5:$AK$2936,15,FALSE),0) -> 0 | R47: =IFERROR(VLOOKUP($A47,Filtro!$A$5:$AK$2936,16,FALSE),0) -> 0 | S47: =IFERROR(VLOOKUP($A47,Filtro!$A$5:$AK$2936,17,FALSE),0) -> 0 | T47: =IFERROR(VLOOKUP($A47,Filtro!$A$5:$AK$2936,18,FALSE),0) -> 0 | U47: =IFERROR(VLOOKUP($A47,Filtro!$A$5:$AK$2936,19,FALSE),0) -> 0 | V47: =IFERROR(VLOOKUP($A47,Filtro!$A$5:$AK$2936,20,FALSE),0) -> 0 | W47: =IFERROR(VLOOKUP($A47,Filtro!$A$5:$AK$2936,21,FALSE),0) -> 0 | X47: =IFERROR(VLOOKUP($A47,Filtro!$A$5:$AK$2936,22,FALSE),0) -> 0 | Y47: =IFERROR(VLOOKUP($A47,Filtro!$A$5:$AK$2936,23,FALSE),0) -> 0 | Z47: =IFERROR(VLOOKUP($A47,Filtro!$A$5:$AK$2936,24,FALSE),0) -> 0 | AA47: =IFERROR(VLOOKUP($A47,Filtro!$A$5:$AK$2936,25,FALSE),0) -> 0 | AB47: =IFERROR(VLOOKUP($A47,Filtro!$A$5:$AK$2936,26,FALSE),0) -> 0 | AC47: =IFERROR(VLOOKUP($A47,Filtro!$A$5:$AK$2936,27,FALSE),0) -> 1524 | AD47: =IFERROR(VLOOKUP($A47,Filtro!$A$5:$AK$2936,28,FALSE),0) -> 0 | AE47: =IFERROR(VLOOKUP($A47,Filtro!$A$5:$AK$2936,29,FALSE),0) -> 0 | AF47: =IFERROR(VLOOKUP($A47,Filtro!$A$5:$AK$2936,30,FALSE),0) -> 0 | AG47: =IFERROR(VLOOKUP($A47,Filtro!$A$5:$AK$2936,31,FALSE),0) -> 0 | AH47: =IFERROR(VLOOKUP($A47,Filtro!$A$5:$AK$2936,32,FALSE),0) -> 0 | AI47: =IFERROR(VLOOKUP($A47,Filtro!$A$5:$AK$2936,33,FALSE),0) -> 0 | AJ47: =IFERROR(VLOOKUP($A47,Filtro!$A$5:$AK$2936,34,FALSE),0) -> 0 | AK47: =IFERROR(VLOOKUP($A47,Filtro!$A$5:$AK$2936,35,FALSE),0) -> 0 | AL47: =IFERROR(VLOOKUP($A47,Filtro!$A$5:$AK$2936,36,FALSE),0) -> 1203650 | AM47: =IFERROR(VLOOKUP($A47,Filtro!$A$5:$AK$2936,37,FALSE),0) -> 13728850
A48: 01014316 | B48: 0101329 | C48: Consulta Médica de Especialidad en Anestesiología | D48: =IFERROR(VLOOKUP($A48,Filtro!$A$5:$AK$2936,2,FALSE),0) -> 5187 | E48: =IFERROR(VLOOKUP($A48,Filtro!$A$5:$AK$2936,3,FALSE),0) -> 5186 | F48: =IFERROR(VLOOKUP($A48,Filtro!$A$5:$AK$2936,4,FALSE),0) -> 5186 | G48: =IFERROR(VLOOKUP($A48,Filtro!$A$5:$AK$2936,5,FALSE),0) -> 0 | H48: =IFERROR(VLOOKUP($A48,Filtro!$A$5:$AK$2936,6,FALSE),0) -> 1 | I48: =IFERROR(VLOOKUP($A48,Filtro!$A$5:$AK$2936,7,FALSE),0) -> 0 | J48: =IFERROR(VLOOKUP($A48,Filtro!$A$5:$AK$2936,8,FALSE),0) -> 0 | K48: =IFERROR(VLOOKUP($A48,Filtro!$A$5:$AK$2936,9,FALSE),0) -> 0 | L48: =IFERROR(VLOOKUP($A48,Filtro!$A$5:$AK$2936,10,FALSE),0) -> 0 | M48: =IFERROR(VLOOKUP($A48,Filtro!$A$5:$AK$2936,11,FALSE),0) -> 0 | N48: =IFERROR(VLOOKUP($A48,Filtro!$A$5:$AK$2936,12,FALSE),0) -> 0 | O48: =IFERROR(VLOOKUP($A48,Filtro!$A$5:$AK$2936,13,FALSE),0) -> 0 | P48: =IFERROR(VLOOKUP($A48,Filtro!$A$5:$AK$2936,14,FALSE),0) -> 0 | Q48: =IFERROR(VLOOKUP($A48,Filtro!$A$5:$AK$2936,15,FALSE),0) -> 0 | R48: =IFERROR(VLOOKUP($A48,Filtro!$A$5:$AK$2936,16,FALSE),0) -> 0 | S48: =IFERROR(VLOOKUP($A48,Filtro!$A$5:$AK$2936,17,FALSE),0) -> 0 | T48: =IFERROR(VLOOKUP($A48,Filtro!$A$5:$AK$2936,18,FALSE),0) -> 0 | U48: =IFERROR(VLOOKUP($A48,Filtro!$A$5:$AK$2936,19,FALSE),0) -> 0 | V48: =IFERROR(VLOOKUP($A48,Filtro!$A$5:$AK$2936,20,FALSE),0) -> 0 | W48: =IFERROR(VLOOKUP($A48,Filtro!$A$5:$AK$2936,21,FALSE),0) -> 0 | X48: =IFERROR(VLOOKUP($A48,Filtro!$A$5:$AK$2936,22,FALSE),0) -> 0 | Y48: =IFERROR(VLOOKUP($A48,Filtro!$A$5:$AK$2936,23,FALSE),0) -> 0 | Z48: =IFERROR(VLOOKUP($A48,Filtro!$A$5:$AK$2936,24,FALSE),0) -> 0 | AA48: =IFERROR(VLOOKUP($A48,Filtro!$A$5:$AK$2936,25,FALSE),0) -> 0 | AB48: =IFERROR(VLOOKUP($A48,Filtro!$A$5:$AK$2936,26,FALSE),0) -> 0 | AC48: =IFERROR(VLOOKUP($A48,Filtro!$A$5:$AK$2936,27,FALSE),0) -> 5187 | AD48: =IFERROR(VLOOKUP($A48,Filtro!$A$5:$AK$2936,28,FALSE),0) -> 0 | AE48: =IFERROR(VLOOKUP($A48,Filtro!$A$5:$AK$2936,29,FALSE),0) -> 0 | AF48: =IFERROR(VLOOKUP($A48,Filtro!$A$5:$AK$2936,30,FALSE),0) -> 0 | AG48: =IFERROR(VLOOKUP($A48,Filtro!$A$5:$AK$2936,31,FALSE),0) -> 0 | AH48: =IFERROR(VLOOKUP($A48,Filtro!$A$5:$AK$2936,32,FALSE),0) -> 0 | AI48: =IFERROR(VLOOKUP($A48,Filtro!$A$5:$AK$2936,33,FALSE),0) -> 0 | AJ48: =IFERROR(VLOOKUP($A48,Filtro!$A$5:$AK$2936,34,FALSE),0) -> 0 | AK48: =IFERROR(VLOOKUP($A48,Filtro!$A$5:$AK$2936,35,FALSE),0) -> 0 | AL48: =IFERROR(VLOOKUP($A48,Filtro!$A$5:$AK$2936,36,FALSE),0) -> 1203650 | AM48: =IFERROR(VLOOKUP($A48,Filtro!$A$5:$AK$2936,37,FALSE),0) -> 46933300
A49: 01014703 | B49: 0101330 | C49: Consulta Médica de Especialidad en Medicina de Urgencia | D49: =IFERROR(VLOOKUP($A49,Filtro!$A$5:$AK$2936,2,FALSE),0) -> 0 | E49: =IFERROR(VLOOKUP($A49,Filtro!$A$5:$AK$2936,3,FALSE),0) -> 0 | F49: =IFERROR(VLOOKUP($A49,Filtro!$A$5:$AK$2936,4,FALSE),0) -> 0 | G49: =IFERROR(VLOOKUP($A49,Filtro!$A$5:$AK$2936,5,FALSE),0) -> 0 | H49: =IFERROR(VLOOKUP($A49,Filtro!$A$5:$AK$2936,6,FALSE),0) -> 0 | I49: =IFERROR(VLOOKUP($A49,Filtro!$A$5:$AK$2936,7,FALSE),0) -> 0 | J49: =IFERROR(VLOOKUP($A49,Filtro!$A$5:$AK$2936,8,FALSE),0) -> 0 | K49: =IFERROR(VLOOKUP($A49,Filtro!$A$5:$AK$2936,9,FALSE),0) -> 0 | L49: =IFERROR(VLOOKUP($A49,Filtro!$A$5:$AK$2936,10,FALSE),0) -> 0 | M49: =IFERROR(VLOOKUP($A49,Filtro!$A$5:$AK$2936,11,FALSE),0) -> 0 | N49: =IFERROR(VLOOKUP($A49,Filtro!$A$5:$AK$2936,12,FALSE),0) -> 0 | O49: =IFERROR(VLOOKUP($A49,Filtro!$A$5:$AK$2936,13,FALSE),0) -> 0 | P49: =IFERROR(VLOOKUP($A49,Filtro!$A$5:$AK$2936,14,FALSE),0) -> 0 | Q49: =IFERROR(VLOOKUP($A49,Filtro!$A$5:$AK$2936,15,FALSE),0) -> 0 | R49: =IFERROR(VLOOKUP($A49,Filtro!$A$5:$AK$2936,16,FALSE),0) -> 0 | S49: =IFERROR(VLOOKUP($A49,Filtro!$A$5:$AK$2936,17,FALSE),0) -> 0 | T49: =IFERROR(VLOOKUP($A49,Filtro!$A$5:$AK$2936,18,FALSE),0) -> 0 | U49: =IFERROR(VLOOKUP($A49,Filtro!$A$5:$AK$2936,19,FALSE),0) -> 0 | V49: =IFERROR(VLOOKUP($A49,Filtro!$A$5:$AK$2936,20,FALSE),0) -> 0 | W49: =IFERROR(VLOOKUP($A49,Filtro!$A$5:$AK$2936,21,FALSE),0) -> 0 | X49: =IFERROR(VLOOKUP($A49,Filtro!$A$5:$AK$2936,22,FALSE),0) -> 0 | Y49: =IFERROR(VLOOKUP($A49,Filtro!$A$5:$AK$2936,23,FALSE),0) -> 0 | Z49: =IFERROR(VLOOKUP($A49,Filtro!$A$5:$AK$2936,24,FALSE),0) -> 0 | AA49: =IFERROR(VLOOKUP($A49,Filtro!$A$5:$AK$2936,25,FALSE),0) -> 0 | AB49: =IFERROR(VLOOKUP($A49,Filtro!$A$5:$AK$2936,26,FALSE),0) -> 0 | AC49: =IFERROR(VLOOKUP($A49,Filtro!$A$5:$AK$2936,27,FALSE),0) -> 0 | AD49: =IFERROR(VLOOKUP($A49,Filtro!$A$5:$AK$2936,28,FALSE),0) -> 0 | AE49: =IFERROR(VLOOKUP($A49,Filtro!$A$5:$AK$2936,29,FALSE),0) -> 0 | AF49: =IFERROR(VLOOKUP($A49,Filtro!$A$5:$AK$2936,30,FALSE),0) -> 0 | AG49: =IFERROR(VLOOKUP($A49,Filtro!$A$5:$AK$2936,31,FALSE),0) -> 0 | AH49: =IFERROR(VLOOKUP($A49,Filtro!$A$5:$AK$2936,32,FALSE),0) -> 0 | AI49: =IFERROR(VLOOKUP($A49,Filtro!$A$5:$AK$2936,33,FALSE),0) -> 0 | AJ49: =IFERROR(VLOOKUP($A49,Filtro!$A$5:$AK$2936,34,FALSE),0) -> 0 | AK49: =IFERROR(VLOOKUP($A49,Filtro!$A$5:$AK$2936,35,FALSE),0) -> 0 | AL49: =IFERROR(VLOOKUP($A49,Filtro!$A$5:$AK$2936,36,FALSE),0) -> 27150 | AM49: =IFERROR(VLOOKUP($A49,Filtro!$A$5:$AK$2936,37,FALSE),0) -> 0
A50: 01014317 | B50: 0101331 | C50: Consulta Médica de Especialidad en Radioterapia Oncológica | D50: =IFERROR(VLOOKUP($A50,Filtro!$A$5:$AK$2936,2,FALSE),0) -> 0 | E50: =IFERROR(VLOOKUP($A50,Filtro!$A$5:$AK$2936,3,FALSE),0) -> 0 | F50: =IFERROR(VLOOKUP($A50,Filtro!$A$5:$AK$2936,4,FALSE),0) -> 0 | G50: =IFERROR(VLOOKUP($A50,Filtro!$A$5:$AK$2936,5,FALSE),0) -> 0 | H50: =IFERROR(VLOOKUP($A50,Filtro!$A$5:$AK$2936,6,FALSE),0) -> 0 | I50: =IFERROR(VLOOKUP($A50,Filtro!$A$5:$AK$2936,7,FALSE),0) -> 0 | J50: =IFERROR(VLOOKUP($A50,Filtro!$A$5:$AK$2936,8,FALSE),0) -> 0 | K50: =IFERROR(VLOOKUP($A50,Filtro!$A$5:$AK$2936,9,FALSE),0) -> 0 | L50: =IFERROR(VLOOKUP($A50,Filtro!$A$5:$AK$2936,10,FALSE),0) -> 0 | M50: =IFERROR(VLOOKUP($A50,Filtro!$A$5:$AK$2936,11,FALSE),0) -> 0 | N50: =IFERROR(VLOOKUP($A50,Filtro!$A$5:$AK$2936,12,FALSE),0) -> 0 | O50: =IFERROR(VLOOKUP($A50,Filtro!$A$5:$AK$2936,13,FALSE),0) -> 0 | P50: =IFERROR(VLOOKUP($A50,Filtro!$A$5:$AK$2936,14,FALSE),0) -> 0 | Q50: =IFERROR(VLOOKUP($A50,Filtro!$A$5:$AK$2936,15,FALSE),0) -> 0 | R50: =IFERROR(VLOOKUP($A50,Filtro!$A$5:$AK$2936,16,FALSE),0) -> 0 | S50: =IFERROR(VLOOKUP($A50,Filtro!$A$5:$AK$2936,17,FALSE),0) -> 0 | T50: =IFERROR(VLOOKUP($A50,Filtro!$A$5:$AK$2936,18,FALSE),0) -> 0 | U50: =IFERROR(VLOOKUP($A50,Filtro!$A$5:$AK$2936,19,FALSE),0) -> 0 | V50: =IFERROR(VLOOKUP($A50,Filtro!$A$5:$AK$2936,20,FALSE),0) -> 0 | W50: =IFERROR(VLOOKUP($A50,Filtro!$A$5:$AK$2936,21,FALSE),0) -> 0 | X50: =IFERROR(VLOOKUP($A50,Filtro!$A$5:$AK$2936,22,FALSE),0) -> 0 | Y50: =IFERROR(VLOOKUP($A50,Filtro!$A$5:$AK$2936,23,FALSE),0) -> 0 | Z50: =IFERROR(VLOOKUP($A50,Filtro!$A$5:$AK$2936,24,FALSE),0) -> 0 | AA50: =IFERROR(VLOOKUP($A50,Filtro!$A$5:$AK$2936,25,FALSE),0) -> 0 | AB50: =IFERROR(VLOOKUP($A50,Filtro!$A$5:$AK$2936,26,FALSE),0) -> 0 | AC50: =IFERROR(VLOOKUP($A50,Filtro!$A$5:$AK$2936,27,FALSE),0) -> 0 | AD50: =IFERROR(VLOOKUP($A50,Filtro!$A$5:$AK$2936,28,FALSE),0) -> 0 | AE50: =IFERROR(VLOOKUP($A50,Filtro!$A$5:$AK$2936,29,FALSE),0) -> 0 | AF50: =IFERROR(VLOOKUP($A50,Filtro!$A$5:$AK$2936,30,FALSE),0) -> 0 | AG50: =IFERROR(VLOOKUP($A50,Filtro!$A$5:$AK$2936,31,FALSE),0) -> 0 | AH50: =IFERROR(VLOOKUP($A50,Filtro!$A$5:$AK$2936,32,FALSE),0) -> 0 | AI50: =IFERROR(VLOOKUP($A50,Filtro!$A$5:$AK$2936,33,FALSE),0) -> 0 | AJ50: =IFERROR(VLOOKUP($A50,Filtro!$A$5:$AK$2936,34,FALSE),0) -> 0 | AK50: =IFERROR(VLOOKUP($A50,Filtro!$A$5:$AK$2936,35,FALSE),0) -> 0 | AL50: =IFERROR(VLOOKUP($A50,Filtro!$A$5:$AK$2936,36,FALSE),0) -> 1203650 | AM50: =IFERROR(VLOOKUP($A50,Filtro!$A$5:$AK$2936,37,FALSE),0) -> 0
A51: 01014318 | B51: 0101332 | C51: Consulta Médica de Especialidad en Ginecología Pediátrica y de la Adolescencia | D51: =IFERROR(VLOOKUP($A51,Filtro!$A$5:$AK$2936,2,FALSE),0) -> 379 | E51: =IFERROR(VLOOKUP($A51,Filtro!$A$5:$AK$2936,3,FALSE),0) -> 378 | F51: =IFERROR(VLOOKUP($A51,Filtro!$A$5:$AK$2936,4,FALSE),0) -> 378 | G51: =IFERROR(VLOOKUP($A51,Filtro!$A$5:$AK$2936,5,FALSE),0) -> 0 | H51: =IFERROR(VLOOKUP($A51,Filtro!$A$5:$AK$2936,6,FALSE),0) -> 1 | I51: =IFERROR(VLOOKUP($A51,Filtro!$A$5:$AK$2936,7,FALSE),0) -> 0 | J51: =IFERROR(VLOOKUP($A51,Filtro!$A$5:$AK$2936,8,FALSE),0) -> 0 | K51: =IFERROR(VLOOKUP($A51,Filtro!$A$5:$AK$2936,9,FALSE),0) -> 0 | L51: =IFERROR(VLOOKUP($A51,Filtro!$A$5:$AK$2936,10,FALSE),0) -> 0 | M51: =IFERROR(VLOOKUP($A51,Filtro!$A$5:$AK$2936,11,FALSE),0) -> 0 | N51: =IFERROR(VLOOKUP($A51,Filtro!$A$5:$AK$2936,12,FALSE),0) -> 0 | O51: =IFERROR(VLOOKUP($A51,Filtro!$A$5:$AK$2936,13,FALSE),0) -> 0 | P51: =IFERROR(VLOOKUP($A51,Filtro!$A$5:$AK$2936,14,FALSE),0) -> 0 | Q51: =IFERROR(VLOOKUP($A51,Filtro!$A$5:$AK$2936,15,FALSE),0) -> 0 | R51: =IFERROR(VLOOKUP($A51,Filtro!$A$5:$AK$2936,16,FALSE),0) -> 0 | S51: =IFERROR(VLOOKUP($A51,Filtro!$A$5:$AK$2936,17,FALSE),0) -> 0 | T51: =IFERROR(VLOOKUP($A51,Filtro!$A$5:$AK$2936,18,FALSE),0) -> 0 | U51: =IFERROR(VLOOKUP($A51,Filtro!$A$5:$AK$2936,19,FALSE),0) -> 0 | V51: =IFERROR(VLOOKUP($A51,Filtro!$A$5:$AK$2936,20,FALSE),0) -> 0 | W51: =IFERROR(VLOOKUP($A51,Filtro!$A$5:$AK$2936,21,FALSE),0) -> 0 | X51: =IFERROR(VLOOKUP($A51,Filtro!$A$5:$AK$2936,22,FALSE),0) -> 0 | Y51: =IFERROR(VLOOKUP($A51,Filtro!$A$5:$AK$2936,23,FALSE),0) -> 0 | Z51: =IFERROR(VLOOKUP($A51,Filtro!$A$5:$AK$2936,24,FALSE),0) -> 0 | AA51: =IFERROR(VLOOKUP($A51,Filtro!$A$5:$AK$2936,25,FALSE),0) -> 0 | AB51: =IFERROR(VLOOKUP($A51,Filtro!$A$5:$AK$2936,26,FALSE),0) -> 0 | AC51: =IFERROR(VLOOKUP($A51,Filtro!$A$5:$AK$2936,27,FALSE),0) -> 379 | AD51: =IFERROR(VLOOKUP($A51,Filtro!$A$5:$AK$2936,28,FALSE),0) -> 0 | AE51: =IFERROR(VLOOKUP($A51,Filtro!$A$5:$AK$2936,29,FALSE),0) -> 0 | AF51: =IFERROR(VLOOKUP($A51,Filtro!$A$5:$AK$2936,30,FALSE),0) -> 0 | AG51: =IFERROR(VLOOKUP($A51,Filtro!$A$5:$AK$2936,31,FALSE),0) -> 0 | AH51: =IFERROR(VLOOKUP($A51,Filtro!$A$5:$AK$2936,32,FALSE),0) -> 0 | AI51: =IFERROR(VLOOKUP($A51,Filtro!$A$5:$AK$2936,33,FALSE),0) -> 0 | AJ51: =IFERROR(VLOOKUP($A51,Filtro!$A$5:$AK$2936,34,FALSE),0) -> 0 | AK51: =IFERROR(VLOOKUP($A51,Filtro!$A$5:$AK$2936,35,FALSE),0) -> 0 | AL51: =IFERROR(VLOOKUP($A51,Filtro!$A$5:$AK$2936,36,FALSE),0) -> 1203650 | AM51: =IFERROR(VLOOKUP($A51,Filtro!$A$5:$AK$2936,37,FALSE),0) -> 3420900
A52: 01014704 | B52: 0101333 | C52: Consulta Médica de Especialidad en Medicina Materno Fetal | D52: =IFERROR(VLOOKUP($A52,Filtro!$A$5:$AK$2936,2,FALSE),0) -> 0 | E52: =IFERROR(VLOOKUP($A52,Filtro!$A$5:$AK$2936,3,FALSE),0) -> 0 | F52: =IFERROR(VLOOKUP($A52,Filtro!$A$5:$AK$2936,4,FALSE),0) -> 0 | G52: =IFERROR(VLOOKUP($A52,Filtro!$A$5:$AK$2936,5,FALSE),0) -> 0 | H52: =IFERROR(VLOOKUP($A52,Filtro!$A$5:$AK$2936,6,FALSE),0) -> 0 | I52: =IFERROR(VLOOKUP($A52,Filtro!$A$5:$AK$2936,7,FALSE),0) -> 0 | J52: =IFERROR(VLOOKUP($A52,Filtro!$A$5:$AK$2936,8,FALSE),0) -> 0 | K52: =IFERROR(VLOOKUP($A52,Filtro!$A$5:$AK$2936,9,FALSE),0) -> 0 | L52: =IFERROR(VLOOKUP($A52,Filtro!$A$5:$AK$2936,10,FALSE),0) -> 0 | M52: =IFERROR(VLOOKUP($A52,Filtro!$A$5:$AK$2936,11,FALSE),0) -> 0 | N52: =IFERROR(VLOOKUP($A52,Filtro!$A$5:$AK$2936,12,FALSE),0) -> 0 | O52: =IFERROR(VLOOKUP($A52,Filtro!$A$5:$AK$2936,13,FALSE),0) -> 0 | P52: =IFERROR(VLOOKUP($A52,Filtro!$A$5:$AK$2936,14,FALSE),0) -> 0 | Q52: =IFERROR(VLOOKUP($A52,Filtro!$A$5:$AK$2936,15,FALSE),0) -> 0 | R52: =IFERROR(VLOOKUP($A52,Filtro!$A$5:$AK$2936,16,FALSE),0) -> 0 | S52: =IFERROR(VLOOKUP($A52,Filtro!$A$5:$AK$2936,17,FALSE),0) -> 0 | T52: =IFERROR(VLOOKUP($A52,Filtro!$A$5:$AK$2936,18,FALSE),0) -> 0 | U52: =IFERROR(VLOOKUP($A52,Filtro!$A$5:$AK$2936,19,FALSE),0) -> 0 | V52: =IFERROR(VLOOKUP($A52,Filtro!$A$5:$AK$2936,20,FALSE),0) -> 0 | W52: =IFERROR(VLOOKUP($A52,Filtro!$A$5:$AK$2936,21,FALSE),0) -> 0 | X52: =IFERROR(VLOOKUP($A52,Filtro!$A$5:$AK$2936,22,FALSE),0) -> 0 | Y52: =IFERROR(VLOOKUP($A52,Filtro!$A$5:$AK$2936,23,FALSE),0) -> 0 | Z52: =IFERROR(VLOOKUP($A52,Filtro!$A$5:$AK$2936,24,FALSE),0) -> 0 | AA52: =IFERROR(VLOOKUP($A52,Filtro!$A$5:$AK$2936,25,FALSE),0) -> 0 | AB52: =IFERROR(VLOOKUP($A52,Filtro!$A$5:$AK$2936,26,FALSE),0) -> 0 | AC52: =IFERROR(VLOOKUP($A52,Filtro!$A$5:$AK$2936,27,FALSE),0) -> 0 | AD52: =IFERROR(VLOOKUP($A52,Filtro!$A$5:$AK$2936,28,FALSE),0) -> 0 | AE52: =IFERROR(VLOOKUP($A52,Filtro!$A$5:$AK$2936,29,FALSE),0) -> 0 | AF52: =IFERROR(VLOOKUP($A52,Filtro!$A$5:$AK$2936,30,FALSE),0) -> 0 | AG52: =IFERROR(VLOOKUP($A52,Filtro!$A$5:$AK$2936,31,FALSE),0) -> 0 | AH52: =IFERROR(VLOOKUP($A52,Filtro!$A$5:$AK$2936,32,FALSE),0) -> 0 | AI52: =IFERROR(VLOOKUP($A52,Filtro!$A$5:$AK$2936,33,FALSE),0) -> 0 | AJ52: =IFERROR(VLOOKUP($A52,Filtro!$A$5:$AK$2936,34,FALSE),0) -> 0 | AK52: =IFERROR(VLOOKUP($A52,Filtro!$A$5:$AK$2936,35,FALSE),0) -> 0 | AL52: =IFERROR(VLOOKUP($A52,Filtro!$A$5:$AK$2936,36,FALSE),0) -> 27150 | AM52: =IFERROR(VLOOKUP($A52,Filtro!$A$5:$AK$2936,37,FALSE),0) -> 0
A53: 01014319 | B53: 0101334 | C53: Consulta Médica de Especialidad en Medicina Nuclear | D53: =IFERROR(VLOOKUP($A53,Filtro!$A$5:$AK$2936,2,FALSE),0) -> 0 | E53: =IFERROR(VLOOKUP($A53,Filtro!$A$5:$AK$2936,3,FALSE),0) -> 0 | F53: =IFERROR(VLOOKUP($A53,Filtro!$A$5:$AK$2936,4,FALSE),0) -> 0 | G53: =IFERROR(VLOOKUP($A53,Filtro!$A$5:$AK$2936,5,FALSE),0) -> 0 | H53: =IFERROR(VLOOKUP($A53,Filtro!$A$5:$AK$2936,6,FALSE),0) -> 0 | I53: =IFERROR(VLOOKUP($A53,Filtro!$A$5:$AK$2936,7,FALSE),0) -> 0 | J53: =IFERROR(VLOOKUP($A53,Filtro!$A$5:$AK$2936,8,FALSE),0) -> 0 | K53: =IFERROR(VLOOKUP($A53,Filtro!$A$5:$AK$2936,9,FALSE),0) -> 0 | L53: =IFERROR(VLOOKUP($A53,Filtro!$A$5:$AK$2936,10,FALSE),0) -> 0 | M53: =IFERROR(VLOOKUP($A53,Filtro!$A$5:$AK$2936,11,FALSE),0) -> 0 | N53: =IFERROR(VLOOKUP($A53,Filtro!$A$5:$AK$2936,12,FALSE),0) -> 0 | O53: =IFERROR(VLOOKUP($A53,Filtro!$A$5:$AK$2936,13,FALSE),0) -> 0 | P53: =IFERROR(VLOOKUP($A53,Filtro!$A$5:$AK$2936,14,FALSE),0) -> 0 | Q53: =IFERROR(VLOOKUP($A53,Filtro!$A$5:$AK$2936,15,FALSE),0) -> 0 | R53: =IFERROR(VLOOKUP($A53,Filtro!$A$5:$AK$2936,16,FALSE),0) -> 0 | S53: =IFERROR(VLOOKUP($A53,Filtro!$A$5:$AK$2936,17,FALSE),0) -> 0 | T53: =IFERROR(VLOOKUP($A53,Filtro!$A$5:$AK$2936,18,FALSE),0) -> 0 | U53: =IFERROR(VLOOKUP($A53,Filtro!$A$5:$AK$2936,19,FALSE),0) -> 0 | V53: =IFERROR(VLOOKUP($A53,Filtro!$A$5:$AK$2936,20,FALSE),0) -> 0 | W53: =IFERROR(VLOOKUP($A53,Filtro!$A$5:$AK$2936,21,FALSE),0) -> 0 | X53: =IFERROR(VLOOKUP($A53,Filtro!$A$5:$AK$2936,22,FALSE),0) -> 0 | Y53: =IFERROR(VLOOKUP($A53,Filtro!$A$5:$AK$2936,23,FALSE),0) -> 0 | Z53: =IFERROR(VLOOKUP($A53,Filtro!$A$5:$AK$2936,24,FALSE),0) -> 0 | AA53: =IFERROR(VLOOKUP($A53,Filtro!$A$5:$AK$2936,25,FALSE),0) -> 0 | AB53: =IFERROR(VLOOKUP($A53,Filtro!$A$5:$AK$2936,26,FALSE),0) -> 0 | AC53: =IFERROR(VLOOKUP($A53,Filtro!$A$5:$AK$2936,27,FALSE),0) -> 0 | AD53: =IFERROR(VLOOKUP($A53,Filtro!$A$5:$AK$2936,28,FALSE),0) -> 0 | AE53: =IFERROR(VLOOKUP($A53,Filtro!$A$5:$AK$2936,29,FALSE),0) -> 0 | AF53: =IFERROR(VLOOKUP($A53,Filtro!$A$5:$AK$2936,30,FALSE),0) -> 0 | AG53: =IFERROR(VLOOKUP($A53,Filtro!$A$5:$AK$2936,31,FALSE),0) -> 0 | AH53: =IFERROR(VLOOKUP($A53,Filtro!$A$5:$AK$2936,32,FALSE),0) -> 0 | AI53: =IFERROR(VLOOKUP($A53,Filtro!$A$5:$AK$2936,33,FALSE),0) -> 0 | AJ53: =IFERROR(VLOOKUP($A53,Filtro!$A$5:$AK$2936,34,FALSE),0) -> 0 | AK53: =IFERROR(VLOOKUP($A53,Filtro!$A$5:$AK$2936,35,FALSE),0) -> 0 | AL53: =IFERROR(VLOOKUP($A53,Filtro!$A$5:$AK$2936,36,FALSE),0) -> 1203650 | AM53: =IFERROR(VLOOKUP($A53,Filtro!$A$5:$AK$2936,37,FALSE),0) -> 0
C54: TOTAL ARANCEL MAI | D54: =SUM(D6:D53) -> 308502 | E54: =SUM(E6:E53) -> 307815 | F54: =SUM(F6:F53) -> 307812 | G54: =SUM(G6:G53) -> 3 | H54: =SUM(H6:H53) -> 687 | AB54: =SUM(AB6:AB53) -> 208 | AC54: 306934 | AD54: 1360 | AE54: 8483 | AF54: 0 | AG54: 0 | AH54: 0 | AI54: 0 | AJ54: 0 | AK54: 0 | AM54: =SUM(AM6:AM53) -> 2,785,698,600
C55: OTRAS CONSULTAS MEDICAS
A56: 01010014 | B56: 0101001 | C56: Consulta Medicina General | D56: =IFERROR(VLOOKUP($A56,Filtro!$A$5:$AK$2936,2,FALSE),0) -> 54538 | E56: =IFERROR(VLOOKUP($A56,Filtro!$A$5:$AK$2936,3,FALSE),0) -> 54538 | F56: =IFERROR(VLOOKUP($A56,Filtro!$A$5:$AK$2936,4,FALSE),0) -> 54538 | G56: =IFERROR(VLOOKUP($A56,Filtro!$A$5:$AK$2936,5,FALSE),0) -> 0 | H56: =IFERROR(VLOOKUP($A56,Filtro!$A$5:$AK$2936,6,FALSE),0) -> 0 | I56: =IFERROR(VLOOKUP($A56,Filtro!$A$5:$AK$2936,7,FALSE),0) -> 0 | J56: =IFERROR(VLOOKUP($A56,Filtro!$A$5:$AK$2936,8,FALSE),0) -> 0 | K56: =IFERROR(VLOOKUP($A56,Filtro!$A$5:$AK$2936,9,FALSE),0) -> 0 | L56: =IFERROR(VLOOKUP($A56,Filtro!$A$5:$AK$2936,10,FALSE),0) -> 0 | M56: =IFERROR(VLOOKUP($A56,Filtro!$A$5:$AK$2936,11,FALSE),0) -> 0 | N56: =IFERROR(VLOOKUP($A56,Filtro!$A$5:$AK$2936,12,FALSE),0) -> 0 | O56: =IFERROR(VLOOKUP($A56,Filtro!$A$5:$AK$2936,13,FALSE),0) -> 0 | P56: =IFERROR(VLOOKUP($A56,Filtro!$A$5:$AK$2936,14,FALSE),0) -> 0 | Q56: =IFERROR(VLOOKUP($A56,Filtro!$A$5:$AK$2936,15,FALSE),0) -> 0 | R56: =IFERROR(VLOOKUP($A56,Filtro!$A$5:$AK$2936,16,FALSE),0) -> 0 | S56: =IFERROR(VLOOKUP($A56,Filtro!$A$5:$AK$2936,17,FALSE),0) -> 0 | T56: =IFERROR(VLOOKUP($A56,Filtro!$A$5:$AK$2936,18,FALSE),0) -> 0 | U56: =IFERROR(VLOOKUP($A56,Filtro!$A$5:$AK$2936,19,FALSE),0) -> 0 | V56: =IFERROR(VLOOKUP($A56,Filtro!$A$5:$AK$2936,20,FALSE),0) -> 0 | W56: =IFERROR(VLOOKUP($A56,Filtro!$A$5:$AK$2936,21,FALSE),0) -> 0 | X56: =IFERROR(VLOOKUP($A56,Filtro!$A$5:$AK$2936,22,FALSE),0) -> 0 | Y56: =IFERROR(VLOOKUP($A56,Filtro!$A$5:$AK$2936,23,FALSE),0) -> 0 | Z56: =IFERROR(VLOOKUP($A56,Filtro!$A$5:$AK$2936,24,FALSE),0) -> 0 | AA56: =IFERROR(VLOOKUP($A56,Filtro!$A$5:$AK$2936,25,FALSE),0) -> 0 | AB56: =IFERROR(VLOOKUP($A56,Filtro!$A$5:$AK$2936,26,FALSE),0) -> 0 | AC56: =IFERROR(VLOOKUP($A56,Filtro!$A$5:$AK$2936,27,FALSE),0) -> 54505 | AD56: =IFERROR(VLOOKUP($A56,Filtro!$A$5:$AK$2936,28,FALSE),0) -> 33 | AE56: =IFERROR(VLOOKUP($A56,Filtro!$A$5:$AK$2936,29,FALSE),0) -> 0 | AF56: =IFERROR(VLOOKUP($A56,Filtro!$A$5:$AK$2936,30,FALSE),0) -> 0 | AG56: =IFERROR(VLOOKUP($A56,Filtro!$A$5:$AK$2936,31,FALSE),0) -> 0 | AH56: =IFERROR(VLOOKUP($A56,Filtro!$A$5:$AK$2936,32,FALSE),0) -> 0 | AI56: =IFERROR(VLOOKUP($A56,Filtro!$A$5:$AK$2936,33,FALSE),0) -> 0 | AJ56: =IFERROR(VLOOKUP($A56,Filtro!$A$5:$AK$2936,34,FALSE),0) -> 0 | AK56: =IFERROR(VLOOKUP($A56,Filtro!$A$5:$AK$2936,35,FALSE),0) -> 0 | AL56: =IFERROR(VLOOKUP($A56,Filtro!$A$5:$AK$2936,36,FALSE),0) -> 845,880 | AM56: =IFERROR(VLOOKUP($A56,Filtro!$A$5:$AK$2936,37,FALSE),0) -> 346,861,680
A57: 01014320 | B57: 0101007 | C57: Atención médica del recién nacido en sala de parto o pabellón quirúrgico c/s reanimación cardio-respiratoria | D57: =IFERROR(VLOOKUP($A57,Filtro!$A$5:$AK$2936,2,FALSE),0) -> 3027 | E57: =IFERROR(VLOOKUP($A57,Filtro!$A$5:$AK$2936,3,FALSE),0) -> 2973 | F57: =IFERROR(VLOOKUP($A57,Filtro!$A$5:$AK$2936,4,FALSE),0) -> 2677 | G57: =IFERROR(VLOOKUP($A57,Filtro!$A$5:$AK$2936,5,FALSE),0) -> 296 | H57: =IFERROR(VLOOKUP($A57,Filtro!$A$5:$AK$2936,6,FALSE),0) -> 54 | I57: =IFERROR(VLOOKUP($A57,Filtro!$A$5:$AK$2936,7,FALSE),0) -> 0 | J57: =IFERROR(VLOOKUP($A57,Filtro!$A$5:$AK$2936,8,FALSE),0) -> 0 | K57: =IFERROR(VLOOKUP($A57,Filtro!$A$5:$AK$2936,9,FALSE),0) -> 0 | L57: =IFERROR(VLOOKUP($A57,Filtro!$A$5:$AK$2936,10,FALSE),0) -> 0 | M57: =IFERROR(VLOOKUP($A57,Filtro!$A$5:$AK$2936,11,FALSE),0) -> 0 | N57: =IFERROR(VLOOKUP($A57,Filtro!$A$5:$AK$2936,12,FALSE),0) -> 0 | O57: =IFERROR(VLOOKUP($A57,Filtro!$A$5:$AK$2936,13,FALSE),0) -> 0 | P57: =IFERROR(VLOOKUP($A57,Filtro!$A$5:$AK$2936,14,FALSE),0) -> 0 | Q57: =IFERROR(VLOOKUP($A57,Filtro!$A$5:$AK$2936,15,FALSE),0) -> 0 | R57: =IFERROR(VLOOKUP($A57,Filtro!$A$5:$AK$2936,16,FALSE),0) -> 0 | S57: =IFERROR(VLOOKUP($A57,Filtro!$A$5:$AK$2936,17,FALSE),0) -> 0 | T57: =IFERROR(VLOOKUP($A57,Filtro!$A$5:$AK$2936,18,FALSE),0) -> 0 | U57: =IFERROR(VLOOKUP($A57,Filtro!$A$5:$AK$2936,19,FALSE),0) -> 0 | V57: =IFERROR(VLOOKUP($A57,Filtro!$A$5:$AK$2936,20,FALSE),0) -> 0 | W57: =IFERROR(VLOOKUP($A57,Filtro!$A$5:$AK$2936,21,FALSE),0) -> 0 | X57: =IFERROR(VLOOKUP($A57,Filtro!$A$5:$AK$2936,22,FALSE),0) -> 0 | Y57: =IFERROR(VLOOKUP($A57,Filtro!$A$5:$AK$2936,23,FALSE),0) -> 0 | Z57: =IFERROR(VLOOKUP($A57,Filtro!$A$5:$AK$2936,24,FALSE),0) -> 0 | AA57: =IFERROR(VLOOKUP($A57,Filtro!$A$5:$AK$2936,25,FALSE),0) -> 0 | AB57: =IFERROR(VLOOKUP($A57,Filtro!$A$5:$AK$2936,26,FALSE),0) -> 1507 | AC57: =IFERROR(VLOOKUP($A57,Filtro!$A$5:$AK$2936,27,FALSE),0) -> 766 | AD57: =IFERROR(VLOOKUP($A57,Filtro!$A$5:$AK$2936,28,FALSE),0) -> 754 | AE57: =IFERROR(VLOOKUP($A57,Filtro!$A$5:$AK$2936,29,FALSE),0) -> 0 | AF57: =IFERROR(VLOOKUP($A57,Filtro!$A$5:$AK$2936,30,FALSE),0) -> 0 | AG57: =IFERROR(VLOOKUP($A57,Filtro!$A$5:$AK$2936,31,FALSE),0) -> 0 | AH57: =IFERROR(VLOOKUP($A57,Filtro!$A$5:$AK$2936,32,FALSE),0) -> 0 | AI57: =IFERROR(VLOOKUP($A57,Filtro!$A$5:$AK$2936,33,FALSE),0) -> 0 | AJ57: =IFERROR(VLOOKUP($A57,Filtro!$A$5:$AK$2936,34,FALSE),0) -> 0 | AK57: =IFERROR(VLOOKUP($A57,Filtro!$A$5:$AK$2936,35,FALSE),0) -> 0 | AL57: =IFERROR(VLOOKUP($A57,Filtro!$A$5:$AK$2936,36,FALSE),0) -> 2,233,070 | AM57: =IFERROR(VLOOKUP($A57,Filtro!$A$5:$AK$2936,37,FALSE),0) -> 44,946,830
A58: 01014321 | B58: 0101103 | C58: Consulta en Unidades de Urgencia Hospitalaria | D58: =IFERROR(VLOOKUP($A58,Filtro!$A$5:$AK$2936,2,FALSE),0) -> 227231 | E58: =IFERROR(VLOOKUP($A58,Filtro!$A$5:$AK$2936,3,FALSE),0) -> 215808 | F58: =IFERROR(VLOOKUP($A58,Filtro!$A$5:$AK$2936,4,FALSE),0) -> 215808 | G58: =IFERROR(VLOOKUP($A58,Filtro!$A$5:$AK$2936,5,FALSE),0) -> 0 | H58: =IFERROR(VLOOKUP($A58,Filtro!$A$5:$AK$2936,6,FALSE),0) -> 11423 | I58: =IFERROR(VLOOKUP($A58,Filtro!$A$5:$AK$2936,7,FALSE),0) -> 0 | J58: =IFERROR(VLOOKUP($A58,Filtro!$A$5:$AK$2936,8,FALSE),0) -> 0 | K58: =IFERROR(VLOOKUP($A58,Filtro!$A$5:$AK$2936,9,FALSE),0) -> 0 | L58: =IFERROR(VLOOKUP($A58,Filtro!$A$5:$AK$2936,10,FALSE),0) -> 0 | M58: =IFERROR(VLOOKUP($A58,Filtro!$A$5:$AK$2936,11,FALSE),0) -> 0 | N58: =IFERROR(VLOOKUP($A58,Filtro!$A$5:$AK$2936,12,FALSE),0) -> 0 | O58: =IFERROR(VLOOKUP($A58,Filtro!$A$5:$AK$2936,13,FALSE),0) -> 0 | P58: =IFERROR(VLOOKUP($A58,Filtro!$A$5:$AK$2936,14,FALSE),0) -> 0 | Q58: =IFERROR(VLOOKUP($A58,Filtro!$A$5:$AK$2936,15,FALSE),0) -> 0 | R58: =IFERROR(VLOOKUP($A58,Filtro!$A$5:$AK$2936,16,FALSE),0) -> 0 | S58: =IFERROR(VLOOKUP($A58,Filtro!$A$5:$AK$2936,17,FALSE),0) -> 0 | T58: =IFERROR(VLOOKUP($A58,Filtro!$A$5:$AK$2936,18,FALSE),0) -> 0 | U58: =IFERROR(VLOOKUP($A58,Filtro!$A$5:$AK$2936,19,FALSE),0) -> 0 | V58: =IFERROR(VLOOKUP($A58,Filtro!$A$5:$AK$2936,20,FALSE),0) -> 0 | W58: =IFERROR(VLOOKUP($A58,Filtro!$A$5:$AK$2936,21,FALSE),0) -> 0 | X58: =IFERROR(VLOOKUP($A58,Filtro!$A$5:$AK$2936,22,FALSE),0) -> 0 | Y58: =IFERROR(VLOOKUP($A58,Filtro!$A$5:$AK$2936,23,FALSE),0) -> 0 | Z58: =IFERROR(VLOOKUP($A58,Filtro!$A$5:$AK$2936,24,FALSE),0) -> 0 | AA58: =IFERROR(VLOOKUP($A58,Filtro!$A$5:$AK$2936,25,FALSE),0) -> 0 | AB58: =IFERROR(VLOOKUP($A58,Filtro!$A$5:$AK$2936,26,FALSE),0) -> 0 | AC58: =IFERROR(VLOOKUP($A58,Filtro!$A$5:$AK$2936,27,FALSE),0) -> 7176 | AD58: =IFERROR(VLOOKUP($A58,Filtro!$A$5:$AK$2936,28,FALSE),0) -> 213595 | AE58: =IFERROR(VLOOKUP($A58,Filtro!$A$5:$AK$2936,29,FALSE),0) -> 0 | AF58: =IFERROR(VLOOKUP($A58,Filtro!$A$5:$AK$2936,30,FALSE),0) -> 0 | AG58: =IFERROR(VLOOKUP($A58,Filtro!$A$5:$AK$2936,31,FALSE),0) -> 0 | AH58: =IFERROR(VLOOKUP($A58,Filtro!$A$5:$AK$2936,32,FALSE),0) -> 0 | AI58: =IFERROR(VLOOKUP($A58,Filtro!$A$5:$AK$2936,33,FALSE),0) -> 0 | AJ58: =IFERROR(VLOOKUP($A58,Filtro!$A$5:$AK$2936,34,FALSE),0) -> 0 | AK58: =IFERROR(VLOOKUP($A58,Filtro!$A$5:$AK$2936,35,FALSE),0) -> 0 | AL58: =IFERROR(VLOOKUP($A58,Filtro!$A$5:$AK$2936,36,FALSE),0) -> 1,203,650 | AM58: =IFERROR(VLOOKUP($A58,Filtro!$A$5:$AK$2936,37,FALSE),0) -> 1,953,062,400
C59: TOTAL OTRAS CONSULTAS MÉDICAS | D59: =SUM(D56:D58) -> 284796 | E59: =SUM(E56:E58) -> 273319 | F59: 273023 | G59: 296 | H59: 11477 | AB59: =SUM(AB56:AB58) -> 1507 | AC59: =SUM(AC56:AC58) -> 62447 | AD59: 214382 | AE59: 0 | AF59: 0 | AG59: 0 | AH59: 0 | AI59: 0 | AJ59: 0 | AK59: 0 | AM59: 2344870910
C60: TOTAL PRODUCCION | D60: =SUM(D54+D59) -> 593298 | E60: =SUM(E54+E59) -> 581134 | F60: =SUM(F54+F59) -> 580835 | G60: =SUM(G54+G59) -> 299 | H60: =SUM(H54+H59) -> 12164 | AB60: =SUM(AB54+AB59) -> 1715 | AC60: =SUM(AC54+AC59) -> 369381 | AD60: 215742 | AE60: 8483 | AF60: 0 | AG60: 0 | AH60: 0 | AI60: 0 | AJ60: 0 | AK60: 0 | AM60: =SUM(AM54+AM59) -> 5130569510
C61: CONSULTAS POR OTROS PROFESIONALES DE LA SALUD
A62: 01010020 | B62: 0102002 | C62: Control de salud niño con EDP por enfermera | D62: =IFERROR(VLOOKUP($A62,Filtro!$A$5:$AK$2936,2,FALSE),0) -> 1807 | E62: =IFERROR(VLOOKUP($A62,Filtro!$A$5:$AK$2936,3,FALSE),0) -> 1807 | F62: =IFERROR(VLOOKUP($A62,Filtro!$A$5:$AK$2936,4,FALSE),0) -> 1807 | G62: =IFERROR(VLOOKUP($A62,Filtro!$A$5:$AK$2936,5,FALSE),0) -> 0 | H62: =IFERROR(VLOOKUP($A62,Filtro!$A$5:$AK$2936,6,FALSE),0) -> 0 | I62: =IFERROR(VLOOKUP($A62,Filtro!$A$5:$AK$2936,7,FALSE),0) -> 0 | J62: =IFERROR(VLOOKUP($A62,Filtro!$A$5:$AK$2936,8,FALSE),0) -> 0 | K62: =IFERROR(VLOOKUP($A62,Filtro!$A$5:$AK$2936,9,FALSE),0) -> 0 | L62: =IFERROR(VLOOKUP($A62,Filtro!$A$5:$AK$2936,10,FALSE),0) -> 0 | M62: =IFERROR(VLOOKUP($A62,Filtro!$A$5:$AK$2936,11,FALSE),0) -> 0 | N62: =IFERROR(VLOOKUP($A62,Filtro!$A$5:$AK$2936,12,FALSE),0) -> 0 | O62: =IFERROR(VLOOKUP($A62,Filtro!$A$5:$AK$2936,13,FALSE),0) -> 0 | P62: =IFERROR(VLOOKUP($A62,Filtro!$A$5:$AK$2936,14,FALSE),0) -> 0 | Q62: =IFERROR(VLOOKUP($A62,Filtro!$A$5:$AK$2936,15,FALSE),0) -> 0 | R62: =IFERROR(VLOOKUP($A62,Filtro!$A$5:$AK$2936,16,FALSE),0) -> 0 | S62: =IFERROR(VLOOKUP($A62,Filtro!$A$5:$AK$2936,17,FALSE),0) -> 0 | T62: =IFERROR(VLOOKUP($A62,Filtro!$A$5:$AK$2936,18,FALSE),0) -> 0 | U62: =IFERROR(VLOOKUP($A62,Filtro!$A$5:$AK$2936,19,FALSE),0) -> 0 | V62: =IFERROR(VLOOKUP($A62,Filtro!$A$5:$AK$2936,20,FALSE),0) -> 0 | W62: =IFERROR(VLOOKUP($A62,Filtro!$A$5:$AK$2936,21,FALSE),0) -> 0 | X62: =IFERROR(VLOOKUP($A62,Filtro!$A$5:$AK$2936,22,FALSE),0) -> 0 | Y62: =IFERROR(VLOOKUP($A62,Filtro!$A$5:$AK$2936,23,FALSE),0) -> 0 | Z62: =IFERROR(VLOOKUP($A62,Filtro!$A$5:$AK$2936,24,FALSE),0) -> 0 | AA62: =IFERROR(VLOOKUP($A62,Filtro!$A$5:$AK$2936,25,FALSE),0) -> 0 | AB62: =IFERROR(VLOOKUP($A62,Filtro!$A$5:$AK$2936,26,FALSE),0) -> 0 | AC62: =IFERROR(VLOOKUP($A62,Filtro!$A$5:$AK$2936,27,FALSE),0) -> 1807 | AD62: =IFERROR(VLOOKUP($A62,Filtro!$A$5:$AK$2936,28,FALSE),0) -> 0 | AE62: =IFERROR(VLOOKUP($A62,Filtro!$A$5:$AK$2936,29,FALSE),0) -> 0 | AF62: =IFERROR(VLOOKUP($A62,Filtro!$A$5:$AK$2936,30,FALSE),0) -> 0 | AG62: =IFERROR(VLOOKUP($A62,Filtro!$A$5:$AK$2936,31,FALSE),0) -> 0 | AH62: =IFERROR(VLOOKUP($A62,Filtro!$A$5:$AK$2936,32,FALSE),0) -> 0 | AI62: =IFERROR(VLOOKUP($A62,Filtro!$A$5:$AK$2936,33,FALSE),0) -> 0 | AJ62: =IFERROR(VLOOKUP($A62,Filtro!$A$5:$AK$2936,34,FALSE),0) -> 0 | AK62: =IFERROR(VLOOKUP($A62,Filtro!$A$5:$AK$2936,35,FALSE),0) -> 0 | AL62: =IFERROR(VLOOKUP($A62,Filtro!$A$5:$AK$2936,36,FALSE),0) -> 320,530 | AM62: =IFERROR(VLOOKUP($A62,Filtro!$A$5:$AK$2936,37,FALSE),0) -> 4,354,870
A63: 01010021 | B63: 0102003 | C63: Consulta o control por auxiliar de enfermería | D63: =IFERROR(VLOOKUP($A63,Filtro!$A$5:$AK$2936,2,FALSE),0) -> 21425 | E63: =IFERROR(VLOOKUP($A63,Filtro!$A$5:$AK$2936,3,FALSE),0) -> 21425 | F63: =IFERROR(VLOOKUP($A63,Filtro!$A$5:$AK$2936,4,FALSE),0) -> 21425 | G63: =IFERROR(VLOOKUP($A63,Filtro!$A$5:$AK$2936,5,FALSE),0) -> 0 | H63: =IFERROR(VLOOKUP($A63,Filtro!$A$5:$AK$2936,6,FALSE),0) -> 0 | I63: =IFERROR(VLOOKUP($A63,Filtro!$A$5:$AK$2936,7,FALSE),0) -> 0 | J63: =IFERROR(VLOOKUP($A63,Filtro!$A$5:$AK$2936,8,FALSE),0) -> 0 | K63: =IFERROR(VLOOKUP($A63,Filtro!$A$5:$AK$2936,9,FALSE),0) -> 0 | L63: =IFERROR(VLOOKUP($A63,Filtro!$A$5:$AK$2936,10,FALSE),0) -> 0 | M63: =IFERROR(VLOOKUP($A63,Filtro!$A$5:$AK$2936,11,FALSE),0) -> 0 | N63: =IFERROR(VLOOKUP($A63,Filtro!$A$5:$AK$2936,12,FALSE),0) -> 0 | O63: =IFERROR(VLOOKUP($A63,Filtro!$A$5:$AK$2936,13,FALSE),0) -> 0 | P63: =IFERROR(VLOOKUP($A63,Filtro!$A$5:$AK$2936,14,FALSE),0) -> 0 | Q63: =IFERROR(VLOOKUP($A63,Filtro!$A$5:$AK$2936,15,FALSE),0) -> 0 | R63: =IFERROR(VLOOKUP($A63,Filtro!$A$5:$AK$2936,16,FALSE),0) -> 0 | S63: =IFERROR(VLOOKUP($A63,Filtro!$A$5:$AK$2936,17,FALSE),0) -> 0 | T63: =IFERROR(VLOOKUP($A63,Filtro!$A$5:$AK$2936,18,FALSE),0) -> 0 | U63: =IFERROR(VLOOKUP($A63,Filtro!$A$5:$AK$2936,19,FALSE),0) -> 0 | V63: =IFERROR(VLOOKUP($A63,Filtro!$A$5:$AK$2936,20,FALSE),0) -> 0 | W63: =IFERROR(VLOOKUP($A63,Filtro!$A$5:$AK$2936,21,FALSE),0) -> 0 | X63: =IFERROR(VLOOKUP($A63,Filtro!$A$5:$AK$2936,22,FALSE),0) -> 0 | Y63: =IFERROR(VLOOKUP($A63,Filtro!$A$5:$AK$2936,23,FALSE),0) -> 0 | Z63: =IFERROR(VLOOKUP($A63,Filtro!$A$5:$AK$2936,24,FALSE),0) -> 0 | AA63: =IFERROR(VLOOKUP($A63,Filtro!$A$5:$AK$2936,25,FALSE),0) -> 0 | AB63: =IFERROR(VLOOKUP($A63,Filtro!$A$5:$AK$2936,26,FALSE),0) -> 0 | AC63: =IFERROR(VLOOKUP($A63,Filtro!$A$5:$AK$2936,27,FALSE),0) -> 2365 | AD63: =IFERROR(VLOOKUP($A63,Filtro!$A$5:$AK$2936,28,FALSE),0) -> 19063 | AE63: =IFERROR(VLOOKUP($A63,Filtro!$A$5:$AK$2936,29,FALSE),0) -> 0 | AF63: =IFERROR(VLOOKUP($A63,Filtro!$A$5:$AK$2936,30,FALSE),0) -> 0 | AG63: =IFERROR(VLOOKUP($A63,Filtro!$A$5:$AK$2936,31,FALSE),0) -> 0 | AH63: =IFERROR(VLOOKUP($A63,Filtro!$A$5:$AK$2936,32,FALSE),0) -> 0 | AI63: =IFERROR(VLOOKUP($A63,Filtro!$A$5:$AK$2936,33,FALSE),0) -> 0 | AJ63: =IFERROR(VLOOKUP($A63,Filtro!$A$5:$AK$2936,34,FALSE),0) -> 0 | AK63: =IFERROR(VLOOKUP($A63,Filtro!$A$5:$AK$2936,35,FALSE),0) -> 0 | AL63: =IFERROR(VLOOKUP($A63,Filtro!$A$5:$AK$2936,36,FALSE),0) -> 103,740 | AM63: =IFERROR(VLOOKUP($A63,Filtro!$A$5:$AK$2936,37,FALSE),0) -> 16,711,500
A64: 01010022 | B64: 0102005 | C64: Consulta por fonoaudiólogo | D64: =IFERROR(VLOOKUP($A64,Filtro!$A$5:$AK$2936,2,FALSE),0) -> 17622 | E64: =IFERROR(VLOOKUP($A64,Filtro!$A$5:$AK$2936,3,FALSE),0) -> 17599 | F64: =IFERROR(VLOOKUP($A64,Filtro!$A$5:$AK$2936,4,FALSE),0) -> 17599 | G64: =IFERROR(VLOOKUP($A64,Filtro!$A$5:$AK$2936,5,FALSE),0) -> 0 | H64: =IFERROR(VLOOKUP($A64,Filtro!$A$5:$AK$2936,6,FALSE),0) -> 23 | I64: =IFERROR(VLOOKUP($A64,Filtro!$A$5:$AK$2936,7,FALSE),0) -> 0 | J64: =IFERROR(VLOOKUP($A64,Filtro!$A$5:$AK$2936,8,FALSE),0) -> 0 | K64: =IFERROR(VLOOKUP($A64,Filtro!$A$5:$AK$2936,9,FALSE),0) -> 0 | L64: =IFERROR(VLOOKUP($A64,Filtro!$A$5:$AK$2936,10,FALSE),0) -> 0 | M64: =IFERROR(VLOOKUP($A64,Filtro!$A$5:$AK$2936,11,FALSE),0) -> 0 | N64: =IFERROR(VLOOKUP($A64,Filtro!$A$5:$AK$2936,12,FALSE),0) -> 0 | O64: =IFERROR(VLOOKUP($A64,Filtro!$A$5:$AK$2936,13,FALSE),0) -> 0 | P64: =IFERROR(VLOOKUP($A64,Filtro!$A$5:$AK$2936,14,FALSE),0) -> 0 | Q64: =IFERROR(VLOOKUP($A64,Filtro!$A$5:$AK$2936,15,FALSE),0) -> 0 | R64: =IFERROR(VLOOKUP($A64,Filtro!$A$5:$AK$2936,16,FALSE),0) -> 0 | S64: =IFERROR(VLOOKUP($A64,Filtro!$A$5:$AK$2936,17,FALSE),0) -> 0 | T64: =IFERROR(VLOOKUP($A64,Filtro!$A$5:$AK$2936,18,FALSE),0) -> 0 | U64: =IFERROR(VLOOKUP($A64,Filtro!$A$5:$AK$2936,19,FALSE),0) -> 0 | V64: =IFERROR(VLOOKUP($A64,Filtro!$A$5:$AK$2936,20,FALSE),0) -> 0 | W64: =IFERROR(VLOOKUP($A64,Filtro!$A$5:$AK$2936,21,FALSE),0) -> 0 | X64: =IFERROR(VLOOKUP($A64,Filtro!$A$5:$AK$2936,22,FALSE),0) -> 0 | Y64: =IFERROR(VLOOKUP($A64,Filtro!$A$5:$AK$2936,23,FALSE),0) -> 0 | Z64: =IFERROR(VLOOKUP($A64,Filtro!$A$5:$AK$2936,24,FALSE),0) -> 0 | AA64: =IFERROR(VLOOKUP($A64,Filtro!$A$5:$AK$2936,25,FALSE),0) -> 0 | AB64: =IFERROR(VLOOKUP($A64,Filtro!$A$5:$AK$2936,26,FALSE),0) -> 8096 | AC64: =IFERROR(VLOOKUP($A64,Filtro!$A$5:$AK$2936,27,FALSE),0) -> 9149 | AD64: =IFERROR(VLOOKUP($A64,Filtro!$A$5:$AK$2936,28,FALSE),0) -> 377 | AE64: =IFERROR(VLOOKUP($A64,Filtro!$A$5:$AK$2936,29,FALSE),0) -> 0 | AF64: =IFERROR(VLOOKUP($A64,Filtro!$A$5:$AK$2936,30,FALSE),0) -> 0 | AG64: =IFERROR(VLOOKUP($A64,Filtro!$A$5:$AK$2936,31,FALSE),0) -> 0 | AH64: =IFERROR(VLOOKUP($A64,Filtro!$A$5:$AK$2936,32,FALSE),0) -> 0 | AI64: =IFERROR(VLOOKUP($A64,Filtro!$A$5:$AK$2936,33,FALSE),0) -> 0 | AJ64: =IFERROR(VLOOKUP($A64,Filtro!$A$5:$AK$2936,34,FALSE),0) -> 0 | AK64: =IFERROR(VLOOKUP($A64,Filtro!$A$5:$AK$2936,35,FALSE),0) -> 0 | AL64: =IFERROR(VLOOKUP($A64,Filtro!$A$5:$AK$2936,36,FALSE),0) -> 255,360 | AM64: =IFERROR(VLOOKUP($A64,Filtro!$A$5:$AK$2936,37,FALSE),0) -> 33,790,080
A65: 01014322 | B65: 0102008 | C65: Consulta o control por enfermera | D65: =IFERROR(VLOOKUP($A65,Filtro!$A$5:$AK$2936,2,FALSE),0) -> 95357 | E65: =IFERROR(VLOOKUP($A65,Filtro!$A$5:$AK$2936,3,FALSE),0) -> 95103 | F65: =IFERROR(VLOOKUP($A65,Filtro!$A$5:$AK$2936,4,FALSE),0) -> 95103 | G65: =IFERROR(VLOOKUP($A65,Filtro!$A$5:$AK$2936,5,FALSE),0) -> 0 | H65: =IFERROR(VLOOKUP($A65,Filtro!$A$5:$AK$2936,6,FALSE),0) -> 254 | I65: =IFERROR(VLOOKUP($A65,Filtro!$A$5:$AK$2936,7,FALSE),0) -> 0 | J65: =IFERROR(VLOOKUP($A65,Filtro!$A$5:$AK$2936,8,FALSE),0) -> 0 | K65: =IFERROR(VLOOKUP($A65,Filtro!$A$5:$AK$2936,9,FALSE),0) -> 0 | L65: =IFERROR(VLOOKUP($A65,Filtro!$A$5:$AK$2936,10,FALSE),0) -> 0 | M65: =IFERROR(VLOOKUP($A65,Filtro!$A$5:$AK$2936,11,FALSE),0) -> 0 | N65: =IFERROR(VLOOKUP($A65,Filtro!$A$5:$AK$2936,12,FALSE),0) -> 0 | O65: =IFERROR(VLOOKUP($A65,Filtro!$A$5:$AK$2936,13,FALSE),0) -> 0 | P65: =IFERROR(VLOOKUP($A65,Filtro!$A$5:$AK$2936,14,FALSE),0) -> 0 | Q65: =IFERROR(VLOOKUP($A65,Filtro!$A$5:$AK$2936,15,FALSE),0) -> 0 | R65: =IFERROR(VLOOKUP($A65,Filtro!$A$5:$AK$2936,16,FALSE),0) -> 0 | S65: =IFERROR(VLOOKUP($A65,Filtro!$A$5:$AK$2936,17,FALSE),0) -> 0 | T65: =IFERROR(VLOOKUP($A65,Filtro!$A$5:$AK$2936,18,FALSE),0) -> 0 | U65: =IFERROR(VLOOKUP($A65,Filtro!$A$5:$AK$2936,19,FALSE),0) -> 0 | V65: =IFERROR(VLOOKUP($A65,Filtro!$A$5:$AK$2936,20,FALSE),0) -> 0 | W65: =IFERROR(VLOOKUP($A65,Filtro!$A$5:$AK$2936,21,FALSE),0) -> 0 | X65: =IFERROR(VLOOKUP($A65,Filtro!$A$5:$AK$2936,22,FALSE),0) -> 0 | Y65: =IFERROR(VLOOKUP($A65,Filtro!$A$5:$AK$2936,23,FALSE),0) -> 0 | Z65: =IFERROR(VLOOKUP($A65,Filtro!$A$5:$AK$2936,24,FALSE),0) -> 0 | AA65: =IFERROR(VLOOKUP($A65,Filtro!$A$5:$AK$2936,25,FALSE),0) -> 0 | AB65: =IFERROR(VLOOKUP($A65,Filtro!$A$5:$AK$2936,26,FALSE),0) -> 0 | AC65: =IFERROR(VLOOKUP($A65,Filtro!$A$5:$AK$2936,27,FALSE),0) -> 74255 | AD65: =IFERROR(VLOOKUP($A65,Filtro!$A$5:$AK$2936,28,FALSE),0) -> 21102 | AE65: =IFERROR(VLOOKUP($A65,Filtro!$A$5:$AK$2936,29,FALSE),0) -> 0 | AF65: =IFERROR(VLOOKUP($A65,Filtro!$A$5:$AK$2936,30,FALSE),0) -> 0 | AG65: =IFERROR(VLOOKUP($A65,Filtro!$A$5:$AK$2936,31,FALSE),0) -> 0 | AH65: =IFERROR(VLOOKUP($A65,Filtro!$A$5:$AK$2936,32,FALSE),0) -> 0 | AI65: =IFERROR(VLOOKUP($A65,Filtro!$A$5:$AK$2936,33,FALSE),0) -> 0 | AJ65: =IFERROR(VLOOKUP($A65,Filtro!$A$5:$AK$2936,34,FALSE),0) -> 0 | AK65: =IFERROR(VLOOKUP($A65,Filtro!$A$5:$AK$2936,35,FALSE),0) -> 0 | AL65: =IFERROR(VLOOKUP($A65,Filtro!$A$5:$AK$2936,36,FALSE),0) -> 187,530 | AM65: =IFERROR(VLOOKUP($A65,Filtro!$A$5:$AK$2936,37,FALSE),0) -> 134,095,230
A66: 01014323 | B66: 0102009 | C66: Consulta o control por matrona | D66: =IFERROR(VLOOKUP($A66,Filtro!$A$5:$AK$2936,2,FALSE),0) -> 41467 | E66: =IFERROR(VLOOKUP($A66,Filtro!$A$5:$AK$2936,3,FALSE),0) -> 41285 | F66: =IFERROR(VLOOKUP($A66,Filtro!$A$5:$AK$2936,4,FALSE),0) -> 41285 | G66: =IFERROR(VLOOKUP($A66,Filtro!$A$5:$AK$2936,5,FALSE),0) -> 0 | H66: =IFERROR(VLOOKUP($A66,Filtro!$A$5:$AK$2936,6,FALSE),0) -> 182 | I66: =IFERROR(VLOOKUP($A66,Filtro!$A$5:$AK$2936,7,FALSE),0) -> 0 | J66: =IFERROR(VLOOKUP($A66,Filtro!$A$5:$AK$2936,8,FALSE),0) -> 0 | K66: =IFERROR(VLOOKUP($A66,Filtro!$A$5:$AK$2936,9,FALSE),0) -> 0 | L66: =IFERROR(VLOOKUP($A66,Filtro!$A$5:$AK$2936,10,FALSE),0) -> 0 | M66: =IFERROR(VLOOKUP($A66,Filtro!$A$5:$AK$2936,11,FALSE),0) -> 0 | N66: =IFERROR(VLOOKUP($A66,Filtro!$A$5:$AK$2936,12,FALSE),0) -> 0 | O66: =IFERROR(VLOOKUP($A66,Filtro!$A$5:$AK$2936,13,FALSE),0) -> 0 | P66: =IFERROR(VLOOKUP($A66,Filtro!$A$5:$AK$2936,14,FALSE),0) -> 0 | Q66: =IFERROR(VLOOKUP($A66,Filtro!$A$5:$AK$2936,15,FALSE),0) -> 0 | R66: =IFERROR(VLOOKUP($A66,Filtro!$A$5:$AK$2936,16,FALSE),0) -> 0 | S66: =IFERROR(VLOOKUP($A66,Filtro!$A$5:$AK$2936,17,FALSE),0) -> 0 | T66: =IFERROR(VLOOKUP($A66,Filtro!$A$5:$AK$2936,18,FALSE),0) -> 0 | U66: =IFERROR(VLOOKUP($A66,Filtro!$A$5:$AK$2936,19,FALSE),0) -> 0 | V66: =IFERROR(VLOOKUP($A66,Filtro!$A$5:$AK$2936,20,FALSE),0) -> 0 | W66: =IFERROR(VLOOKUP($A66,Filtro!$A$5:$AK$2936,21,FALSE),0) -> 0 | X66: =IFERROR(VLOOKUP($A66,Filtro!$A$5:$AK$2936,22,FALSE),0) -> 0 | Y66: =IFERROR(VLOOKUP($A66,Filtro!$A$5:$AK$2936,23,FALSE),0) -> 0 | Z66: =IFERROR(VLOOKUP($A66,Filtro!$A$5:$AK$2936,24,FALSE),0) -> 0 | AA66: =IFERROR(VLOOKUP($A66,Filtro!$A$5:$AK$2936,25,FALSE),0) -> 0 | AB66: =IFERROR(VLOOKUP($A66,Filtro!$A$5:$AK$2936,26,FALSE),0) -> 267 | AC66: =IFERROR(VLOOKUP($A66,Filtro!$A$5:$AK$2936,27,FALSE),0) -> 37310 | AD66: =IFERROR(VLOOKUP($A66,Filtro!$A$5:$AK$2936,28,FALSE),0) -> 3890 | AE66: =IFERROR(VLOOKUP($A66,Filtro!$A$5:$AK$2936,29,FALSE),0) -> 0 | AF66: =IFERROR(VLOOKUP($A66,Filtro!$A$5:$AK$2936,30,FALSE),0) -> 0 | AG66: =IFERROR(VLOOKUP($A66,Filtro!$A$5:$AK$2936,31,FALSE),0) -> 0 | AH66: =IFERROR(VLOOKUP($A66,Filtro!$A$5:$AK$2936,32,FALSE),0) -> 0 | AI66: =IFERROR(VLOOKUP($A66,Filtro!$A$5:$AK$2936,33,FALSE),0) -> 0 | AJ66: =IFERROR(VLOOKUP($A66,Filtro!$A$5:$AK$2936,34,FALSE),0) -> 0 | AK66: =IFERROR(VLOOKUP($A66,Filtro!$A$5:$AK$2936,35,FALSE),0) -> 0 | AL66: =IFERROR(VLOOKUP($A66,Filtro!$A$5:$AK$2936,36,FALSE),0) -> 187,530 | AM66: =IFERROR(VLOOKUP($A66,Filtro!$A$5:$AK$2936,37,FALSE),0) -> 58,211,850
A67: 01014324 | B67: 0102010 | C67: Consulta o control por nutricionista | D67: =IFERROR(VLOOKUP($A67,Filtro!$A$5:$AK$2936,2,FALSE),0) -> 21015 | E67: =IFERROR(VLOOKUP($A67,Filtro!$A$5:$AK$2936,3,FALSE),0) -> 20983 | F67: =IFERROR(VLOOKUP($A67,Filtro!$A$5:$AK$2936,4,FALSE),0) -> 20983 | G67: =IFERROR(VLOOKUP($A67,Filtro!$A$5:$AK$2936,5,FALSE),0) -> 0 | H67: =IFERROR(VLOOKUP($A67,Filtro!$A$5:$AK$2936,6,FALSE),0) -> 32 | I67: =IFERROR(VLOOKUP($A67,Filtro!$A$5:$AK$2936,7,FALSE),0) -> 0 | J67: =IFERROR(VLOOKUP($A67,Filtro!$A$5:$AK$2936,8,FALSE),0) -> 0 | K67: =IFERROR(VLOOKUP($A67,Filtro!$A$5:$AK$2936,9,FALSE),0) -> 0 | L67: =IFERROR(VLOOKUP($A67,Filtro!$A$5:$AK$2936,10,FALSE),0) -> 0 | M67: =IFERROR(VLOOKUP($A67,Filtro!$A$5:$AK$2936,11,FALSE),0) -> 0 | N67: =IFERROR(VLOOKUP($A67,Filtro!$A$5:$AK$2936,12,FALSE),0) -> 0 | O67: =IFERROR(VLOOKUP($A67,Filtro!$A$5:$AK$2936,13,FALSE),0) -> 0 | P67: =IFERROR(VLOOKUP($A67,Filtro!$A$5:$AK$2936,14,FALSE),0) -> 0 | Q67: =IFERROR(VLOOKUP($A67,Filtro!$A$5:$AK$2936,15,FALSE),0) -> 0 | R67: =IFERROR(VLOOKUP($A67,Filtro!$A$5:$AK$2936,16,FALSE),0) -> 0 | S67: =IFERROR(VLOOKUP($A67,Filtro!$A$5:$AK$2936,17,FALSE),0) -> 0 | T67: =IFERROR(VLOOKUP($A67,Filtro!$A$5:$AK$2936,18,FALSE),0) -> 0 | U67: =IFERROR(VLOOKUP($A67,Filtro!$A$5:$AK$2936,19,FALSE),0) -> 0 | V67: =IFERROR(VLOOKUP($A67,Filtro!$A$5:$AK$2936,20,FALSE),0) -> 0 | W67: =IFERROR(VLOOKUP($A67,Filtro!$A$5:$AK$2936,21,FALSE),0) -> 0 | X67: =IFERROR(VLOOKUP($A67,Filtro!$A$5:$AK$2936,22,FALSE),0) -> 0 | Y67: =IFERROR(VLOOKUP($A67,Filtro!$A$5:$AK$2936,23,FALSE),0) -> 0 | Z67: =IFERROR(VLOOKUP($A67,Filtro!$A$5:$AK$2936,24,FALSE),0) -> 0 | AA67: =IFERROR(VLOOKUP($A67,Filtro!$A$5:$AK$2936,25,FALSE),0) -> 0 | AB67: =IFERROR(VLOOKUP($A67,Filtro!$A$5:$AK$2936,26,FALSE),0) -> 0 | AC67: =IFERROR(VLOOKUP($A67,Filtro!$A$5:$AK$2936,27,FALSE),0) -> 20763 | AD67: =IFERROR(VLOOKUP($A67,Filtro!$A$5:$AK$2936,28,FALSE),0) -> 252 | AE67: =IFERROR(VLOOKUP($A67,Filtro!$A$5:$AK$2936,29,FALSE),0) -> 0 | AF67: =IFERROR(VLOOKUP($A67,Filtro!$A$5:$AK$2936,30,FALSE),0) -> 0 | AG67: =IFERROR(VLOOKUP($A67,Filtro!$A$5:$AK$2936,31,FALSE),0) -> 0 | AH67: =IFERROR(VLOOKUP($A67,Filtro!$A$5:$AK$2936,32,FALSE),0) -> 0 | AI67: =IFERROR(VLOOKUP($A67,Filtro!$A$5:$AK$2936,33,FALSE),0) -> 0 | AJ67: =IFERROR(VLOOKUP($A67,Filtro!$A$5:$AK$2936,34,FALSE),0) -> 0 | AK67: =IFERROR(VLOOKUP($A67,Filtro!$A$5:$AK$2936,35,FALSE),0) -> 0 | AL67: =IFERROR(VLOOKUP($A67,Filtro!$A$5:$AK$2936,36,FALSE),0) -> 187,530 | AM67: =IFERROR(VLOOKUP($A67,Filtro!$A$5:$AK$2936,37,FALSE),0) -> 29,586,030
C68: TOTAL ARANCEL MAI | D68: =SUM(D62:D67) -> 198693 | E68: =SUM(E62:E67) -> 198202 | F68: =SUM(F62:F67) -> 198202 | G68: =SUM(G62:G67) -> 0 | H68: =SUM(H62:H67) -> 491 | AB68: =SUM(AB62:AB67) -> 8363 | AC68: 145649 | AD68: 44684 | AE68: 0 | AF68: 0 | AG68: 0 | AH68: 0 | AI68: 0 | AJ68: 0 | AK68: 0 | AM68: =SUM(AM62:AM67) -> 276,749,560
A69: 01010025 | B69: 01010025 | C69: Consulta por otros profesionales | D69: =IFERROR(VLOOKUP($A69,Filtro!$A$5:$AK$2936,2,FALSE),0) -> 20436 | E69: =IFERROR(VLOOKUP($A69,Filtro!$A$5:$AK$2936,3,FALSE),0) -> 20317 | F69: =IFERROR(VLOOKUP($A69,Filtro!$A$5:$AK$2936,4,FALSE),0) -> 20317 | G69: =IFERROR(VLOOKUP($A69,Filtro!$A$5:$AK$2936,5,FALSE),0) -> 0 | H69: =IFERROR(VLOOKUP($A69,Filtro!$A$5:$AK$2936,6,FALSE),0) -> 119 | I69: =IFERROR(VLOOKUP($A69,Filtro!$A$5:$AK$2936,7,FALSE),0) -> 0 | J69: =IFERROR(VLOOKUP($A69,Filtro!$A$5:$AK$2936,8,FALSE),0) -> 0 | K69: =IFERROR(VLOOKUP($A69,Filtro!$A$5:$AK$2936,9,FALSE),0) -> 0 | L69: =IFERROR(VLOOKUP($A69,Filtro!$A$5:$AK$2936,10,FALSE),0) -> 0 | M69: =IFERROR(VLOOKUP($A69,Filtro!$A$5:$AK$2936,11,FALSE),0) -> 0 | N69: =IFERROR(VLOOKUP($A69,Filtro!$A$5:$AK$2936,12,FALSE),0) -> 0 | O69: =IFERROR(VLOOKUP($A69,Filtro!$A$5:$AK$2936,13,FALSE),0) -> 0 | P69: =IFERROR(VLOOKUP($A69,Filtro!$A$5:$AK$2936,14,FALSE),0) -> 0 | Q69: =IFERROR(VLOOKUP($A69,Filtro!$A$5:$AK$2936,15,FALSE),0) -> 0 | R69: =IFERROR(VLOOKUP($A69,Filtro!$A$5:$AK$2936,16,FALSE),0) -> 0 | S69: =IFERROR(VLOOKUP($A69,Filtro!$A$5:$AK$2936,17,FALSE),0) -> 0 | T69: =IFERROR(VLOOKUP($A69,Filtro!$A$5:$AK$2936,18,FALSE),0) -> 0 | U69: =IFERROR(VLOOKUP($A69,Filtro!$A$5:$AK$2936,19,FALSE),0) -> 0 | V69: =IFERROR(VLOOKUP($A69,Filtro!$A$5:$AK$2936,20,FALSE),0) -> 0 | W69: =IFERROR(VLOOKUP($A69,Filtro!$A$5:$AK$2936,21,FALSE),0) -> 0 | X69: =IFERROR(VLOOKUP($A69,Filtro!$A$5:$AK$2936,22,FALSE),0) -> 0 | Y69: =IFERROR(VLOOKUP($A69,Filtro!$A$5:$AK$2936,23,FALSE),0) -> 0 | Z69: =IFERROR(VLOOKUP($A69,Filtro!$A$5:$AK$2936,24,FALSE),0) -> 0 | AA69: =IFERROR(VLOOKUP($A69,Filtro!$A$5:$AK$2936,25,FALSE),0) -> 0 | AB69: =IFERROR(VLOOKUP($A69,Filtro!$A$5:$AK$2936,26,FALSE),0) -> 0 | AC69: =IFERROR(VLOOKUP($A69,Filtro!$A$5:$AK$2936,27,FALSE),0) -> 20182 | AD69: =IFERROR(VLOOKUP($A69,Filtro!$A$5:$AK$2936,28,FALSE),0) -> 254 | AE69: =IFERROR(VLOOKUP($A69,Filtro!$A$5:$AK$2936,29,FALSE),0) -> 570 | AF69: =IFERROR(VLOOKUP($A69,Filtro!$A$5:$AK$2936,30,FALSE),0) -> 0 | AG69: =IFERROR(VLOOKUP($A69,Filtro!$A$5:$AK$2936,31,FALSE),0) -> 0 | AH69: =IFERROR(VLOOKUP($A69,Filtro!$A$5:$AK$2936,32,FALSE),0) -> 0 | AI69: =IFERROR(VLOOKUP($A69,Filtro!$A$5:$AK$2936,33,FALSE),0) -> 0 | AJ69: =IFERROR(VLOOKUP($A69,Filtro!$A$5:$AK$2936,34,FALSE),0) -> 0 | AK69: =IFERROR(VLOOKUP($A69,Filtro!$A$5:$AK$2936,35,FALSE),0) -> 0 | AL69: =IFERROR(VLOOKUP($A69,Filtro!$A$5:$AK$2936,36,FALSE),0) -> 0 | AM69: =IFERROR(VLOOKUP($A69,Filtro!$A$5:$AK$2936,37,FALSE),0) -> 0
A70: 01012817 | B70: 01012817 | C70: Consulta por Trabajador(a) Social | D70: =IFERROR(VLOOKUP($A70,Filtro!$A$5:$AK$2936,2,FALSE),0) -> 10731 | E70: =IFERROR(VLOOKUP($A70,Filtro!$A$5:$AK$2936,3,FALSE),0) -> 10312 | F70: =IFERROR(VLOOKUP($A70,Filtro!$A$5:$AK$2936,4,FALSE),0) -> 10312 | G70: =IFERROR(VLOOKUP($A70,Filtro!$A$5:$AK$2936,5,FALSE),0) -> 0 | H70: =IFERROR(VLOOKUP($A70,Filtro!$A$5:$AK$2936,6,FALSE),0) -> 419 | I70: =IFERROR(VLOOKUP($A70,Filtro!$A$5:$AK$2936,7,FALSE),0) -> 0 | J70: =IFERROR(VLOOKUP($A70,Filtro!$A$5:$AK$2936,8,FALSE),0) -> 0 | K70: =IFERROR(VLOOKUP($A70,Filtro!$A$5:$AK$2936,9,FALSE),0) -> 0 | L70: =IFERROR(VLOOKUP($A70,Filtro!$A$5:$AK$2936,10,FALSE),0) -> 0 | M70: =IFERROR(VLOOKUP($A70,Filtro!$A$5:$AK$2936,11,FALSE),0) -> 0 | N70: =IFERROR(VLOOKUP($A70,Filtro!$A$5:$AK$2936,12,FALSE),0) -> 0 | O70: =IFERROR(VLOOKUP($A70,Filtro!$A$5:$AK$2936,13,FALSE),0) -> 0 | P70: =IFERROR(VLOOKUP($A70,Filtro!$A$5:$AK$2936,14,FALSE),0) -> 0 | Q70: =IFERROR(VLOOKUP($A70,Filtro!$A$5:$AK$2936,15,FALSE),0) -> 0 | R70: =IFERROR(VLOOKUP($A70,Filtro!$A$5:$AK$2936,16,FALSE),0) -> 0 | S70: =IFERROR(VLOOKUP($A70,Filtro!$A$5:$AK$2936,17,FALSE),0) -> 0 | T70: =IFERROR(VLOOKUP($A70,Filtro!$A$5:$AK$2936,18,FALSE),0) -> 0 | U70: =IFERROR(VLOOKUP($A70,Filtro!$A$5:$AK$2936,19,FALSE),0) -> 0 | V70: =IFERROR(VLOOKUP($A70,Filtro!$A$5:$AK$2936,20,FALSE),0) -> 0 | W70: =IFERROR(VLOOKUP($A70,Filtro!$A$5:$AK$2936,21,FALSE),0) -> 0 | X70: =IFERROR(VLOOKUP($A70,Filtro!$A$5:$AK$2936,22,FALSE),0) -> 0 | Y70: =IFERROR(VLOOKUP($A70,Filtro!$A$5:$AK$2936,23,FALSE),0) -> 0 | Z70: =IFERROR(VLOOKUP($A70,Filtro!$A$5:$AK$2936,24,FALSE),0) -> 0 | AA70: =IFERROR(VLOOKUP($A70,Filtro!$A$5:$AK$2936,25,FALSE),0) -> 0 | AB70: =IFERROR(VLOOKUP($A70,Filtro!$A$5:$AK$2936,26,FALSE),0) -> 34 | AC70: =IFERROR(VLOOKUP($A70,Filtro!$A$5:$AK$2936,27,FALSE),0) -> 10610 | AD70: =IFERROR(VLOOKUP($A70,Filtro!$A$5:$AK$2936,28,FALSE),0) -> 87 | AE70: =IFERROR(VLOOKUP($A70,Filtro!$A$5:$AK$2936,29,FALSE),0) -> 0 | AF70: =IFERROR(VLOOKUP($A70,Filtro!$A$5:$AK$2936,30,FALSE),0) -> 0 | AG70: =IFERROR(VLOOKUP($A70,Filtro!$A$5:$AK$2936,31,FALSE),0) -> 0 | AH70: =IFERROR(VLOOKUP($A70,Filtro!$A$5:$AK$2936,32,FALSE),0) -> 0 | AI70: =IFERROR(VLOOKUP($A70,Filtro!$A$5:$AK$2936,33,FALSE),0) -> 0 | AJ70: =IFERROR(VLOOKUP($A70,Filtro!$A$5:$AK$2936,34,FALSE),0) -> 0 | AK70: =IFERROR(VLOOKUP($A70,Filtro!$A$5:$AK$2936,35,FALSE),0) -> 0 | AL70: =IFERROR(VLOOKUP($A70,Filtro!$A$5:$AK$2936,36,FALSE),0) -> 0 | AM70: =IFERROR(VLOOKUP($A70,Filtro!$A$5:$AK$2936,37,FALSE),0) -> 0
C71: TOTAL ARANCEL MLE Y NO ARANCELADO | D71: =SUM(D69:D70) -> 31167 | E71: =SUM(E69:E70) -> 30629 | F71: =SUM(F69:F70) -> 30629 | G71: =SUM(G69:G70) -> 0 | H71: =SUM(H69:H70) -> 538 | AB71: =SUM(AB69:AB70) -> 34 | AC71: 30792 | AD71: 341 | AE71: 570 | AF71: 0 | AG71: 0 | AH71: 0 | AI71: 0 | AJ71: 0 | AK71: =SUM(AK69:AK70) -> 0
C72: TOTAL PRODUCCION | D72: =SUM(D68+D71) -> 229860 | E72: =SUM(E68+E71) -> 228831 | F72: =SUM(F68+F71) -> 228831 | G72: =SUM(G68+G71) -> 0 | H72: =SUM(H68+H71) -> 1029 | AB72: =SUM(AB68+AB71) -> 8397 | AC72: 176441 | AD72: 45025 | AE72: 570 | AF72: 0 | AG72: 0 | AH72: 0 | AI72: 0 | AJ72: 0 | AK72: 0 | AM72: =SUM(AM68+AM71) -> 276,749,560
C73: TELEMEDICINA POR PROFESIONALES MÉDICOS
C74: TELECONSULTAS
A75: 01013100 | B75: 0108001 | C75: Teleconsulta Medicina General | D75: =IFERROR(VLOOKUP($A75,Filtro!$A$5:$AK$2936,2,FALSE),0) -> 0 | E75: =IFERROR(VLOOKUP($A75,Filtro!$A$5:$AK$2936,3,FALSE),0) -> 0 | F75: =IFERROR(VLOOKUP($A75,Filtro!$A$5:$AK$2936,4,FALSE),0) -> 0 | G75: =IFERROR(VLOOKUP($A75,Filtro!$A$5:$AK$2936,5,FALSE),0) -> 0 | H75: =IFERROR(VLOOKUP($A75,Filtro!$A$5:$AK$2936,6,FALSE),0) -> 0 | I75: =IFERROR(VLOOKUP($A75,Filtro!$A$5:$AK$2936,7,FALSE),0) -> 0 | J75: =IFERROR(VLOOKUP($A75,Filtro!$A$5:$AK$2936,8,FALSE),0) -> 0 | K75: =IFERROR(VLOOKUP($A75,Filtro!$A$5:$AK$2936,9,FALSE),0) -> 0 | L75: =IFERROR(VLOOKUP($A75,Filtro!$A$5:$AK$2936,10,FALSE),0) -> 0 | M75: =IFERROR(VLOOKUP($A75,Filtro!$A$5:$AK$2936,11,FALSE),0) -> 0 | N75: =IFERROR(VLOOKUP($A75,Filtro!$A$5:$AK$2936,12,FALSE),0) -> 0 | O75: =IFERROR(VLOOKUP($A75,Filtro!$A$5:$AK$2936,13,FALSE),0) -> 0 | P75: =IFERROR(VLOOKUP($A75,Filtro!$A$5:$AK$2936,14,FALSE),0) -> 0 | Q75: =IFERROR(VLOOKUP($A75,Filtro!$A$5:$AK$2936,15,FALSE),0) -> 0 | R75: =IFERROR(VLOOKUP($A75,Filtro!$A$5:$AK$2936,16,FALSE),0) -> 0 | S75: =IFERROR(VLOOKUP($A75,Filtro!$A$5:$AK$2936,17,FALSE),0) -> 0 | T75: =IFERROR(VLOOKUP($A75,Filtro!$A$5:$AK$2936,18,FALSE),0) -> 0 | U75: =IFERROR(VLOOKUP($A75,Filtro!$A$5:$AK$2936,19,FALSE),0) -> 0 | V75: =IFERROR(VLOOKUP($A75,Filtro!$A$5:$AK$2936,20,FALSE),0) -> 0 | W75: =IFERROR(VLOOKUP($A75,Filtro!$A$5:$AK$2936,21,FALSE),0) -> 0 | X75: =IFERROR(VLOOKUP($A75,Filtro!$A$5:$AK$2936,22,FALSE),0) -> 0 | Y75: =IFERROR(VLOOKUP($A75,Filtro!$A$5:$AK$2936,23,FALSE),0) -> 0 | Z75: =IFERROR(VLOOKUP($A75,Filtro!$A$5:$AK$2936,24,FALSE),0) -> 0 | AA75: =IFERROR(VLOOKUP($A75,Filtro!$A$5:$AK$2936,25,FALSE),0) -> 0 | AB75: =IFERROR(VLOOKUP($A75,Filtro!$A$5:$AK$2936,26,FALSE),0) -> 0 | AC75: =IFERROR(VLOOKUP($A75,Filtro!$A$5:$AK$2936,27,FALSE),0) -> 0 | AD75: =IFERROR(VLOOKUP($A75,Filtro!$A$5:$AK$2936,28,FALSE),0) -> 0 | AE75: =IFERROR(VLOOKUP($A75,Filtro!$A$5:$AK$2936,29,FALSE),0) -> 0 | AF75: =IFERROR(VLOOKUP($A75,Filtro!$A$5:$AK$2936,30,FALSE),0) -> 0 | AG75: =IFERROR(VLOOKUP($A75,Filtro!$A$5:$AK$2936,31,FALSE),0) -> 0 | AH75: =IFERROR(VLOOKUP($A75,Filtro!$A$5:$AK$2936,32,FALSE),0) -> 0 | AI75: =IFERROR(VLOOKUP($A75,Filtro!$A$5:$AK$2936,33,FALSE),0) -> 0 | AJ75: =IFERROR(VLOOKUP($A75,Filtro!$A$5:$AK$2936,34,FALSE),0) -> 0 | AK75: =IFERROR(VLOOKUP($A75,Filtro!$A$5:$AK$2936,35,FALSE),0) -> 0 | AL75: =IFERROR(VLOOKUP($A75,Filtro!$A$5:$AK$2936,36,FALSE),0) -> 703,570 | AM75: =IFERROR(VLOOKUP($A75,Filtro!$A$5:$AK$2936,37,FALSE),0) -> 0
A76: 01014325 | B76: 0108201 | C76: Teleconsulta Médica de Especialidad en Dermatología | D76: =IFERROR(VLOOKUP($A76,Filtro!$A$5:$AK$2936,2,FALSE),0) -> 122 | E76: =IFERROR(VLOOKUP($A76,Filtro!$A$5:$AK$2936,3,FALSE),0) -> 122 | F76: =IFERROR(VLOOKUP($A76,Filtro!$A$5:$AK$2936,4,FALSE),0) -> 122 | G76: =IFERROR(VLOOKUP($A76,Filtro!$A$5:$AK$2936,5,FALSE),0) -> 0 | H76: =IFERROR(VLOOKUP($A76,Filtro!$A$5:$AK$2936,6,FALSE),0) -> 0 | I76: =IFERROR(VLOOKUP($A76,Filtro!$A$5:$AK$2936,7,FALSE),0) -> 0 | J76: =IFERROR(VLOOKUP($A76,Filtro!$A$5:$AK$2936,8,FALSE),0) -> 0 | K76: =IFERROR(VLOOKUP($A76,Filtro!$A$5:$AK$2936,9,FALSE),0) -> 0 | L76: =IFERROR(VLOOKUP($A76,Filtro!$A$5:$AK$2936,10,FALSE),0) -> 0 | M76: =IFERROR(VLOOKUP($A76,Filtro!$A$5:$AK$2936,11,FALSE),0) -> 0 | N76: =IFERROR(VLOOKUP($A76,Filtro!$A$5:$AK$2936,12,FALSE),0) -> 0 | O76: =IFERROR(VLOOKUP($A76,Filtro!$A$5:$AK$2936,13,FALSE),0) -> 0 | P76: =IFERROR(VLOOKUP($A76,Filtro!$A$5:$AK$2936,14,FALSE),0) -> 0 | Q76: =IFERROR(VLOOKUP($A76,Filtro!$A$5:$AK$2936,15,FALSE),0) -> 0 | R76: =IFERROR(VLOOKUP($A76,Filtro!$A$5:$AK$2936,16,FALSE),0) -> 0 | S76: =IFERROR(VLOOKUP($A76,Filtro!$A$5:$AK$2936,17,FALSE),0) -> 0 | T76: =IFERROR(VLOOKUP($A76,Filtro!$A$5:$AK$2936,18,FALSE),0) -> 0 | U76: =IFERROR(VLOOKUP($A76,Filtro!$A$5:$AK$2936,19,FALSE),0) -> 0 | V76: =IFERROR(VLOOKUP($A76,Filtro!$A$5:$AK$2936,20,FALSE),0) -> 0 | W76: =IFERROR(VLOOKUP($A76,Filtro!$A$5:$AK$2936,21,FALSE),0) -> 0 | X76: =IFERROR(VLOOKUP($A76,Filtro!$A$5:$AK$2936,22,FALSE),0) -> 0 | Y76: =IFERROR(VLOOKUP($A76,Filtro!$A$5:$AK$2936,23,FALSE),0) -> 0 | Z76: =IFERROR(VLOOKUP($A76,Filtro!$A$5:$AK$2936,24,FALSE),0) -> 0 | AA76: =IFERROR(VLOOKUP($A76,Filtro!$A$5:$AK$2936,25,FALSE),0) -> 0 | AB76: =IFERROR(VLOOKUP($A76,Filtro!$A$5:$AK$2936,26,FALSE),0) -> 0 | AC76: =IFERROR(VLOOKUP($A76,Filtro!$A$5:$AK$2936,27,FALSE),0) -> 122 | AD76: =IFERROR(VLOOKUP($A76,Filtro!$A$5:$AK$2936,28,FALSE),0) -> 0 | AE76: =IFERROR(VLOOKUP($A76,Filtro!$A$5:$AK$2936,29,FALSE),0) -> 0 | AF76: =IFERROR(VLOOKUP($A76,Filtro!$A$5:$AK$2936,30,FALSE),0) -> 0 | AG76: =IFERROR(VLOOKUP($A76,Filtro!$A$5:$AK$2936,31,FALSE),0) -> 0 | AH76: =IFERROR(VLOOKUP($A76,Filtro!$A$5:$AK$2936,32,FALSE),0) -> 0 | AI76: =IFERROR(VLOOKUP($A76,Filtro!$A$5:$AK$2936,33,FALSE),0) -> 0 | AJ76: =IFERROR(VLOOKUP($A76,Filtro!$A$5:$AK$2936,34,FALSE),0) -> 0 | AK76: =IFERROR(VLOOKUP($A76,Filtro!$A$5:$AK$2936,35,FALSE),0) -> 0 | AL76: =IFERROR(VLOOKUP($A76,Filtro!$A$5:$AK$2936,36,FALSE),0) -> 1,001,490 | AM76: =IFERROR(VLOOKUP($A76,Filtro!$A$5:$AK$2936,37,FALSE),0) -> 918,660
A77: 01014326 | B77: 0108202 | C77: Teleconsulta Médica de Especialidad en Geriatría | D77: =IFERROR(VLOOKUP($A77,Filtro!$A$5:$AK$2936,2,FALSE),0) -> 3 | E77: =IFERROR(VLOOKUP($A77,Filtro!$A$5:$AK$2936,3,FALSE),0) -> 3 | F77: =IFERROR(VLOOKUP($A77,Filtro!$A$5:$AK$2936,4,FALSE),0) -> 3 | G77: =IFERROR(VLOOKUP($A77,Filtro!$A$5:$AK$2936,5,FALSE),0) -> 0 | H77: =IFERROR(VLOOKUP($A77,Filtro!$A$5:$AK$2936,6,FALSE),0) -> 0 | I77: =IFERROR(VLOOKUP($A77,Filtro!$A$5:$AK$2936,7,FALSE),0) -> 0 | J77: =IFERROR(VLOOKUP($A77,Filtro!$A$5:$AK$2936,8,FALSE),0) -> 0 | K77: =IFERROR(VLOOKUP($A77,Filtro!$A$5:$AK$2936,9,FALSE),0) -> 0 | L77: =IFERROR(VLOOKUP($A77,Filtro!$A$5:$AK$2936,10,FALSE),0) -> 0 | M77: =IFERROR(VLOOKUP($A77,Filtro!$A$5:$AK$2936,11,FALSE),0) -> 0 | N77: =IFERROR(VLOOKUP($A77,Filtro!$A$5:$AK$2936,12,FALSE),0) -> 0 | O77: =IFERROR(VLOOKUP($A77,Filtro!$A$5:$AK$2936,13,FALSE),0) -> 0 | P77: =IFERROR(VLOOKUP($A77,Filtro!$A$5:$AK$2936,14,FALSE),0) -> 0 | Q77: =IFERROR(VLOOKUP($A77,Filtro!$A$5:$AK$2936,15,FALSE),0) -> 0 | R77: =IFERROR(VLOOKUP($A77,Filtro!$A$5:$AK$2936,16,FALSE),0) -> 0 | S77: =IFERROR(VLOOKUP($A77,Filtro!$A$5:$AK$2936,17,FALSE),0) -> 0 | T77: =IFERROR(VLOOKUP($A77,Filtro!$A$5:$AK$2936,18,FALSE),0) -> 0 | U77: =IFERROR(VLOOKUP($A77,Filtro!$A$5:$AK$2936,19,FALSE),0) -> 0 | V77: =IFERROR(VLOOKUP($A77,Filtro!$A$5:$AK$2936,20,FALSE),0) -> 0 | W77: =IFERROR(VLOOKUP($A77,Filtro!$A$5:$AK$2936,21,FALSE),0) -> 0 | X77: =IFERROR(VLOOKUP($A77,Filtro!$A$5:$AK$2936,22,FALSE),0) -> 0 | Y77: =IFERROR(VLOOKUP($A77,Filtro!$A$5:$AK$2936,23,FALSE),0) -> 0 | Z77: =IFERROR(VLOOKUP($A77,Filtro!$A$5:$AK$2936,24,FALSE),0) -> 0 | AA77: =IFERROR(VLOOKUP($A77,Filtro!$A$5:$AK$2936,25,FALSE),0) -> 0 | AB77: =IFERROR(VLOOKUP($A77,Filtro!$A$5:$AK$2936,26,FALSE),0) -> 0 | AC77: =IFERROR(VLOOKUP($A77,Filtro!$A$5:$AK$2936,27,FALSE),0) -> 3 | AD77: =IFERROR(VLOOKUP($A77,Filtro!$A$5:$AK$2936,28,FALSE),0) -> 0 | AE77: =IFERROR(VLOOKUP($A77,Filtro!$A$5:$AK$2936,29,FALSE),0) -> 0 | AF77: =IFERROR(VLOOKUP($A77,Filtro!$A$5:$AK$2936,30,FALSE),0) -> 0 | AG77: =IFERROR(VLOOKUP($A77,Filtro!$A$5:$AK$2936,31,FALSE),0) -> 0 | AH77: =IFERROR(VLOOKUP($A77,Filtro!$A$5:$AK$2936,32,FALSE),0) -> 0 | AI77: =IFERROR(VLOOKUP($A77,Filtro!$A$5:$AK$2936,33,FALSE),0) -> 0 | AJ77: =IFERROR(VLOOKUP($A77,Filtro!$A$5:$AK$2936,34,FALSE),0) -> 0 | AK77: =IFERROR(VLOOKUP($A77,Filtro!$A$5:$AK$2936,35,FALSE),0) -> 0 | AL77: =IFERROR(VLOOKUP($A77,Filtro!$A$5:$AK$2936,36,FALSE),0) -> 1,001,490 | AM77: =IFERROR(VLOOKUP($A77,Filtro!$A$5:$AK$2936,37,FALSE),0) -> 22,590
A78: 01014327 | B78: 0108206 | C78: Teleconsulta Médica de Especialidad en Reumatología | D78: =IFERROR(VLOOKUP($A78,Filtro!$A$5:$AK$2936,2,FALSE),0) -> 63 | E78: =IFERROR(VLOOKUP($A78,Filtro!$A$5:$AK$2936,3,FALSE),0) -> 63 | F78: =IFERROR(VLOOKUP($A78,Filtro!$A$5:$AK$2936,4,FALSE),0) -> 63 | G78: =IFERROR(VLOOKUP($A78,Filtro!$A$5:$AK$2936,5,FALSE),0) -> 0 | H78: =IFERROR(VLOOKUP($A78,Filtro!$A$5:$AK$2936,6,FALSE),0) -> 0 | I78: =IFERROR(VLOOKUP($A78,Filtro!$A$5:$AK$2936,7,FALSE),0) -> 0 | J78: =IFERROR(VLOOKUP($A78,Filtro!$A$5:$AK$2936,8,FALSE),0) -> 0 | K78: =IFERROR(VLOOKUP($A78,Filtro!$A$5:$AK$2936,9,FALSE),0) -> 0 | L78: =IFERROR(VLOOKUP($A78,Filtro!$A$5:$AK$2936,10,FALSE),0) -> 0 | M78: =IFERROR(VLOOKUP($A78,Filtro!$A$5:$AK$2936,11,FALSE),0) -> 0 | N78: =IFERROR(VLOOKUP($A78,Filtro!$A$5:$AK$2936,12,FALSE),0) -> 0 | O78: =IFERROR(VLOOKUP($A78,Filtro!$A$5:$AK$2936,13,FALSE),0) -> 0 | P78: =IFERROR(VLOOKUP($A78,Filtro!$A$5:$AK$2936,14,FALSE),0) -> 0 | Q78: =IFERROR(VLOOKUP($A78,Filtro!$A$5:$AK$2936,15,FALSE),0) -> 0 | R78: =IFERROR(VLOOKUP($A78,Filtro!$A$5:$AK$2936,16,FALSE),0) -> 0 | S78: =IFERROR(VLOOKUP($A78,Filtro!$A$5:$AK$2936,17,FALSE),0) -> 0 | T78: =IFERROR(VLOOKUP($A78,Filtro!$A$5:$AK$2936,18,FALSE),0) -> 0 | U78: =IFERROR(VLOOKUP($A78,Filtro!$A$5:$AK$2936,19,FALSE),0) -> 0 | V78: =IFERROR(VLOOKUP($A78,Filtro!$A$5:$AK$2936,20,FALSE),0) -> 0 | W78: =IFERROR(VLOOKUP($A78,Filtro!$A$5:$AK$2936,21,FALSE),0) -> 0 | X78: =IFERROR(VLOOKUP($A78,Filtro!$A$5:$AK$2936,22,FALSE),0) -> 0 | Y78: =IFERROR(VLOOKUP($A78,Filtro!$A$5:$AK$2936,23,FALSE),0) -> 0 | Z78: =IFERROR(VLOOKUP($A78,Filtro!$A$5:$AK$2936,24,FALSE),0) -> 0 | AA78: =IFERROR(VLOOKUP($A78,Filtro!$A$5:$AK$2936,25,FALSE),0) -> 0 | AB78: =IFERROR(VLOOKUP($A78,Filtro!$A$5:$AK$2936,26,FALSE),0) -> 0 | AC78: =IFERROR(VLOOKUP($A78,Filtro!$A$5:$AK$2936,27,FALSE),0) -> 63 | AD78: =IFERROR(VLOOKUP($A78,Filtro!$A$5:$AK$2936,28,FALSE),0) -> 0 | AE78: =IFERROR(VLOOKUP($A78,Filtro!$A$5:$AK$2936,29,FALSE),0) -> 0 | AF78: =IFERROR(VLOOKUP($A78,Filtro!$A$5:$AK$2936,30,FALSE),0) -> 0 | AG78: =IFERROR(VLOOKUP($A78,Filtro!$A$5:$AK$2936,31,FALSE),0) -> 0 | AH78: =IFERROR(VLOOKUP($A78,Filtro!$A$5:$AK$2936,32,FALSE),0) -> 0 | AI78: =IFERROR(VLOOKUP($A78,Filtro!$A$5:$AK$2936,33,FALSE),0) -> 0 | AJ78: =IFERROR(VLOOKUP($A78,Filtro!$A$5:$AK$2936,34,FALSE),0) -> 0 | AK78: =IFERROR(VLOOKUP($A78,Filtro!$A$5:$AK$2936,35,FALSE),0) -> 0 | AL78: =IFERROR(VLOOKUP($A78,Filtro!$A$5:$AK$2936,36,FALSE),0) -> 1,001,490 | AM78: =IFERROR(VLOOKUP($A78,Filtro!$A$5:$AK$2936,37,FALSE),0) -> 474,390
A79: 01014328 | B79: 0108207 | C79: Teleconsulta Médica de Especialidad en Endocrinología Adulto | D79: =IFERROR(VLOOKUP($A79,Filtro!$A$5:$AK$2936,2,FALSE),0) -> 177 | E79: =IFERROR(VLOOKUP($A79,Filtro!$A$5:$AK$2936,3,FALSE),0) -> 177 | F79: =IFERROR(VLOOKUP($A79,Filtro!$A$5:$AK$2936,4,FALSE),0) -> 177 | G79: =IFERROR(VLOOKUP($A79,Filtro!$A$5:$AK$2936,5,FALSE),0) -> 0 | H79: =IFERROR(VLOOKUP($A79,Filtro!$A$5:$AK$2936,6,FALSE),0) -> 0 | I79: =IFERROR(VLOOKUP($A79,Filtro!$A$5:$AK$2936,7,FALSE),0) -> 0 | J79: =IFERROR(VLOOKUP($A79,Filtro!$A$5:$AK$2936,8,FALSE),0) -> 0 | K79: =IFERROR(VLOOKUP($A79,Filtro!$A$5:$AK$2936,9,FALSE),0) -> 0 | L79: =IFERROR(VLOOKUP($A79,Filtro!$A$5:$AK$2936,10,FALSE),0) -> 0 | M79: =IFERROR(VLOOKUP($A79,Filtro!$A$5:$AK$2936,11,FALSE),0) -> 0 | N79: =IFERROR(VLOOKUP($A79,Filtro!$A$5:$AK$2936,12,FALSE),0) -> 0 | O79: =IFERROR(VLOOKUP($A79,Filtro!$A$5:$AK$2936,13,FALSE),0) -> 0 | P79: =IFERROR(VLOOKUP($A79,Filtro!$A$5:$AK$2936,14,FALSE),0) -> 0 | Q79: =IFERROR(VLOOKUP($A79,Filtro!$A$5:$AK$2936,15,FALSE),0) -> 0 | R79: =IFERROR(VLOOKUP($A79,Filtro!$A$5:$AK$2936,16,FALSE),0) -> 0 | S79: =IFERROR(VLOOKUP($A79,Filtro!$A$5:$AK$2936,17,FALSE),0) -> 0 | T79: =IFERROR(VLOOKUP($A79,Filtro!$A$5:$AK$2936,18,FALSE),0) -> 0 | U79: =IFERROR(VLOOKUP($A79,Filtro!$A$5:$AK$2936,19,FALSE),0) -> 0 | V79: =IFERROR(VLOOKUP($A79,Filtro!$A$5:$AK$2936,20,FALSE),0) -> 0 | W79: =IFERROR(VLOOKUP($A79,Filtro!$A$5:$AK$2936,21,FALSE),0) -> 0 | X79: =IFERROR(VLOOKUP($A79,Filtro!$A$5:$AK$2936,22,FALSE),0) -> 0 | Y79: =IFERROR(VLOOKUP($A79,Filtro!$A$5:$AK$2936,23,FALSE),0) -> 0 | Z79: =IFERROR(VLOOKUP($A79,Filtro!$A$5:$AK$2936,24,FALSE),0) -> 0 | AA79: =IFERROR(VLOOKUP($A79,Filtro!$A$5:$AK$2936,25,FALSE),0) -> 0 | AB79: =IFERROR(VLOOKUP($A79,Filtro!$A$5:$AK$2936,26,FALSE),0) -> 0 | AC79: =IFERROR(VLOOKUP($A79,Filtro!$A$5:$AK$2936,27,FALSE),0) -> 177 | AD79: =IFERROR(VLOOKUP($A79,Filtro!$A$5:$AK$2936,28,FALSE),0) -> 0 | AE79: =IFERROR(VLOOKUP($A79,Filtro!$A$5:$AK$2936,29,FALSE),0) -> 0 | AF79: =IFERROR(VLOOKUP($A79,Filtro!$A$5:$AK$2936,30,FALSE),0) -> 0 | AG79: =IFERROR(VLOOKUP($A79,Filtro!$A$5:$AK$2936,31,FALSE),0) -> 0 | AH79: =IFERROR(VLOOKUP($A79,Filtro!$A$5:$AK$2936,32,FALSE),0) -> 0 | AI79: =IFERROR(VLOOKUP($A79,Filtro!$A$5:$AK$2936,33,FALSE),0) -> 0 | AJ79: =IFERROR(VLOOKUP($A79,Filtro!$A$5:$AK$2936,34,FALSE),0) -> 0 | AK79: =IFERROR(VLOOKUP($A79,Filtro!$A$5:$AK$2936,35,FALSE),0) -> 0 | AL79: =IFERROR(VLOOKUP($A79,Filtro!$A$5:$AK$2936,36,FALSE),0) -> 1,001,490 | AM79: =IFERROR(VLOOKUP($A79,Filtro!$A$5:$AK$2936,37,FALSE),0) -> 1,332,810
A80: 01014329 | B80: 0108208 | C80: Teleconsulta Médica de Especialidad en Endocrinología Pediátrica | D80: =IFERROR(VLOOKUP($A80,Filtro!$A$5:$AK$2936,2,FALSE),0) -> 58 | E80: =IFERROR(VLOOKUP($A80,Filtro!$A$5:$AK$2936,3,FALSE),0) -> 58 | F80: =IFERROR(VLOOKUP($A80,Filtro!$A$5:$AK$2936,4,FALSE),0) -> 58 | G80: =IFERROR(VLOOKUP($A80,Filtro!$A$5:$AK$2936,5,FALSE),0) -> 0 | H80: =IFERROR(VLOOKUP($A80,Filtro!$A$5:$AK$2936,6,FALSE),0) -> 0 | I80: =IFERROR(VLOOKUP($A80,Filtro!$A$5:$AK$2936,7,FALSE),0) -> 0 | J80: =IFERROR(VLOOKUP($A80,Filtro!$A$5:$AK$2936,8,FALSE),0) -> 0 | K80: =IFERROR(VLOOKUP($A80,Filtro!$A$5:$AK$2936,9,FALSE),0) -> 0 | L80: =IFERROR(VLOOKUP($A80,Filtro!$A$5:$AK$2936,10,FALSE),0) -> 0 | M80: =IFERROR(VLOOKUP($A80,Filtro!$A$5:$AK$2936,11,FALSE),0) -> 0 | N80: =IFERROR(VLOOKUP($A80,Filtro!$A$5:$AK$2936,12,FALSE),0) -> 0 | O80: =IFERROR(VLOOKUP($A80,Filtro!$A$5:$AK$2936,13,FALSE),0) -> 0 | P80: =IFERROR(VLOOKUP($A80,Filtro!$A$5:$AK$2936,14,FALSE),0) -> 0 | Q80: =IFERROR(VLOOKUP($A80,Filtro!$A$5:$AK$2936,15,FALSE),0) -> 0 | R80: =IFERROR(VLOOKUP($A80,Filtro!$A$5:$AK$2936,16,FALSE),0) -> 0 | S80: =IFERROR(VLOOKUP($A80,Filtro!$A$5:$AK$2936,17,FALSE),0) -> 0 | T80: =IFERROR(VLOOKUP($A80,Filtro!$A$5:$AK$2936,18,FALSE),0) -> 0 | U80: =IFERROR(VLOOKUP($A80,Filtro!$A$5:$AK$2936,19,FALSE),0) -> 0 | V80: =IFERROR(VLOOKUP($A80,Filtro!$A$5:$AK$2936,20,FALSE),0) -> 0 | W80: =IFERROR(VLOOKUP($A80,Filtro!$A$5:$AK$2936,21,FALSE),0) -> 0 | X80: =IFERROR(VLOOKUP($A80,Filtro!$A$5:$AK$2936,22,FALSE),0) -> 0 | Y80: =IFERROR(VLOOKUP($A80,Filtro!$A$5:$AK$2936,23,FALSE),0) -> 0 | Z80: =IFERROR(VLOOKUP($A80,Filtro!$A$5:$AK$2936,24,FALSE),0) -> 0 | AA80: =IFERROR(VLOOKUP($A80,Filtro!$A$5:$AK$2936,25,FALSE),0) -> 0 | AB80: =IFERROR(VLOOKUP($A80,Filtro!$A$5:$AK$2936,26,FALSE),0) -> 0 | AC80: =IFERROR(VLOOKUP($A80,Filtro!$A$5:$AK$2936,27,FALSE),0) -> 58 | AD80: =IFERROR(VLOOKUP($A80,Filtro!$A$5:$AK$2936,28,FALSE),0) -> 0 | AE80: =IFERROR(VLOOKUP($A80,Filtro!$A$5:$AK$2936,29,FALSE),0) -> 0 | AF80: =IFERROR(VLOOKUP($A80,Filtro!$A$5:$AK$2936,30,FALSE),0) -> 0 | AG80: =IFERROR(VLOOKUP($A80,Filtro!$A$5:$AK$2936,31,FALSE),0) -> 0 | AH80: =IFERROR(VLOOKUP($A80,Filtro!$A$5:$AK$2936,32,FALSE),0) -> 0 | AI80: =IFERROR(VLOOKUP($A80,Filtro!$A$5:$AK$2936,33,FALSE),0) -> 0 | AJ80: =IFERROR(VLOOKUP($A80,Filtro!$A$5:$AK$2936,34,FALSE),0) -> 0 | AK80: =IFERROR(VLOOKUP($A80,Filtro!$A$5:$AK$2936,35,FALSE),0) -> 0 | AL80: =IFERROR(VLOOKUP($A80,Filtro!$A$5:$AK$2936,36,FALSE),0) -> 1,001,490 | AM80: =IFERROR(VLOOKUP($A80,Filtro!$A$5:$AK$2936,37,FALSE),0) -> 436,740
A81: 01014330 | B81: 0108209 | C81: Teleconsulta Médica de Especialidad en Neurología Adultos | D81: =IFERROR(VLOOKUP($A81,Filtro!$A$5:$AK$2936,2,FALSE),0) -> 221 | E81: =IFERROR(VLOOKUP($A81,Filtro!$A$5:$AK$2936,3,FALSE),0) -> 221 | F81: =IFERROR(VLOOKUP($A81,Filtro!$A$5:$AK$2936,4,FALSE),0) -> 221 | G81: =IFERROR(VLOOKUP($A81,Filtro!$A$5:$AK$2936,5,FALSE),0) -> 0 | H81: =IFERROR(VLOOKUP($A81,Filtro!$A$5:$AK$2936,6,FALSE),0) -> 0 | I81: =IFERROR(VLOOKUP($A81,Filtro!$A$5:$AK$2936,7,FALSE),0) -> 0 | J81: =IFERROR(VLOOKUP($A81,Filtro!$A$5:$AK$2936,8,FALSE),0) -> 0 | K81: =IFERROR(VLOOKUP($A81,Filtro!$A$5:$AK$2936,9,FALSE),0) -> 0 | L81: =IFERROR(VLOOKUP($A81,Filtro!$A$5:$AK$2936,10,FALSE),0) -> 0 | M81: =IFERROR(VLOOKUP($A81,Filtro!$A$5:$AK$2936,11,FALSE),0) -> 0 | N81: =IFERROR(VLOOKUP($A81,Filtro!$A$5:$AK$2936,12,FALSE),0) -> 0 | O81: =IFERROR(VLOOKUP($A81,Filtro!$A$5:$AK$2936,13,FALSE),0) -> 0 | P81: =IFERROR(VLOOKUP($A81,Filtro!$A$5:$AK$2936,14,FALSE),0) -> 0 | Q81: =IFERROR(VLOOKUP($A81,Filtro!$A$5:$AK$2936,15,FALSE),0) -> 0 | R81: =IFERROR(VLOOKUP($A81,Filtro!$A$5:$AK$2936,16,FALSE),0) -> 0 | S81: =IFERROR(VLOOKUP($A81,Filtro!$A$5:$AK$2936,17,FALSE),0) -> 0 | T81: =IFERROR(VLOOKUP($A81,Filtro!$A$5:$AK$2936,18,FALSE),0) -> 0 | U81: =IFERROR(VLOOKUP($A81,Filtro!$A$5:$AK$2936,19,FALSE),0) -> 0 | V81: =IFERROR(VLOOKUP($A81,Filtro!$A$5:$AK$2936,20,FALSE),0) -> 0 | W81: =IFERROR(VLOOKUP($A81,Filtro!$A$5:$AK$2936,21,FALSE),0) -> 0 | X81: =IFERROR(VLOOKUP($A81,Filtro!$A$5:$AK$2936,22,FALSE),0) -> 0 | Y81: =IFERROR(VLOOKUP($A81,Filtro!$A$5:$AK$2936,23,FALSE),0) -> 0 | Z81: =IFERROR(VLOOKUP($A81,Filtro!$A$5:$AK$2936,24,FALSE),0) -> 0 | AA81: =IFERROR(VLOOKUP($A81,Filtro!$A$5:$AK$2936,25,FALSE),0) -> 0 | AB81: =IFERROR(VLOOKUP($A81,Filtro!$A$5:$AK$2936,26,FALSE),0) -> 26 | AC81: =IFERROR(VLOOKUP($A81,Filtro!$A$5:$AK$2936,27,FALSE),0) -> 195 | AD81: =IFERROR(VLOOKUP($A81,Filtro!$A$5:$AK$2936,28,FALSE),0) -> 0 | AE81: =IFERROR(VLOOKUP($A81,Filtro!$A$5:$AK$2936,29,FALSE),0) -> 0 | AF81: =IFERROR(VLOOKUP($A81,Filtro!$A$5:$AK$2936,30,FALSE),0) -> 0 | AG81: =IFERROR(VLOOKUP($A81,Filtro!$A$5:$AK$2936,31,FALSE),0) -> 0 | AH81: =IFERROR(VLOOKUP($A81,Filtro!$A$5:$AK$2936,32,FALSE),0) -> 0 | AI81: =IFERROR(VLOOKUP($A81,Filtro!$A$5:$AK$2936,33,FALSE),0) -> 0 | AJ81: =IFERROR(VLOOKUP($A81,Filtro!$A$5:$AK$2936,34,FALSE),0) -> 0 | AK81: =IFERROR(VLOOKUP($A81,Filtro!$A$5:$AK$2936,35,FALSE),0) -> 0 | AL81: =IFERROR(VLOOKUP($A81,Filtro!$A$5:$AK$2936,36,FALSE),0) -> 1,001,490 | AM81: =IFERROR(VLOOKUP($A81,Filtro!$A$5:$AK$2936,37,FALSE),0) -> 1,664,130
A82: 01014331 | B82: 0108210 | C82: Teleconsulta Médica de Especialidad en Neurología Pediátrica | D82: =IFERROR(VLOOKUP($A82,Filtro!$A$5:$AK$2936,2,FALSE),0) -> 86 | E82: =IFERROR(VLOOKUP($A82,Filtro!$A$5:$AK$2936,3,FALSE),0) -> 86 | F82: =IFERROR(VLOOKUP($A82,Filtro!$A$5:$AK$2936,4,FALSE),0) -> 86 | G82: =IFERROR(VLOOKUP($A82,Filtro!$A$5:$AK$2936,5,FALSE),0) -> 0 | H82: =IFERROR(VLOOKUP($A82,Filtro!$A$5:$AK$2936,6,FALSE),0) -> 0 | I82: =IFERROR(VLOOKUP($A82,Filtro!$A$5:$AK$2936,7,FALSE),0) -> 0 | J82: =IFERROR(VLOOKUP($A82,Filtro!$A$5:$AK$2936,8,FALSE),0) -> 0 | K82: =IFERROR(VLOOKUP($A82,Filtro!$A$5:$AK$2936,9,FALSE),0) -> 0 | L82: =IFERROR(VLOOKUP($A82,Filtro!$A$5:$AK$2936,10,FALSE),0) -> 0 | M82: =IFERROR(VLOOKUP($A82,Filtro!$A$5:$AK$2936,11,FALSE),0) -> 0 | N82: =IFERROR(VLOOKUP($A82,Filtro!$A$5:$AK$2936,12,FALSE),0) -> 0 | O82: =IFERROR(VLOOKUP($A82,Filtro!$A$5:$AK$2936,13,FALSE),0) -> 0 | P82: =IFERROR(VLOOKUP($A82,Filtro!$A$5:$AK$2936,14,FALSE),0) -> 0 | Q82: =IFERROR(VLOOKUP($A82,Filtro!$A$5:$AK$2936,15,FALSE),0) -> 0 | R82: =IFERROR(VLOOKUP($A82,Filtro!$A$5:$AK$2936,16,FALSE),0) -> 0 | S82: =IFERROR(VLOOKUP($A82,Filtro!$A$5:$AK$2936,17,FALSE),0) -> 0 | T82: =IFERROR(VLOOKUP($A82,Filtro!$A$5:$AK$2936,18,FALSE),0) -> 0 | U82: =IFERROR(VLOOKUP($A82,Filtro!$A$5:$AK$2936,19,FALSE),0) -> 0 | V82: =IFERROR(VLOOKUP($A82,Filtro!$A$5:$AK$2936,20,FALSE),0) -> 0 | W82: =IFERROR(VLOOKUP($A82,Filtro!$A$5:$AK$2936,21,FALSE),0) -> 0 | X82: =IFERROR(VLOOKUP($A82,Filtro!$A$5:$AK$2936,22,FALSE),0) -> 0 | Y82: =IFERROR(VLOOKUP($A82,Filtro!$A$5:$AK$2936,23,FALSE),0) -> 0 | Z82: =IFERROR(VLOOKUP($A82,Filtro!$A$5:$AK$2936,24,FALSE),0) -> 0 | AA82: =IFERROR(VLOOKUP($A82,Filtro!$A$5:$AK$2936,25,FALSE),0) -> 0 | AB82: =IFERROR(VLOOKUP($A82,Filtro!$A$5:$AK$2936,26,FALSE),0) -> 16 | AC82: =IFERROR(VLOOKUP($A82,Filtro!$A$5:$AK$2936,27,FALSE),0) -> 70 | AD82: =IFERROR(VLOOKUP($A82,Filtro!$A$5:$AK$2936,28,FALSE),0) -> 0 | AE82: =IFERROR(VLOOKUP($A82,Filtro!$A$5:$AK$2936,29,FALSE),0) -> 0 | AF82: =IFERROR(VLOOKUP($A82,Filtro!$A$5:$AK$2936,30,FALSE),0) -> 0 | AG82: =IFERROR(VLOOKUP($A82,Filtro!$A$5:$AK$2936,31,FALSE),0) -> 0 | AH82: =IFERROR(VLOOKUP($A82,Filtro!$A$5:$AK$2936,32,FALSE),0) -> 0 | AI82: =IFERROR(VLOOKUP($A82,Filtro!$A$5:$AK$2936,33,FALSE),0) -> 0 | AJ82: =IFERROR(VLOOKUP($A82,Filtro!$A$5:$AK$2936,34,FALSE),0) -> 0 | AK82: =IFERROR(VLOOKUP($A82,Filtro!$A$5:$AK$2936,35,FALSE),0) -> 0 | AL82: =IFERROR(VLOOKUP($A82,Filtro!$A$5:$AK$2936,36,FALSE),0) -> 1,001,490 | AM82: =IFERROR(VLOOKUP($A82,Filtro!$A$5:$AK$2936,37,FALSE),0) -> 647,580
A83: 01014332 | B83: 0108211 | C83: Teleconsulta Médica de Especialidad en Oncología Médica | D83: =IFERROR(VLOOKUP($A83,Filtro!$A$5:$AK$2936,2,FALSE),0) -> 6048 | E83: =IFERROR(VLOOKUP($A83,Filtro!$A$5:$AK$2936,3,FALSE),0) -> 6048 | F83: =IFERROR(VLOOKUP($A83,Filtro!$A$5:$AK$2936,4,FALSE),0) -> 6048 | G83: =IFERROR(VLOOKUP($A83,Filtro!$A$5:$AK$2936,5,FALSE),0) -> 0 | H83: =IFERROR(VLOOKUP($A83,Filtro!$A$5:$AK$2936,6,FALSE),0) -> 0 | I83: =IFERROR(VLOOKUP($A83,Filtro!$A$5:$AK$2936,7,FALSE),0) -> 0 | J83: =IFERROR(VLOOKUP($A83,Filtro!$A$5:$AK$2936,8,FALSE),0) -> 0 | K83: =IFERROR(VLOOKUP($A83,Filtro!$A$5:$AK$2936,9,FALSE),0) -> 0 | L83: =IFERROR(VLOOKUP($A83,Filtro!$A$5:$AK$2936,10,FALSE),0) -> 0 | M83: =IFERROR(VLOOKUP($A83,Filtro!$A$5:$AK$2936,11,FALSE),0) -> 0 | N83: =IFERROR(VLOOKUP($A83,Filtro!$A$5:$AK$2936,12,FALSE),0) -> 0 | O83: =IFERROR(VLOOKUP($A83,Filtro!$A$5:$AK$2936,13,FALSE),0) -> 0 | P83: =IFERROR(VLOOKUP($A83,Filtro!$A$5:$AK$2936,14,FALSE),0) -> 0 | Q83: =IFERROR(VLOOKUP($A83,Filtro!$A$5:$AK$2936,15,FALSE),0) -> 0 | R83: =IFERROR(VLOOKUP($A83,Filtro!$A$5:$AK$2936,16,FALSE),0) -> 0 | S83: =IFERROR(VLOOKUP($A83,Filtro!$A$5:$AK$2936,17,FALSE),0) -> 0 | T83: =IFERROR(VLOOKUP($A83,Filtro!$A$5:$AK$2936,18,FALSE),0) -> 0 | U83: =IFERROR(VLOOKUP($A83,Filtro!$A$5:$AK$2936,19,FALSE),0) -> 0 | V83: =IFERROR(VLOOKUP($A83,Filtro!$A$5:$AK$2936,20,FALSE),0) -> 0 | W83: =IFERROR(VLOOKUP($A83,Filtro!$A$5:$AK$2936,21,FALSE),0) -> 0 | X83: =IFERROR(VLOOKUP($A83,Filtro!$A$5:$AK$2936,22,FALSE),0) -> 0 | Y83: =IFERROR(VLOOKUP($A83,Filtro!$A$5:$AK$2936,23,FALSE),0) -> 0 | Z83: =IFERROR(VLOOKUP($A83,Filtro!$A$5:$AK$2936,24,FALSE),0) -> 0 | AA83: =IFERROR(VLOOKUP($A83,Filtro!$A$5:$AK$2936,25,FALSE),0) -> 0 | AB83: =IFERROR(VLOOKUP($A83,Filtro!$A$5:$AK$2936,26,FALSE),0) -> 0 | AC83: =IFERROR(VLOOKUP($A83,Filtro!$A$5:$AK$2936,27,FALSE),0) -> 6048 | AD83: =IFERROR(VLOOKUP($A83,Filtro!$A$5:$AK$2936,28,FALSE),0) -> 0 | AE83: =IFERROR(VLOOKUP($A83,Filtro!$A$5:$AK$2936,29,FALSE),0) -> 0 | AF83: =IFERROR(VLOOKUP($A83,Filtro!$A$5:$AK$2936,30,FALSE),0) -> 0 | AG83: =IFERROR(VLOOKUP($A83,Filtro!$A$5:$AK$2936,31,FALSE),0) -> 0 | AH83: =IFERROR(VLOOKUP($A83,Filtro!$A$5:$AK$2936,32,FALSE),0) -> 0 | AI83: =IFERROR(VLOOKUP($A83,Filtro!$A$5:$AK$2936,33,FALSE),0) -> 0 | AJ83: =IFERROR(VLOOKUP($A83,Filtro!$A$5:$AK$2936,34,FALSE),0) -> 0 | AK83: =IFERROR(VLOOKUP($A83,Filtro!$A$5:$AK$2936,35,FALSE),0) -> 0 | AL83: =IFERROR(VLOOKUP($A83,Filtro!$A$5:$AK$2936,36,FALSE),0) -> 1,001,490 | AM83: =IFERROR(VLOOKUP($A83,Filtro!$A$5:$AK$2936,37,FALSE),0) -> 45,541,440
A84: 01014333 | B84: 0108212 | C84: Teleconsulta Médica de Especialidad en Psiquiatría adultos | D84: =IFERROR(VLOOKUP($A84,Filtro!$A$5:$AK$2936,2,FALSE),0) -> 524 | E84: =IFERROR(VLOOKUP($A84,Filtro!$A$5:$AK$2936,3,FALSE),0) -> 524 | F84: =IFERROR(VLOOKUP($A84,Filtro!$A$5:$AK$2936,4,FALSE),0) -> 524 | G84: =IFERROR(VLOOKUP($A84,Filtro!$A$5:$AK$2936,5,FALSE),0) -> 0 | H84: =IFERROR(VLOOKUP($A84,Filtro!$A$5:$AK$2936,6,FALSE),0) -> 0 | I84: =IFERROR(VLOOKUP($A84,Filtro!$A$5:$AK$2936,7,FALSE),0) -> 0 | J84: =IFERROR(VLOOKUP($A84,Filtro!$A$5:$AK$2936,8,FALSE),0) -> 0 | K84: =IFERROR(VLOOKUP($A84,Filtro!$A$5:$AK$2936,9,FALSE),0) -> 0 | L84: =IFERROR(VLOOKUP($A84,Filtro!$A$5:$AK$2936,10,FALSE),0) -> 0 | M84: =IFERROR(VLOOKUP($A84,Filtro!$A$5:$AK$2936,11,FALSE),0) -> 0 | N84: =IFERROR(VLOOKUP($A84,Filtro!$A$5:$AK$2936,12,FALSE),0) -> 0 | O84: =IFERROR(VLOOKUP($A84,Filtro!$A$5:$AK$2936,13,FALSE),0) -> 0 | P84: =IFERROR(VLOOKUP($A84,Filtro!$A$5:$AK$2936,14,FALSE),0) -> 0 | Q84: =IFERROR(VLOOKUP($A84,Filtro!$A$5:$AK$2936,15,FALSE),0) -> 0 | R84: =IFERROR(VLOOKUP($A84,Filtro!$A$5:$AK$2936,16,FALSE),0) -> 0 | S84: =IFERROR(VLOOKUP($A84,Filtro!$A$5:$AK$2936,17,FALSE),0) -> 0 | T84: =IFERROR(VLOOKUP($A84,Filtro!$A$5:$AK$2936,18,FALSE),0) -> 0 | U84: =IFERROR(VLOOKUP($A84,Filtro!$A$5:$AK$2936,19,FALSE),0) -> 0 | V84: =IFERROR(VLOOKUP($A84,Filtro!$A$5:$AK$2936,20,FALSE),0) -> 0 | W84: =IFERROR(VLOOKUP($A84,Filtro!$A$5:$AK$2936,21,FALSE),0) -> 0 | X84: =IFERROR(VLOOKUP($A84,Filtro!$A$5:$AK$2936,22,FALSE),0) -> 0 | Y84: =IFERROR(VLOOKUP($A84,Filtro!$A$5:$AK$2936,23,FALSE),0) -> 0 | Z84: =IFERROR(VLOOKUP($A84,Filtro!$A$5:$AK$2936,24,FALSE),0) -> 0 | AA84: =IFERROR(VLOOKUP($A84,Filtro!$A$5:$AK$2936,25,FALSE),0) -> 0 | AB84: =IFERROR(VLOOKUP($A84,Filtro!$A$5:$AK$2936,26,FALSE),0) -> 0 | AC84: =IFERROR(VLOOKUP($A84,Filtro!$A$5:$AK$2936,27,FALSE),0) -> 524 | AD84: =IFERROR(VLOOKUP($A84,Filtro!$A$5:$AK$2936,28,FALSE),0) -> 0 | AE84: =IFERROR(VLOOKUP($A84,Filtro!$A$5:$AK$2936,29,FALSE),0) -> 0 | AF84: =IFERROR(VLOOKUP($A84,Filtro!$A$5:$AK$2936,30,FALSE),0) -> 0 | AG84: =IFERROR(VLOOKUP($A84,Filtro!$A$5:$AK$2936,31,FALSE),0) -> 0 | AH84: =IFERROR(VLOOKUP($A84,Filtro!$A$5:$AK$2936,32,FALSE),0) -> 0 | AI84: =IFERROR(VLOOKUP($A84,Filtro!$A$5:$AK$2936,33,FALSE),0) -> 0 | AJ84: =IFERROR(VLOOKUP($A84,Filtro!$A$5:$AK$2936,34,FALSE),0) -> 0 | AK84: =IFERROR(VLOOKUP($A84,Filtro!$A$5:$AK$2936,35,FALSE),0) -> 0 | AL84: =IFERROR(VLOOKUP($A84,Filtro!$A$5:$AK$2936,36,FALSE),0) -> 1,001,490 | AM84: =IFERROR(VLOOKUP($A84,Filtro!$A$5:$AK$2936,37,FALSE),0) -> 3,945,720
A85: 01014334 | B85: 0108213 | C85: Teleconsulta Médica de Especialidad en Psiquiatría pediátrica y de la adolescencia | D85: =IFERROR(VLOOKUP($A85,Filtro!$A$5:$AK$2936,2,FALSE),0) -> 177 | E85: =IFERROR(VLOOKUP($A85,Filtro!$A$5:$AK$2936,3,FALSE),0) -> 177 | F85: =IFERROR(VLOOKUP($A85,Filtro!$A$5:$AK$2936,4,FALSE),0) -> 177 | G85: =IFERROR(VLOOKUP($A85,Filtro!$A$5:$AK$2936,5,FALSE),0) -> 0 | H85: =IFERROR(VLOOKUP($A85,Filtro!$A$5:$AK$2936,6,FALSE),0) -> 0 | I85: =IFERROR(VLOOKUP($A85,Filtro!$A$5:$AK$2936,7,FALSE),0) -> 0 | J85: =IFERROR(VLOOKUP($A85,Filtro!$A$5:$AK$2936,8,FALSE),0) -> 0 | K85: =IFERROR(VLOOKUP($A85,Filtro!$A$5:$AK$2936,9,FALSE),0) -> 0 | L85: =IFERROR(VLOOKUP($A85,Filtro!$A$5:$AK$2936,10,FALSE),0) -> 0 | M85: =IFERROR(VLOOKUP($A85,Filtro!$A$5:$AK$2936,11,FALSE),0) -> 0 | N85: =IFERROR(VLOOKUP($A85,Filtro!$A$5:$AK$2936,12,FALSE),0) -> 0 | O85: =IFERROR(VLOOKUP($A85,Filtro!$A$5:$AK$2936,13,FALSE),0) -> 0 | P85: =IFERROR(VLOOKUP($A85,Filtro!$A$5:$AK$2936,14,FALSE),0) -> 0 | Q85: =IFERROR(VLOOKUP($A85,Filtro!$A$5:$AK$2936,15,FALSE),0) -> 0 | R85: =IFERROR(VLOOKUP($A85,Filtro!$A$5:$AK$2936,16,FALSE),0) -> 0 | S85: =IFERROR(VLOOKUP($A85,Filtro!$A$5:$AK$2936,17,FALSE),0) -> 0 | T85: =IFERROR(VLOOKUP($A85,Filtro!$A$5:$AK$2936,18,FALSE),0) -> 0 | U85: =IFERROR(VLOOKUP($A85,Filtro!$A$5:$AK$2936,19,FALSE),0) -> 0 | V85: =IFERROR(VLOOKUP($A85,Filtro!$A$5:$AK$2936,20,FALSE),0) -> 0 | W85: =IFERROR(VLOOKUP($A85,Filtro!$A$5:$AK$2936,21,FALSE),0) -> 0 | X85: =IFERROR(VLOOKUP($A85,Filtro!$A$5:$AK$2936,22,FALSE),0) -> 0 | Y85: =IFERROR(VLOOKUP($A85,Filtro!$A$5:$AK$2936,23,FALSE),0) -> 0 | Z85: =IFERROR(VLOOKUP($A85,Filtro!$A$5:$AK$2936,24,FALSE),0) -> 0 | AA85: =IFERROR(VLOOKUP($A85,Filtro!$A$5:$AK$2936,25,FALSE),0) -> 0 | AB85: =IFERROR(VLOOKUP($A85,Filtro!$A$5:$AK$2936,26,FALSE),0) -> 0 | AC85: =IFERROR(VLOOKUP($A85,Filtro!$A$5:$AK$2936,27,FALSE),0) -> 162 | AD85: =IFERROR(VLOOKUP($A85,Filtro!$A$5:$AK$2936,28,FALSE),0) -> 0 | AE85: =IFERROR(VLOOKUP($A85,Filtro!$A$5:$AK$2936,29,FALSE),0) -> 0 | AF85: =IFERROR(VLOOKUP($A85,Filtro!$A$5:$AK$2936,30,FALSE),0) -> 0 | AG85: =IFERROR(VLOOKUP($A85,Filtro!$A$5:$AK$2936,31,FALSE),0) -> 0 | AH85: =IFERROR(VLOOKUP($A85,Filtro!$A$5:$AK$2936,32,FALSE),0) -> 0 | AI85: =IFERROR(VLOOKUP($A85,Filtro!$A$5:$AK$2936,33,FALSE),0) -> 0 | AJ85: =IFERROR(VLOOKUP($A85,Filtro!$A$5:$AK$2936,34,FALSE),0) -> 0 | AK85: =IFERROR(VLOOKUP($A85,Filtro!$A$5:$AK$2936,35,FALSE),0) -> 0 | AL85: =IFERROR(VLOOKUP($A85,Filtro!$A$5:$AK$2936,36,FALSE),0) -> 1,001,490 | AM85: =IFERROR(VLOOKUP($A85,Filtro!$A$5:$AK$2936,37,FALSE),0) -> 1,332,810
A86: 01014335 | B86: 0108301 | C86: Teleconsulta Médica de Especialidad en Cardiología | D86: =IFERROR(VLOOKUP($A86,Filtro!$A$5:$AK$2936,2,FALSE),0) -> 8 | E86: =IFERROR(VLOOKUP($A86,Filtro!$A$5:$AK$2936,3,FALSE),0) -> 8 | F86: =IFERROR(VLOOKUP($A86,Filtro!$A$5:$AK$2936,4,FALSE),0) -> 8 | G86: =IFERROR(VLOOKUP($A86,Filtro!$A$5:$AK$2936,5,FALSE),0) -> 0 | H86: =IFERROR(VLOOKUP($A86,Filtro!$A$5:$AK$2936,6,FALSE),0) -> 0 | I86: =IFERROR(VLOOKUP($A86,Filtro!$A$5:$AK$2936,7,FALSE),0) -> 0 | J86: =IFERROR(VLOOKUP($A86,Filtro!$A$5:$AK$2936,8,FALSE),0) -> 0 | K86: =IFERROR(VLOOKUP($A86,Filtro!$A$5:$AK$2936,9,FALSE),0) -> 0 | L86: =IFERROR(VLOOKUP($A86,Filtro!$A$5:$AK$2936,10,FALSE),0) -> 0 | M86: =IFERROR(VLOOKUP($A86,Filtro!$A$5:$AK$2936,11,FALSE),0) -> 0 | N86: =IFERROR(VLOOKUP($A86,Filtro!$A$5:$AK$2936,12,FALSE),0) -> 0 | O86: =IFERROR(VLOOKUP($A86,Filtro!$A$5:$AK$2936,13,FALSE),0) -> 0 | P86: =IFERROR(VLOOKUP($A86,Filtro!$A$5:$AK$2936,14,FALSE),0) -> 0 | Q86: =IFERROR(VLOOKUP($A86,Filtro!$A$5:$AK$2936,15,FALSE),0) -> 0 | R86: =IFERROR(VLOOKUP($A86,Filtro!$A$5:$AK$2936,16,FALSE),0) -> 0 | S86: =IFERROR(VLOOKUP($A86,Filtro!$A$5:$AK$2936,17,FALSE),0) -> 0 | T86: =IFERROR(VLOOKUP($A86,Filtro!$A$5:$AK$2936,18,FALSE),0) -> 0 | U86: =IFERROR(VLOOKUP($A86,Filtro!$A$5:$AK$2936,19,FALSE),0) -> 0 | V86: =IFERROR(VLOOKUP($A86,Filtro!$A$5:$AK$2936,20,FALSE),0) -> 0 | W86: =IFERROR(VLOOKUP($A86,Filtro!$A$5:$AK$2936,21,FALSE),0) -> 0 | X86: =IFERROR(VLOOKUP($A86,Filtro!$A$5:$AK$2936,22,FALSE),0) -> 0 | Y86: =IFERROR(VLOOKUP($A86,Filtro!$A$5:$AK$2936,23,FALSE),0) -> 0 | Z86: =IFERROR(VLOOKUP($A86,Filtro!$A$5:$AK$2936,24,FALSE),0) -> 0 | AA86: =IFERROR(VLOOKUP($A86,Filtro!$A$5:$AK$2936,25,FALSE),0) -> 0 | AB86: =IFERROR(VLOOKUP($A86,Filtro!$A$5:$AK$2936,26,FALSE),0) -> 0 | AC86: =IFERROR(VLOOKUP($A86,Filtro!$A$5:$AK$2936,27,FALSE),0) -> 8 | AD86: =IFERROR(VLOOKUP($A86,Filtro!$A$5:$AK$2936,28,FALSE),0) -> 0 | AE86: =IFERROR(VLOOKUP($A86,Filtro!$A$5:$AK$2936,29,FALSE),0) -> 0 | AF86: =IFERROR(VLOOKUP($A86,Filtro!$A$5:$AK$2936,30,FALSE),0) -> 0 | AG86: =IFERROR(VLOOKUP($A86,Filtro!$A$5:$AK$2936,31,FALSE),0) -> 0 | AH86: =IFERROR(VLOOKUP($A86,Filtro!$A$5:$AK$2936,32,FALSE),0) -> 0 | AI86: =IFERROR(VLOOKUP($A86,Filtro!$A$5:$AK$2936,33,FALSE),0) -> 0 | AJ86: =IFERROR(VLOOKUP($A86,Filtro!$A$5:$AK$2936,34,FALSE),0) -> 0 | AK86: =IFERROR(VLOOKUP($A86,Filtro!$A$5:$AK$2936,35,FALSE),0) -> 0 | AL86: =IFERROR(VLOOKUP($A86,Filtro!$A$5:$AK$2936,36,FALSE),0) -> 1,001,490 | AM86: =IFERROR(VLOOKUP($A86,Filtro!$A$5:$AK$2936,37,FALSE),0) -> 60,240
A87: 01014336 | B87: 0108302 | C87: Teleconsulta Médica de Especialidad en Hematología | D87: =IFERROR(VLOOKUP($A87,Filtro!$A$5:$AK$2936,2,FALSE),0) -> 1652 | E87: =IFERROR(VLOOKUP($A87,Filtro!$A$5:$AK$2936,3,FALSE),0) -> 1652 | F87: =IFERROR(VLOOKUP($A87,Filtro!$A$5:$AK$2936,4,FALSE),0) -> 1652 | G87: =IFERROR(VLOOKUP($A87,Filtro!$A$5:$AK$2936,5,FALSE),0) -> 0 | H87: =IFERROR(VLOOKUP($A87,Filtro!$A$5:$AK$2936,6,FALSE),0) -> 0 | I87: =IFERROR(VLOOKUP($A87,Filtro!$A$5:$AK$2936,7,FALSE),0) -> 0 | J87: =IFERROR(VLOOKUP($A87,Filtro!$A$5:$AK$2936,8,FALSE),0) -> 0 | K87: =IFERROR(VLOOKUP($A87,Filtro!$A$5:$AK$2936,9,FALSE),0) -> 0 | L87: =IFERROR(VLOOKUP($A87,Filtro!$A$5:$AK$2936,10,FALSE),0) -> 0 | M87: =IFERROR(VLOOKUP($A87,Filtro!$A$5:$AK$2936,11,FALSE),0) -> 0 | N87: =IFERROR(VLOOKUP($A87,Filtro!$A$5:$AK$2936,12,FALSE),0) -> 0 | O87: =IFERROR(VLOOKUP($A87,Filtro!$A$5:$AK$2936,13,FALSE),0) -> 0 | P87: =IFERROR(VLOOKUP($A87,Filtro!$A$5:$AK$2936,14,FALSE),0) -> 0 | Q87: =IFERROR(VLOOKUP($A87,Filtro!$A$5:$AK$2936,15,FALSE),0) -> 0 | R87: =IFERROR(VLOOKUP($A87,Filtro!$A$5:$AK$2936,16,FALSE),0) -> 0 | S87: =IFERROR(VLOOKUP($A87,Filtro!$A$5:$AK$2936,17,FALSE),0) -> 0 | T87: =IFERROR(VLOOKUP($A87,Filtro!$A$5:$AK$2936,18,FALSE),0) -> 0 | U87: =IFERROR(VLOOKUP($A87,Filtro!$A$5:$AK$2936,19,FALSE),0) -> 0 | V87: =IFERROR(VLOOKUP($A87,Filtro!$A$5:$AK$2936,20,FALSE),0) -> 0 | W87: =IFERROR(VLOOKUP($A87,Filtro!$A$5:$AK$2936,21,FALSE),0) -> 0 | X87: =IFERROR(VLOOKUP($A87,Filtro!$A$5:$AK$2936,22,FALSE),0) -> 0 | Y87: =IFERROR(VLOOKUP($A87,Filtro!$A$5:$AK$2936,23,FALSE),0) -> 0 | Z87: =IFERROR(VLOOKUP($A87,Filtro!$A$5:$AK$2936,24,FALSE),0) -> 0 | AA87: =IFERROR(VLOOKUP($A87,Filtro!$A$5:$AK$2936,25,FALSE),0) -> 0 | AB87: =IFERROR(VLOOKUP($A87,Filtro!$A$5:$AK$2936,26,FALSE),0) -> 0 | AC87: =IFERROR(VLOOKUP($A87,Filtro!$A$5:$AK$2936,27,FALSE),0) -> 1652 | AD87: =IFERROR(VLOOKUP($A87,Filtro!$A$5:$AK$2936,28,FALSE),0) -> 0 | AE87: =IFERROR(VLOOKUP($A87,Filtro!$A$5:$AK$2936,29,FALSE),0) -> 0 | AF87: =IFERROR(VLOOKUP($A87,Filtro!$A$5:$AK$2936,30,FALSE),0) -> 0 | AG87: =IFERROR(VLOOKUP($A87,Filtro!$A$5:$AK$2936,31,FALSE),0) -> 0 | AH87: =IFERROR(VLOOKUP($A87,Filtro!$A$5:$AK$2936,32,FALSE),0) -> 0 | AI87: =IFERROR(VLOOKUP($A87,Filtro!$A$5:$AK$2936,33,FALSE),0) -> 0 | AJ87: =IFERROR(VLOOKUP($A87,Filtro!$A$5:$AK$2936,34,FALSE),0) -> 0 | AK87: =IFERROR(VLOOKUP($A87,Filtro!$A$5:$AK$2936,35,FALSE),0) -> 0 | AL87: =IFERROR(VLOOKUP($A87,Filtro!$A$5:$AK$2936,36,FALSE),0) -> 1,001,490 | AM87: =IFERROR(VLOOKUP($A87,Filtro!$A$5:$AK$2936,37,FALSE),0) -> 12,439,560
A88: 01014337 | B88: 0108303 | C88: Teleconsulta Médica de Especialidad en Infectología | D88: =IFERROR(VLOOKUP($A88,Filtro!$A$5:$AK$2936,2,FALSE),0) -> 2 | E88: =IFERROR(VLOOKUP($A88,Filtro!$A$5:$AK$2936,3,FALSE),0) -> 2 | F88: =IFERROR(VLOOKUP($A88,Filtro!$A$5:$AK$2936,4,FALSE),0) -> 2 | G88: =IFERROR(VLOOKUP($A88,Filtro!$A$5:$AK$2936,5,FALSE),0) -> 0 | H88: =IFERROR(VLOOKUP($A88,Filtro!$A$5:$AK$2936,6,FALSE),0) -> 0 | I88: =IFERROR(VLOOKUP($A88,Filtro!$A$5:$AK$2936,7,FALSE),0) -> 0 | J88: =IFERROR(VLOOKUP($A88,Filtro!$A$5:$AK$2936,8,FALSE),0) -> 0 | K88: =IFERROR(VLOOKUP($A88,Filtro!$A$5:$AK$2936,9,FALSE),0) -> 0 | L88: =IFERROR(VLOOKUP($A88,Filtro!$A$5:$AK$2936,10,FALSE),0) -> 0 | M88: =IFERROR(VLOOKUP($A88,Filtro!$A$5:$AK$2936,11,FALSE),0) -> 0 | N88: =IFERROR(VLOOKUP($A88,Filtro!$A$5:$AK$2936,12,FALSE),0) -> 0 | O88: =IFERROR(VLOOKUP($A88,Filtro!$A$5:$AK$2936,13,FALSE),0) -> 0 | P88: =IFERROR(VLOOKUP($A88,Filtro!$A$5:$AK$2936,14,FALSE),0) -> 0 | Q88: =IFERROR(VLOOKUP($A88,Filtro!$A$5:$AK$2936,15,FALSE),0) -> 0 | R88: =IFERROR(VLOOKUP($A88,Filtro!$A$5:$AK$2936,16,FALSE),0) -> 0 | S88: =IFERROR(VLOOKUP($A88,Filtro!$A$5:$AK$2936,17,FALSE),0) -> 0 | T88: =IFERROR(VLOOKUP($A88,Filtro!$A$5:$AK$2936,18,FALSE),0) -> 0 | U88: =IFERROR(VLOOKUP($A88,Filtro!$A$5:$AK$2936,19,FALSE),0) -> 0 | V88: =IFERROR(VLOOKUP($A88,Filtro!$A$5:$AK$2936,20,FALSE),0) -> 0 | W88: =IFERROR(VLOOKUP($A88,Filtro!$A$5:$AK$2936,21,FALSE),0) -> 0 | X88: =IFERROR(VLOOKUP($A88,Filtro!$A$5:$AK$2936,22,FALSE),0) -> 0 | Y88: =IFERROR(VLOOKUP($A88,Filtro!$A$5:$AK$2936,23,FALSE),0) -> 0 | Z88: =IFERROR(VLOOKUP($A88,Filtro!$A$5:$AK$2936,24,FALSE),0) -> 0 | AA88: =IFERROR(VLOOKUP($A88,Filtro!$A$5:$AK$2936,25,FALSE),0) -> 0 | AB88: =IFERROR(VLOOKUP($A88,Filtro!$A$5:$AK$2936,26,FALSE),0) -> 0 | AC88: =IFERROR(VLOOKUP($A88,Filtro!$A$5:$AK$2936,27,FALSE),0) -> 2 | AD88: =IFERROR(VLOOKUP($A88,Filtro!$A$5:$AK$2936,28,FALSE),0) -> 0 | AE88: =IFERROR(VLOOKUP($A88,Filtro!$A$5:$AK$2936,29,FALSE),0) -> 0 | AF88: =IFERROR(VLOOKUP($A88,Filtro!$A$5:$AK$2936,30,FALSE),0) -> 0 | AG88: =IFERROR(VLOOKUP($A88,Filtro!$A$5:$AK$2936,31,FALSE),0) -> 0 | AH88: =IFERROR(VLOOKUP($A88,Filtro!$A$5:$AK$2936,32,FALSE),0) -> 0 | AI88: =IFERROR(VLOOKUP($A88,Filtro!$A$5:$AK$2936,33,FALSE),0) -> 0 | AJ88: =IFERROR(VLOOKUP($A88,Filtro!$A$5:$AK$2936,34,FALSE),0) -> 0 | AK88: =IFERROR(VLOOKUP($A88,Filtro!$A$5:$AK$2936,35,FALSE),0) -> 0 | AL88: =IFERROR(VLOOKUP($A88,Filtro!$A$5:$AK$2936,36,FALSE),0) -> 1,001,490 | AM88: =IFERROR(VLOOKUP($A88,Filtro!$A$5:$AK$2936,37,FALSE),0) -> 15,060
A89: 01014338 | B89: 0108304 | C89: Teleconsulta Médica de Especialidad en Inmunología | D89: =IFERROR(VLOOKUP($A89,Filtro!$A$5:$AK$2936,2,FALSE),0) -> 283 | E89: =IFERROR(VLOOKUP($A89,Filtro!$A$5:$AK$2936,3,FALSE),0) -> 283 | F89: =IFERROR(VLOOKUP($A89,Filtro!$A$5:$AK$2936,4,FALSE),0) -> 283 | G89: =IFERROR(VLOOKUP($A89,Filtro!$A$5:$AK$2936,5,FALSE),0) -> 0 | H89: =IFERROR(VLOOKUP($A89,Filtro!$A$5:$AK$2936,6,FALSE),0) -> 0 | I89: =IFERROR(VLOOKUP($A89,Filtro!$A$5:$AK$2936,7,FALSE),0) -> 0 | J89: =IFERROR(VLOOKUP($A89,Filtro!$A$5:$AK$2936,8,FALSE),0) -> 0 | K89: =IFERROR(VLOOKUP($A89,Filtro!$A$5:$AK$2936,9,FALSE),0) -> 0 | L89: =IFERROR(VLOOKUP($A89,Filtro!$A$5:$AK$2936,10,FALSE),0) -> 0 | M89: =IFERROR(VLOOKUP($A89,Filtro!$A$5:$AK$2936,11,FALSE),0) -> 0 | N89: =IFERROR(VLOOKUP($A89,Filtro!$A$5:$AK$2936,12,FALSE),0) -> 0 | O89: =IFERROR(VLOOKUP($A89,Filtro!$A$5:$AK$2936,13,FALSE),0) -> 0 | P89: =IFERROR(VLOOKUP($A89,Filtro!$A$5:$AK$2936,14,FALSE),0) -> 0 | Q89: =IFERROR(VLOOKUP($A89,Filtro!$A$5:$AK$2936,15,FALSE),0) -> 0 | R89: =IFERROR(VLOOKUP($A89,Filtro!$A$5:$AK$2936,16,FALSE),0) -> 0 | S89: =IFERROR(VLOOKUP($A89,Filtro!$A$5:$AK$2936,17,FALSE),0) -> 0 | T89: =IFERROR(VLOOKUP($A89,Filtro!$A$5:$AK$2936,18,FALSE),0) -> 0 | U89: =IFERROR(VLOOKUP($A89,Filtro!$A$5:$AK$2936,19,FALSE),0) -> 0 | V89: =IFERROR(VLOOKUP($A89,Filtro!$A$5:$AK$2936,20,FALSE),0) -> 0 | W89: =IFERROR(VLOOKUP($A89,Filtro!$A$5:$AK$2936,21,FALSE),0) -> 0 | X89: =IFERROR(VLOOKUP($A89,Filtro!$A$5:$AK$2936,22,FALSE),0) -> 0 | Y89: =IFERROR(VLOOKUP($A89,Filtro!$A$5:$AK$2936,23,FALSE),0) -> 0 | Z89: =IFERROR(VLOOKUP($A89,Filtro!$A$5:$AK$2936,24,FALSE),0) -> 0 | AA89: =IFERROR(VLOOKUP($A89,Filtro!$A$5:$AK$2936,25,FALSE),0) -> 0 | AB89: =IFERROR(VLOOKUP($A89,Filtro!$A$5:$AK$2936,26,FALSE),0) -> 0 | AC89: =IFERROR(VLOOKUP($A89,Filtro!$A$5:$AK$2936,27,FALSE),0) -> 283 | AD89: =IFERROR(VLOOKUP($A89,Filtro!$A$5:$AK$2936,28,FALSE),0) -> 0 | AE89: =IFERROR(VLOOKUP($A89,Filtro!$A$5:$AK$2936,29,FALSE),0) -> 0 | AF89: =IFERROR(VLOOKUP($A89,Filtro!$A$5:$AK$2936,30,FALSE),0) -> 0 | AG89: =IFERROR(VLOOKUP($A89,Filtro!$A$5:$AK$2936,31,FALSE),0) -> 0 | AH89: =IFERROR(VLOOKUP($A89,Filtro!$A$5:$AK$2936,32,FALSE),0) -> 0 | AI89: =IFERROR(VLOOKUP($A89,Filtro!$A$5:$AK$2936,33,FALSE),0) -> 0 | AJ89: =IFERROR(VLOOKUP($A89,Filtro!$A$5:$AK$2936,34,FALSE),0) -> 0 | AK89: =IFERROR(VLOOKUP($A89,Filtro!$A$5:$AK$2936,35,FALSE),0) -> 0 | AL89: =IFERROR(VLOOKUP($A89,Filtro!$A$5:$AK$2936,36,FALSE),0) -> 1,001,490 | AM89: =IFERROR(VLOOKUP($A89,Filtro!$A$5:$AK$2936,37,FALSE),0) -> 2,130,990
A90: 01014339 | B90: 0108305 | C90: Teleconsulta Médica de Especialidad en Medicina Familiar | D90: =IFERROR(VLOOKUP($A90,Filtro!$A$5:$AK$2936,2,FALSE),0) -> 0 | E90: =IFERROR(VLOOKUP($A90,Filtro!$A$5:$AK$2936,3,FALSE),0) -> 0 | F90: =IFERROR(VLOOKUP($A90,Filtro!$A$5:$AK$2936,4,FALSE),0) -> 0 | G90: =IFERROR(VLOOKUP($A90,Filtro!$A$5:$AK$2936,5,FALSE),0) -> 0 | H90: =IFERROR(VLOOKUP($A90,Filtro!$A$5:$AK$2936,6,FALSE),0) -> 0 | I90: =IFERROR(VLOOKUP($A90,Filtro!$A$5:$AK$2936,7,FALSE),0) -> 0 | J90: =IFERROR(VLOOKUP($A90,Filtro!$A$5:$AK$2936,8,FALSE),0) -> 0 | K90: =IFERROR(VLOOKUP($A90,Filtro!$A$5:$AK$2936,9,FALSE),0) -> 0 | L90: =IFERROR(VLOOKUP($A90,Filtro!$A$5:$AK$2936,10,FALSE),0) -> 0 | M90: =IFERROR(VLOOKUP($A90,Filtro!$A$5:$AK$2936,11,FALSE),0) -> 0 | N90: =IFERROR(VLOOKUP($A90,Filtro!$A$5:$AK$2936,12,FALSE),0) -> 0 | O90: =IFERROR(VLOOKUP($A90,Filtro!$A$5:$AK$2936,13,FALSE),0) -> 0 | P90: =IFERROR(VLOOKUP($A90,Filtro!$A$5:$AK$2936,14,FALSE),0) -> 0 | Q90: =IFERROR(VLOOKUP($A90,Filtro!$A$5:$AK$2936,15,FALSE),0) -> 0 | R90: =IFERROR(VLOOKUP($A90,Filtro!$A$5:$AK$2936,16,FALSE),0) -> 0 | S90: =IFERROR(VLOOKUP($A90,Filtro!$A$5:$AK$2936,17,FALSE),0) -> 0 | T90: =IFERROR(VLOOKUP($A90,Filtro!$A$5:$AK$2936,18,FALSE),0) -> 0 | U90: =IFERROR(VLOOKUP($A90,Filtro!$A$5:$AK$2936,19,FALSE),0) -> 0 | V90: =IFERROR(VLOOKUP($A90,Filtro!$A$5:$AK$2936,20,FALSE),0) -> 0 | W90: =IFERROR(VLOOKUP($A90,Filtro!$A$5:$AK$2936,21,FALSE),0) -> 0 | X90: =IFERROR(VLOOKUP($A90,Filtro!$A$5:$AK$2936,22,FALSE),0) -> 0 | Y90: =IFERROR(VLOOKUP($A90,Filtro!$A$5:$AK$2936,23,FALSE),0) -> 0 | Z90: =IFERROR(VLOOKUP($A90,Filtro!$A$5:$AK$2936,24,FALSE),0) -> 0 | AA90: =IFERROR(VLOOKUP($A90,Filtro!$A$5:$AK$2936,25,FALSE),0) -> 0 | AB90: =IFERROR(VLOOKUP($A90,Filtro!$A$5:$AK$2936,26,FALSE),0) -> 0 | AC90: =IFERROR(VLOOKUP($A90,Filtro!$A$5:$AK$2936,27,FALSE),0) -> 0 | AD90: =IFERROR(VLOOKUP($A90,Filtro!$A$5:$AK$2936,28,FALSE),0) -> 0 | AE90: =IFERROR(VLOOKUP($A90,Filtro!$A$5:$AK$2936,29,FALSE),0) -> 0 | AF90: =IFERROR(VLOOKUP($A90,Filtro!$A$5:$AK$2936,30,FALSE),0) -> 0 | AG90: =IFERROR(VLOOKUP($A90,Filtro!$A$5:$AK$2936,31,FALSE),0) -> 0 | AH90: =IFERROR(VLOOKUP($A90,Filtro!$A$5:$AK$2936,32,FALSE),0) -> 0 | AI90: =IFERROR(VLOOKUP($A90,Filtro!$A$5:$AK$2936,33,FALSE),0) -> 0 | AJ90: =IFERROR(VLOOKUP($A90,Filtro!$A$5:$AK$2936,34,FALSE),0) -> 0 | AK90: =IFERROR(VLOOKUP($A90,Filtro!$A$5:$AK$2936,35,FALSE),0) -> 0 | AL90: =IFERROR(VLOOKUP($A90,Filtro!$A$5:$AK$2936,36,FALSE),0) -> 1,016,550 | AM90: =IFERROR(VLOOKUP($A90,Filtro!$A$5:$AK$2936,37,FALSE),0) -> 0
A91: 01014340 | B91: 0108306 | C91: Teleconsulta Médica de Especialidad en Medicina Física y Rehabilitación | D91: =IFERROR(VLOOKUP($A91,Filtro!$A$5:$AK$2936,2,FALSE),0) -> 37 | E91: =IFERROR(VLOOKUP($A91,Filtro!$A$5:$AK$2936,3,FALSE),0) -> 37 | F91: =IFERROR(VLOOKUP($A91,Filtro!$A$5:$AK$2936,4,FALSE),0) -> 37 | G91: =IFERROR(VLOOKUP($A91,Filtro!$A$5:$AK$2936,5,FALSE),0) -> 0 | H91: =IFERROR(VLOOKUP($A91,Filtro!$A$5:$AK$2936,6,FALSE),0) -> 0 | I91: =IFERROR(VLOOKUP($A91,Filtro!$A$5:$AK$2936,7,FALSE),0) -> 0 | J91: =IFERROR(VLOOKUP($A91,Filtro!$A$5:$AK$2936,8,FALSE),0) -> 0 | K91: =IFERROR(VLOOKUP($A91,Filtro!$A$5:$AK$2936,9,FALSE),0) -> 0 | L91: =IFERROR(VLOOKUP($A91,Filtro!$A$5:$AK$2936,10,FALSE),0) -> 0 | M91: =IFERROR(VLOOKUP($A91,Filtro!$A$5:$AK$2936,11,FALSE),0) -> 0 | N91: =IFERROR(VLOOKUP($A91,Filtro!$A$5:$AK$2936,12,FALSE),0) -> 0 | O91: =IFERROR(VLOOKUP($A91,Filtro!$A$5:$AK$2936,13,FALSE),0) -> 0 | P91: =IFERROR(VLOOKUP($A91,Filtro!$A$5:$AK$2936,14,FALSE),0) -> 0 | Q91: =IFERROR(VLOOKUP($A91,Filtro!$A$5:$AK$2936,15,FALSE),0) -> 0 | R91: =IFERROR(VLOOKUP($A91,Filtro!$A$5:$AK$2936,16,FALSE),0) -> 0 | S91: =IFERROR(VLOOKUP($A91,Filtro!$A$5:$AK$2936,17,FALSE),0) -> 0 | T91: =IFERROR(VLOOKUP($A91,Filtro!$A$5:$AK$2936,18,FALSE),0) -> 0 | U91: =IFERROR(VLOOKUP($A91,Filtro!$A$5:$AK$2936,19,FALSE),0) -> 0 | V91: =IFERROR(VLOOKUP($A91,Filtro!$A$5:$AK$2936,20,FALSE),0) -> 0 | W91: =IFERROR(VLOOKUP($A91,Filtro!$A$5:$AK$2936,21,FALSE),0) -> 0 | X91: =IFERROR(VLOOKUP($A91,Filtro!$A$5:$AK$2936,22,FALSE),0) -> 0 | Y91: =IFERROR(VLOOKUP($A91,Filtro!$A$5:$AK$2936,23,FALSE),0) -> 0 | Z91: =IFERROR(VLOOKUP($A91,Filtro!$A$5:$AK$2936,24,FALSE),0) -> 0 | AA91: =IFERROR(VLOOKUP($A91,Filtro!$A$5:$AK$2936,25,FALSE),0) -> 0 | AB91: =IFERROR(VLOOKUP($A91,Filtro!$A$5:$AK$2936,26,FALSE),0) -> 0 | AC91: =IFERROR(VLOOKUP($A91,Filtro!$A$5:$AK$2936,27,FALSE),0) -> 37 | AD91: =IFERROR(VLOOKUP($A91,Filtro!$A$5:$AK$2936,28,FALSE),0) -> 0 | AE91: =IFERROR(VLOOKUP($A91,Filtro!$A$5:$AK$2936,29,FALSE),0) -> 0 | AF91: =IFERROR(VLOOKUP($A91,Filtro!$A$5:$AK$2936,30,FALSE),0) -> 0 | AG91: =IFERROR(VLOOKUP($A91,Filtro!$A$5:$AK$2936,31,FALSE),0) -> 0 | AH91: =IFERROR(VLOOKUP($A91,Filtro!$A$5:$AK$2936,32,FALSE),0) -> 0 | AI91: =IFERROR(VLOOKUP($A91,Filtro!$A$5:$AK$2936,33,FALSE),0) -> 0 | AJ91: =IFERROR(VLOOKUP($A91,Filtro!$A$5:$AK$2936,34,FALSE),0) -> 0 | AK91: =IFERROR(VLOOKUP($A91,Filtro!$A$5:$AK$2936,35,FALSE),0) -> 0 | AL91: =IFERROR(VLOOKUP($A91,Filtro!$A$5:$AK$2936,36,FALSE),0) -> 1,016,550 | AM91: =IFERROR(VLOOKUP($A91,Filtro!$A$5:$AK$2936,37,FALSE),0) -> 278,610
A92: 01014341 | B92: 0108307 | C92: Teleconsulta Médica de Especialidad en Medicina Interna | D92: =IFERROR(VLOOKUP($A92,Filtro!$A$5:$AK$2936,2,FALSE),0) -> 4346 | E92: =IFERROR(VLOOKUP($A92,Filtro!$A$5:$AK$2936,3,FALSE),0) -> 4326 | F92: =IFERROR(VLOOKUP($A92,Filtro!$A$5:$AK$2936,4,FALSE),0) -> 4326 | G92: =IFERROR(VLOOKUP($A92,Filtro!$A$5:$AK$2936,5,FALSE),0) -> 0 | H92: =IFERROR(VLOOKUP($A92,Filtro!$A$5:$AK$2936,6,FALSE),0) -> 20 | I92: =IFERROR(VLOOKUP($A92,Filtro!$A$5:$AK$2936,7,FALSE),0) -> 0 | J92: =IFERROR(VLOOKUP($A92,Filtro!$A$5:$AK$2936,8,FALSE),0) -> 0 | K92: =IFERROR(VLOOKUP($A92,Filtro!$A$5:$AK$2936,9,FALSE),0) -> 0 | L92: =IFERROR(VLOOKUP($A92,Filtro!$A$5:$AK$2936,10,FALSE),0) -> 0 | M92: =IFERROR(VLOOKUP($A92,Filtro!$A$5:$AK$2936,11,FALSE),0) -> 0 | N92: =IFERROR(VLOOKUP($A92,Filtro!$A$5:$AK$2936,12,FALSE),0) -> 0 | O92: =IFERROR(VLOOKUP($A92,Filtro!$A$5:$AK$2936,13,FALSE),0) -> 0 | P92: =IFERROR(VLOOKUP($A92,Filtro!$A$5:$AK$2936,14,FALSE),0) -> 0 | Q92: =IFERROR(VLOOKUP($A92,Filtro!$A$5:$AK$2936,15,FALSE),0) -> 0 | R92: =IFERROR(VLOOKUP($A92,Filtro!$A$5:$AK$2936,16,FALSE),0) -> 0 | S92: =IFERROR(VLOOKUP($A92,Filtro!$A$5:$AK$2936,17,FALSE),0) -> 0 | T92: =IFERROR(VLOOKUP($A92,Filtro!$A$5:$AK$2936,18,FALSE),0) -> 0 | U92: =IFERROR(VLOOKUP($A92,Filtro!$A$5:$AK$2936,19,FALSE),0) -> 0 | V92: =IFERROR(VLOOKUP($A92,Filtro!$A$5:$AK$2936,20,FALSE),0) -> 0 | W92: =IFERROR(VLOOKUP($A92,Filtro!$A$5:$AK$2936,21,FALSE),0) -> 0 | X92: =IFERROR(VLOOKUP($A92,Filtro!$A$5:$AK$2936,22,FALSE),0) -> 0 | Y92: =IFERROR(VLOOKUP($A92,Filtro!$A$5:$AK$2936,23,FALSE),0) -> 0 | Z92: =IFERROR(VLOOKUP($A92,Filtro!$A$5:$AK$2936,24,FALSE),0) -> 0 | AA92: =IFERROR(VLOOKUP($A92,Filtro!$A$5:$AK$2936,25,FALSE),0) -> 0 | AB92: =IFERROR(VLOOKUP($A92,Filtro!$A$5:$AK$2936,26,FALSE),0) -> 0 | AC92: =IFERROR(VLOOKUP($A92,Filtro!$A$5:$AK$2936,27,FALSE),0) -> 4346 | AD92: =IFERROR(VLOOKUP($A92,Filtro!$A$5:$AK$2936,28,FALSE),0) -> 0 | AE92: =IFERROR(VLOOKUP($A92,Filtro!$A$5:$AK$2936,29,FALSE),0) -> 0 | AF92: =IFERROR(VLOOKUP($A92,Filtro!$A$5:$AK$2936,30,FALSE),0) -> 0 | AG92: =IFERROR(VLOOKUP($A92,Filtro!$A$5:$AK$2936,31,FALSE),0) -> 0 | AH92: =IFERROR(VLOOKUP($A92,Filtro!$A$5:$AK$2936,32,FALSE),0) -> 0 | AI92: =IFERROR(VLOOKUP($A92,Filtro!$A$5:$AK$2936,33,FALSE),0) -> 0 | AJ92: =IFERROR(VLOOKUP($A92,Filtro!$A$5:$AK$2936,34,FALSE),0) -> 0 | AK92: =IFERROR(VLOOKUP($A92,Filtro!$A$5:$AK$2936,35,FALSE),0) -> 0 | AL92: =IFERROR(VLOOKUP($A92,Filtro!$A$5:$AK$2936,36,FALSE),0) -> 1,016,550 | AM92: =IFERROR(VLOOKUP($A92,Filtro!$A$5:$AK$2936,37,FALSE),0) -> 32,574,780
A93: 01014342 | B93: 0108308 | C93: Teleconsulta Médica de Especialidad en Obstetricia y Ginecología | D93: =IFERROR(VLOOKUP($A93,Filtro!$A$5:$AK$2936,2,FALSE),0) -> 19 | E93: =IFERROR(VLOOKUP($A93,Filtro!$A$5:$AK$2936,3,FALSE),0) -> 19 | F93: =IFERROR(VLOOKUP($A93,Filtro!$A$5:$AK$2936,4,FALSE),0) -> 19 | G93: =IFERROR(VLOOKUP($A93,Filtro!$A$5:$AK$2936,5,FALSE),0) -> 0 | H93: =IFERROR(VLOOKUP($A93,Filtro!$A$5:$AK$2936,6,FALSE),0) -> 0 | I93: =IFERROR(VLOOKUP($A93,Filtro!$A$5:$AK$2936,7,FALSE),0) -> 0 | J93: =IFERROR(VLOOKUP($A93,Filtro!$A$5:$AK$2936,8,FALSE),0) -> 0 | K93: =IFERROR(VLOOKUP($A93,Filtro!$A$5:$AK$2936,9,FALSE),0) -> 0 | L93: =IFERROR(VLOOKUP($A93,Filtro!$A$5:$AK$2936,10,FALSE),0) -> 0 | M93: =IFERROR(VLOOKUP($A93,Filtro!$A$5:$AK$2936,11,FALSE),0) -> 0 | N93: =IFERROR(VLOOKUP($A93,Filtro!$A$5:$AK$2936,12,FALSE),0) -> 0 | O93: =IFERROR(VLOOKUP($A93,Filtro!$A$5:$AK$2936,13,FALSE),0) -> 0 | P93: =IFERROR(VLOOKUP($A93,Filtro!$A$5:$AK$2936,14,FALSE),0) -> 0 | Q93: =IFERROR(VLOOKUP($A93,Filtro!$A$5:$AK$2936,15,FALSE),0) -> 0 | R93: =IFERROR(VLOOKUP($A93,Filtro!$A$5:$AK$2936,16,FALSE),0) -> 0 | S93: =IFERROR(VLOOKUP($A93,Filtro!$A$5:$AK$2936,17,FALSE),0) -> 0 | T93: =IFERROR(VLOOKUP($A93,Filtro!$A$5:$AK$2936,18,FALSE),0) -> 0 | U93: =IFERROR(VLOOKUP($A93,Filtro!$A$5:$AK$2936,19,FALSE),0) -> 0 | V93: =IFERROR(VLOOKUP($A93,Filtro!$A$5:$AK$2936,20,FALSE),0) -> 0 | W93: =IFERROR(VLOOKUP($A93,Filtro!$A$5:$AK$2936,21,FALSE),0) -> 0 | X93: =IFERROR(VLOOKUP($A93,Filtro!$A$5:$AK$2936,22,FALSE),0) -> 0 | Y93: =IFERROR(VLOOKUP($A93,Filtro!$A$5:$AK$2936,23,FALSE),0) -> 0 | Z93: =IFERROR(VLOOKUP($A93,Filtro!$A$5:$AK$2936,24,FALSE),0) -> 0 | AA93: =IFERROR(VLOOKUP($A93,Filtro!$A$5:$AK$2936,25,FALSE),0) -> 0 | AB93: =IFERROR(VLOOKUP($A93,Filtro!$A$5:$AK$2936,26,FALSE),0) -> 0 | AC93: =IFERROR(VLOOKUP($A93,Filtro!$A$5:$AK$2936,27,FALSE),0) -> 19 | AD93: =IFERROR(VLOOKUP($A93,Filtro!$A$5:$AK$2936,28,FALSE),0) -> 0 | AE93: =IFERROR(VLOOKUP($A93,Filtro!$A$5:$AK$2936,29,FALSE),0) -> 0 | AF93: =IFERROR(VLOOKUP($A93,Filtro!$A$5:$AK$2936,30,FALSE),0) -> 0 | AG93: =IFERROR(VLOOKUP($A93,Filtro!$A$5:$AK$2936,31,FALSE),0) -> 0 | AH93: =IFERROR(VLOOKUP($A93,Filtro!$A$5:$AK$2936,32,FALSE),0) -> 0 | AI93: =IFERROR(VLOOKUP($A93,Filtro!$A$5:$AK$2936,33,FALSE),0) -> 0 | AJ93: =IFERROR(VLOOKUP($A93,Filtro!$A$5:$AK$2936,34,FALSE),0) -> 0 | AK93: =IFERROR(VLOOKUP($A93,Filtro!$A$5:$AK$2936,35,FALSE),0) -> 0 | AL93: =IFERROR(VLOOKUP($A93,Filtro!$A$5:$AK$2936,36,FALSE),0) -> 1,016,550 | AM93: =IFERROR(VLOOKUP($A93,Filtro!$A$5:$AK$2936,37,FALSE),0) -> 143,070
A94: 01014343 | B94: 0108309 | C94: Teleconsulta Médica de Especialidad en Pediatría | D94: =IFERROR(VLOOKUP($A94,Filtro!$A$5:$AK$2936,2,FALSE),0) -> 354 | E94: =IFERROR(VLOOKUP($A94,Filtro!$A$5:$AK$2936,3,FALSE),0) -> 350 | F94: =IFERROR(VLOOKUP($A94,Filtro!$A$5:$AK$2936,4,FALSE),0) -> 350 | G94: =IFERROR(VLOOKUP($A94,Filtro!$A$5:$AK$2936,5,FALSE),0) -> 0 | H94: =IFERROR(VLOOKUP($A94,Filtro!$A$5:$AK$2936,6,FALSE),0) -> 4 | I94: =IFERROR(VLOOKUP($A94,Filtro!$A$5:$AK$2936,7,FALSE),0) -> 0 | J94: =IFERROR(VLOOKUP($A94,Filtro!$A$5:$AK$2936,8,FALSE),0) -> 0 | K94: =IFERROR(VLOOKUP($A94,Filtro!$A$5:$AK$2936,9,FALSE),0) -> 0 | L94: =IFERROR(VLOOKUP($A94,Filtro!$A$5:$AK$2936,10,FALSE),0) -> 0 | M94: =IFERROR(VLOOKUP($A94,Filtro!$A$5:$AK$2936,11,FALSE),0) -> 0 | N94: =IFERROR(VLOOKUP($A94,Filtro!$A$5:$AK$2936,12,FALSE),0) -> 0 | O94: =IFERROR(VLOOKUP($A94,Filtro!$A$5:$AK$2936,13,FALSE),0) -> 0 | P94: =IFERROR(VLOOKUP($A94,Filtro!$A$5:$AK$2936,14,FALSE),0) -> 0 | Q94: =IFERROR(VLOOKUP($A94,Filtro!$A$5:$AK$2936,15,FALSE),0) -> 0 | R94: =IFERROR(VLOOKUP($A94,Filtro!$A$5:$AK$2936,16,FALSE),0) -> 0 | S94: =IFERROR(VLOOKUP($A94,Filtro!$A$5:$AK$2936,17,FALSE),0) -> 0 | T94: =IFERROR(VLOOKUP($A94,Filtro!$A$5:$AK$2936,18,FALSE),0) -> 0 | U94: =IFERROR(VLOOKUP($A94,Filtro!$A$5:$AK$2936,19,FALSE),0) -> 0 | V94: =IFERROR(VLOOKUP($A94,Filtro!$A$5:$AK$2936,20,FALSE),0) -> 0 | W94: =IFERROR(VLOOKUP($A94,Filtro!$A$5:$AK$2936,21,FALSE),0) -> 0 | X94: =IFERROR(VLOOKUP($A94,Filtro!$A$5:$AK$2936,22,FALSE),0) -> 0 | Y94: =IFERROR(VLOOKUP($A94,Filtro!$A$5:$AK$2936,23,FALSE),0) -> 0 | Z94: =IFERROR(VLOOKUP($A94,Filtro!$A$5:$AK$2936,24,FALSE),0) -> 0 | AA94: =IFERROR(VLOOKUP($A94,Filtro!$A$5:$AK$2936,25,FALSE),0) -> 0 | AB94: =IFERROR(VLOOKUP($A94,Filtro!$A$5:$AK$2936,26,FALSE),0) -> 0 | AC94: =IFERROR(VLOOKUP($A94,Filtro!$A$5:$AK$2936,27,FALSE),0) -> 354 | AD94: =IFERROR(VLOOKUP($A94,Filtro!$A$5:$AK$2936,28,FALSE),0) -> 0 | AE94: =IFERROR(VLOOKUP($A94,Filtro!$A$5:$AK$2936,29,FALSE),0) -> 0 | AF94: =IFERROR(VLOOKUP($A94,Filtro!$A$5:$AK$2936,30,FALSE),0) -> 0 | AG94: =IFERROR(VLOOKUP($A94,Filtro!$A$5:$AK$2936,31,FALSE),0) -> 0 | AH94: =IFERROR(VLOOKUP($A94,Filtro!$A$5:$AK$2936,32,FALSE),0) -> 0 | AI94: =IFERROR(VLOOKUP($A94,Filtro!$A$5:$AK$2936,33,FALSE),0) -> 0 | AJ94: =IFERROR(VLOOKUP($A94,Filtro!$A$5:$AK$2936,34,FALSE),0) -> 0 | AK94: =IFERROR(VLOOKUP($A94,Filtro!$A$5:$AK$2936,35,FALSE),0) -> 0 | AL94: =IFERROR(VLOOKUP($A94,Filtro!$A$5:$AK$2936,36,FALSE),0) -> 1,016,550 | AM94: =IFERROR(VLOOKUP($A94,Filtro!$A$5:$AK$2936,37,FALSE),0) -> 2,635,500
A95: 01014344 | B95: 0108310 | C95: Teleconsulta Médica de Especialidad en Traumatología y Ortopedia | D95: =IFERROR(VLOOKUP($A95,Filtro!$A$5:$AK$2936,2,FALSE),0) -> 0 | E95: =IFERROR(VLOOKUP($A95,Filtro!$A$5:$AK$2936,3,FALSE),0) -> 0 | F95: =IFERROR(VLOOKUP($A95,Filtro!$A$5:$AK$2936,4,FALSE),0) -> 0 | G95: =IFERROR(VLOOKUP($A95,Filtro!$A$5:$AK$2936,5,FALSE),0) -> 0 | H95: =IFERROR(VLOOKUP($A95,Filtro!$A$5:$AK$2936,6,FALSE),0) -> 0 | I95: =IFERROR(VLOOKUP($A95,Filtro!$A$5:$AK$2936,7,FALSE),0) -> 0 | J95: =IFERROR(VLOOKUP($A95,Filtro!$A$5:$AK$2936,8,FALSE),0) -> 0 | K95: =IFERROR(VLOOKUP($A95,Filtro!$A$5:$AK$2936,9,FALSE),0) -> 0 | L95: =IFERROR(VLOOKUP($A95,Filtro!$A$5:$AK$2936,10,FALSE),0) -> 0 | M95: =IFERROR(VLOOKUP($A95,Filtro!$A$5:$AK$2936,11,FALSE),0) -> 0 | N95: =IFERROR(VLOOKUP($A95,Filtro!$A$5:$AK$2936,12,FALSE),0) -> 0 | O95: =IFERROR(VLOOKUP($A95,Filtro!$A$5:$AK$2936,13,FALSE),0) -> 0 | P95: =IFERROR(VLOOKUP($A95,Filtro!$A$5:$AK$2936,14,FALSE),0) -> 0 | Q95: =IFERROR(VLOOKUP($A95,Filtro!$A$5:$AK$2936,15,FALSE),0) -> 0 | R95: =IFERROR(VLOOKUP($A95,Filtro!$A$5:$AK$2936,16,FALSE),0) -> 0 | S95: =IFERROR(VLOOKUP($A95,Filtro!$A$5:$AK$2936,17,FALSE),0) -> 0 | T95: =IFERROR(VLOOKUP($A95,Filtro!$A$5:$AK$2936,18,FALSE),0) -> 0 | U95: =IFERROR(VLOOKUP($A95,Filtro!$A$5:$AK$2936,19,FALSE),0) -> 0 | V95: =IFERROR(VLOOKUP($A95,Filtro!$A$5:$AK$2936,20,FALSE),0) -> 0 | W95: =IFERROR(VLOOKUP($A95,Filtro!$A$5:$AK$2936,21,FALSE),0) -> 0 | X95: =IFERROR(VLOOKUP($A95,Filtro!$A$5:$AK$2936,22,FALSE),0) -> 0 | Y95: =IFERROR(VLOOKUP($A95,Filtro!$A$5:$AK$2936,23,FALSE),0) -> 0 | Z95: =IFERROR(VLOOKUP($A95,Filtro!$A$5:$AK$2936,24,FALSE),0) -> 0 | AA95: =IFERROR(VLOOKUP($A95,Filtro!$A$5:$AK$2936,25,FALSE),0) -> 0 | AB95: =IFERROR(VLOOKUP($A95,Filtro!$A$5:$AK$2936,26,FALSE),0) -> 0 | AC95: =IFERROR(VLOOKUP($A95,Filtro!$A$5:$AK$2936,27,FALSE),0) -> 0 | AD95: =IFERROR(VLOOKUP($A95,Filtro!$A$5:$AK$2936,28,FALSE),0) -> 0 | AE95: =IFERROR(VLOOKUP($A95,Filtro!$A$5:$AK$2936,29,FALSE),0) -> 0 | AF95: =IFERROR(VLOOKUP($A95,Filtro!$A$5:$AK$2936,30,FALSE),0) -> 0 | AG95: =IFERROR(VLOOKUP($A95,Filtro!$A$5:$AK$2936,31,FALSE),0) -> 0 | AH95: =IFERROR(VLOOKUP($A95,Filtro!$A$5:$AK$2936,32,FALSE),0) -> 0 | AI95: =IFERROR(VLOOKUP($A95,Filtro!$A$5:$AK$2936,33,FALSE),0) -> 0 | AJ95: =IFERROR(VLOOKUP($A95,Filtro!$A$5:$AK$2936,34,FALSE),0) -> 0 | AK95: =IFERROR(VLOOKUP($A95,Filtro!$A$5:$AK$2936,35,FALSE),0) -> 0 | AL95: =IFERROR(VLOOKUP($A95,Filtro!$A$5:$AK$2936,36,FALSE),0) -> 1,016,550 | AM95: =IFERROR(VLOOKUP($A95,Filtro!$A$5:$AK$2936,37,FALSE),0) -> 0
A96: 01014345 | B96: 0108311 | C96: Teleconsulta Médica de Especialidad en Urología | D96: =IFERROR(VLOOKUP($A96,Filtro!$A$5:$AK$2936,2,FALSE),0) -> 1 | E96: =IFERROR(VLOOKUP($A96,Filtro!$A$5:$AK$2936,3,FALSE),0) -> 1 | F96: =IFERROR(VLOOKUP($A96,Filtro!$A$5:$AK$2936,4,FALSE),0) -> 1 | G96: =IFERROR(VLOOKUP($A96,Filtro!$A$5:$AK$2936,5,FALSE),0) -> 0 | H96: =IFERROR(VLOOKUP($A96,Filtro!$A$5:$AK$2936,6,FALSE),0) -> 0 | I96: =IFERROR(VLOOKUP($A96,Filtro!$A$5:$AK$2936,7,FALSE),0) -> 0 | J96: =IFERROR(VLOOKUP($A96,Filtro!$A$5:$AK$2936,8,FALSE),0) -> 0 | K96: =IFERROR(VLOOKUP($A96,Filtro!$A$5:$AK$2936,9,FALSE),0) -> 0 | L96: =IFERROR(VLOOKUP($A96,Filtro!$A$5:$AK$2936,10,FALSE),0) -> 0 | M96: =IFERROR(VLOOKUP($A96,Filtro!$A$5:$AK$2936,11,FALSE),0) -> 0 | N96: =IFERROR(VLOOKUP($A96,Filtro!$A$5:$AK$2936,12,FALSE),0) -> 0 | O96: =IFERROR(VLOOKUP($A96,Filtro!$A$5:$AK$2936,13,FALSE),0) -> 0 | P96: =IFERROR(VLOOKUP($A96,Filtro!$A$5:$AK$2936,14,FALSE),0) -> 0 | Q96: =IFERROR(VLOOKUP($A96,Filtro!$A$5:$AK$2936,15,FALSE),0) -> 0 | R96: =IFERROR(VLOOKUP($A96,Filtro!$A$5:$AK$2936,16,FALSE),0) -> 0 | S96: =IFERROR(VLOOKUP($A96,Filtro!$A$5:$AK$2936,17,FALSE),0) -> 0 | T96: =IFERROR(VLOOKUP($A96,Filtro!$A$5:$AK$2936,18,FALSE),0) -> 0 | U96: =IFERROR(VLOOKUP($A96,Filtro!$A$5:$AK$2936,19,FALSE),0) -> 0 | V96: =IFERROR(VLOOKUP($A96,Filtro!$A$5:$AK$2936,20,FALSE),0) -> 0 | W96: =IFERROR(VLOOKUP($A96,Filtro!$A$5:$AK$2936,21,FALSE),0) -> 0 | X96: =IFERROR(VLOOKUP($A96,Filtro!$A$5:$AK$2936,22,FALSE),0) -> 0 | Y96: =IFERROR(VLOOKUP($A96,Filtro!$A$5:$AK$2936,23,FALSE),0) -> 0 | Z96: =IFERROR(VLOOKUP($A96,Filtro!$A$5:$AK$2936,24,FALSE),0) -> 0 | AA96: =IFERROR(VLOOKUP($A96,Filtro!$A$5:$AK$2936,25,FALSE),0) -> 0 | AB96: =IFERROR(VLOOKUP($A96,Filtro!$A$5:$AK$2936,26,FALSE),0) -> 0 | AC96: =IFERROR(VLOOKUP($A96,Filtro!$A$5:$AK$2936,27,FALSE),0) -> 1 | AD96: =IFERROR(VLOOKUP($A96,Filtro!$A$5:$AK$2936,28,FALSE),0) -> 0 | AE96: =IFERROR(VLOOKUP($A96,Filtro!$A$5:$AK$2936,29,FALSE),0) -> 0 | AF96: =IFERROR(VLOOKUP($A96,Filtro!$A$5:$AK$2936,30,FALSE),0) -> 0 | AG96: =IFERROR(VLOOKUP($A96,Filtro!$A$5:$AK$2936,31,FALSE),0) -> 0 | AH96: =IFERROR(VLOOKUP($A96,Filtro!$A$5:$AK$2936,32,FALSE),0) -> 0 | AI96: =IFERROR(VLOOKUP($A96,Filtro!$A$5:$AK$2936,33,FALSE),0) -> 0 | AJ96: =IFERROR(VLOOKUP($A96,Filtro!$A$5:$AK$2936,34,FALSE),0) -> 0 | AK96: =IFERROR(VLOOKUP($A96,Filtro!$A$5:$AK$2936,35,FALSE),0) -> 0 | AL96: =IFERROR(VLOOKUP($A96,Filtro!$A$5:$AK$2936,36,FALSE),0) -> 1,016,550 | AM96: =IFERROR(VLOOKUP($A96,Filtro!$A$5:$AK$2936,37,FALSE),0) -> 7,530
A97: 01014346 | B97: 0108319 | C97: Teleconsulta Médica de Especialidad en Coloproctología | D97: =IFERROR(VLOOKUP($A97,Filtro!$A$5:$AK$2936,2,FALSE),0) -> 4 | E97: =IFERROR(VLOOKUP($A97,Filtro!$A$5:$AK$2936,3,FALSE),0) -> 4 | F97: =IFERROR(VLOOKUP($A97,Filtro!$A$5:$AK$2936,4,FALSE),0) -> 4 | G97: =IFERROR(VLOOKUP($A97,Filtro!$A$5:$AK$2936,5,FALSE),0) -> 0 | H97: =IFERROR(VLOOKUP($A97,Filtro!$A$5:$AK$2936,6,FALSE),0) -> 0 | I97: =IFERROR(VLOOKUP($A97,Filtro!$A$5:$AK$2936,7,FALSE),0) -> 0 | J97: =IFERROR(VLOOKUP($A97,Filtro!$A$5:$AK$2936,8,FALSE),0) -> 0 | K97: =IFERROR(VLOOKUP($A97,Filtro!$A$5:$AK$2936,9,FALSE),0) -> 0 | L97: =IFERROR(VLOOKUP($A97,Filtro!$A$5:$AK$2936,10,FALSE),0) -> 0 | M97: =IFERROR(VLOOKUP($A97,Filtro!$A$5:$AK$2936,11,FALSE),0) -> 0 | N97: =IFERROR(VLOOKUP($A97,Filtro!$A$5:$AK$2936,12,FALSE),0) -> 0 | O97: =IFERROR(VLOOKUP($A97,Filtro!$A$5:$AK$2936,13,FALSE),0) -> 0 | P97: =IFERROR(VLOOKUP($A97,Filtro!$A$5:$AK$2936,14,FALSE),0) -> 0 | Q97: =IFERROR(VLOOKUP($A97,Filtro!$A$5:$AK$2936,15,FALSE),0) -> 0 | R97: =IFERROR(VLOOKUP($A97,Filtro!$A$5:$AK$2936,16,FALSE),0) -> 0 | S97: =IFERROR(VLOOKUP($A97,Filtro!$A$5:$AK$2936,17,FALSE),0) -> 0 | T97: =IFERROR(VLOOKUP($A97,Filtro!$A$5:$AK$2936,18,FALSE),0) -> 0 | U97: =IFERROR(VLOOKUP($A97,Filtro!$A$5:$AK$2936,19,FALSE),0) -> 0 | V97: =IFERROR(VLOOKUP($A97,Filtro!$A$5:$AK$2936,20,FALSE),0) -> 0 | W97: =IFERROR(VLOOKUP($A97,Filtro!$A$5:$AK$2936,21,FALSE),0) -> 0 | X97: =IFERROR(VLOOKUP($A97,Filtro!$A$5:$AK$2936,22,FALSE),0) -> 0 | Y97: =IFERROR(VLOOKUP($A97,Filtro!$A$5:$AK$2936,23,FALSE),0) -> 0 | Z97: =IFERROR(VLOOKUP($A97,Filtro!$A$5:$AK$2936,24,FALSE),0) -> 0 | AA97: =IFERROR(VLOOKUP($A97,Filtro!$A$5:$AK$2936,25,FALSE),0) -> 0 | AB97: =IFERROR(VLOOKUP($A97,Filtro!$A$5:$AK$2936,26,FALSE),0) -> 0 | AC97: =IFERROR(VLOOKUP($A97,Filtro!$A$5:$AK$2936,27,FALSE),0) -> 4 | AD97: =IFERROR(VLOOKUP($A97,Filtro!$A$5:$AK$2936,28,FALSE),0) -> 0 | AE97: =IFERROR(VLOOKUP($A97,Filtro!$A$5:$AK$2936,29,FALSE),0) -> 0 | AF97: =IFERROR(VLOOKUP($A97,Filtro!$A$5:$AK$2936,30,FALSE),0) -> 0 | AG97: =IFERROR(VLOOKUP($A97,Filtro!$A$5:$AK$2936,31,FALSE),0) -> 0 | AH97: =IFERROR(VLOOKUP($A97,Filtro!$A$5:$AK$2936,32,FALSE),0) -> 0 | AI97: =IFERROR(VLOOKUP($A97,Filtro!$A$5:$AK$2936,33,FALSE),0) -> 0 | AJ97: =IFERROR(VLOOKUP($A97,Filtro!$A$5:$AK$2936,34,FALSE),0) -> 0 | AK97: =IFERROR(VLOOKUP($A97,Filtro!$A$5:$AK$2936,35,FALSE),0) -> 0 | AL97: =IFERROR(VLOOKUP($A97,Filtro!$A$5:$AK$2936,36,FALSE),0) -> 1,016,550 | AM97: =IFERROR(VLOOKUP($A97,Filtro!$A$5:$AK$2936,37,FALSE),0) -> 30,120
A98: 01014347 | B98: 0108320 | C98: Teleconsulta Médica de Especialidad en Diabetología | D98: =IFERROR(VLOOKUP($A98,Filtro!$A$5:$AK$2936,2,FALSE),0) -> 14 | E98: =IFERROR(VLOOKUP($A98,Filtro!$A$5:$AK$2936,3,FALSE),0) -> 14 | F98: =IFERROR(VLOOKUP($A98,Filtro!$A$5:$AK$2936,4,FALSE),0) -> 14 | G98: =IFERROR(VLOOKUP($A98,Filtro!$A$5:$AK$2936,5,FALSE),0) -> 0 | H98: =IFERROR(VLOOKUP($A98,Filtro!$A$5:$AK$2936,6,FALSE),0) -> 0 | I98: =IFERROR(VLOOKUP($A98,Filtro!$A$5:$AK$2936,7,FALSE),0) -> 0 | J98: =IFERROR(VLOOKUP($A98,Filtro!$A$5:$AK$2936,8,FALSE),0) -> 0 | K98: =IFERROR(VLOOKUP($A98,Filtro!$A$5:$AK$2936,9,FALSE),0) -> 0 | L98: =IFERROR(VLOOKUP($A98,Filtro!$A$5:$AK$2936,10,FALSE),0) -> 0 | M98: =IFERROR(VLOOKUP($A98,Filtro!$A$5:$AK$2936,11,FALSE),0) -> 0 | N98: =IFERROR(VLOOKUP($A98,Filtro!$A$5:$AK$2936,12,FALSE),0) -> 0 | O98: =IFERROR(VLOOKUP($A98,Filtro!$A$5:$AK$2936,13,FALSE),0) -> 0 | P98: =IFERROR(VLOOKUP($A98,Filtro!$A$5:$AK$2936,14,FALSE),0) -> 0 | Q98: =IFERROR(VLOOKUP($A98,Filtro!$A$5:$AK$2936,15,FALSE),0) -> 0 | R98: =IFERROR(VLOOKUP($A98,Filtro!$A$5:$AK$2936,16,FALSE),0) -> 0 | S98: =IFERROR(VLOOKUP($A98,Filtro!$A$5:$AK$2936,17,FALSE),0) -> 0 | T98: =IFERROR(VLOOKUP($A98,Filtro!$A$5:$AK$2936,18,FALSE),0) -> 0 | U98: =IFERROR(VLOOKUP($A98,Filtro!$A$5:$AK$2936,19,FALSE),0) -> 0 | V98: =IFERROR(VLOOKUP($A98,Filtro!$A$5:$AK$2936,20,FALSE),0) -> 0 | W98: =IFERROR(VLOOKUP($A98,Filtro!$A$5:$AK$2936,21,FALSE),0) -> 0 | X98: =IFERROR(VLOOKUP($A98,Filtro!$A$5:$AK$2936,22,FALSE),0) -> 0 | Y98: =IFERROR(VLOOKUP($A98,Filtro!$A$5:$AK$2936,23,FALSE),0) -> 0 | Z98: =IFERROR(VLOOKUP($A98,Filtro!$A$5:$AK$2936,24,FALSE),0) -> 0 | AA98: =IFERROR(VLOOKUP($A98,Filtro!$A$5:$AK$2936,25,FALSE),0) -> 0 | AB98: =IFERROR(VLOOKUP($A98,Filtro!$A$5:$AK$2936,26,FALSE),0) -> 0 | AC98: =IFERROR(VLOOKUP($A98,Filtro!$A$5:$AK$2936,27,FALSE),0) -> 14 | AD98: =IFERROR(VLOOKUP($A98,Filtro!$A$5:$AK$2936,28,FALSE),0) -> 0 | AE98: =IFERROR(VLOOKUP($A98,Filtro!$A$5:$AK$2936,29,FALSE),0) -> 0 | AF98: =IFERROR(VLOOKUP($A98,Filtro!$A$5:$AK$2936,30,FALSE),0) -> 0 | AG98: =IFERROR(VLOOKUP($A98,Filtro!$A$5:$AK$2936,31,FALSE),0) -> 0 | AH98: =IFERROR(VLOOKUP($A98,Filtro!$A$5:$AK$2936,32,FALSE),0) -> 0 | AI98: =IFERROR(VLOOKUP($A98,Filtro!$A$5:$AK$2936,33,FALSE),0) -> 0 | AJ98: =IFERROR(VLOOKUP($A98,Filtro!$A$5:$AK$2936,34,FALSE),0) -> 0 | AK98: =IFERROR(VLOOKUP($A98,Filtro!$A$5:$AK$2936,35,FALSE),0) -> 0 | AL98: =IFERROR(VLOOKUP($A98,Filtro!$A$5:$AK$2936,36,FALSE),0) -> 1,016,550 | AM98: =IFERROR(VLOOKUP($A98,Filtro!$A$5:$AK$2936,37,FALSE),0) -> 105,420
A99: 01014348 | B99: 0108321 | C99: Teleconsulta Médica de Especialidad en Enfermedades Respiratorias Adulto | D99: =IFERROR(VLOOKUP($A99,Filtro!$A$5:$AK$2936,2,FALSE),0) -> 46 | E99: =IFERROR(VLOOKUP($A99,Filtro!$A$5:$AK$2936,3,FALSE),0) -> 46 | F99: =IFERROR(VLOOKUP($A99,Filtro!$A$5:$AK$2936,4,FALSE),0) -> 46 | G99: =IFERROR(VLOOKUP($A99,Filtro!$A$5:$AK$2936,5,FALSE),0) -> 0 | H99: =IFERROR(VLOOKUP($A99,Filtro!$A$5:$AK$2936,6,FALSE),0) -> 0 | I99: =IFERROR(VLOOKUP($A99,Filtro!$A$5:$AK$2936,7,FALSE),0) -> 0 | J99: =IFERROR(VLOOKUP($A99,Filtro!$A$5:$AK$2936,8,FALSE),0) -> 0 | K99: =IFERROR(VLOOKUP($A99,Filtro!$A$5:$AK$2936,9,FALSE),0) -> 0 | L99: =IFERROR(VLOOKUP($A99,Filtro!$A$5:$AK$2936,10,FALSE),0) -> 0 | M99: =IFERROR(VLOOKUP($A99,Filtro!$A$5:$AK$2936,11,FALSE),0) -> 0 | N99: =IFERROR(VLOOKUP($A99,Filtro!$A$5:$AK$2936,12,FALSE),0) -> 0 | O99: =IFERROR(VLOOKUP($A99,Filtro!$A$5:$AK$2936,13,FALSE),0) -> 0 | P99: =IFERROR(VLOOKUP($A99,Filtro!$A$5:$AK$2936,14,FALSE),0) -> 0 | Q99: =IFERROR(VLOOKUP($A99,Filtro!$A$5:$AK$2936,15,FALSE),0) -> 0 | R99: =IFERROR(VLOOKUP($A99,Filtro!$A$5:$AK$2936,16,FALSE),0) -> 0 | S99: =IFERROR(VLOOKUP($A99,Filtro!$A$5:$AK$2936,17,FALSE),0) -> 0 | T99: =IFERROR(VLOOKUP($A99,Filtro!$A$5:$AK$2936,18,FALSE),0) -> 0 | U99: =IFERROR(VLOOKUP($A99,Filtro!$A$5:$AK$2936,19,FALSE),0) -> 0 | V99: =IFERROR(VLOOKUP($A99,Filtro!$A$5:$AK$2936,20,FALSE),0) -> 0 | W99: =IFERROR(VLOOKUP($A99,Filtro!$A$5:$AK$2936,21,FALSE),0) -> 0 | X99: =IFERROR(VLOOKUP($A99,Filtro!$A$5:$AK$2936,22,FALSE),0) -> 0 | Y99: =IFERROR(VLOOKUP($A99,Filtro!$A$5:$AK$2936,23,FALSE),0) -> 0 | Z99: =IFERROR(VLOOKUP($A99,Filtro!$A$5:$AK$2936,24,FALSE),0) -> 0 | AA99: =IFERROR(VLOOKUP($A99,Filtro!$A$5:$AK$2936,25,FALSE),0) -> 0 | AB99: =IFERROR(VLOOKUP($A99,Filtro!$A$5:$AK$2936,26,FALSE),0) -> 0 | AC99: =IFERROR(VLOOKUP($A99,Filtro!$A$5:$AK$2936,27,FALSE),0) -> 46 | AD99: =IFERROR(VLOOKUP($A99,Filtro!$A$5:$AK$2936,28,FALSE),0) -> 0 | AE99: =IFERROR(VLOOKUP($A99,Filtro!$A$5:$AK$2936,29,FALSE),0) -> 0 | AF99: =IFERROR(VLOOKUP($A99,Filtro!$A$5:$AK$2936,30,FALSE),0) -> 0 | AG99: =IFERROR(VLOOKUP($A99,Filtro!$A$5:$AK$2936,31,FALSE),0) -> 0 | AH99: =IFERROR(VLOOKUP($A99,Filtro!$A$5:$AK$2936,32,FALSE),0) -> 0 | AI99: =IFERROR(VLOOKUP($A99,Filtro!$A$5:$AK$2936,33,FALSE),0) -> 0 | AJ99: =IFERROR(VLOOKUP($A99,Filtro!$A$5:$AK$2936,34,FALSE),0) -> 0 | AK99: =IFERROR(VLOOKUP($A99,Filtro!$A$5:$AK$2936,35,FALSE),0) -> 0 | AL99: =IFERROR(VLOOKUP($A99,Filtro!$A$5:$AK$2936,36,FALSE),0) -> 1,016,550 | AM99: =IFERROR(VLOOKUP($A99,Filtro!$A$5:$AK$2936,37,FALSE),0) -> 346,380
A100: 01014349 | B100: 0108322 | C100: Teleconsulta Médica de Especialidad en Enfermedades Respiratorias Pediátricas | D100: =IFERROR(VLOOKUP($A100,Filtro!$A$5:$AK$2936,2,FALSE),0) -> 117 | E100: =IFERROR(VLOOKUP($A100,Filtro!$A$5:$AK$2936,3,FALSE),0) -> 117 | F100: =IFERROR(VLOOKUP($A100,Filtro!$A$5:$AK$2936,4,FALSE),0) -> 117 | G100: =IFERROR(VLOOKUP($A100,Filtro!$A$5:$AK$2936,5,FALSE),0) -> 0 | H100: =IFERROR(VLOOKUP($A100,Filtro!$A$5:$AK$2936,6,FALSE),0) -> 0 | I100: =IFERROR(VLOOKUP($A100,Filtro!$A$5:$AK$2936,7,FALSE),0) -> 0 | J100: =IFERROR(VLOOKUP($A100,Filtro!$A$5:$AK$2936,8,FALSE),0) -> 0 | K100: =IFERROR(VLOOKUP($A100,Filtro!$A$5:$AK$2936,9,FALSE),0) -> 0 | L100: =IFERROR(VLOOKUP($A100,Filtro!$A$5:$AK$2936,10,FALSE),0) -> 0 | M100: =IFERROR(VLOOKUP($A100,Filtro!$A$5:$AK$2936,11,FALSE),0) -> 0 | N100: =IFERROR(VLOOKUP($A100,Filtro!$A$5:$AK$2936,12,FALSE),0) -> 0 | O100: =IFERROR(VLOOKUP($A100,Filtro!$A$5:$AK$2936,13,FALSE),0) -> 0 | P100: =IFERROR(VLOOKUP($A100,Filtro!$A$5:$AK$2936,14,FALSE),0) -> 0 | Q100: =IFERROR(VLOOKUP($A100,Filtro!$A$5:$AK$2936,15,FALSE),0) -> 0 | R100: =IFERROR(VLOOKUP($A100,Filtro!$A$5:$AK$2936,16,FALSE),0) -> 0 | S100: =IFERROR(VLOOKUP($A100,Filtro!$A$5:$AK$2936,17,FALSE),0) -> 0 | T100: =IFERROR(VLOOKUP($A100,Filtro!$A$5:$AK$2936,18,FALSE),0) -> 0 | U100: =IFERROR(VLOOKUP($A100,Filtro!$A$5:$AK$2936,19,FALSE),0) -> 0 | V100: =IFERROR(VLOOKUP($A100,Filtro!$A$5:$AK$2936,20,FALSE),0) -> 0 | W100: =IFERROR(VLOOKUP($A100,Filtro!$A$5:$AK$2936,21,FALSE),0) -> 0 | X100: =IFERROR(VLOOKUP($A100,Filtro!$A$5:$AK$2936,22,FALSE),0) -> 0 | Y100: =IFERROR(VLOOKUP($A100,Filtro!$A$5:$AK$2936,23,FALSE),0) -> 0 | Z100: =IFERROR(VLOOKUP($A100,Filtro!$A$5:$AK$2936,24,FALSE),0) -> 0 | AA100: =IFERROR(VLOOKUP($A100,Filtro!$A$5:$AK$2936,25,FALSE),0) -> 0 | AB100: =IFERROR(VLOOKUP($A100,Filtro!$A$5:$AK$2936,26,FALSE),0) -> 0 | AC100: =IFERROR(VLOOKUP($A100,Filtro!$A$5:$AK$2936,27,FALSE),0) -> 117 | AD100: =IFERROR(VLOOKUP($A100,Filtro!$A$5:$AK$2936,28,FALSE),0) -> 0 | AE100: =IFERROR(VLOOKUP($A100,Filtro!$A$5:$AK$2936,29,FALSE),0) -> 0 | AF100: =IFERROR(VLOOKUP($A100,Filtro!$A$5:$AK$2936,30,FALSE),0) -> 0 | AG100: =IFERROR(VLOOKUP($A100,Filtro!$A$5:$AK$2936,31,FALSE),0) -> 0 | AH100: =IFERROR(VLOOKUP($A100,Filtro!$A$5:$AK$2936,32,FALSE),0) -> 0 | AI100: =IFERROR(VLOOKUP($A100,Filtro!$A$5:$AK$2936,33,FALSE),0) -> 0 | AJ100: =IFERROR(VLOOKUP($A100,Filtro!$A$5:$AK$2936,34,FALSE),0) -> 0 | AK100: =IFERROR(VLOOKUP($A100,Filtro!$A$5:$AK$2936,35,FALSE),0) -> 0 | AL100: =IFERROR(VLOOKUP($A100,Filtro!$A$5:$AK$2936,36,FALSE),0) -> 1,016,550 | AM100: =IFERROR(VLOOKUP($A100,Filtro!$A$5:$AK$2936,37,FALSE),0) -> 881,010
A101: 01014350 | B101: 0108323 | C101: Teleconsulta Médica de Especialidad en Gastroenterología Adulto | D101: =IFERROR(VLOOKUP($A101,Filtro!$A$5:$AK$2936,2,FALSE),0) -> 15 | E101: =IFERROR(VLOOKUP($A101,Filtro!$A$5:$AK$2936,3,FALSE),0) -> 15 | F101: =IFERROR(VLOOKUP($A101,Filtro!$A$5:$AK$2936,4,FALSE),0) -> 15 | G101: =IFERROR(VLOOKUP($A101,Filtro!$A$5:$AK$2936,5,FALSE),0) -> 0 | H101: =IFERROR(VLOOKUP($A101,Filtro!$A$5:$AK$2936,6,FALSE),0) -> 0 | I101: =IFERROR(VLOOKUP($A101,Filtro!$A$5:$AK$2936,7,FALSE),0) -> 0 | J101: =IFERROR(VLOOKUP($A101,Filtro!$A$5:$AK$2936,8,FALSE),0) -> 0 | K101: =IFERROR(VLOOKUP($A101,Filtro!$A$5:$AK$2936,9,FALSE),0) -> 0 | L101: =IFERROR(VLOOKUP($A101,Filtro!$A$5:$AK$2936,10,FALSE),0) -> 0 | M101: =IFERROR(VLOOKUP($A101,Filtro!$A$5:$AK$2936,11,FALSE),0) -> 0 | N101: =IFERROR(VLOOKUP($A101,Filtro!$A$5:$AK$2936,12,FALSE),0) -> 0 | O101: =IFERROR(VLOOKUP($A101,Filtro!$A$5:$AK$2936,13,FALSE),0) -> 0 | P101: =IFERROR(VLOOKUP($A101,Filtro!$A$5:$AK$2936,14,FALSE),0) -> 0 | Q101: =IFERROR(VLOOKUP($A101,Filtro!$A$5:$AK$2936,15,FALSE),0) -> 0 | R101: =IFERROR(VLOOKUP($A101,Filtro!$A$5:$AK$2936,16,FALSE),0) -> 0 | S101: =IFERROR(VLOOKUP($A101,Filtro!$A$5:$AK$2936,17,FALSE),0) -> 0 | T101: =IFERROR(VLOOKUP($A101,Filtro!$A$5:$AK$2936,18,FALSE),0) -> 0 | U101: =IFERROR(VLOOKUP($A101,Filtro!$A$5:$AK$2936,19,FALSE),0) -> 0 | V101: =IFERROR(VLOOKUP($A101,Filtro!$A$5:$AK$2936,20,FALSE),0) -> 0 | W101: =IFERROR(VLOOKUP($A101,Filtro!$A$5:$AK$2936,21,FALSE),0) -> 0 | X101: =IFERROR(VLOOKUP($A101,Filtro!$A$5:$AK$2936,22,FALSE),0) -> 0 | Y101: =IFERROR(VLOOKUP($A101,Filtro!$A$5:$AK$2936,23,FALSE),0) -> 0 | Z101: =IFERROR(VLOOKUP($A101,Filtro!$A$5:$AK$2936,24,FALSE),0) -> 0 | AA101: =IFERROR(VLOOKUP($A101,Filtro!$A$5:$AK$2936,25,FALSE),0) -> 0 | AB101: =IFERROR(VLOOKUP($A101,Filtro!$A$5:$AK$2936,26,FALSE),0) -> 0 | AC101: =IFERROR(VLOOKUP($A101,Filtro!$A$5:$AK$2936,27,FALSE),0) -> 15 | AD101: =IFERROR(VLOOKUP($A101,Filtro!$A$5:$AK$2936,28,FALSE),0) -> 0 | AE101: =IFERROR(VLOOKUP($A101,Filtro!$A$5:$AK$2936,29,FALSE),0) -> 0 | AF101: =IFERROR(VLOOKUP($A101,Filtro!$A$5:$AK$2936,30,FALSE),0) -> 0 | AG101: =IFERROR(VLOOKUP($A101,Filtro!$A$5:$AK$2936,31,FALSE),0) -> 0 | AH101: =IFERROR(VLOOKUP($A101,Filtro!$A$5:$AK$2936,32,FALSE),0) -> 0 | AI101: =IFERROR(VLOOKUP($A101,Filtro!$A$5:$AK$2936,33,FALSE),0) -> 0 | AJ101: =IFERROR(VLOOKUP($A101,Filtro!$A$5:$AK$2936,34,FALSE),0) -> 0 | AK101: =IFERROR(VLOOKUP($A101,Filtro!$A$5:$AK$2936,35,FALSE),0) -> 0 | AL101: =IFERROR(VLOOKUP($A101,Filtro!$A$5:$AK$2936,36,FALSE),0) -> 1,016,550 | AM101: =IFERROR(VLOOKUP($A101,Filtro!$A$5:$AK$2936,37,FALSE),0) -> 112,950
A102: 01014351 | B102: 0108324 | C102: Teleconsulta Médica de Especialidad en Gastroenterología Pediátrico | D102: =IFERROR(VLOOKUP($A102,Filtro!$A$5:$AK$2936,2,FALSE),0) -> 39 | E102: =IFERROR(VLOOKUP($A102,Filtro!$A$5:$AK$2936,3,FALSE),0) -> 39 | F102: =IFERROR(VLOOKUP($A102,Filtro!$A$5:$AK$2936,4,FALSE),0) -> 39 | G102: =IFERROR(VLOOKUP($A102,Filtro!$A$5:$AK$2936,5,FALSE),0) -> 0 | H102: =IFERROR(VLOOKUP($A102,Filtro!$A$5:$AK$2936,6,FALSE),0) -> 0 | I102: =IFERROR(VLOOKUP($A102,Filtro!$A$5:$AK$2936,7,FALSE),0) -> 0 | J102: =IFERROR(VLOOKUP($A102,Filtro!$A$5:$AK$2936,8,FALSE),0) -> 0 | K102: =IFERROR(VLOOKUP($A102,Filtro!$A$5:$AK$2936,9,FALSE),0) -> 0 | L102: =IFERROR(VLOOKUP($A102,Filtro!$A$5:$AK$2936,10,FALSE),0) -> 0 | M102: =IFERROR(VLOOKUP($A102,Filtro!$A$5:$AK$2936,11,FALSE),0) -> 0 | N102: =IFERROR(VLOOKUP($A102,Filtro!$A$5:$AK$2936,12,FALSE),0) -> 0 | O102: =IFERROR(VLOOKUP($A102,Filtro!$A$5:$AK$2936,13,FALSE),0) -> 0 | P102: =IFERROR(VLOOKUP($A102,Filtro!$A$5:$AK$2936,14,FALSE),0) -> 0 | Q102: =IFERROR(VLOOKUP($A102,Filtro!$A$5:$AK$2936,15,FALSE),0) -> 0 | R102: =IFERROR(VLOOKUP($A102,Filtro!$A$5:$AK$2936,16,FALSE),0) -> 0 | S102: =IFERROR(VLOOKUP($A102,Filtro!$A$5:$AK$2936,17,FALSE),0) -> 0 | T102: =IFERROR(VLOOKUP($A102,Filtro!$A$5:$AK$2936,18,FALSE),0) -> 0 | U102: =IFERROR(VLOOKUP($A102,Filtro!$A$5:$AK$2936,19,FALSE),0) -> 0 | V102: =IFERROR(VLOOKUP($A102,Filtro!$A$5:$AK$2936,20,FALSE),0) -> 0 | W102: =IFERROR(VLOOKUP($A102,Filtro!$A$5:$AK$2936,21,FALSE),0) -> 0 | X102: =IFERROR(VLOOKUP($A102,Filtro!$A$5:$AK$2936,22,FALSE),0) -> 0 | Y102: =IFERROR(VLOOKUP($A102,Filtro!$A$5:$AK$2936,23,FALSE),0) -> 0 | Z102: =IFERROR(VLOOKUP($A102,Filtro!$A$5:$AK$2936,24,FALSE),0) -> 0 | AA102: =IFERROR(VLOOKUP($A102,Filtro!$A$5:$AK$2936,25,FALSE),0) -> 0 | AB102: =IFERROR(VLOOKUP($A102,Filtro!$A$5:$AK$2936,26,FALSE),0) -> 0 | AC102: =IFERROR(VLOOKUP($A102,Filtro!$A$5:$AK$2936,27,FALSE),0) -> 39 | AD102: =IFERROR(VLOOKUP($A102,Filtro!$A$5:$AK$2936,28,FALSE),0) -> 0 | AE102: =IFERROR(VLOOKUP($A102,Filtro!$A$5:$AK$2936,29,FALSE),0) -> 0 | AF102: =IFERROR(VLOOKUP($A102,Filtro!$A$5:$AK$2936,30,FALSE),0) -> 0 | AG102: =IFERROR(VLOOKUP($A102,Filtro!$A$5:$AK$2936,31,FALSE),0) -> 0 | AH102: =IFERROR(VLOOKUP($A102,Filtro!$A$5:$AK$2936,32,FALSE),0) -> 0 | AI102: =IFERROR(VLOOKUP($A102,Filtro!$A$5:$AK$2936,33,FALSE),0) -> 0 | AJ102: =IFERROR(VLOOKUP($A102,Filtro!$A$5:$AK$2936,34,FALSE),0) -> 0 | AK102: =IFERROR(VLOOKUP($A102,Filtro!$A$5:$AK$2936,35,FALSE),0) -> 0 | AL102: =IFERROR(VLOOKUP($A102,Filtro!$A$5:$AK$2936,36,FALSE),0) -> 1,016,550 | AM102: =IFERROR(VLOOKUP($A102,Filtro!$A$5:$AK$2936,37,FALSE),0) -> 293,670
A103: 01014352 | B103: 0108325 | C103: Teleconsulta Médica de Especialidad en Genética Clínica | D103: =IFERROR(VLOOKUP($A103,Filtro!$A$5:$AK$2936,2,FALSE),0) -> 0 | E103: =IFERROR(VLOOKUP($A103,Filtro!$A$5:$AK$2936,3,FALSE),0) -> 0 | F103: =IFERROR(VLOOKUP($A103,Filtro!$A$5:$AK$2936,4,FALSE),0) -> 0 | G103: =IFERROR(VLOOKUP($A103,Filtro!$A$5:$AK$2936,5,FALSE),0) -> 0 | H103: =IFERROR(VLOOKUP($A103,Filtro!$A$5:$AK$2936,6,FALSE),0) -> 0 | I103: =IFERROR(VLOOKUP($A103,Filtro!$A$5:$AK$2936,7,FALSE),0) -> 0 | J103: =IFERROR(VLOOKUP($A103,Filtro!$A$5:$AK$2936,8,FALSE),0) -> 0 | K103: =IFERROR(VLOOKUP($A103,Filtro!$A$5:$AK$2936,9,FALSE),0) -> 0 | L103: =IFERROR(VLOOKUP($A103,Filtro!$A$5:$AK$2936,10,FALSE),0) -> 0 | M103: =IFERROR(VLOOKUP($A103,Filtro!$A$5:$AK$2936,11,FALSE),0) -> 0 | N103: =IFERROR(VLOOKUP($A103,Filtro!$A$5:$AK$2936,12,FALSE),0) -> 0 | O103: =IFERROR(VLOOKUP($A103,Filtro!$A$5:$AK$2936,13,FALSE),0) -> 0 | P103: =IFERROR(VLOOKUP($A103,Filtro!$A$5:$AK$2936,14,FALSE),0) -> 0 | Q103: =IFERROR(VLOOKUP($A103,Filtro!$A$5:$AK$2936,15,FALSE),0) -> 0 | R103: =IFERROR(VLOOKUP($A103,Filtro!$A$5:$AK$2936,16,FALSE),0) -> 0 | S103: =IFERROR(VLOOKUP($A103,Filtro!$A$5:$AK$2936,17,FALSE),0) -> 0 | T103: =IFERROR(VLOOKUP($A103,Filtro!$A$5:$AK$2936,18,FALSE),0) -> 0 | U103: =IFERROR(VLOOKUP($A103,Filtro!$A$5:$AK$2936,19,FALSE),0) -> 0 | V103: =IFERROR(VLOOKUP($A103,Filtro!$A$5:$AK$2936,20,FALSE),0) -> 0 | W103: =IFERROR(VLOOKUP($A103,Filtro!$A$5:$AK$2936,21,FALSE),0) -> 0 | X103: =IFERROR(VLOOKUP($A103,Filtro!$A$5:$AK$2936,22,FALSE),0) -> 0 | Y103: =IFERROR(VLOOKUP($A103,Filtro!$A$5:$AK$2936,23,FALSE),0) -> 0 | Z103: =IFERROR(VLOOKUP($A103,Filtro!$A$5:$AK$2936,24,FALSE),0) -> 0 | AA103: =IFERROR(VLOOKUP($A103,Filtro!$A$5:$AK$2936,25,FALSE),0) -> 0 | AB103: =IFERROR(VLOOKUP($A103,Filtro!$A$5:$AK$2936,26,FALSE),0) -> 0 | AC103: =IFERROR(VLOOKUP($A103,Filtro!$A$5:$AK$2936,27,FALSE),0) -> 0 | AD103: =IFERROR(VLOOKUP($A103,Filtro!$A$5:$AK$2936,28,FALSE),0) -> 0 | AE103: =IFERROR(VLOOKUP($A103,Filtro!$A$5:$AK$2936,29,FALSE),0) -> 0 | AF103: =IFERROR(VLOOKUP($A103,Filtro!$A$5:$AK$2936,30,FALSE),0) -> 0 | AG103: =IFERROR(VLOOKUP($A103,Filtro!$A$5:$AK$2936,31,FALSE),0) -> 0 | AH103: =IFERROR(VLOOKUP($A103,Filtro!$A$5:$AK$2936,32,FALSE),0) -> 0 | AI103: =IFERROR(VLOOKUP($A103,Filtro!$A$5:$AK$2936,33,FALSE),0) -> 0 | AJ103: =IFERROR(VLOOKUP($A103,Filtro!$A$5:$AK$2936,34,FALSE),0) -> 0 | AK103: =IFERROR(VLOOKUP($A103,Filtro!$A$5:$AK$2936,35,FALSE),0) -> 0 | AL103: =IFERROR(VLOOKUP($A103,Filtro!$A$5:$AK$2936,36,FALSE),0) -> 1,016,550 | AM103: =IFERROR(VLOOKUP($A103,Filtro!$A$5:$AK$2936,37,FALSE),0) -> 0
A104: 01014353 | B104: 0108326 | C104: Teleconsulta Médica de Especialidad en Nefrología Adulto | D104: =IFERROR(VLOOKUP($A104,Filtro!$A$5:$AK$2936,2,FALSE),0) -> 522 | E104: =IFERROR(VLOOKUP($A104,Filtro!$A$5:$AK$2936,3,FALSE),0) -> 519 | F104: =IFERROR(VLOOKUP($A104,Filtro!$A$5:$AK$2936,4,FALSE),0) -> 519 | G104: =IFERROR(VLOOKUP($A104,Filtro!$A$5:$AK$2936,5,FALSE),0) -> 0 | H104: =IFERROR(VLOOKUP($A104,Filtro!$A$5:$AK$2936,6,FALSE),0) -> 3 | I104: =IFERROR(VLOOKUP($A104,Filtro!$A$5:$AK$2936,7,FALSE),0) -> 0 | J104: =IFERROR(VLOOKUP($A104,Filtro!$A$5:$AK$2936,8,FALSE),0) -> 0 | K104: =IFERROR(VLOOKUP($A104,Filtro!$A$5:$AK$2936,9,FALSE),0) -> 0 | L104: =IFERROR(VLOOKUP($A104,Filtro!$A$5:$AK$2936,10,FALSE),0) -> 0 | M104: =IFERROR(VLOOKUP($A104,Filtro!$A$5:$AK$2936,11,FALSE),0) -> 0 | N104: =IFERROR(VLOOKUP($A104,Filtro!$A$5:$AK$2936,12,FALSE),0) -> 0 | O104: =IFERROR(VLOOKUP($A104,Filtro!$A$5:$AK$2936,13,FALSE),0) -> 0 | P104: =IFERROR(VLOOKUP($A104,Filtro!$A$5:$AK$2936,14,FALSE),0) -> 0 | Q104: =IFERROR(VLOOKUP($A104,Filtro!$A$5:$AK$2936,15,FALSE),0) -> 0 | R104: =IFERROR(VLOOKUP($A104,Filtro!$A$5:$AK$2936,16,FALSE),0) -> 0 | S104: =IFERROR(VLOOKUP($A104,Filtro!$A$5:$AK$2936,17,FALSE),0) -> 0 | T104: =IFERROR(VLOOKUP($A104,Filtro!$A$5:$AK$2936,18,FALSE),0) -> 0 | U104: =IFERROR(VLOOKUP($A104,Filtro!$A$5:$AK$2936,19,FALSE),0) -> 0 | V104: =IFERROR(VLOOKUP($A104,Filtro!$A$5:$AK$2936,20,FALSE),0) -> 0 | W104: =IFERROR(VLOOKUP($A104,Filtro!$A$5:$AK$2936,21,FALSE),0) -> 0 | X104: =IFERROR(VLOOKUP($A104,Filtro!$A$5:$AK$2936,22,FALSE),0) -> 0 | Y104: =IFERROR(VLOOKUP($A104,Filtro!$A$5:$AK$2936,23,FALSE),0) -> 0 | Z104: =IFERROR(VLOOKUP($A104,Filtro!$A$5:$AK$2936,24,FALSE),0) -> 0 | AA104: =IFERROR(VLOOKUP($A104,Filtro!$A$5:$AK$2936,25,FALSE),0) -> 0 | AB104: =IFERROR(VLOOKUP($A104,Filtro!$A$5:$AK$2936,26,FALSE),0) -> 0 | AC104: =IFERROR(VLOOKUP($A104,Filtro!$A$5:$AK$2936,27,FALSE),0) -> 522 | AD104: =IFERROR(VLOOKUP($A104,Filtro!$A$5:$AK$2936,28,FALSE),0) -> 0 | AE104: =IFERROR(VLOOKUP($A104,Filtro!$A$5:$AK$2936,29,FALSE),0) -> 0 | AF104: =IFERROR(VLOOKUP($A104,Filtro!$A$5:$AK$2936,30,FALSE),0) -> 0 | AG104: =IFERROR(VLOOKUP($A104,Filtro!$A$5:$AK$2936,31,FALSE),0) -> 0 | AH104: =IFERROR(VLOOKUP($A104,Filtro!$A$5:$AK$2936,32,FALSE),0) -> 0 | AI104: =IFERROR(VLOOKUP($A104,Filtro!$A$5:$AK$2936,33,FALSE),0) -> 0 | AJ104: =IFERROR(VLOOKUP($A104,Filtro!$A$5:$AK$2936,34,FALSE),0) -> 0 | AK104: =IFERROR(VLOOKUP($A104,Filtro!$A$5:$AK$2936,35,FALSE),0) -> 0 | AL104: =IFERROR(VLOOKUP($A104,Filtro!$A$5:$AK$2936,36,FALSE),0) -> 1,016,550 | AM104: =IFERROR(VLOOKUP($A104,Filtro!$A$5:$AK$2936,37,FALSE),0) -> 3,908,070
A105: 01014354 | B105: 0108327 | C105: Teleconsulta Médica de Especialidad en Nefrología Pediátrico | D105: =IFERROR(VLOOKUP($A105,Filtro!$A$5:$AK$2936,2,FALSE),0) -> 32 | E105: =IFERROR(VLOOKUP($A105,Filtro!$A$5:$AK$2936,3,FALSE),0) -> 32 | F105: =IFERROR(VLOOKUP($A105,Filtro!$A$5:$AK$2936,4,FALSE),0) -> 32 | G105: =IFERROR(VLOOKUP($A105,Filtro!$A$5:$AK$2936,5,FALSE),0) -> 0 | H105: =IFERROR(VLOOKUP($A105,Filtro!$A$5:$AK$2936,6,FALSE),0) -> 0 | I105: =IFERROR(VLOOKUP($A105,Filtro!$A$5:$AK$2936,7,FALSE),0) -> 0 | J105: =IFERROR(VLOOKUP($A105,Filtro!$A$5:$AK$2936,8,FALSE),0) -> 0 | K105: =IFERROR(VLOOKUP($A105,Filtro!$A$5:$AK$2936,9,FALSE),0) -> 0 | L105: =IFERROR(VLOOKUP($A105,Filtro!$A$5:$AK$2936,10,FALSE),0) -> 0 | M105: =IFERROR(VLOOKUP($A105,Filtro!$A$5:$AK$2936,11,FALSE),0) -> 0 | N105: =IFERROR(VLOOKUP($A105,Filtro!$A$5:$AK$2936,12,FALSE),0) -> 0 | O105: =IFERROR(VLOOKUP($A105,Filtro!$A$5:$AK$2936,13,FALSE),0) -> 0 | P105: =IFERROR(VLOOKUP($A105,Filtro!$A$5:$AK$2936,14,FALSE),0) -> 0 | Q105: =IFERROR(VLOOKUP($A105,Filtro!$A$5:$AK$2936,15,FALSE),0) -> 0 | R105: =IFERROR(VLOOKUP($A105,Filtro!$A$5:$AK$2936,16,FALSE),0) -> 0 | S105: =IFERROR(VLOOKUP($A105,Filtro!$A$5:$AK$2936,17,FALSE),0) -> 0 | T105: =IFERROR(VLOOKUP($A105,Filtro!$A$5:$AK$2936,18,FALSE),0) -> 0 | U105: =IFERROR(VLOOKUP($A105,Filtro!$A$5:$AK$2936,19,FALSE),0) -> 0 | V105: =IFERROR(VLOOKUP($A105,Filtro!$A$5:$AK$2936,20,FALSE),0) -> 0 | W105: =IFERROR(VLOOKUP($A105,Filtro!$A$5:$AK$2936,21,FALSE),0) -> 0 | X105: =IFERROR(VLOOKUP($A105,Filtro!$A$5:$AK$2936,22,FALSE),0) -> 0 | Y105: =IFERROR(VLOOKUP($A105,Filtro!$A$5:$AK$2936,23,FALSE),0) -> 0 | Z105: =IFERROR(VLOOKUP($A105,Filtro!$A$5:$AK$2936,24,FALSE),0) -> 0 | AA105: =IFERROR(VLOOKUP($A105,Filtro!$A$5:$AK$2936,25,FALSE),0) -> 0 | AB105: =IFERROR(VLOOKUP($A105,Filtro!$A$5:$AK$2936,26,FALSE),0) -> 0 | AC105: =IFERROR(VLOOKUP($A105,Filtro!$A$5:$AK$2936,27,FALSE),0) -> 32 | AD105: =IFERROR(VLOOKUP($A105,Filtro!$A$5:$AK$2936,28,FALSE),0) -> 0 | AE105: =IFERROR(VLOOKUP($A105,Filtro!$A$5:$AK$2936,29,FALSE),0) -> 0 | AF105: =IFERROR(VLOOKUP($A105,Filtro!$A$5:$AK$2936,30,FALSE),0) -> 0 | AG105: =IFERROR(VLOOKUP($A105,Filtro!$A$5:$AK$2936,31,FALSE),0) -> 0 | AH105: =IFERROR(VLOOKUP($A105,Filtro!$A$5:$AK$2936,32,FALSE),0) -> 0 | AI105: =IFERROR(VLOOKUP($A105,Filtro!$A$5:$AK$2936,33,FALSE),0) -> 0 | AJ105: =IFERROR(VLOOKUP($A105,Filtro!$A$5:$AK$2936,34,FALSE),0) -> 0 | AK105: =IFERROR(VLOOKUP($A105,Filtro!$A$5:$AK$2936,35,FALSE),0) -> 0 | AL105: =IFERROR(VLOOKUP($A105,Filtro!$A$5:$AK$2936,36,FALSE),0) -> 1,016,550 | AM105: =IFERROR(VLOOKUP($A105,Filtro!$A$5:$AK$2936,37,FALSE),0) -> 240,960
A106: 01014355 | B106: 0108331 | C106: Teleconsulta Médica de Especialidad en Radioterapia Oncológica | D106: =IFERROR(VLOOKUP($A106,Filtro!$A$5:$AK$2936,2,FALSE),0) -> 0 | E106: =IFERROR(VLOOKUP($A106,Filtro!$A$5:$AK$2936,3,FALSE),0) -> 0 | F106: =IFERROR(VLOOKUP($A106,Filtro!$A$5:$AK$2936,4,FALSE),0) -> 0 | G106: =IFERROR(VLOOKUP($A106,Filtro!$A$5:$AK$2936,5,FALSE),0) -> 0 | H106: =IFERROR(VLOOKUP($A106,Filtro!$A$5:$AK$2936,6,FALSE),0) -> 0 | I106: =IFERROR(VLOOKUP($A106,Filtro!$A$5:$AK$2936,7,FALSE),0) -> 0 | J106: =IFERROR(VLOOKUP($A106,Filtro!$A$5:$AK$2936,8,FALSE),0) -> 0 | K106: =IFERROR(VLOOKUP($A106,Filtro!$A$5:$AK$2936,9,FALSE),0) -> 0 | L106: =IFERROR(VLOOKUP($A106,Filtro!$A$5:$AK$2936,10,FALSE),0) -> 0 | M106: =IFERROR(VLOOKUP($A106,Filtro!$A$5:$AK$2936,11,FALSE),0) -> 0 | N106: =IFERROR(VLOOKUP($A106,Filtro!$A$5:$AK$2936,12,FALSE),0) -> 0 | O106: =IFERROR(VLOOKUP($A106,Filtro!$A$5:$AK$2936,13,FALSE),0) -> 0 | P106: =IFERROR(VLOOKUP($A106,Filtro!$A$5:$AK$2936,14,FALSE),0) -> 0 | Q106: =IFERROR(VLOOKUP($A106,Filtro!$A$5:$AK$2936,15,FALSE),0) -> 0 | R106: =IFERROR(VLOOKUP($A106,Filtro!$A$5:$AK$2936,16,FALSE),0) -> 0 | S106: =IFERROR(VLOOKUP($A106,Filtro!$A$5:$AK$2936,17,FALSE),0) -> 0 | T106: =IFERROR(VLOOKUP($A106,Filtro!$A$5:$AK$2936,18,FALSE),0) -> 0 | U106: =IFERROR(VLOOKUP($A106,Filtro!$A$5:$AK$2936,19,FALSE),0) -> 0 | V106: =IFERROR(VLOOKUP($A106,Filtro!$A$5:$AK$2936,20,FALSE),0) -> 0 | W106: =IFERROR(VLOOKUP($A106,Filtro!$A$5:$AK$2936,21,FALSE),0) -> 0 | X106: =IFERROR(VLOOKUP($A106,Filtro!$A$5:$AK$2936,22,FALSE),0) -> 0 | Y106: =IFERROR(VLOOKUP($A106,Filtro!$A$5:$AK$2936,23,FALSE),0) -> 0 | Z106: =IFERROR(VLOOKUP($A106,Filtro!$A$5:$AK$2936,24,FALSE),0) -> 0 | AA106: =IFERROR(VLOOKUP($A106,Filtro!$A$5:$AK$2936,25,FALSE),0) -> 0 | AB106: =IFERROR(VLOOKUP($A106,Filtro!$A$5:$AK$2936,26,FALSE),0) -> 0 | AC106: =IFERROR(VLOOKUP($A106,Filtro!$A$5:$AK$2936,27,FALSE),0) -> 0 | AD106: =IFERROR(VLOOKUP($A106,Filtro!$A$5:$AK$2936,28,FALSE),0) -> 0 | AE106: =IFERROR(VLOOKUP($A106,Filtro!$A$5:$AK$2936,29,FALSE),0) -> 0 | AF106: =IFERROR(VLOOKUP($A106,Filtro!$A$5:$AK$2936,30,FALSE),0) -> 0 | AG106: =IFERROR(VLOOKUP($A106,Filtro!$A$5:$AK$2936,31,FALSE),0) -> 0 | AH106: =IFERROR(VLOOKUP($A106,Filtro!$A$5:$AK$2936,32,FALSE),0) -> 0 | AI106: =IFERROR(VLOOKUP($A106,Filtro!$A$5:$AK$2936,33,FALSE),0) -> 0 | AJ106: =IFERROR(VLOOKUP($A106,Filtro!$A$5:$AK$2936,34,FALSE),0) -> 0 | AK106: =IFERROR(VLOOKUP($A106,Filtro!$A$5:$AK$2936,35,FALSE),0) -> 0 | AL106: =IFERROR(VLOOKUP($A106,Filtro!$A$5:$AK$2936,36,FALSE),0) -> 1,016,550 | AM106: =IFERROR(VLOOKUP($A106,Filtro!$A$5:$AK$2936,37,FALSE),0) -> 0
A107: 01014356 | B107: 0108203 | C107: Teleconsulta Médica de Especialidad en Neurocirugía | D107: =IFERROR(VLOOKUP($A107,Filtro!$A$5:$AK$2936,2,FALSE),0) -> 0 | E107: =IFERROR(VLOOKUP($A107,Filtro!$A$5:$AK$2936,3,FALSE),0) -> 0 | F107: =IFERROR(VLOOKUP($A107,Filtro!$A$5:$AK$2936,4,FALSE),0) -> 0 | G107: =IFERROR(VLOOKUP($A107,Filtro!$A$5:$AK$2936,5,FALSE),0) -> 0 | H107: =IFERROR(VLOOKUP($A107,Filtro!$A$5:$AK$2936,6,FALSE),0) -> 0 | I107: =IFERROR(VLOOKUP($A107,Filtro!$A$5:$AK$2936,7,FALSE),0) -> 0 | J107: =IFERROR(VLOOKUP($A107,Filtro!$A$5:$AK$2936,8,FALSE),0) -> 0 | K107: =IFERROR(VLOOKUP($A107,Filtro!$A$5:$AK$2936,9,FALSE),0) -> 0 | L107: =IFERROR(VLOOKUP($A107,Filtro!$A$5:$AK$2936,10,FALSE),0) -> 0 | M107: =IFERROR(VLOOKUP($A107,Filtro!$A$5:$AK$2936,11,FALSE),0) -> 0 | N107: =IFERROR(VLOOKUP($A107,Filtro!$A$5:$AK$2936,12,FALSE),0) -> 0 | O107: =IFERROR(VLOOKUP($A107,Filtro!$A$5:$AK$2936,13,FALSE),0) -> 0 | P107: =IFERROR(VLOOKUP($A107,Filtro!$A$5:$AK$2936,14,FALSE),0) -> 0 | Q107: =IFERROR(VLOOKUP($A107,Filtro!$A$5:$AK$2936,15,FALSE),0) -> 0 | R107: =IFERROR(VLOOKUP($A107,Filtro!$A$5:$AK$2936,16,FALSE),0) -> 0 | S107: =IFERROR(VLOOKUP($A107,Filtro!$A$5:$AK$2936,17,FALSE),0) -> 0 | T107: =IFERROR(VLOOKUP($A107,Filtro!$A$5:$AK$2936,18,FALSE),0) -> 0 | U107: =IFERROR(VLOOKUP($A107,Filtro!$A$5:$AK$2936,19,FALSE),0) -> 0 | V107: =IFERROR(VLOOKUP($A107,Filtro!$A$5:$AK$2936,20,FALSE),0) -> 0 | W107: =IFERROR(VLOOKUP($A107,Filtro!$A$5:$AK$2936,21,FALSE),0) -> 0 | X107: =IFERROR(VLOOKUP($A107,Filtro!$A$5:$AK$2936,22,FALSE),0) -> 0 | Y107: =IFERROR(VLOOKUP($A107,Filtro!$A$5:$AK$2936,23,FALSE),0) -> 0 | Z107: =IFERROR(VLOOKUP($A107,Filtro!$A$5:$AK$2936,24,FALSE),0) -> 0 | AA107: =IFERROR(VLOOKUP($A107,Filtro!$A$5:$AK$2936,25,FALSE),0) -> 0 | AB107: =IFERROR(VLOOKUP($A107,Filtro!$A$5:$AK$2936,26,FALSE),0) -> 0 | AC107: =IFERROR(VLOOKUP($A107,Filtro!$A$5:$AK$2936,27,FALSE),0) -> 0 | AD107: =IFERROR(VLOOKUP($A107,Filtro!$A$5:$AK$2936,28,FALSE),0) -> 0 | AE107: =IFERROR(VLOOKUP($A107,Filtro!$A$5:$AK$2936,29,FALSE),0) -> 0 | AF107: =IFERROR(VLOOKUP($A107,Filtro!$A$5:$AK$2936,30,FALSE),0) -> 0 | AG107: =IFERROR(VLOOKUP($A107,Filtro!$A$5:$AK$2936,31,FALSE),0) -> 0 | AH107: =IFERROR(VLOOKUP($A107,Filtro!$A$5:$AK$2936,32,FALSE),0) -> 0 | AI107: =IFERROR(VLOOKUP($A107,Filtro!$A$5:$AK$2936,33,FALSE),0) -> 0 | AJ107: =IFERROR(VLOOKUP($A107,Filtro!$A$5:$AK$2936,34,FALSE),0) -> 0 | AK107: =IFERROR(VLOOKUP($A107,Filtro!$A$5:$AK$2936,35,FALSE),0) -> 0 | AL107: =IFERROR(VLOOKUP($A107,Filtro!$A$5:$AK$2936,36,FALSE),0) -> 1,016,550 | AM107: =IFERROR(VLOOKUP($A107,Filtro!$A$5:$AK$2936,37,FALSE),0) -> 0
A108: 01014357 | B108: 0108204 | C108: Teleconsulta Médica de Especialidad en Oftalmología | D108: =IFERROR(VLOOKUP($A108,Filtro!$A$5:$AK$2936,2,FALSE),0) -> 156 | E108: =IFERROR(VLOOKUP($A108,Filtro!$A$5:$AK$2936,3,FALSE),0) -> 156 | F108: =IFERROR(VLOOKUP($A108,Filtro!$A$5:$AK$2936,4,FALSE),0) -> 156 | G108: =IFERROR(VLOOKUP($A108,Filtro!$A$5:$AK$2936,5,FALSE),0) -> 0 | H108: =IFERROR(VLOOKUP($A108,Filtro!$A$5:$AK$2936,6,FALSE),0) -> 0 | I108: =IFERROR(VLOOKUP($A108,Filtro!$A$5:$AK$2936,7,FALSE),0) -> 0 | J108: =IFERROR(VLOOKUP($A108,Filtro!$A$5:$AK$2936,8,FALSE),0) -> 0 | K108: =IFERROR(VLOOKUP($A108,Filtro!$A$5:$AK$2936,9,FALSE),0) -> 0 | L108: =IFERROR(VLOOKUP($A108,Filtro!$A$5:$AK$2936,10,FALSE),0) -> 0 | M108: =IFERROR(VLOOKUP($A108,Filtro!$A$5:$AK$2936,11,FALSE),0) -> 0 | N108: =IFERROR(VLOOKUP($A108,Filtro!$A$5:$AK$2936,12,FALSE),0) -> 0 | O108: =IFERROR(VLOOKUP($A108,Filtro!$A$5:$AK$2936,13,FALSE),0) -> 0 | P108: =IFERROR(VLOOKUP($A108,Filtro!$A$5:$AK$2936,14,FALSE),0) -> 0 | Q108: =IFERROR(VLOOKUP($A108,Filtro!$A$5:$AK$2936,15,FALSE),0) -> 0 | R108: =IFERROR(VLOOKUP($A108,Filtro!$A$5:$AK$2936,16,FALSE),0) -> 0 | S108: =IFERROR(VLOOKUP($A108,Filtro!$A$5:$AK$2936,17,FALSE),0) -> 0 | T108: =IFERROR(VLOOKUP($A108,Filtro!$A$5:$AK$2936,18,FALSE),0) -> 0 | U108: =IFERROR(VLOOKUP($A108,Filtro!$A$5:$AK$2936,19,FALSE),0) -> 0 | V108: =IFERROR(VLOOKUP($A108,Filtro!$A$5:$AK$2936,20,FALSE),0) -> 0 | W108: =IFERROR(VLOOKUP($A108,Filtro!$A$5:$AK$2936,21,FALSE),0) -> 0 | X108: =IFERROR(VLOOKUP($A108,Filtro!$A$5:$AK$2936,22,FALSE),0) -> 0 | Y108: =IFERROR(VLOOKUP($A108,Filtro!$A$5:$AK$2936,23,FALSE),0) -> 0 | Z108: =IFERROR(VLOOKUP($A108,Filtro!$A$5:$AK$2936,24,FALSE),0) -> 0 | AA108: =IFERROR(VLOOKUP($A108,Filtro!$A$5:$AK$2936,25,FALSE),0) -> 0 | AB108: =IFERROR(VLOOKUP($A108,Filtro!$A$5:$AK$2936,26,FALSE),0) -> 0 | AC108: =IFERROR(VLOOKUP($A108,Filtro!$A$5:$AK$2936,27,FALSE),0) -> 156 | AD108: =IFERROR(VLOOKUP($A108,Filtro!$A$5:$AK$2936,28,FALSE),0) -> 0 | AE108: =IFERROR(VLOOKUP($A108,Filtro!$A$5:$AK$2936,29,FALSE),0) -> 0 | AF108: =IFERROR(VLOOKUP($A108,Filtro!$A$5:$AK$2936,30,FALSE),0) -> 0 | AG108: =IFERROR(VLOOKUP($A108,Filtro!$A$5:$AK$2936,31,FALSE),0) -> 0 | AH108: =IFERROR(VLOOKUP($A108,Filtro!$A$5:$AK$2936,32,FALSE),0) -> 0 | AI108: =IFERROR(VLOOKUP($A108,Filtro!$A$5:$AK$2936,33,FALSE),0) -> 0 | AJ108: =IFERROR(VLOOKUP($A108,Filtro!$A$5:$AK$2936,34,FALSE),0) -> 0 | AK108: =IFERROR(VLOOKUP($A108,Filtro!$A$5:$AK$2936,35,FALSE),0) -> 0 | AL108: =IFERROR(VLOOKUP($A108,Filtro!$A$5:$AK$2936,36,FALSE),0) -> 1,016,550 | AM108: =IFERROR(VLOOKUP($A108,Filtro!$A$5:$AK$2936,37,FALSE),0) -> 1,174,680
A109: 01014358 | B109: 0108205 | C109: Teleconsulta Médica de Especialidad en Otorrinolaringología | D109: =IFERROR(VLOOKUP($A109,Filtro!$A$5:$AK$2936,2,FALSE),0) -> 1 | E109: =IFERROR(VLOOKUP($A109,Filtro!$A$5:$AK$2936,3,FALSE),0) -> 1 | F109: =IFERROR(VLOOKUP($A109,Filtro!$A$5:$AK$2936,4,FALSE),0) -> 1 | G109: =IFERROR(VLOOKUP($A109,Filtro!$A$5:$AK$2936,5,FALSE),0) -> 0 | H109: =IFERROR(VLOOKUP($A109,Filtro!$A$5:$AK$2936,6,FALSE),0) -> 0 | I109: =IFERROR(VLOOKUP($A109,Filtro!$A$5:$AK$2936,7,FALSE),0) -> 0 | J109: =IFERROR(VLOOKUP($A109,Filtro!$A$5:$AK$2936,8,FALSE),0) -> 0 | K109: =IFERROR(VLOOKUP($A109,Filtro!$A$5:$AK$2936,9,FALSE),0) -> 0 | L109: =IFERROR(VLOOKUP($A109,Filtro!$A$5:$AK$2936,10,FALSE),0) -> 0 | M109: =IFERROR(VLOOKUP($A109,Filtro!$A$5:$AK$2936,11,FALSE),0) -> 0 | N109: =IFERROR(VLOOKUP($A109,Filtro!$A$5:$AK$2936,12,FALSE),0) -> 0 | O109: =IFERROR(VLOOKUP($A109,Filtro!$A$5:$AK$2936,13,FALSE),0) -> 0 | P109: =IFERROR(VLOOKUP($A109,Filtro!$A$5:$AK$2936,14,FALSE),0) -> 0 | Q109: =IFERROR(VLOOKUP($A109,Filtro!$A$5:$AK$2936,15,FALSE),0) -> 0 | R109: =IFERROR(VLOOKUP($A109,Filtro!$A$5:$AK$2936,16,FALSE),0) -> 0 | S109: =IFERROR(VLOOKUP($A109,Filtro!$A$5:$AK$2936,17,FALSE),0) -> 0 | T109: =IFERROR(VLOOKUP($A109,Filtro!$A$5:$AK$2936,18,FALSE),0) -> 0 | U109: =IFERROR(VLOOKUP($A109,Filtro!$A$5:$AK$2936,19,FALSE),0) -> 0 | V109: =IFERROR(VLOOKUP($A109,Filtro!$A$5:$AK$2936,20,FALSE),0) -> 0 | W109: =IFERROR(VLOOKUP($A109,Filtro!$A$5:$AK$2936,21,FALSE),0) -> 0 | X109: =IFERROR(VLOOKUP($A109,Filtro!$A$5:$AK$2936,22,FALSE),0) -> 0 | Y109: =IFERROR(VLOOKUP($A109,Filtro!$A$5:$AK$2936,23,FALSE),0) -> 0 | Z109: =IFERROR(VLOOKUP($A109,Filtro!$A$5:$AK$2936,24,FALSE),0) -> 0 | AA109: =IFERROR(VLOOKUP($A109,Filtro!$A$5:$AK$2936,25,FALSE),0) -> 0 | AB109: =IFERROR(VLOOKUP($A109,Filtro!$A$5:$AK$2936,26,FALSE),0) -> 0 | AC109: =IFERROR(VLOOKUP($A109,Filtro!$A$5:$AK$2936,27,FALSE),0) -> 1 | AD109: =IFERROR(VLOOKUP($A109,Filtro!$A$5:$AK$2936,28,FALSE),0) -> 0 | AE109: =IFERROR(VLOOKUP($A109,Filtro!$A$5:$AK$2936,29,FALSE),0) -> 0 | AF109: =IFERROR(VLOOKUP($A109,Filtro!$A$5:$AK$2936,30,FALSE),0) -> 0 | AG109: =IFERROR(VLOOKUP($A109,Filtro!$A$5:$AK$2936,31,FALSE),0) -> 0 | AH109: =IFERROR(VLOOKUP($A109,Filtro!$A$5:$AK$2936,32,FALSE),0) -> 0 | AI109: =IFERROR(VLOOKUP($A109,Filtro!$A$5:$AK$2936,33,FALSE),0) -> 0 | AJ109: =IFERROR(VLOOKUP($A109,Filtro!$A$5:$AK$2936,34,FALSE),0) -> 0 | AK109: =IFERROR(VLOOKUP($A109,Filtro!$A$5:$AK$2936,35,FALSE),0) -> 0 | AL109: =IFERROR(VLOOKUP($A109,Filtro!$A$5:$AK$2936,36,FALSE),0) -> 1,016,550 | AM109: =IFERROR(VLOOKUP($A109,Filtro!$A$5:$AK$2936,37,FALSE),0) -> 7,530
A110: 01014359 | B110: 0108312 | C110: Teleconsulta Médica de Especialidad en Cirugía General | D110: =IFERROR(VLOOKUP($A110,Filtro!$A$5:$AK$2936,2,FALSE),0) -> 47 | E110: =IFERROR(VLOOKUP($A110,Filtro!$A$5:$AK$2936,3,FALSE),0) -> 47 | F110: =IFERROR(VLOOKUP($A110,Filtro!$A$5:$AK$2936,4,FALSE),0) -> 47 | G110: =IFERROR(VLOOKUP($A110,Filtro!$A$5:$AK$2936,5,FALSE),0) -> 0 | H110: =IFERROR(VLOOKUP($A110,Filtro!$A$5:$AK$2936,6,FALSE),0) -> 0 | I110: =IFERROR(VLOOKUP($A110,Filtro!$A$5:$AK$2936,7,FALSE),0) -> 0 | J110: =IFERROR(VLOOKUP($A110,Filtro!$A$5:$AK$2936,8,FALSE),0) -> 0 | K110: =IFERROR(VLOOKUP($A110,Filtro!$A$5:$AK$2936,9,FALSE),0) -> 0 | L110: =IFERROR(VLOOKUP($A110,Filtro!$A$5:$AK$2936,10,FALSE),0) -> 0 | M110: =IFERROR(VLOOKUP($A110,Filtro!$A$5:$AK$2936,11,FALSE),0) -> 0 | N110: =IFERROR(VLOOKUP($A110,Filtro!$A$5:$AK$2936,12,FALSE),0) -> 0 | O110: =IFERROR(VLOOKUP($A110,Filtro!$A$5:$AK$2936,13,FALSE),0) -> 0 | P110: =IFERROR(VLOOKUP($A110,Filtro!$A$5:$AK$2936,14,FALSE),0) -> 0 | Q110: =IFERROR(VLOOKUP($A110,Filtro!$A$5:$AK$2936,15,FALSE),0) -> 0 | R110: =IFERROR(VLOOKUP($A110,Filtro!$A$5:$AK$2936,16,FALSE),0) -> 0 | S110: =IFERROR(VLOOKUP($A110,Filtro!$A$5:$AK$2936,17,FALSE),0) -> 0 | T110: =IFERROR(VLOOKUP($A110,Filtro!$A$5:$AK$2936,18,FALSE),0) -> 0 | U110: =IFERROR(VLOOKUP($A110,Filtro!$A$5:$AK$2936,19,FALSE),0) -> 0 | V110: =IFERROR(VLOOKUP($A110,Filtro!$A$5:$AK$2936,20,FALSE),0) -> 0 | W110: =IFERROR(VLOOKUP($A110,Filtro!$A$5:$AK$2936,21,FALSE),0) -> 0 | X110: =IFERROR(VLOOKUP($A110,Filtro!$A$5:$AK$2936,22,FALSE),0) -> 0 | Y110: =IFERROR(VLOOKUP($A110,Filtro!$A$5:$AK$2936,23,FALSE),0) -> 0 | Z110: =IFERROR(VLOOKUP($A110,Filtro!$A$5:$AK$2936,24,FALSE),0) -> 0 | AA110: =IFERROR(VLOOKUP($A110,Filtro!$A$5:$AK$2936,25,FALSE),0) -> 0 | AB110: =IFERROR(VLOOKUP($A110,Filtro!$A$5:$AK$2936,26,FALSE),0) -> 0 | AC110: =IFERROR(VLOOKUP($A110,Filtro!$A$5:$AK$2936,27,FALSE),0) -> 47 | AD110: =IFERROR(VLOOKUP($A110,Filtro!$A$5:$AK$2936,28,FALSE),0) -> 0 | AE110: =IFERROR(VLOOKUP($A110,Filtro!$A$5:$AK$2936,29,FALSE),0) -> 0 | AF110: =IFERROR(VLOOKUP($A110,Filtro!$A$5:$AK$2936,30,FALSE),0) -> 0 | AG110: =IFERROR(VLOOKUP($A110,Filtro!$A$5:$AK$2936,31,FALSE),0) -> 0 | AH110: =IFERROR(VLOOKUP($A110,Filtro!$A$5:$AK$2936,32,FALSE),0) -> 0 | AI110: =IFERROR(VLOOKUP($A110,Filtro!$A$5:$AK$2936,33,FALSE),0) -> 0 | AJ110: =IFERROR(VLOOKUP($A110,Filtro!$A$5:$AK$2936,34,FALSE),0) -> 0 | AK110: =IFERROR(VLOOKUP($A110,Filtro!$A$5:$AK$2936,35,FALSE),0) -> 0 | AL110: =IFERROR(VLOOKUP($A110,Filtro!$A$5:$AK$2936,36,FALSE),0) -> 1,016,550 | AM110: =IFERROR(VLOOKUP($A110,Filtro!$A$5:$AK$2936,37,FALSE),0) -> 353,910
A111: 01014360 | B111: 0108313 | C111: Teleconsulta Médica de Especialidad en Cirugía de Cabeza, Cuello y Maxilofacial | D111: =IFERROR(VLOOKUP($A111,Filtro!$A$5:$AK$2936,2,FALSE),0) -> 1 | E111: =IFERROR(VLOOKUP($A111,Filtro!$A$5:$AK$2936,3,FALSE),0) -> 1 | F111: =IFERROR(VLOOKUP($A111,Filtro!$A$5:$AK$2936,4,FALSE),0) -> 1 | G111: =IFERROR(VLOOKUP($A111,Filtro!$A$5:$AK$2936,5,FALSE),0) -> 0 | H111: =IFERROR(VLOOKUP($A111,Filtro!$A$5:$AK$2936,6,FALSE),0) -> 0 | I111: =IFERROR(VLOOKUP($A111,Filtro!$A$5:$AK$2936,7,FALSE),0) -> 0 | J111: =IFERROR(VLOOKUP($A111,Filtro!$A$5:$AK$2936,8,FALSE),0) -> 0 | K111: =IFERROR(VLOOKUP($A111,Filtro!$A$5:$AK$2936,9,FALSE),0) -> 0 | L111: =IFERROR(VLOOKUP($A111,Filtro!$A$5:$AK$2936,10,FALSE),0) -> 0 | M111: =IFERROR(VLOOKUP($A111,Filtro!$A$5:$AK$2936,11,FALSE),0) -> 0 | N111: =IFERROR(VLOOKUP($A111,Filtro!$A$5:$AK$2936,12,FALSE),0) -> 0 | O111: =IFERROR(VLOOKUP($A111,Filtro!$A$5:$AK$2936,13,FALSE),0) -> 0 | P111: =IFERROR(VLOOKUP($A111,Filtro!$A$5:$AK$2936,14,FALSE),0) -> 0 | Q111: =IFERROR(VLOOKUP($A111,Filtro!$A$5:$AK$2936,15,FALSE),0) -> 0 | R111: =IFERROR(VLOOKUP($A111,Filtro!$A$5:$AK$2936,16,FALSE),0) -> 0 | S111: =IFERROR(VLOOKUP($A111,Filtro!$A$5:$AK$2936,17,FALSE),0) -> 0 | T111: =IFERROR(VLOOKUP($A111,Filtro!$A$5:$AK$2936,18,FALSE),0) -> 0 | U111: =IFERROR(VLOOKUP($A111,Filtro!$A$5:$AK$2936,19,FALSE),0) -> 0 | V111: =IFERROR(VLOOKUP($A111,Filtro!$A$5:$AK$2936,20,FALSE),0) -> 0 | W111: =IFERROR(VLOOKUP($A111,Filtro!$A$5:$AK$2936,21,FALSE),0) -> 0 | X111: =IFERROR(VLOOKUP($A111,Filtro!$A$5:$AK$2936,22,FALSE),0) -> 0 | Y111: =IFERROR(VLOOKUP($A111,Filtro!$A$5:$AK$2936,23,FALSE),0) -> 0 | Z111: =IFERROR(VLOOKUP($A111,Filtro!$A$5:$AK$2936,24,FALSE),0) -> 0 | AA111: =IFERROR(VLOOKUP($A111,Filtro!$A$5:$AK$2936,25,FALSE),0) -> 0 | AB111: =IFERROR(VLOOKUP($A111,Filtro!$A$5:$AK$2936,26,FALSE),0) -> 0 | AC111: =IFERROR(VLOOKUP($A111,Filtro!$A$5:$AK$2936,27,FALSE),0) -> 1 | AD111: =IFERROR(VLOOKUP($A111,Filtro!$A$5:$AK$2936,28,FALSE),0) -> 0 | AE111: =IFERROR(VLOOKUP($A111,Filtro!$A$5:$AK$2936,29,FALSE),0) -> 0 | AF111: =IFERROR(VLOOKUP($A111,Filtro!$A$5:$AK$2936,30,FALSE),0) -> 0 | AG111: =IFERROR(VLOOKUP($A111,Filtro!$A$5:$AK$2936,31,FALSE),0) -> 0 | AH111: =IFERROR(VLOOKUP($A111,Filtro!$A$5:$AK$2936,32,FALSE),0) -> 0 | AI111: =IFERROR(VLOOKUP($A111,Filtro!$A$5:$AK$2936,33,FALSE),0) -> 0 | AJ111: =IFERROR(VLOOKUP($A111,Filtro!$A$5:$AK$2936,34,FALSE),0) -> 0 | AK111: =IFERROR(VLOOKUP($A111,Filtro!$A$5:$AK$2936,35,FALSE),0) -> 0 | AL111: =IFERROR(VLOOKUP($A111,Filtro!$A$5:$AK$2936,36,FALSE),0) -> 1,016,550 | AM111: =IFERROR(VLOOKUP($A111,Filtro!$A$5:$AK$2936,37,FALSE),0) -> 7,530
A112: 01014361 | B112: 0108314 | C112: Teleconsulta Médica de Especialidad en Cirugía Cardiovascular | D112: =IFERROR(VLOOKUP($A112,Filtro!$A$5:$AK$2936,2,FALSE),0) -> 0 | E112: =IFERROR(VLOOKUP($A112,Filtro!$A$5:$AK$2936,3,FALSE),0) -> 0 | F112: =IFERROR(VLOOKUP($A112,Filtro!$A$5:$AK$2936,4,FALSE),0) -> 0 | G112: =IFERROR(VLOOKUP($A112,Filtro!$A$5:$AK$2936,5,FALSE),0) -> 0 | H112: =IFERROR(VLOOKUP($A112,Filtro!$A$5:$AK$2936,6,FALSE),0) -> 0 | I112: =IFERROR(VLOOKUP($A112,Filtro!$A$5:$AK$2936,7,FALSE),0) -> 0 | J112: =IFERROR(VLOOKUP($A112,Filtro!$A$5:$AK$2936,8,FALSE),0) -> 0 | K112: =IFERROR(VLOOKUP($A112,Filtro!$A$5:$AK$2936,9,FALSE),0) -> 0 | L112: =IFERROR(VLOOKUP($A112,Filtro!$A$5:$AK$2936,10,FALSE),0) -> 0 | M112: =IFERROR(VLOOKUP($A112,Filtro!$A$5:$AK$2936,11,FALSE),0) -> 0 | N112: =IFERROR(VLOOKUP($A112,Filtro!$A$5:$AK$2936,12,FALSE),0) -> 0 | O112: =IFERROR(VLOOKUP($A112,Filtro!$A$5:$AK$2936,13,FALSE),0) -> 0 | P112: =IFERROR(VLOOKUP($A112,Filtro!$A$5:$AK$2936,14,FALSE),0) -> 0 | Q112: =IFERROR(VLOOKUP($A112,Filtro!$A$5:$AK$2936,15,FALSE),0) -> 0 | R112: =IFERROR(VLOOKUP($A112,Filtro!$A$5:$AK$2936,16,FALSE),0) -> 0 | S112: =IFERROR(VLOOKUP($A112,Filtro!$A$5:$AK$2936,17,FALSE),0) -> 0 | T112: =IFERROR(VLOOKUP($A112,Filtro!$A$5:$AK$2936,18,FALSE),0) -> 0 | U112: =IFERROR(VLOOKUP($A112,Filtro!$A$5:$AK$2936,19,FALSE),0) -> 0 | V112: =IFERROR(VLOOKUP($A112,Filtro!$A$5:$AK$2936,20,FALSE),0) -> 0 | W112: =IFERROR(VLOOKUP($A112,Filtro!$A$5:$AK$2936,21,FALSE),0) -> 0 | X112: =IFERROR(VLOOKUP($A112,Filtro!$A$5:$AK$2936,22,FALSE),0) -> 0 | Y112: =IFERROR(VLOOKUP($A112,Filtro!$A$5:$AK$2936,23,FALSE),0) -> 0 | Z112: =IFERROR(VLOOKUP($A112,Filtro!$A$5:$AK$2936,24,FALSE),0) -> 0 | AA112: =IFERROR(VLOOKUP($A112,Filtro!$A$5:$AK$2936,25,FALSE),0) -> 0 | AB112: =IFERROR(VLOOKUP($A112,Filtro!$A$5:$AK$2936,26,FALSE),0) -> 0 | AC112: =IFERROR(VLOOKUP($A112,Filtro!$A$5:$AK$2936,27,FALSE),0) -> 0 | AD112: =IFERROR(VLOOKUP($A112,Filtro!$A$5:$AK$2936,28,FALSE),0) -> 0 | AE112: =IFERROR(VLOOKUP($A112,Filtro!$A$5:$AK$2936,29,FALSE),0) -> 0 | AF112: =IFERROR(VLOOKUP($A112,Filtro!$A$5:$AK$2936,30,FALSE),0) -> 0 | AG112: =IFERROR(VLOOKUP($A112,Filtro!$A$5:$AK$2936,31,FALSE),0) -> 0 | AH112: =IFERROR(VLOOKUP($A112,Filtro!$A$5:$AK$2936,32,FALSE),0) -> 0 | AI112: =IFERROR(VLOOKUP($A112,Filtro!$A$5:$AK$2936,33,FALSE),0) -> 0 | AJ112: =IFERROR(VLOOKUP($A112,Filtro!$A$5:$AK$2936,34,FALSE),0) -> 0 | AK112: =IFERROR(VLOOKUP($A112,Filtro!$A$5:$AK$2936,35,FALSE),0) -> 0 | AL112: =IFERROR(VLOOKUP($A112,Filtro!$A$5:$AK$2936,36,FALSE),0) -> 1,016,550 | AM112: =IFERROR(VLOOKUP($A112,Filtro!$A$5:$AK$2936,37,FALSE),0) -> 0
A113: 01014362 | B113: 0108315 | C113: Teleconsulta Médica de Especialidad en Cirugía de Tórax | D113: =IFERROR(VLOOKUP($A113,Filtro!$A$5:$AK$2936,2,FALSE),0) -> 2 | E113: =IFERROR(VLOOKUP($A113,Filtro!$A$5:$AK$2936,3,FALSE),0) -> 2 | F113: =IFERROR(VLOOKUP($A113,Filtro!$A$5:$AK$2936,4,FALSE),0) -> 2 | G113: =IFERROR(VLOOKUP($A113,Filtro!$A$5:$AK$2936,5,FALSE),0) -> 0 | H113: =IFERROR(VLOOKUP($A113,Filtro!$A$5:$AK$2936,6,FALSE),0) -> 0 | I113: =IFERROR(VLOOKUP($A113,Filtro!$A$5:$AK$2936,7,FALSE),0) -> 0 | J113: =IFERROR(VLOOKUP($A113,Filtro!$A$5:$AK$2936,8,FALSE),0) -> 0 | K113: =IFERROR(VLOOKUP($A113,Filtro!$A$5:$AK$2936,9,FALSE),0) -> 0 | L113: =IFERROR(VLOOKUP($A113,Filtro!$A$5:$AK$2936,10,FALSE),0) -> 0 | M113: =IFERROR(VLOOKUP($A113,Filtro!$A$5:$AK$2936,11,FALSE),0) -> 0 | N113: =IFERROR(VLOOKUP($A113,Filtro!$A$5:$AK$2936,12,FALSE),0) -> 0 | O113: =IFERROR(VLOOKUP($A113,Filtro!$A$5:$AK$2936,13,FALSE),0) -> 0 | P113: =IFERROR(VLOOKUP($A113,Filtro!$A$5:$AK$2936,14,FALSE),0) -> 0 | Q113: =IFERROR(VLOOKUP($A113,Filtro!$A$5:$AK$2936,15,FALSE),0) -> 0 | R113: =IFERROR(VLOOKUP($A113,Filtro!$A$5:$AK$2936,16,FALSE),0) -> 0 | S113: =IFERROR(VLOOKUP($A113,Filtro!$A$5:$AK$2936,17,FALSE),0) -> 0 | T113: =IFERROR(VLOOKUP($A113,Filtro!$A$5:$AK$2936,18,FALSE),0) -> 0 | U113: =IFERROR(VLOOKUP($A113,Filtro!$A$5:$AK$2936,19,FALSE),0) -> 0 | V113: =IFERROR(VLOOKUP($A113,Filtro!$A$5:$AK$2936,20,FALSE),0) -> 0 | W113: =IFERROR(VLOOKUP($A113,Filtro!$A$5:$AK$2936,21,FALSE),0) -> 0 | X113: =IFERROR(VLOOKUP($A113,Filtro!$A$5:$AK$2936,22,FALSE),0) -> 0 | Y113: =IFERROR(VLOOKUP($A113,Filtro!$A$5:$AK$2936,23,FALSE),0) -> 0 | Z113: =IFERROR(VLOOKUP($A113,Filtro!$A$5:$AK$2936,24,FALSE),0) -> 0 | AA113: =IFERROR(VLOOKUP($A113,Filtro!$A$5:$AK$2936,25,FALSE),0) -> 0 | AB113: =IFERROR(VLOOKUP($A113,Filtro!$A$5:$AK$2936,26,FALSE),0) -> 0 | AC113: =IFERROR(VLOOKUP($A113,Filtro!$A$5:$AK$2936,27,FALSE),0) -> 2 | AD113: =IFERROR(VLOOKUP($A113,Filtro!$A$5:$AK$2936,28,FALSE),0) -> 0 | AE113: =IFERROR(VLOOKUP($A113,Filtro!$A$5:$AK$2936,29,FALSE),0) -> 0 | AF113: =IFERROR(VLOOKUP($A113,Filtro!$A$5:$AK$2936,30,FALSE),0) -> 0 | AG113: =IFERROR(VLOOKUP($A113,Filtro!$A$5:$AK$2936,31,FALSE),0) -> 0 | AH113: =IFERROR(VLOOKUP($A113,Filtro!$A$5:$AK$2936,32,FALSE),0) -> 0 | AI113: =IFERROR(VLOOKUP($A113,Filtro!$A$5:$AK$2936,33,FALSE),0) -> 0 | AJ113: =IFERROR(VLOOKUP($A113,Filtro!$A$5:$AK$2936,34,FALSE),0) -> 0 | AK113: =IFERROR(VLOOKUP($A113,Filtro!$A$5:$AK$2936,35,FALSE),0) -> 0 | AL113: =IFERROR(VLOOKUP($A113,Filtro!$A$5:$AK$2936,36,FALSE),0) -> 1,016,550 | AM113: =IFERROR(VLOOKUP($A113,Filtro!$A$5:$AK$2936,37,FALSE),0) -> 15,060
A114: 01014363 | B114: 0108316 | C114: Teleconsulta Médica de Especialidad en Cirugía Plástica y Reparadora | D114: =IFERROR(VLOOKUP($A114,Filtro!$A$5:$AK$2936,2,FALSE),0) -> 0 | E114: =IFERROR(VLOOKUP($A114,Filtro!$A$5:$AK$2936,3,FALSE),0) -> 0 | F114: =IFERROR(VLOOKUP($A114,Filtro!$A$5:$AK$2936,4,FALSE),0) -> 0 | G114: =IFERROR(VLOOKUP($A114,Filtro!$A$5:$AK$2936,5,FALSE),0) -> 0 | H114: =IFERROR(VLOOKUP($A114,Filtro!$A$5:$AK$2936,6,FALSE),0) -> 0 | I114: =IFERROR(VLOOKUP($A114,Filtro!$A$5:$AK$2936,7,FALSE),0) -> 0 | J114: =IFERROR(VLOOKUP($A114,Filtro!$A$5:$AK$2936,8,FALSE),0) -> 0 | K114: =IFERROR(VLOOKUP($A114,Filtro!$A$5:$AK$2936,9,FALSE),0) -> 0 | L114: =IFERROR(VLOOKUP($A114,Filtro!$A$5:$AK$2936,10,FALSE),0) -> 0 | M114: =IFERROR(VLOOKUP($A114,Filtro!$A$5:$AK$2936,11,FALSE),0) -> 0 | N114: =IFERROR(VLOOKUP($A114,Filtro!$A$5:$AK$2936,12,FALSE),0) -> 0 | O114: =IFERROR(VLOOKUP($A114,Filtro!$A$5:$AK$2936,13,FALSE),0) -> 0 | P114: =IFERROR(VLOOKUP($A114,Filtro!$A$5:$AK$2936,14,FALSE),0) -> 0 | Q114: =IFERROR(VLOOKUP($A114,Filtro!$A$5:$AK$2936,15,FALSE),0) -> 0 | R114: =IFERROR(VLOOKUP($A114,Filtro!$A$5:$AK$2936,16,FALSE),0) -> 0 | S114: =IFERROR(VLOOKUP($A114,Filtro!$A$5:$AK$2936,17,FALSE),0) -> 0 | T114: =IFERROR(VLOOKUP($A114,Filtro!$A$5:$AK$2936,18,FALSE),0) -> 0 | U114: =IFERROR(VLOOKUP($A114,Filtro!$A$5:$AK$2936,19,FALSE),0) -> 0 | V114: =IFERROR(VLOOKUP($A114,Filtro!$A$5:$AK$2936,20,FALSE),0) -> 0 | W114: =IFERROR(VLOOKUP($A114,Filtro!$A$5:$AK$2936,21,FALSE),0) -> 0 | X114: =IFERROR(VLOOKUP($A114,Filtro!$A$5:$AK$2936,22,FALSE),0) -> 0 | Y114: =IFERROR(VLOOKUP($A114,Filtro!$A$5:$AK$2936,23,FALSE),0) -> 0 | Z114: =IFERROR(VLOOKUP($A114,Filtro!$A$5:$AK$2936,24,FALSE),0) -> 0 | AA114: =IFERROR(VLOOKUP($A114,Filtro!$A$5:$AK$2936,25,FALSE),0) -> 0 | AB114: =IFERROR(VLOOKUP($A114,Filtro!$A$5:$AK$2936,26,FALSE),0) -> 0 | AC114: =IFERROR(VLOOKUP($A114,Filtro!$A$5:$AK$2936,27,FALSE),0) -> 0 | AD114: =IFERROR(VLOOKUP($A114,Filtro!$A$5:$AK$2936,28,FALSE),0) -> 0 | AE114: =IFERROR(VLOOKUP($A114,Filtro!$A$5:$AK$2936,29,FALSE),0) -> 0 | AF114: =IFERROR(VLOOKUP($A114,Filtro!$A$5:$AK$2936,30,FALSE),0) -> 0 | AG114: =IFERROR(VLOOKUP($A114,Filtro!$A$5:$AK$2936,31,FALSE),0) -> 0 | AH114: =IFERROR(VLOOKUP($A114,Filtro!$A$5:$AK$2936,32,FALSE),0) -> 0 | AI114: =IFERROR(VLOOKUP($A114,Filtro!$A$5:$AK$2936,33,FALSE),0) -> 0 | AJ114: =IFERROR(VLOOKUP($A114,Filtro!$A$5:$AK$2936,34,FALSE),0) -> 0 | AK114: =IFERROR(VLOOKUP($A114,Filtro!$A$5:$AK$2936,35,FALSE),0) -> 0 | AL114: =IFERROR(VLOOKUP($A114,Filtro!$A$5:$AK$2936,36,FALSE),0) -> 1,016,550 | AM114: =IFERROR(VLOOKUP($A114,Filtro!$A$5:$AK$2936,37,FALSE),0) -> 0
A115: 01014364 | B115: 0108317 | C115: Teleconsulta Médica de Especialidad en Cirugía Pediátrica | D115: =IFERROR(VLOOKUP($A115,Filtro!$A$5:$AK$2936,2,FALSE),0) -> 3 | E115: =IFERROR(VLOOKUP($A115,Filtro!$A$5:$AK$2936,3,FALSE),0) -> 3 | F115: =IFERROR(VLOOKUP($A115,Filtro!$A$5:$AK$2936,4,FALSE),0) -> 3 | G115: =IFERROR(VLOOKUP($A115,Filtro!$A$5:$AK$2936,5,FALSE),0) -> 0 | H115: =IFERROR(VLOOKUP($A115,Filtro!$A$5:$AK$2936,6,FALSE),0) -> 0 | I115: =IFERROR(VLOOKUP($A115,Filtro!$A$5:$AK$2936,7,FALSE),0) -> 0 | J115: =IFERROR(VLOOKUP($A115,Filtro!$A$5:$AK$2936,8,FALSE),0) -> 0 | K115: =IFERROR(VLOOKUP($A115,Filtro!$A$5:$AK$2936,9,FALSE),0) -> 0 | L115: =IFERROR(VLOOKUP($A115,Filtro!$A$5:$AK$2936,10,FALSE),0) -> 0 | M115: =IFERROR(VLOOKUP($A115,Filtro!$A$5:$AK$2936,11,FALSE),0) -> 0 | N115: =IFERROR(VLOOKUP($A115,Filtro!$A$5:$AK$2936,12,FALSE),0) -> 0 | O115: =IFERROR(VLOOKUP($A115,Filtro!$A$5:$AK$2936,13,FALSE),0) -> 0 | P115: =IFERROR(VLOOKUP($A115,Filtro!$A$5:$AK$2936,14,FALSE),0) -> 0 | Q115: =IFERROR(VLOOKUP($A115,Filtro!$A$5:$AK$2936,15,FALSE),0) -> 0 | R115: =IFERROR(VLOOKUP($A115,Filtro!$A$5:$AK$2936,16,FALSE),0) -> 0 | S115: =IFERROR(VLOOKUP($A115,Filtro!$A$5:$AK$2936,17,FALSE),0) -> 0 | T115: =IFERROR(VLOOKUP($A115,Filtro!$A$5:$AK$2936,18,FALSE),0) -> 0 | U115: =IFERROR(VLOOKUP($A115,Filtro!$A$5:$AK$2936,19,FALSE),0) -> 0 | V115: =IFERROR(VLOOKUP($A115,Filtro!$A$5:$AK$2936,20,FALSE),0) -> 0 | W115: =IFERROR(VLOOKUP($A115,Filtro!$A$5:$AK$2936,21,FALSE),0) -> 0 | X115: =IFERROR(VLOOKUP($A115,Filtro!$A$5:$AK$2936,22,FALSE),0) -> 0 | Y115: =IFERROR(VLOOKUP($A115,Filtro!$A$5:$AK$2936,23,FALSE),0) -> 0 | Z115: =IFERROR(VLOOKUP($A115,Filtro!$A$5:$AK$2936,24,FALSE),0) -> 0 | AA115: =IFERROR(VLOOKUP($A115,Filtro!$A$5:$AK$2936,25,FALSE),0) -> 0 | AB115: =IFERROR(VLOOKUP($A115,Filtro!$A$5:$AK$2936,26,FALSE),0) -> 0 | AC115: =IFERROR(VLOOKUP($A115,Filtro!$A$5:$AK$2936,27,FALSE),0) -> 3 | AD115: =IFERROR(VLOOKUP($A115,Filtro!$A$5:$AK$2936,28,FALSE),0) -> 0 | AE115: =IFERROR(VLOOKUP($A115,Filtro!$A$5:$AK$2936,29,FALSE),0) -> 0 | AF115: =IFERROR(VLOOKUP($A115,Filtro!$A$5:$AK$2936,30,FALSE),0) -> 0 | AG115: =IFERROR(VLOOKUP($A115,Filtro!$A$5:$AK$2936,31,FALSE),0) -> 0 | AH115: =IFERROR(VLOOKUP($A115,Filtro!$A$5:$AK$2936,32,FALSE),0) -> 0 | AI115: =IFERROR(VLOOKUP($A115,Filtro!$A$5:$AK$2936,33,FALSE),0) -> 0 | AJ115: =IFERROR(VLOOKUP($A115,Filtro!$A$5:$AK$2936,34,FALSE),0) -> 0 | AK115: =IFERROR(VLOOKUP($A115,Filtro!$A$5:$AK$2936,35,FALSE),0) -> 0 | AL115: =IFERROR(VLOOKUP($A115,Filtro!$A$5:$AK$2936,36,FALSE),0) -> 1,016,550 | AM115: =IFERROR(VLOOKUP($A115,Filtro!$A$5:$AK$2936,37,FALSE),0) -> 22,590
A116: 01014365 | B116: 0108318 | C116: Teleconsulta Médica de Especialidad en Cirugía Vascular Periférica | D116: =IFERROR(VLOOKUP($A116,Filtro!$A$5:$AK$2936,2,FALSE),0) -> 0 | E116: =IFERROR(VLOOKUP($A116,Filtro!$A$5:$AK$2936,3,FALSE),0) -> 0 | F116: =IFERROR(VLOOKUP($A116,Filtro!$A$5:$AK$2936,4,FALSE),0) -> 0 | G116: =IFERROR(VLOOKUP($A116,Filtro!$A$5:$AK$2936,5,FALSE),0) -> 0 | H116: =IFERROR(VLOOKUP($A116,Filtro!$A$5:$AK$2936,6,FALSE),0) -> 0 | I116: =IFERROR(VLOOKUP($A116,Filtro!$A$5:$AK$2936,7,FALSE),0) -> 0 | J116: =IFERROR(VLOOKUP($A116,Filtro!$A$5:$AK$2936,8,FALSE),0) -> 0 | K116: =IFERROR(VLOOKUP($A116,Filtro!$A$5:$AK$2936,9,FALSE),0) -> 0 | L116: =IFERROR(VLOOKUP($A116,Filtro!$A$5:$AK$2936,10,FALSE),0) -> 0 | M116: =IFERROR(VLOOKUP($A116,Filtro!$A$5:$AK$2936,11,FALSE),0) -> 0 | N116: =IFERROR(VLOOKUP($A116,Filtro!$A$5:$AK$2936,12,FALSE),0) -> 0 | O116: =IFERROR(VLOOKUP($A116,Filtro!$A$5:$AK$2936,13,FALSE),0) -> 0 | P116: =IFERROR(VLOOKUP($A116,Filtro!$A$5:$AK$2936,14,FALSE),0) -> 0 | Q116: =IFERROR(VLOOKUP($A116,Filtro!$A$5:$AK$2936,15,FALSE),0) -> 0 | R116: =IFERROR(VLOOKUP($A116,Filtro!$A$5:$AK$2936,16,FALSE),0) -> 0 | S116: =IFERROR(VLOOKUP($A116,Filtro!$A$5:$AK$2936,17,FALSE),0) -> 0 | T116: =IFERROR(VLOOKUP($A116,Filtro!$A$5:$AK$2936,18,FALSE),0) -> 0 | U116: =IFERROR(VLOOKUP($A116,Filtro!$A$5:$AK$2936,19,FALSE),0) -> 0 | V116: =IFERROR(VLOOKUP($A116,Filtro!$A$5:$AK$2936,20,FALSE),0) -> 0 | W116: =IFERROR(VLOOKUP($A116,Filtro!$A$5:$AK$2936,21,FALSE),0) -> 0 | X116: =IFERROR(VLOOKUP($A116,Filtro!$A$5:$AK$2936,22,FALSE),0) -> 0 | Y116: =IFERROR(VLOOKUP($A116,Filtro!$A$5:$AK$2936,23,FALSE),0) -> 0 | Z116: =IFERROR(VLOOKUP($A116,Filtro!$A$5:$AK$2936,24,FALSE),0) -> 0 | AA116: =IFERROR(VLOOKUP($A116,Filtro!$A$5:$AK$2936,25,FALSE),0) -> 0 | AB116: =IFERROR(VLOOKUP($A116,Filtro!$A$5:$AK$2936,26,FALSE),0) -> 0 | AC116: =IFERROR(VLOOKUP($A116,Filtro!$A$5:$AK$2936,27,FALSE),0) -> 0 | AD116: =IFERROR(VLOOKUP($A116,Filtro!$A$5:$AK$2936,28,FALSE),0) -> 0 | AE116: =IFERROR(VLOOKUP($A116,Filtro!$A$5:$AK$2936,29,FALSE),0) -> 0 | AF116: =IFERROR(VLOOKUP($A116,Filtro!$A$5:$AK$2936,30,FALSE),0) -> 0 | AG116: =IFERROR(VLOOKUP($A116,Filtro!$A$5:$AK$2936,31,FALSE),0) -> 0 | AH116: =IFERROR(VLOOKUP($A116,Filtro!$A$5:$AK$2936,32,FALSE),0) -> 0 | AI116: =IFERROR(VLOOKUP($A116,Filtro!$A$5:$AK$2936,33,FALSE),0) -> 0 | AJ116: =IFERROR(VLOOKUP($A116,Filtro!$A$5:$AK$2936,34,FALSE),0) -> 0 | AK116: =IFERROR(VLOOKUP($A116,Filtro!$A$5:$AK$2936,35,FALSE),0) -> 0 | AL116: =IFERROR(VLOOKUP($A116,Filtro!$A$5:$AK$2936,36,FALSE),0) -> 1,016,550 | AM116: =IFERROR(VLOOKUP($A116,Filtro!$A$5:$AK$2936,37,FALSE),0) -> 0
